Workbook

Sheet Производственная программа
B1: ПРОИЗВОДСТВЕННАЯ ПРОГРАММА 2022-2028
IS2: - Начало СМР
HU3: ● | HV3: - Внутреннее согласование архитектурно-градостроительной концепции застройки в АБД проведено; | IG3: ▪ | IH3: - разрешения на строительство получено; | IS3: - СМР
HU4: ● | HV4: -В УАиГ получено согласование архитектурной концепции с эскизом застройки ; | IG4: ▪ | IH4: - старт продаж | IS4: - Производство панелей
HU5: ● | HV5: - Эскизный проект (1 этап) согласован; | IG5: ▪ | IH5: - получен ЗОС; | IS5: - Ввод объекта в эксплуатацию
HU6: ● | HV6: - Утверждение отклонений от предельных параметров разрешенного строительства; | IG6: ▪ | IH6: - зарегистрирована превая квартира на покупателя/раскрыты эскроу счета; | IR6: ДДУ | IS6: - Передача ключей по ДДУ
B7: Кровля 2023-Утеплитель, керамзит, рулонка
A8: № п/п | B8: № п/п | C8: Код по 1C | D8: Наименование объектов | E8: Общая площадь здания, м2 | F8: Материал | G8: Характеристика | H8: ед.изм | I8: Количество | J8: Продаваемая площадь, м2 | K8: Площадь квартир, м2 | L8: Площадь коммерции, м2 | M8: Паркинги, маш/мест | N8: Кол-во квартир | O8: Кол-во БС | P8: Этажность (жилые этажи) | Q8: Кол-во домов | R8: Конструктив | S8: Тип проектирования | T8: Полный объем м3 панель | U8: Полный объем шт панель | V8: Каркасы м3 | W8: Фактический объем панелей м3 | X8: Разница панели м3 | Y8: КПД м3 2020 | Z8: Каркасы м3 | AA8: каркасы разница м3 | AC8: Фаза Прединвест/ Инвест | AD8: Комментарии | AE8: План на 24.03.2021 | AQ8: Проноз на 23.11.2021 | BC8: Проноз на 14.03.2022 | BO8: Программа на февраль 2020 | BQ8: Программа на июль 2020 | BS8: Программа на 10.12.2020 | BU8: Программа на 17.12.2020 | BW8: Программа на 20.01.2021 | BY8: Программа на 10.02.2021 | CA8: Программа на 20.02.2021 | CC8: Программа на 01.03.2021 | CE8: Программа на 09.03.21 | CG8: Программа на 19.03.21 | CI8: Программа на 31.03.21 | CK8: Программа на 09.04.21 | CM8: Программа на 19.04.21 | CO8: Программа на 28.04.21 | CQ8: Программа на 17.05.21 | CS8: Программа на 02.06.21 | CU8: Программа на 18.06.21 | CW8: Программа на 29.06.21 | CY8: Программа на 08.07.21 | DA8: Программа на 23.07.21 | DC8: Программа на 26.07.21 | DE8: Программа на 11.08.21 | DG8: Программа на 19.08.21 | DI8: Программа на 27.08.21 | DK8: Программа на 09.09.21 | DN8: Программа на 22.09.21 | DQ8: Программа на 11.10.21 | DT8: Программа на 10.11.21 | DW8: Программа на 29.11.21 | DZ8: Программа на 07.12.21 | EC8: Срок СМР (мес.) | ED8: Срок СМР (мес.) | EE8: Согласов-е АГК в АБД | EF8: Согласов-е ЭП 1 этап в УАиГ | EG8: Программа на 14.12.21 | EJ8: Программа на 27.12.21 | EM8: Срок СМР (мес.) | EN8: Программа на 24.01.21 | EQ8: Программа на 04.02.22 | ET8: Программа на 11.02.22 | EW8: Программа на 21.02.22 | EZ8: Программа на 05.03.22 | FC8: Программа на 18.03.22 | FF8: Программа на 01.04.22 | FI8: Программа на 15.04.22 | FL8: Программа на 18.04.22 | FO8: Программа на 22.04.22 по ПП ДЭ | FR8: Срок СМР (мес.) | FS8: Программа на 29.04.22 по финплану | FV8: Программа на 13.05.22 | FY8: Программа на 23.05.22 | GB8: Программа на 27.05.22 | GE8: Программа на 10.06.22 | GH8: Программа на 24.06.22 | GK8: Программа на 08.07.22 | GN8: Программа на 22.07.22 | GQ8: Программа на 05.08.22 | GT8: Программа на 19.08.22 | GW8: Программа на 02.09.22 | GZ8: Программа на 16.09.22 | HC8: Программа на 30.09.22 | HF8: Программа на 14.10.22 | HI8: Программа на 28.10.22 | HL8: Программа на 11.11.22 | HO8: Статус | HP8: Проектировщик | HR8: Ген. Подрядчик | HS8: Срок РНС до | HT8: Передача ключей по ДДУ (обяз-ва) | HU8: 2021 | IG8: КПД 2021 | IH8: ВВОД 2021 | II8: ЗАДЕЛ 2021 | IJ8: Проектирование 2021 | IK8: 2023
AE9: ТЗ на концепцию | AF9: Согл. конц. в АБД | AG9: Согл. конц. в УАиГ | AH9: Согласование ЭП 1 этап | AI9: Утвержение отклонений | AJ9: Положительная экспертиза | AK9: Старт продаж | AL9: Выдача КЖИ | AM9: Производство панелей | AN9: Получение ЗОС | AO9: Раскрытие эскроу-счетов | AP9: Ввод по БАНКУ | AQ9: ТЗ на концепцию | AR9: Согл. конц. в АБД | AS9: Согл. конц. в УАиГ | AT9: Согласование ЭП 1 этап | AU9: Утвержение отклонений | AV9: Положительная экспертиза | AW9: Старт продаж | AX9: Выдача КЖИ | AY9: Производство панелей | AZ9: Получение ЗОС | BA9: Раскрытие эскроу-счетов | BB9: Ввод по БАНКУ | BC9: ТЗ на концепцию | BD9: Согл. конц. в АБД | BE9: Согл. конц. в УАиГ | BF9: Согласование ЭП 1 этап | BG9: Утвержение отклонений | BH9: Положительная экспертиза | BI9: Старт продаж | BJ9: Выдача КЖИ | BK9: Производство панелей | BL9: Получение ЗОС | BM9: Раскрытие эскроу-счетов | BN9: Ввод по БАНКУ | BO9: Разрешение | BP9: Ввод объекта | BQ9: Разрешение | BR9: Ввод объекта | BS9: Разрешение | BT9: Ввод объекта | BU9: Разрешение | BV9: Ввод объекта | BW9: Разрешение | BX9: Ввод объекта | BY9: Разрешение | BZ9: Ввод объекта | CA9: Разрешение | CB9: Ввод объекта | CC9: Разрешение | CD9: Ввод объекта | CE9: Разрешение | CF9: Ввод объекта | CG9: Разрешение | CH9: Ввод объекта | CI9: Разрешение | CJ9: Ввод объекта | CK9: Разрешение | CL9: Ввод объекта | CM9: Разрешение | CN9: Ввод объекта | CO9: Разрешение | CP9: Ввод объекта | CQ9: Разрешение | CR9: Ввод объекта | CS9: Разрешение | CT9: Ввод объекта | CU9: Разрешение | CV9: Ввод объекта | CW9: Разрешение | CX9: Ввод объекта | CY9: Разрешение | CZ9: Ввод объекта | DA9: Разрешение | DB9: Ввод объекта | DC9: Разрешение | DD9: Ввод объекта | DE9: Разрешение | DF9: Ввод объекта | DG9: Разрешение | DH9: Ввод объекта | DI9: Разрешение | DJ9: Ввод объекта | DK9: Разрешение | DL9: Начало СМР | DM9: Ввод объекта | DN9: Разрешение | DO9: Начало СМР | DP9: Ввод объекта | DQ9: Разрешение | DR9: Начало СМР | DS9: Ввод объекта | DT9: Разрешение | DU9: Начало СМР | DV9: Ввод объекта | DW9: Разрешение | DX9: Начало СМР | DY9: Ввод объекта | DZ9: Разрешение | EA9: Начало СМР | EB9: Ввод объекта | EC9: Начало СМР - Ввод | ED9: РНС - Ввод | EG9: Разрешение | EH9: Начало СМР | EI9: Ввод объекта | EJ9: Разрешение | EK9: Начало СМР | EL9: Ввод объекта | EM9: РНС - Ввод | EN9: Разрешение | EO9: Начало СМР | EP9: Ввод объекта | EQ9: Разрешение | ER9: Начало СМР | ES9: Ввод объекта | ET9: Разрешение | EU9: Начало СМР | EV9: Ввод объекта | EW9: Разрешение | EX9: Начало СМР | EY9: Ввод объекта | EZ9: Разрешение | FA9: Начало СМР | FB9: Ввод объекта | FC9: Разрешение | FD9: Начало СМР | FE9: Ввод объекта | FF9: Разрешение | FG9: Начало СМР | FH9: Ввод объекта | FI9: Разрешение | FJ9: Начало СМР | FK9: Ввод объекта | FL9: Разрешение | FM9: Начало СМР | FN9: Ввод объекта | FO9: Разрешение | FP9: Начало СМР | FQ9: Ввод объекта | FR9: Начало СМР - Ввод | FS9: Разрешение | FT9: Начало СМР | FU9: Ввод объекта | FV9: Разрешение | FW9: Начало СМР | FX9: Ввод объекта | FY9: Разрешение | FZ9: Начало СМР | GA9: Ввод объекта | GB9: Разрешение | GC9: Начало СМР | GD9: Ввод объекта | GE9: Разрешение | GF9: Начало СМР | GG9: Ввод объекта | GH9: Разрешение | GI9: Начало СМР | GJ9: Ввод объекта | GK9: Разрешение | GL9: Начало СМР | GM9: Ввод объекта | GN9: Разрешение | GO9: Начало СМР | GP9: Ввод объекта | GQ9: Разрешение | GR9: Начало СМР | GS9: Ввод объекта | GT9: Разрешение | GU9: Начало СМР | GV9: Ввод объекта | GW9: Разрешение | GX9: Начало СМР | GY9: Ввод объекта | GZ9: Разрешение | HA9: Начало СМР | HB9: Ввод объекта | HC9: Разрешение | HD9: Начало СМР | HE9: Ввод объекта | HF9: Разрешение | HG9: Начало СМР | HH9: Ввод объекта | HI9: Разрешение | HJ9: Начало СМР | HK9: Ввод объекта | HL9: Разрешение | HM9: Начало СМР | HN9: Ввод объекта | HP9: АГК-ЭП | HQ9: ЭП-Эксперт | HU9: янв | HV9: фев | HW9: мар | HX9: апр | HY9: май | HZ9: июн | IA9: июл | IB9: авг | IC9: сен | ID9: окт | IE9: ноя | IF9: дек | IG9: м3 | IH9: м2 | II9: м2 | IJ9: м2 | IK9: янв | IL9: фев | IM9: мар | IN9: апр | IO9: май | IP9: июн | IQ9: июл | IR9: авг | IS9: сен | IT9: окт | IU9: ноя | IV9: дек
A10: 1 | B10: 1 | C10: 2 | D10: 2 | J10: 3 | K10: 4 | L10: 5 | M10: 6 | N10: 7 | O10: 14 | P10: 15 | Q10: 16 | R10: 17 | S10: 19 | T10: 20 | U10: 21 | V10: 22 | W10: 18 | X10: 19 | Y10: 20 | Z10: 21 | AA10: 22 | AB10: 23 | AC10: 24 | AD10: 25 | AE10: 26 | AF10: 27 | AG10: 28 | AH10: 29 | AI10: 30 | AJ10: 31 | AK10: 32 | AL10: 33 | AM10: 34 | AN10: 35 | AO10: 36 | AP10: 37 | AQ10: 38 | AR10: 39 | AS10: 40 | AT10: 41 | AU10: 42 | AV10: 43 | AW10: 44 | AX10: 45 | AY10: 46 | AZ10: 47 | BA10: 48 | BB10: 49 | BC10: 38 | BD10: 39 | BE10: 40 | BF10: 41 | BG10: 42 | BH10: 43 | BI10: 44 | BJ10: 45 | BK10: 46 | BL10: 47 | BM10: 48 | BN10: 49 | BO10: 50 | BP10: 51 | BQ10: 52 | BR10: 53 | BS10: 54 | BT10: 55 | BU10: 56 | BV10: 57 | BW10: 58 | BX10: 59 | BY10: 60 | BZ10: 61 | CA10: 62 | CB10: 63 | CC10: 64 | CD10: 65 | CE10: 66 | CF10: 67 | CG10: 68 | CH10: 69 | CI10: 70 | CJ10: 71 | CK10: 72 | CL10: 73 | CM10: 74 | CN10: 75 | CO10: 76 | CP10: 77 | CQ10: 78 | CR10: 79 | CS10: 80 | CT10: 81 | CU10: 82 | CV10: 83 | CW10: 84 | CX10: 85 | CY10: 86 | CZ10: 87 | DA10: 88 | DB10: 89 | DC10: 90 | DD10: 91 | DE10: 92 | DF10: 93 | DG10: 94 | DH10: 95 | DI10: 96 | DJ10: 97 | DK10: 98 | DL10: 99 | DM10: 100 | DN10: 101 | DO10: 102 | DP10: 103 | DQ10: 100 | DR10: 101 | DS10: 102 | DT10: 104 | DU10: 105 | DV10: 106 | DW10: 100 | DX10: 101 | DY10: 102 | EC10: 101 | ED10: 102 | EE10: 103 | EF10: 104 | EJ10: 105 | EK10: 106 | EL10: 107 | EM10: 25 | EN10: 105 | EO10: 106 | EP10: 107 | EQ10: 105 | ER10: 106 | ES10: 107 | ET10: 26 | EU10: 27 | EV10: 28 | EW10: 26 | EX10: 27 | EY10: 28 | EZ10: 26 | FA10: 27 | FB10: 28 | FC10: 26 | FD10: 27 | FE10: 28 | FF10: 26 | FG10: 27 | FH10: 28 | FI10: 26 | FJ10: 27 | FK10: 28 | FL10: 26 | FM10: 27 | FN10: 28 | FO10: 25 | FP10: 26 | FQ10: 27 | FR10: 28 | FS10: 26 | FT10: 27 | FU10: 28 | FY10: 29 | FZ10: 30 | GA10: 31 | GB10: 29 | GC10: 30 | GD10: 31 | GE10: 29 | GF10: 30 | GG10: 31 | GH10: 29 | GI10: 30 | GJ10: 31 | GK10: 29 | GL10: 30 | GM10: 31 | GN10: 29 | GO10: 30 | GP10: 31 | GQ10: 29 | GR10: 30 | GS10: 31 | GT10: 29 | GU10: 30 | GV10: 31 | GW10: 29 | GX10: 30 | GY10: 31 | GZ10: 29 | HA10: 30 | HB10: 31 | HC10: 29 | HD10: 30 | HE10: 31 | HF10: 29 | HG10: 30 | HH10: 31 | HI10: 29 | HJ10: 30 | HK10: 31 | HL10: 29 | HM10: 30 | HN10: 31 | HO10: 32 | HR10: 33 | HS10: 34 | HT10: 35 | HU10: 36 | HV10: 37 | HW10: 38 | HX10: 39 | HY10: 40 | HZ10: 41 | IA10: 42 | IB10: 43 | IC10: 44 | ID10: 45 | IE10: 46 | IF10: 47 | IG10: 48 | IH10: 49 | II10: 50 | IJ10: 51 | IK10: 68 | IL10: 69 | IM10: 70 | IN10: 71 | IO10: 72 | IP10: 73 | IQ10: 74 | IR10: 75 | IS10: 76 | IT10: 77 | IU10: 78 | IV10: 79
A11: 10 | B11: 1.3 | C11: СГ00.09.0.00.0 | D11: Жилой комплекс "Солнечный город" ПК-9 | E11: =E12 -> 0 | K11: =SUM(K12:K12) -> 0 | M11: =SUM(M12:M12) -> 0 | N11: =SUM(N12:N12) -> 0 | Q11: =SUM(Q12:Q12) -> 0 | T11: =SUM(T12:T12) -> 0 | U11: 0 | W11: =SUM(IG11,#REF!,#REF!,#REF!,#REF!,#REF!,#REF!,#REF!) ->  | X11: =U11-W11 ->  | BW11: 2022-01-05 | BX11: 2022-12-05 | BY11: 2022-01-05 | BZ11: 2022-12-05 | CA11: 2022-01-05 | CB11: 2022-12-05 | CC11: 2022-01-05 | CD11: 2022-12-05 | CE11: 2022-01-05 | CF11: 2022-12-05 | CG11: 2022-01-05 | CH11: 2022-12-05 | CI11: 2022-01-05 | CJ11: 2022-12-05 | CK11: 2022-01-05 | CL11: 2022-12-05 | CM11: 2022-01-05 | CN11: 2022-12-05 | CO11: =MIN(CO12) -> 2021-12-01 | CP11: =MAX(CP12) -> 2022-12-30 | CQ11: =MIN(CQ12) -> 2021-12-01 | CR11: =MAX(CR12) -> 2022-12-30 | CS11: =MIN(CS12) -> 2021-12-01 | CT11: =MAX(CT12) -> 2022-12-30 | CU11: =MIN(CU12) -> 2021-12-01 | CV11: =MAX(CV12) -> 2022-12-30 | CW11: =MIN(CW12) -> 2021-12-01 | CX11: =MAX(CX12) -> 2022-12-30 | CY11: =MIN(CY12) -> 2021-12-01 | CZ11: =MAX(CZ12) -> 2022-12-30 | DA11: =MIN(DA12) -> 2021-12-01 | DB11: =MAX(DB12) -> 2022-12-30 | DC11: =MIN(DC12) -> 2021-12-01 | DD11: =MAX(DD12) -> 2022-12-30 | DE11: =MIN(DE12) -> 2021-12-01 | DF11: =MAX(DF12) -> 2022-12-30 | DG11: =MIN(DG12) -> 2021-12-01 | DH11: =MAX(DH12) -> 2022-12-30 | DI11: =MIN(DI12) -> 2021-12-01 | DJ11: =MAX(DJ12) -> 2022-12-30 | DK11: =MIN(DK12) -> 2021-12-01 | DL11: =MIN(DL12) -> 2021-12-01 | DM11: =MAX(DM12) -> 2022-12-30 | DN11: =MIN(DN12) -> 2021-12-01 | DO11: =MIN(DO12) -> 2021-12-01 | DP11: =MAX(DP12) -> 2022-12-30 | DQ11: =MIN(DQ12) -> 2021-12-01 | DR11: =MIN(DR12) -> 2021-12-01 | DS11: =MAX(DS12) -> 2022-12-30 | DT11: =MIN(DT12) -> 2021-12-01 | DU11: =MIN(DU12) -> 2021-12-01 | DV11: =MAX(DV12) -> 2022-12-30 | DW11: =MIN(DW12) -> 2021-12-01 | DX11: =MIN(DX12) -> 2021-12-01 | DY11: =MAX(DY12) -> 2022-12-30 | DZ11: 2021-12-01 | EA11: 2021-12-01 | EB11: 2022-12-30 | EG11: 2021-12-01 | EH11: 2021-12-01 | EI11: 2022-12-30 | EJ11: =MIN(EJ12) -> 2021-12-01 | EK11: =MIN(EK12) -> 2021-12-01 | EL11: =MAX(EL12) -> 2022-12-30 | EN11: =MIN(EN12) -> 2021-12-01 | EO11: =MIN(EO12) -> 2021-12-01 | EP11: =MAX(EP12) -> 2022-12-30 | EQ11: =MIN(EQ12) -> 2021-12-01 | ER11: =MIN(ER12) -> 2021-12-01 | ES11: =MAX(ES12) -> 2022-12-30 | ET11: =MIN(ET12) -> 2021-12-01 | EU11: =MIN(EU12) -> 2021-12-01 | EV11: =MAX(EV12) -> 2022-12-30 | EW11: 2021-12-01 | EX11: 2021-12-01 | EY11: 2022-12-30 | EZ11: =MIN(EZ12) -> 2021-12-01 | FA11: =MIN(FA12) -> 2021-12-01 | FB11: =MAX(FB12) -> 2022-12-30 | FC11: =MIN(FC12) -> 2021-12-01 | FD11: =MIN(FD12) -> 2021-12-01 | FE11: =MAX(FE12) -> 2022-12-30 | FF11: 2021-12-01 | FG11: 2021-12-01 | FH11: 2022-12-30 | FI11: =MIN(FI12) -> 2021-12-01 | FJ11: =MIN(FJ12) -> 2021-12-01 | FK11: =MAX(FK12) -> 2022-12-30 | FL11: =MIN(FL12) -> 2021-12-01 | FM11: =MIN(FM12) -> 2021-12-01 | FN11: =MAX(FN12) -> 2022-12-30 | FO11: 2021-12-01 | FP11: 2021-12-01 | FQ11: 2022-12-30 | FS11: =MIN(FS12) -> 2021-12-01 | FT11: =MIN(FT12) -> 2021-12-01 | FU11: =MAX(FU12) -> 2022-12-30 | FV11: 2021-12-01 | FW11: 2021-12-01 | FX11: 2022-12-30 | FY11: =MIN(FY12) -> 2021-12-01 | FZ11: =MIN(FZ12) -> 2021-12-01 | GA11: =MAX(GA12) -> 2022-12-30 | GB11: =MIN(GB12) -> 2021-12-01 | GC11: =MIN(GC12) -> 2021-12-01 | GD11: =MAX(GD12) -> 2022-12-30 | GE11: =MIN(GE12) -> 2021-12-01 | GF11: =MIN(GF12) -> 2021-12-01 | GG11: =MAX(GG12) -> 2022-12-30 | GH11: =MIN(GH12) -> 2021-12-01 | GI11: =MIN(GI12) -> 2021-12-01 | GJ11: =MAX(GJ12) -> 2022-12-30 | GK11: =MIN(GK12) -> 2021-12-01 | GL11: =MIN(GL12) -> 2021-12-01 | GM11: =MAX(GM12) -> 2022-12-30 | GN11: =MIN(GN12) -> 2021-12-01 | GO11: =MIN(GO12) -> 2021-12-01 | GP11: =MAX(GP12) -> 2022-12-30 | GQ11: =MIN(GQ12) -> 2021-12-01 | GR11: =MIN(GR12) -> 2021-12-01 | GS11: =MAX(GS12) -> 2022-12-30 | GT11: =MIN(GT12) -> 2021-12-01 | GU11: =MIN(GU12) -> 2021-12-01 | GV11: =MAX(GV12) -> 2022-12-30 | GW11: =MIN(GW12) -> 2021-12-01 | GX11: =MIN(GX12) -> 2021-12-01 | GY11: =MAX(GY12) -> 2022-12-30 | GZ11: =MIN(GZ12) -> 2021-12-01 | HA11: =MIN(HA12) -> 2021-12-01 | HB11: =MAX(HB12) -> 2022-12-30 | HC11: =MIN(HC12) -> 2021-12-01 | HD11: =MIN(HD12) -> 2021-12-01 | HE11: =MAX(HE12) -> 2022-12-30 | HF11: =MIN(HF12) -> 2021-12-01 | HG11: =MIN(HG12) -> 2021-12-01 | HH11: =MAX(HH12) -> 2022-12-30 | HI11: =MIN(HI12) -> 2021-12-01 | HJ11: =MIN(HJ12) -> 2021-12-01 | HK11: =MAX(HK12) -> 2022-12-30 | HL11: =MIN(HL12) -> 2021-12-01 | HM11: =MIN(HM12) -> 2021-12-01 | HN11: =MAX(HN12) -> 2022-12-30 | HU11: =SUM(HU12:HU12) -> 0 | HV11: 0 | HW11: 0 | HX11: 0 | HY11: 0 | HZ11: 0 | IA11: 0 | IB11: 0 | IC11: 0 | ID11: 0 | IE11: 0 | IF11: 0 | IG11: 0 | IH11: 0 | II11: 0 | IJ11: 0 | IK11: =SUM(IK12:IK12) -> 0 | IL11: 0 | IM11: 0 | IN11: 0 | IO11: 0 | IP11: 0 | IQ11: 0 | IR11: 0 | IS11: 0 | IT11: 0 | IU11: 0 | IV11: 0
A12: 11 | B12: 1.3.1 | C12: СГ00.09.2.00.0 | D12: Жилой комплекс "Солнечный город" ПК-9 Адм здание 17-3 | J12: =L12 -> 2100 | L12: 2,100 | O12: 1 | P12: 3 | R12: Не опред. | W12: =SUM(IG12,#REF!,#REF!,#REF!,#REF!,#REF!,#REF!,#REF!) ->  | X12: =U12-W12 ->  | AC12: Прединвест | BW12: 2022-01-05 | BX12: 2022-12-05 | BY12: 2022-01-05 | BZ12: 2022-12-05 | CA12: 2022-01-05 | CB12: 2022-12-05 | CC12: 2022-01-05 | CD12: 2022-12-05 | CE12: 2022-01-05 | CF12: 2022-12-05 | CG12: 2022-01-05 | CH12: 2022-12-05 | CI12: 2021-12-01 | CJ12: 2022-12-05 | CK12: 2022-01-05 | CL12: 2022-12-05 | CM12: 2022-01-05 | CN12: 2022-12-30 | CO12: 2021-12-01 | CP12: 2022-12-30 | CQ12: 2021-12-01 | CR12: 2022-12-30 | CS12: 2021-12-01 | CT12: 2022-12-30 | CU12: 2021-12-01 | CV12: 2022-12-30 | CW12: 2021-12-01 | CX12: 2022-12-30 | CY12: 2021-12-01 | CZ12: 2022-12-30 | DA12: 2021-12-01 | DB12: 2022-12-30 | DC12: 2021-12-01 | DD12: 2022-12-30 | DE12: 2021-12-01 | DF12: 2022-12-30 | DG12: 2021-12-01 | DH12: 2022-12-30 | DI12: 2021-12-01 | DJ12: 2022-12-30 | DK12: 2021-12-01 | DL12: 2021-12-01 | DM12: 2022-12-30 | DN12: 2021-12-01 | DO12: 2021-12-01 | DP12: 2022-12-30 | DQ12: 2021-12-01 | DR12: 2021-12-01 | DS12: 2022-12-30 | DT12: 2021-12-01 | DU12: 2021-12-01 | DV12: 2022-12-30 | DW12: 2021-12-01 | DX12: 2021-12-01 | DY12: 2022-12-30 | DZ12: 2021-12-01 | EA12: 2021-12-01 | EB12: 2022-12-30 | EC12: =(DM12-DL12)/30 -> 13 | ED12: =(DM12-DK12)/30 -> 13 | EE12: - | EF12: - | EG12: 2021-12-01 | EH12: 2021-12-01 | EI12: 2022-12-30 | EJ12: 2021-12-01 | EK12: 2021-12-01 | EL12: 2022-12-30 | EM12: =(DZ12-DX12)/30 -> 0 | EN12: 2021-12-01 | EO12: 2021-12-01 | EP12: 2022-12-30 | EQ12: 2021-12-01 | ER12: 2021-12-01 | ES12: 2022-12-30 | ET12: 2021-12-01 | EU12: 2021-12-01 | EV12: 2022-12-30 | EW12: 2021-12-01 | EX12: 2021-12-01 | EY12: 2022-12-30 | EZ12: 2021-12-01 | FA12: 2021-12-01 | FB12: 2022-12-30 | FC12: 2021-12-01 | FD12: 2021-12-01 | FE12: 2022-12-30 | FF12: 2021-12-01 | FG12: 2021-12-01 | FH12: 2022-12-30 | FI12: 2021-12-01 | FJ12: 2021-12-01 | FK12: 2022-12-30 | FL12: 2021-12-01 | FM12: 2021-12-01 | FN12: 2022-12-30 | FO12: 2021-12-01 | FP12: 2021-12-01 | FQ12: 2022-12-30 | FR12: =(FQ12-FP12)/30 -> 13 | FS12: 2021-12-01 | FT12: 2021-12-01 | FU12: 2022-12-30 | FV12: 2021-12-01 | FW12: 2021-12-01 | FX12: 2022-12-30 | FY12: 2021-12-01 | FZ12: 2021-12-01 | GA12: 2022-12-30 | GB12: 2021-12-01 | GC12: 2021-12-01 | GD12: 2022-12-30 | GE12: 2021-12-01 | GF12: 2021-12-01 | GG12: 2022-12-30 | GH12: 2021-12-01 | GI12: 2021-12-01 | GJ12: 2022-12-30 | GK12: 2021-12-01 | GL12: 2021-12-01 | GM12: 2022-12-30 | GN12: 2021-12-01 | GO12: 2021-12-01 | GP12: 2022-12-30 | GQ12: 2021-12-01 | GR12: 2021-12-01 | GS12: 2022-12-30 | GT12: 2021-12-01 | GU12: 2021-12-01 | GV12: 2022-12-30 | GW12: 2021-12-01 | GX12: 2021-12-01 | GY12: 2022-12-30 | GZ12: 2021-12-01 | HA12: 2021-12-01 | HB12: 2022-12-30 | HC12: 2021-12-01 | HD12: 2021-12-01 | HE12: 2022-12-30 | HF12: 2021-12-01 | HG12: 2021-12-01 | HH12: 2022-12-30 | HI12: 2021-12-01 | HJ12: 2021-12-01 | HK12: 2022-12-30 | HL12: 2021-12-01 | HM12: 2021-12-01 | HN12: 2022-12-30 | IG12: =SUM(HU12:IF12) -> 0
A13: 30 | B13: 2.3 | C13: СД00.03.0.00.0 | D13: ЖК "Светлая Долина" ПК-3 | E13: =SUM(E14:E32) -> 341,015
A14: 31 | B14: 2.3.1 | C14: СД00.03.1.03.1 | D14: ЖК "Светлая Долина" ПК-3 ж/д 3-1 | E14: 30,509 | F14: Плиты теплоизоляционные пенополистирольные ППС-25 150мм | H14: м3 | I14: =140.294/580*L14 -> 355 | J14: =K14+L14 -> 20,730 | K14: 19,263 | L14: 1,467 | N14: 480 | O14: 2 | P14: 26 (24) | Q14: 1 | R14: Монолит | S14: Перепривязка | W14: =SUM(IG14,#REF!,#REF!,#REF!,#REF!,#REF!,#REF!,#REF!) ->  | X14: =T14-W14-Y14 ->  | AC14: Прединвест | AD14: Первоначально в ПП закладывался срок строительства для панельного дома - 2 года. Далее было принято решение о возведении монолитного дома, срок строительства которого 2,5 года. | AE14: 2020-11-25 | AF14: 2020-12-25 | AG14: 2021-04-15 | AH14: 2021-04-30 | AI14: 2021-09-30 | AJ14: 2021-10-31 | AK14: 2022-01-31 | AN14: 2024-04-30 | AO14: 2024-10-31 | AP14: 2024-12-30 | AQ14: 2020-11-25 | AR14: 2020-12-25 | AS14: 2021-04-15 | AT14: 2021-07-05 | AU14: 2021-11-01 | AV14: 2022-01-31 | AW14: 2022-01-31 | AX14: нет | AY14: нет | AZ14: 2024-07-01 | BA14: 2024-10-31 | BB14: 2024-12-30 | BC14: 2020-11-25 | BD14: 2020-12-25 | BE14: 2021-04-15 | BF14: 2021-07-05 | BG14: 2021-11-30 | BH14: 2022-03-09 | BI14: 2022-03-20 | BJ14: нет | BK14: нет | BL14: 2024-08-30 | BM14: 2024-10-30 | BN14: 2025-06-30 | BO14: 2022-06-01 | BP14: 2024-07-30 | BQ14: 2022-06-01 | BR14: 2024-07-01 | BS14: 2022-06-01 | BT14: 2024-07-01 | BU14: 2022-06-01 | BV14: 2024-07-01 | BW14: 2021-12-30 | BX14: 2024-01-01 | BY14: 2021-12-01 | BZ14: 2024-08-01 | CA14: 2021-12-01 | CB14: 2024-08-01 | CC14: 2021-12-01 | CD14: 2024-08-01 | CE14: 2021-12-01 | CF14: 2024-08-01 | CG14: 2021-12-01 | CH14: 2024-08-01 | CI14: 2021-12-01 | CJ14: 2024-08-01 | CK14: 2021-12-01 | CL14: 2024-08-01 | CM14: 2021-12-01 | CN14: 2024-08-01 | CO14: 2021-12-01 | CP14: 2024-08-01 | CQ14: 2021-12-01 | CR14: 2024-08-01 | CS14: 2021-12-01 | CT14: 2024-08-01 | CU14: 2021-12-01 | CV14: 2024-08-01 | CW14: 2021-12-01 | CX14: 2024-08-01 | CY14: 2021-12-01 | CZ14: 2024-08-01 | DA14: 2021-12-01 | DB14: 2024-08-01 | DC14: 2021-12-30 | DD14: 2024-08-01 | DE14: 2021-12-01 | DF14: 2024-08-01 | DG14: 2021-12-30 | DH14: 2024-08-01 | DI14: 2021-12-30 | DJ14: 2024-08-01 | DK14: 2021-12-30 | DL14: 2022-01-30 | DM14: 2024-08-01 | DN14: 2021-12-30 | DO14: 2022-01-30 | DP14: 2024-08-01 | DQ14: 2021-12-30 | DR14: 2022-01-30 | DS14: 2024-08-01 | DT14: 2021-12-30 | DU14: 2022-01-30 | DV14: 2024-08-01 | DW14: 2022-02-28 | DX14: =DW14+14 -> 2022-03-14 | DY14: 2024-08-01 | DZ14: 2022-03-30 | EA14: 2022-04-13 | EB14: 2024-09-30 | EC14: =(DM14-DL14)/30 -> 30 | ED14: =(DM14-DK14)/30 -> 32 | EE14: 2020-12-25 | EF14: 2021-07-05 | EG14: 2022-03-30 | EH14: 2022-04-13 | EI14: 2024-09-30 | EJ14: 2022-02-28 | EK14: =EJ14+14 -> 2022-03-14 | EL14: 2024-09-30 | EM14: =(#REF!-#REF!)/30 ->  | EN14: 2022-03-15 | EO14: =EN14+14 -> 2022-03-29 | EP14: 2024-09-30 | EQ14: 2022-03-15 | ER14: =EQ14+14 -> 2022-03-29 | ES14: 2024-09-30 | ET14: 2022-03-15 | EU14: =ET14+14 -> 2022-03-29 | EV14: 2024-09-30 | EW14: 2022-03-20 | EX14: 2022-04-03 | EY14: 2024-09-30 | EZ14: 2022-03-20 | FA14: =EZ14+14 -> 2022-04-03 | FB14: 2024-09-30 | FC14: 2022-05-15 | FD14: 2022-05-30 | FE14: 2024-09-30 | FF14: 2022-07-30 | FG14: 2022-07-30 | FH14: 2024-09-30 | FI14: 2022-07-30 | FJ14: 2022-07-30 | FK14: 2024-09-30 | FL14: 2022-07-30 | FM14: 2022-07-30 | FN14: 2024-09-30 | FO14: 2022-07-30 | FP14: 2022-09-01 | FQ14: 2024-11-30 | FR14: =(FQ14-FP14)/30 -> 27 | FS14: 2022-07-30 | FT14: 2022-09-01 | FU14: 2024-11-30 | FV14: 2022-07-15 | FW14: 2022-08-29 | FX14: 2024-11-30 | FY14: 2022-07-15 | FZ14: 2022-08-29 | GA14: 2024-11-30 | GB14: 2022-07-15 | GC14: 2022-08-29 | GD14: 2024-11-30 | GE14: 2022-08-15 | GF14: 2022-08-29 | GG14: 2024-11-30 | GH14: 2022-08-15 | GI14: 2022-08-29 | GJ14: 2024-11-30 | GK14: 2022-08-31 | GL14: 2022-08-31 | GM14: 2024-11-30 | GN14: 2022-09-30 | GO14: 2022-09-30 | GP14: 2024-11-30 | GQ14: 2022-09-30 | GR14: 2022-09-30 | GS14: 2024-11-30 | GT14: 2022-09-30 | GU14: 2022-09-30 | GV14: 2024-11-30 | GW14: 2022-10-17 | GX14: 2022-10-17 | GY14: 2024-11-30 | GZ14: 2022-11-07 | HA14: 2022-11-07 | HB14: 2024-11-30 | HC14: 2022-11-07 | HD14: 2022-11-07 | HE14: 2024-11-30 | HF14: 2022-11-07 | HG14: 2022-11-07 | HH14: 2024-11-30 | HI14: 2022-12-08 | HJ14: 2022-12-08 | HK14: 2024-11-30 | HL14: 2022-12-08 | HM14: 2022-12-08 | HN14: 2024-11-30 | HP14: АБ-1 | HQ14: АБ-1 | HR14: Не определен | HT14: 2025-06-30 | HX14: ● | IA14: ● | IE14: ● | IG14: =SUM(HU14:IF14) -> 0 | IH14: =IF(YEAR(#REF!)=HU$8,$J14,0) ->  | II14: =IF(AND(YEAR(#REF!)<=HU$8,YEAR(#REF!)>HU$8),$J14,0) ->  | IJ14: =J14 -> 20,730 | IV14: =I14 -> 355
A15: 31 | B15: 2.3.1 | C15: СД00.03.1.03.1 | D15: ЖК "Светлая Долина" ПК-3 ж/д 3-1 | E15: 30,509 | F15: Керамзит М600 | H15: м3 | I15: =142.129/580*L15 -> 359 | J15: 20,730 | K15: 19,263 | L15: 1,467 | N15: 480 | O15: 2 | P15: 26 (24) | Q15: 1 | R15: Монолит | S15: Перепривязка | W15: =SUM(IG15,#REF!,#REF!,#REF!,#REF!,#REF!,#REF!,#REF!) ->  | AC15: Прединвест | AD15: Первоначально в ПП закладывался срок строительства для панельного дома - 2 года. Далее было принято решение о возведении монолитного дома, срок строительства которого 2,5 года. | AE15: 2020-11-25 | AF15: 2020-12-25 | AG15: 2021-04-15 | AH15: 2021-04-30 | AI15: 2021-09-30 | AJ15: 2021-10-31 | AK15: 2022-01-31 | AN15: 2024-04-30 | AO15: 2024-10-31 | AP15: 2024-12-30 | AQ15: 2020-11-25 | AR15: 2020-12-25 | AS15: 2021-04-15 | AT15: 2021-07-05 | AU15: 2021-11-01 | AV15: 2022-01-31 | AW15: 2022-01-31 | AX15: нет | AY15: нет | AZ15: 2024-07-01 | BA15: 2024-10-31 | BB15: 2024-12-30 | BC15: 2020-11-25 | BD15: 2020-12-25 | BE15: 2021-04-15 | BF15: 2021-07-05 | BG15: 2021-11-30 | BH15: 2022-03-09 | BI15: 2022-03-20 | BJ15: нет | BK15: нет | BL15: 2024-08-30 | BM15: 2024-10-30 | BN15: 2025-06-30 | BO15: 2022-06-01 | BP15: 2024-07-30 | BQ15: 2022-06-01 | BR15: 2024-07-01 | BS15: 2022-06-01 | BT15: 2024-07-01 | BU15: 2022-06-01 | BV15: 2024-07-01 | BW15: 2021-12-30 | BX15: 2024-01-01 | BY15: 2021-12-01 | BZ15: 2024-08-01 | CA15: 2021-12-01 | CB15: 2024-08-01 | CC15: 2021-12-01 | CD15: 2024-08-01 | CE15: 2021-12-01 | CF15: 2024-08-01 | CG15: 2021-12-01 | CH15: 2024-08-01 | CI15: 2021-12-01 | CJ15: 2024-08-01 | CK15: 2021-12-01 | CL15: 2024-08-01 | CM15: 2021-12-01 | CN15: 2024-08-01 | CO15: 2021-12-01 | CP15: 2024-08-01 | CQ15: 2021-12-01 | CR15: 2024-08-01 | CS15: 2021-12-01 | CT15: 2024-08-01 | CU15: 2021-12-01 | CV15: 2024-08-01 | CW15: 2021-12-01 | CX15: 2024-08-01 | CY15: 2021-12-01 | CZ15: 2024-08-01 | DA15: 2021-12-01 | DB15: 2024-08-01 | DC15: 2021-12-30 | DD15: 2024-08-01 | DE15: 2021-12-01 | DF15: 2024-08-01 | DG15: 2021-12-30 | DH15: 2024-08-01 | DI15: 2021-12-30 | DJ15: 2024-08-01 | DK15: 2021-12-30 | DL15: 2022-01-30 | DM15: 2024-08-01 | DN15: 2021-12-30 | DO15: 2022-01-30 | DP15: 2024-08-01 | DQ15: 2021-12-30 | DR15: 2022-01-30 | DS15: 2024-08-01 | DT15: 2021-12-30 | DU15: 2022-01-30 | DV15: 2024-08-01 | DW15: 2022-02-28 | DX15: 2022-03-14 | DY15: 2024-08-01 | DZ15: 2022-03-30 | EA15: 2022-04-13 | EB15: 2024-09-30 | EC15: 30 | ED15: 32 | EE15: 2020-12-25 | EF15: 2021-07-05 | EG15: 2022-03-30 | EH15: 2022-04-13 | EI15: 2024-09-30 | EJ15: 2022-02-28 | EK15: 2022-03-14 | EL15: 2024-09-30 | EM15: =(#REF!-#REF!)/30 ->  | EN15: 2022-03-15 | EO15: 2022-03-29 | EP15: 2024-09-30 | EQ15: 2022-03-15 | ER15: 2022-03-29 | ES15: 2024-09-30 | ET15: 2022-03-15 | EU15: 2022-03-29 | EV15: 2024-09-30 | EW15: 2022-03-20 | EX15: 2022-04-03 | EY15: 2024-09-30 | EZ15: 2022-03-20 | FA15: 2022-04-03 | FB15: 2024-09-30 | FC15: 2022-05-15 | FD15: 2022-05-30 | FE15: 2024-09-30 | FF15: 2022-07-30 | FG15: 2022-07-30 | FH15: 2024-09-30 | FI15: 2022-07-30 | FJ15: 2022-07-30 | FK15: 2024-09-30 | FL15: 2022-07-30 | FM15: 2022-07-30 | FN15: 2024-09-30 | FO15: 2022-07-30 | FP15: 2022-09-01 | FQ15: 2024-11-30 | FR15: 27 | FS15: 2022-07-30 | FT15: 2022-09-01 | FU15: 2024-11-30 | FV15: 2022-07-15 | FW15: 2022-08-29 | FX15: 2024-11-30 | FY15: 2022-07-15 | FZ15: 2022-08-29 | GA15: 2024-11-30 | GB15: 2022-07-15 | GC15: 2022-08-29 | GD15: 2024-11-30 | GE15: 2022-08-15 | GF15: 2022-08-29 | GG15: 2024-11-30 | GH15: 2022-08-15 | GI15: 2022-08-29 | GJ15: 2024-11-30 | GK15: 2022-08-31 | GL15: 2022-08-31 | GM15: 2024-11-30 | GN15: 2022-09-30 | GO15: 2022-09-30 | GP15: 2024-11-30 | GQ15: 2022-09-30 | GR15: 2022-09-30 | GS15: 2024-11-30 | GT15: 2022-09-30 | GU15: 2022-09-30 | GV15: 2024-11-30 | GW15: 2022-10-17 | GX15: 2022-10-17 | GY15: 2024-11-30 | GZ15: 2022-11-07 | HA15: 2022-11-07 | HB15: 2024-11-30 | HC15: 2022-11-07 | HD15: 2022-11-07 | HE15: 2024-11-30 | HF15: 2022-11-07 | HG15: 2022-11-07 | HH15: 2024-11-30 | HI15: 2022-12-08 | HJ15: 2022-12-08 | HK15: 2024-11-30 | HL15: 2022-12-08 | HM15: 2022-12-08 | HN15: 2024-11-30 | HP15: АБ-1 | HQ15: АБ-1 | HR15: Не определен | HT15: 2025-06-30 | HX15: ● | IA15: ● | IE15: ● | IG15: 0 | IH15: =IF(YEAR(#REF!)=HU$8,$J15,0) ->  | II15: =IF(AND(YEAR(#REF!)<=HU$8,YEAR(#REF!)>HU$8),$J15,0) ->  | IJ15: 20,730 | IV15: 359
A16: 31 | B16: 2.3.1 | C16: СД00.03.1.03.1 | D16: ЖК "Светлая Долина" ПК-3 ж/д 3-1 | E16: 30,509 | F16: Плиты теплоизоляционные пенополистирольные экструдированные 100мм | H16: м3 | I16: =14.146/580*L16 -> 36 | J16: 20,730 | K16: 19,263 | L16: 1,467 | N16: 480 | O16: 2 | P16: 26 (24) | Q16: 1 | R16: Монолит | S16: Перепривязка | W16: =SUM(IG16,#REF!,#REF!,#REF!,#REF!,#REF!,#REF!,#REF!) ->  | AC16: Прединвест | AD16: Первоначально в ПП закладывался срок строительства для панельного дома - 2 года. Далее было принято решение о возведении монолитного дома, срок строительства которого 2,5 года. | AE16: 2020-11-25 | AF16: 2020-12-25 | AG16: 2021-04-15 | AH16: 2021-04-30 | AI16: 2021-09-30 | AJ16: 2021-10-31 | AK16: 2022-01-31 | AN16: 2024-04-30 | AO16: 2024-10-31 | AP16: 2024-12-30 | AQ16: 2020-11-25 | AR16: 2020-12-25 | AS16: 2021-04-15 | AT16: 2021-07-05 | AU16: 2021-11-01 | AV16: 2022-01-31 | AW16: 2022-01-31 | AX16: нет | AY16: нет | AZ16: 2024-07-01 | BA16: 2024-10-31 | BB16: 2024-12-30 | BC16: 2020-11-25 | BD16: 2020-12-25 | BE16: 2021-04-15 | BF16: 2021-07-05 | BG16: 2021-11-30 | BH16: 2022-03-09 | BI16: 2022-03-20 | BJ16: нет | BK16: нет | BL16: 2024-08-30 | BM16: 2024-10-30 | BN16: 2025-06-30 | BO16: 2022-06-01 | BP16: 2024-07-30 | BQ16: 2022-06-01 | BR16: 2024-07-01 | BS16: 2022-06-01 | BT16: 2024-07-01 | BU16: 2022-06-01 | BV16: 2024-07-01 | BW16: 2021-12-30 | BX16: 2024-01-01 | BY16: 2021-12-01 | BZ16: 2024-08-01 | CA16: 2021-12-01 | CB16: 2024-08-01 | CC16: 2021-12-01 | CD16: 2024-08-01 | CE16: 2021-12-01 | CF16: 2024-08-01 | CG16: 2021-12-01 | CH16: 2024-08-01 | CI16: 2021-12-01 | CJ16: 2024-08-01 | CK16: 2021-12-01 | CL16: 2024-08-01 | CM16: 2021-12-01 | CN16: 2024-08-01 | CO16: 2021-12-01 | CP16: 2024-08-01 | CQ16: 2021-12-01 | CR16: 2024-08-01 | CS16: 2021-12-01 | CT16: 2024-08-01 | CU16: 2021-12-01 | CV16: 2024-08-01 | CW16: 2021-12-01 | CX16: 2024-08-01 | CY16: 2021-12-01 | CZ16: 2024-08-01 | DA16: 2021-12-01 | DB16: 2024-08-01 | DC16: 2021-12-30 | DD16: 2024-08-01 | DE16: 2021-12-01 | DF16: 2024-08-01 | DG16: 2021-12-30 | DH16: 2024-08-01 | DI16: 2021-12-30 | DJ16: 2024-08-01 | DK16: 2021-12-30 | DL16: 2022-01-30 | DM16: 2024-08-01 | DN16: 2021-12-30 | DO16: 2022-01-30 | DP16: 2024-08-01 | DQ16: 2021-12-30 | DR16: 2022-01-30 | DS16: 2024-08-01 | DT16: 2021-12-30 | DU16: 2022-01-30 | DV16: 2024-08-01 | DW16: 2022-02-28 | DX16: 2022-03-14 | DY16: 2024-08-01 | DZ16: 2022-03-30 | EA16: 2022-04-13 | EB16: 2024-09-30 | EC16: 30 | ED16: 32 | EE16: 2020-12-25 | EF16: 2021-07-05 | EG16: 2022-03-30 | EH16: 2022-04-13 | EI16: 2024-09-30 | EJ16: 2022-02-28 | EK16: 2022-03-14 | EL16: 2024-09-30 | EM16: =(#REF!-#REF!)/30 ->  | EN16: 2022-03-15 | EO16: 2022-03-29 | EP16: 2024-09-30 | EQ16: 2022-03-15 | ER16: 2022-03-29 | ES16: 2024-09-30 | ET16: 2022-03-15 | EU16: 2022-03-29 | EV16: 2024-09-30 | EW16: 2022-03-20 | EX16: 2022-04-03 | EY16: 2024-09-30 | EZ16: 2022-03-20 | FA16: 2022-04-03 | FB16: 2024-09-30 | FC16: 2022-05-15 | FD16: 2022-05-30 | FE16: 2024-09-30 | FF16: 2022-07-30 | FG16: 2022-07-30 | FH16: 2024-09-30 | FI16: 2022-07-30 | FJ16: 2022-07-30 | FK16: 2024-09-30 | FL16: 2022-07-30 | FM16: 2022-07-30 | FN16: 2024-09-30 | FO16: 2022-07-30 | FP16: 2022-09-01 | FQ16: 2024-11-30 | FR16: 27 | FS16: 2022-07-30 | FT16: 2022-09-01 | FU16: 2024-11-30 | FV16: 2022-07-15 | FW16: 2022-08-29 | FX16: 2024-11-30 | FY16: 2022-07-15 | FZ16: 2022-08-29 | GA16: 2024-11-30 | GB16: 2022-07-15 | GC16: 2022-08-29 | GD16: 2024-11-30 | GE16: 2022-08-15 | GF16: 2022-08-29 | GG16: 2024-11-30 | GH16: 2022-08-15 | GI16: 2022-08-29 | GJ16: 2024-11-30 | GK16: 2022-08-31 | GL16: 2022-08-31 | GM16: 2024-11-30 | GN16: 2022-09-30 | GO16: 2022-09-30 | GP16: 2024-11-30 | GQ16: 2022-09-30 | GR16: 2022-09-30 | GS16: 2024-11-30 | GT16: 2022-09-30 | GU16: 2022-09-30 | GV16: 2024-11-30 | GW16: 2022-10-17 | GX16: 2022-10-17 | GY16: 2024-11-30 | GZ16: 2022-11-07 | HA16: 2022-11-07 | HB16: 2024-11-30 | HC16: 2022-11-07 | HD16: 2022-11-07 | HE16: 2024-11-30 | HF16: 2022-11-07 | HG16: 2022-11-07 | HH16: 2024-11-30 | HI16: 2022-12-08 | HJ16: 2022-12-08 | HK16: 2024-11-30 | HL16: 2022-12-08 | HM16: 2022-12-08 | HN16: 2024-11-30 | HP16: АБ-1 | HQ16: АБ-1 | HR16: Не определен | HT16: 2025-06-30 | HX16: ● | IA16: ● | IE16: ● | IG16: 0 | IH16: =IF(YEAR(#REF!)=HU$8,$J16,0) ->  | II16: =IF(AND(YEAR(#REF!)<=HU$8,YEAR(#REF!)>HU$8),$J16,0) ->  | IJ16: 20,730 | IV16: 36
A17: 31 | B17: 2.3.1 | C17: СД00.03.1.03.1 | D17: ЖК "Светлая Долина" ПК-3 ж/д 3-1 | E17: 30,509 | F17: Плиты теплоизоляционные пенополистирольные экструдированные 50мм | H17: м3 | I17: =3.939/580*L17 -> 10 | J17: 20,730 | K17: 19,263 | L17: 1,467 | N17: 480 | O17: 2 | P17: 26 (24) | Q17: 1 | R17: Монолит | S17: Перепривязка | W17: =SUM(IG17,#REF!,#REF!,#REF!,#REF!,#REF!,#REF!,#REF!) ->  | AC17: Прединвест | AD17: Первоначально в ПП закладывался срок строительства для панельного дома - 2 года. Далее было принято решение о возведении монолитного дома, срок строительства которого 2,5 года. | AE17: 2020-11-25 | AF17: 2020-12-25 | AG17: 2021-04-15 | AH17: 2021-04-30 | AI17: 2021-09-30 | AJ17: 2021-10-31 | AK17: 2022-01-31 | AN17: 2024-04-30 | AO17: 2024-10-31 | AP17: 2024-12-30 | AQ17: 2020-11-25 | AR17: 2020-12-25 | AS17: 2021-04-15 | AT17: 2021-07-05 | AU17: 2021-11-01 | AV17: 2022-01-31 | AW17: 2022-01-31 | AX17: нет | AY17: нет | AZ17: 2024-07-01 | BA17: 2024-10-31 | BB17: 2024-12-30 | BC17: 2020-11-25 | BD17: 2020-12-25 | BE17: 2021-04-15 | BF17: 2021-07-05 | BG17: 2021-11-30 | BH17: 2022-03-09 | BI17: 2022-03-20 | BJ17: нет | BK17: нет | BL17: 2024-08-30 | BM17: 2024-10-30 | BN17: 2025-06-30 | BO17: 2022-06-01 | BP17: 2024-07-30 | BQ17: 2022-06-01 | BR17: 2024-07-01 | BS17: 2022-06-01 | BT17: 2024-07-01 | BU17: 2022-06-01 | BV17: 2024-07-01 | BW17: 2021-12-30 | BX17: 2024-01-01 | BY17: 2021-12-01 | BZ17: 2024-08-01 | CA17: 2021-12-01 | CB17: 2024-08-01 | CC17: 2021-12-01 | CD17: 2024-08-01 | CE17: 2021-12-01 | CF17: 2024-08-01 | CG17: 2021-12-01 | CH17: 2024-08-01 | CI17: 2021-12-01 | CJ17: 2024-08-01 | CK17: 2021-12-01 | CL17: 2024-08-01 | CM17: 2021-12-01 | CN17: 2024-08-01 | CO17: 2021-12-01 | CP17: 2024-08-01 | CQ17: 2021-12-01 | CR17: 2024-08-01 | CS17: 2021-12-01 | CT17: 2024-08-01 | CU17: 2021-12-01 | CV17: 2024-08-01 | CW17: 2021-12-01 | CX17: 2024-08-01 | CY17: 2021-12-01 | CZ17: 2024-08-01 | DA17: 2021-12-01 | DB17: 2024-08-01 | DC17: 2021-12-30 | DD17: 2024-08-01 | DE17: 2021-12-01 | DF17: 2024-08-01 | DG17: 2021-12-30 | DH17: 2024-08-01 | DI17: 2021-12-30 | DJ17: 2024-08-01 | DK17: 2021-12-30 | DL17: 2022-01-30 | DM17: 2024-08-01 | DN17: 2021-12-30 | DO17: 2022-01-30 | DP17: 2024-08-01 | DQ17: 2021-12-30 | DR17: 2022-01-30 | DS17: 2024-08-01 | DT17: 2021-12-30 | DU17: 2022-01-30 | DV17: 2024-08-01 | DW17: 2022-02-28 | DX17: 2022-03-14 | DY17: 2024-08-01 | DZ17: 2022-03-30 | EA17: 2022-04-13 | EB17: 2024-09-30 | EC17: 30 | ED17: 32 | EE17: 2020-12-25 | EF17: 2021-07-05 | EG17: 2022-03-30 | EH17: 2022-04-13 | EI17: 2024-09-30 | EJ17: 2022-02-28 | EK17: 2022-03-14 | EL17: 2024-09-30 | EM17: =(#REF!-#REF!)/30 ->  | EN17: 2022-03-15 | EO17: 2022-03-29 | EP17: 2024-09-30 | EQ17: 2022-03-15 | ER17: 2022-03-29 | ES17: 2024-09-30 | ET17: 2022-03-15 | EU17: 2022-03-29 | EV17: 2024-09-30 | EW17: 2022-03-20 | EX17: 2022-04-03 | EY17: 2024-09-30 | EZ17: 2022-03-20 | FA17: 2022-04-03 | FB17: 2024-09-30 | FC17: 2022-05-15 | FD17: 2022-05-30 | FE17: 2024-09-30 | FF17: 2022-07-30 | FG17: 2022-07-30 | FH17: 2024-09-30 | FI17: 2022-07-30 | FJ17: 2022-07-30 | FK17: 2024-09-30 | FL17: 2022-07-30 | FM17: 2022-07-30 | FN17: 2024-09-30 | FO17: 2022-07-30 | FP17: 2022-09-01 | FQ17: 2024-11-30 | FR17: 27 | FS17: 2022-07-30 | FT17: 2022-09-01 | FU17: 2024-11-30 | FV17: 2022-07-15 | FW17: 2022-08-29 | FX17: 2024-11-30 | FY17: 2022-07-15 | FZ17: 2022-08-29 | GA17: 2024-11-30 | GB17: 2022-07-15 | GC17: 2022-08-29 | GD17: 2024-11-30 | GE17: 2022-08-15 | GF17: 2022-08-29 | GG17: 2024-11-30 | GH17: 2022-08-15 | GI17: 2022-08-29 | GJ17: 2024-11-30 | GK17: 2022-08-31 | GL17: 2022-08-31 | GM17: 2024-11-30 | GN17: 2022-09-30 | GO17: 2022-09-30 | GP17: 2024-11-30 | GQ17: 2022-09-30 | GR17: 2022-09-30 | GS17: 2024-11-30 | GT17: 2022-09-30 | GU17: 2022-09-30 | GV17: 2024-11-30 | GW17: 2022-10-17 | GX17: 2022-10-17 | GY17: 2024-11-30 | GZ17: 2022-11-07 | HA17: 2022-11-07 | HB17: 2024-11-30 | HC17: 2022-11-07 | HD17: 2022-11-07 | HE17: 2024-11-30 | HF17: 2022-11-07 | HG17: 2022-11-07 | HH17: 2024-11-30 | HI17: 2022-12-08 | HJ17: 2022-12-08 | HK17: 2024-11-30 | HL17: 2022-12-08 | HM17: 2022-12-08 | HN17: 2024-11-30 | HP17: АБ-1 | HQ17: АБ-1 | HR17: Не определен | HT17: 2025-06-30 | HX17: ● | IA17: ● | IE17: ● | IG17: 0 | IH17: =IF(YEAR(#REF!)=HU$8,$J17,0) ->  | II17: =IF(AND(YEAR(#REF!)<=HU$8,YEAR(#REF!)>HU$8),$J17,0) ->  | IJ17: 20,730 | IV17: 10
A18: 31 | B18: 2.3.1 | C18: СД00.03.1.03.1 | D18: ЖК "Светлая Долина" ПК-3 ж/д 3-1 | E18: 30,509 | F18: Материал рулонный кровельный гидроизоляционный верхний слой | G18: основа: полиэстeр;температура гибкости на брусе R=25мм не менее -20; толщина 1м² не менее 3,8мм | H18: м2 | I18: =1730.022/580*L18 -> 4,375 | J18: 20,730 | K18: 19,263 | L18: 1,467 | N18: 480 | O18: 2 | P18: 26 (24) | Q18: 1 | R18: Монолит | S18: Перепривязка | W18: =SUM(IG18,#REF!,#REF!,#REF!,#REF!,#REF!,#REF!,#REF!) ->  | AC18: Прединвест | AD18: Первоначально в ПП закладывался срок строительства для панельного дома - 2 года. Далее было принято решение о возведении монолитного дома, срок строительства которого 2,5 года. | AE18: 2020-11-25 | AF18: 2020-12-25 | AG18: 2021-04-15 | AH18: 2021-04-30 | AI18: 2021-09-30 | AJ18: 2021-10-31 | AK18: 2022-01-31 | AN18: 2024-04-30 | AO18: 2024-10-31 | AP18: 2024-12-30 | AQ18: 2020-11-25 | AR18: 2020-12-25 | AS18: 2021-04-15 | AT18: 2021-07-05 | AU18: 2021-11-01 | AV18: 2022-01-31 | AW18: 2022-01-31 | AX18: нет | AY18: нет | AZ18: 2024-07-01 | BA18: 2024-10-31 | BB18: 2024-12-30 | BC18: 2020-11-25 | BD18: 2020-12-25 | BE18: 2021-04-15 | BF18: 2021-07-05 | BG18: 2021-11-30 | BH18: 2022-03-09 | BI18: 2022-03-20 | BJ18: нет | BK18: нет | BL18: 2024-08-30 | BM18: 2024-10-30 | BN18: 2025-06-30 | BO18: 2022-06-01 | BP18: 2024-07-30 | BQ18: 2022-06-01 | BR18: 2024-07-01 | BS18: 2022-06-01 | BT18: 2024-07-01 | BU18: 2022-06-01 | BV18: 2024-07-01 | BW18: 2021-12-30 | BX18: 2024-01-01 | BY18: 2021-12-01 | BZ18: 2024-08-01 | CA18: 2021-12-01 | CB18: 2024-08-01 | CC18: 2021-12-01 | CD18: 2024-08-01 | CE18: 2021-12-01 | CF18: 2024-08-01 | CG18: 2021-12-01 | CH18: 2024-08-01 | CI18: 2021-12-01 | CJ18: 2024-08-01 | CK18: 2021-12-01 | CL18: 2024-08-01 | CM18: 2021-12-01 | CN18: 2024-08-01 | CO18: 2021-12-01 | CP18: 2024-08-01 | CQ18: 2021-12-01 | CR18: 2024-08-01 | CS18: 2021-12-01 | CT18: 2024-08-01 | CU18: 2021-12-01 | CV18: 2024-08-01 | CW18: 2021-12-01 | CX18: 2024-08-01 | CY18: 2021-12-01 | CZ18: 2024-08-01 | DA18: 2021-12-01 | DB18: 2024-08-01 | DC18: 2021-12-30 | DD18: 2024-08-01 | DE18: 2021-12-01 | DF18: 2024-08-01 | DG18: 2021-12-30 | DH18: 2024-08-01 | DI18: 2021-12-30 | DJ18: 2024-08-01 | DK18: 2021-12-30 | DL18: 2022-01-30 | DM18: 2024-08-01 | DN18: 2021-12-30 | DO18: 2022-01-30 | DP18: 2024-08-01 | DQ18: 2021-12-30 | DR18: 2022-01-30 | DS18: 2024-08-01 | DT18: 2021-12-30 | DU18: 2022-01-30 | DV18: 2024-08-01 | DW18: 2022-02-28 | DX18: 2022-03-14 | DY18: 2024-08-01 | DZ18: 2022-03-30 | EA18: 2022-04-13 | EB18: 2024-09-30 | EC18: 30 | ED18: 32 | EE18: 2020-12-25 | EF18: 2021-07-05 | EG18: 2022-03-30 | EH18: 2022-04-13 | EI18: 2024-09-30 | EJ18: 2022-02-28 | EK18: 2022-03-14 | EL18: 2024-09-30 | EM18: =(#REF!-#REF!)/30 ->  | EN18: 2022-03-15 | EO18: 2022-03-29 | EP18: 2024-09-30 | EQ18: 2022-03-15 | ER18: 2022-03-29 | ES18: 2024-09-30 | ET18: 2022-03-15 | EU18: 2022-03-29 | EV18: 2024-09-30 | EW18: 2022-03-20 | EX18: 2022-04-03 | EY18: 2024-09-30 | EZ18: 2022-03-20 | FA18: 2022-04-03 | FB18: 2024-09-30 | FC18: 2022-05-15 | FD18: 2022-05-30 | FE18: 2024-09-30 | FF18: 2022-07-30 | FG18: 2022-07-30 | FH18: 2024-09-30 | FI18: 2022-07-30 | FJ18: 2022-07-30 | FK18: 2024-09-30 | FL18: 2022-07-30 | FM18: 2022-07-30 | FN18: 2024-09-30 | FO18: 2022-07-30 | FP18: 2022-09-01 | FQ18: 2024-11-30 | FR18: 27 | FS18: 2022-07-30 | FT18: 2022-09-01 | FU18: 2024-11-30 | FV18: 2022-07-15 | FW18: 2022-08-29 | FX18: 2024-11-30 | FY18: 2022-07-15 | FZ18: 2022-08-29 | GA18: 2024-11-30 | GB18: 2022-07-15 | GC18: 2022-08-29 | GD18: 2024-11-30 | GE18: 2022-08-15 | GF18: 2022-08-29 | GG18: 2024-11-30 | GH18: 2022-08-15 | GI18: 2022-08-29 | GJ18: 2024-11-30 | GK18: 2022-08-31 | GL18: 2022-08-31 | GM18: 2024-11-30 | GN18: 2022-09-30 | GO18: 2022-09-30 | GP18: 2024-11-30 | GQ18: 2022-09-30 | GR18: 2022-09-30 | GS18: 2024-11-30 | GT18: 2022-09-30 | GU18: 2022-09-30 | GV18: 2024-11-30 | GW18: 2022-10-17 | GX18: 2022-10-17 | GY18: 2024-11-30 | GZ18: 2022-11-07 | HA18: 2022-11-07 | HB18: 2024-11-30 | HC18: 2022-11-07 | HD18: 2022-11-07 | HE18: 2024-11-30 | HF18: 2022-11-07 | HG18: 2022-11-07 | HH18: 2024-11-30 | HI18: 2022-12-08 | HJ18: 2022-12-08 | HK18: 2024-11-30 | HL18: 2022-12-08 | HM18: 2022-12-08 | HN18: 2024-11-30 | HP18: АБ-1 | HQ18: АБ-1 | HR18: Не определен | HT18: 2025-06-30 | HX18: ● | IA18: ● | IE18: ● | IG18: 0 | IH18: =IF(YEAR(#REF!)=HU$8,$J18,0) ->  | II18: =IF(AND(YEAR(#REF!)<=HU$8,YEAR(#REF!)>HU$8),$J18,0) ->  | IJ18: 20,730 | IV18: 4,375
A19: 31 | B19: 2.3.1 | C19: СД00.03.1.03.1 | D19: ЖК "Светлая Долина" ПК-3 ж/д 3-1 | E19: 30,509 | F19: Материал рулонный кровельный гидроизоляционный нижний слой | G19: основа: полиэстeр;температура гибкости на брусе R=25мм не менее -20; толщина 1м² не менее 2,8мм | H19: м2 | I19: =1243.267/580*L19 -> 3,144 | J19: 20,730 | K19: 19,263 | L19: 1,467 | N19: 480 | O19: 2 | P19: 26 (24) | Q19: 1 | R19: Монолит | S19: Перепривязка | W19: =SUM(IG19,#REF!,#REF!,#REF!,#REF!,#REF!,#REF!,#REF!) ->  | AC19: Прединвест | AD19: Первоначально в ПП закладывался срок строительства для панельного дома - 2 года. Далее было принято решение о возведении монолитного дома, срок строительства которого 2,5 года. | AE19: 2020-11-25 | AF19: 2020-12-25 | AG19: 2021-04-15 | AH19: 2021-04-30 | AI19: 2021-09-30 | AJ19: 2021-10-31 | AK19: 2022-01-31 | AN19: 2024-04-30 | AO19: 2024-10-31 | AP19: 2024-12-30 | AQ19: 2020-11-25 | AR19: 2020-12-25 | AS19: 2021-04-15 | AT19: 2021-07-05 | AU19: 2021-11-01 | AV19: 2022-01-31 | AW19: 2022-01-31 | AX19: нет | AY19: нет | AZ19: 2024-07-01 | BA19: 2024-10-31 | BB19: 2024-12-30 | BC19: 2020-11-25 | BD19: 2020-12-25 | BE19: 2021-04-15 | BF19: 2021-07-05 | BG19: 2021-11-30 | BH19: 2022-03-09 | BI19: 2022-03-20 | BJ19: нет | BK19: нет | BL19: 2024-08-30 | BM19: 2024-10-30 | BN19: 2025-06-30 | BO19: 2022-06-01 | BP19: 2024-07-30 | BQ19: 2022-06-01 | BR19: 2024-07-01 | BS19: 2022-06-01 | BT19: 2024-07-01 | BU19: 2022-06-01 | BV19: 2024-07-01 | BW19: 2021-12-30 | BX19: 2024-01-01 | BY19: 2021-12-01 | BZ19: 2024-08-01 | CA19: 2021-12-01 | CB19: 2024-08-01 | CC19: 2021-12-01 | CD19: 2024-08-01 | CE19: 2021-12-01 | CF19: 2024-08-01 | CG19: 2021-12-01 | CH19: 2024-08-01 | CI19: 2021-12-01 | CJ19: 2024-08-01 | CK19: 2021-12-01 | CL19: 2024-08-01 | CM19: 2021-12-01 | CN19: 2024-08-01 | CO19: 2021-12-01 | CP19: 2024-08-01 | CQ19: 2021-12-01 | CR19: 2024-08-01 | CS19: 2021-12-01 | CT19: 2024-08-01 | CU19: 2021-12-01 | CV19: 2024-08-01 | CW19: 2021-12-01 | CX19: 2024-08-01 | CY19: 2021-12-01 | CZ19: 2024-08-01 | DA19: 2021-12-01 | DB19: 2024-08-01 | DC19: 2021-12-30 | DD19: 2024-08-01 | DE19: 2021-12-01 | DF19: 2024-08-01 | DG19: 2021-12-30 | DH19: 2024-08-01 | DI19: 2021-12-30 | DJ19: 2024-08-01 | DK19: 2021-12-30 | DL19: 2022-01-30 | DM19: 2024-08-01 | DN19: 2021-12-30 | DO19: 2022-01-30 | DP19: 2024-08-01 | DQ19: 2021-12-30 | DR19: 2022-01-30 | DS19: 2024-08-01 | DT19: 2021-12-30 | DU19: 2022-01-30 | DV19: 2024-08-01 | DW19: 2022-02-28 | DX19: 2022-03-14 | DY19: 2024-08-01 | DZ19: 2022-03-30 | EA19: 2022-04-13 | EB19: 2024-09-30 | EC19: 30 | ED19: 32 | EE19: 2020-12-25 | EF19: 2021-07-05 | EG19: 2022-03-30 | EH19: 2022-04-13 | EI19: 2024-09-30 | EJ19: 2022-02-28 | EK19: 2022-03-14 | EL19: 2024-09-30 | EM19: =(#REF!-#REF!)/30 ->  | EN19: 2022-03-15 | EO19: 2022-03-29 | EP19: 2024-09-30 | EQ19: 2022-03-15 | ER19: 2022-03-29 | ES19: 2024-09-30 | ET19: 2022-03-15 | EU19: 2022-03-29 | EV19: 2024-09-30 | EW19: 2022-03-20 | EX19: 2022-04-03 | EY19: 2024-09-30 | EZ19: 2022-03-20 | FA19: 2022-04-03 | FB19: 2024-09-30 | FC19: 2022-05-15 | FD19: 2022-05-30 | FE19: 2024-09-30 | FF19: 2022-07-30 | FG19: 2022-07-30 | FH19: 2024-09-30 | FI19: 2022-07-30 | FJ19: 2022-07-30 | FK19: 2024-09-30 | FL19: 2022-07-30 | FM19: 2022-07-30 | FN19: 2024-09-30 | FO19: 2022-07-30 | FP19: 2022-09-01 | FQ19: 2024-11-30 | FR19: 27 | FS19: 2022-07-30 | FT19: 2022-09-01 | FU19: 2024-11-30 | FV19: 2022-07-15 | FW19: 2022-08-29 | FX19: 2024-11-30 | FY19: 2022-07-15 | FZ19: 2022-08-29 | GA19: 2024-11-30 | GB19: 2022-07-15 | GC19: 2022-08-29 | GD19: 2024-11-30 | GE19: 2022-08-15 | GF19: 2022-08-29 | GG19: 2024-11-30 | GH19: 2022-08-15 | GI19: 2022-08-29 | GJ19: 2024-11-30 | GK19: 2022-08-31 | GL19: 2022-08-31 | GM19: 2024-11-30 | GN19: 2022-09-30 | GO19: 2022-09-30 | GP19: 2024-11-30 | GQ19: 2022-09-30 | GR19: 2022-09-30 | GS19: 2024-11-30 | GT19: 2022-09-30 | GU19: 2022-09-30 | GV19: 2024-11-30 | GW19: 2022-10-17 | GX19: 2022-10-17 | GY19: 2024-11-30 | GZ19: 2022-11-07 | HA19: 2022-11-07 | HB19: 2024-11-30 | HC19: 2022-11-07 | HD19: 2022-11-07 | HE19: 2024-11-30 | HF19: 2022-11-07 | HG19: 2022-11-07 | HH19: 2024-11-30 | HI19: 2022-12-08 | HJ19: 2022-12-08 | HK19: 2024-11-30 | HL19: 2022-12-08 | HM19: 2022-12-08 | HN19: 2024-11-30 | HP19: АБ-1 | HQ19: АБ-1 | HR19: Не определен | HT19: 2025-06-30 | HX19: ● | IA19: ● | IE19: ● | IG19: 0 | IH19: =IF(YEAR(#REF!)=HU$8,$J19,0) ->  | II19: =IF(AND(YEAR(#REF!)<=HU$8,YEAR(#REF!)>HU$8),$J19,0) ->  | IJ19: 20,730 | IV19: 3,144
A20: 32 | B20: 2.3.2 | C20: СД00.03.1.03.2 | D20: ЖК "Светлая Долина" ПК-3 ж/д 3-2 | E20: 7,460 | F20: Плиты теплоизоляционные пенополистирольные ППС-25 150мм | H20: м3 | I20: =140.294/580*L20 -> 96 | J20: 5,286 | K20: 4,887 | L20: 398 | N20: 99 | O20: 2 | P20: 11 (9) | Q20: 1 | R20: КПД, 1 Каркас | S20: Перепривязка | T20: =J20*0.622 -> 3,288 | U20: =T20*0.786 -> 2,584 | V20: 264 | W20: =SUM(IG20,#REF!,#REF!,#REF!,#REF!,#REF!,#REF!,#REF!) ->  | AC20: Прединвест | AE20: 2020-11-25 | AF20: 2020-12-25 | AG20: 2021-04-15 | AH20: 2021-04-30 | AI20: 2021-09-30 | AJ20: 2021-10-31 | AK20: 2022-01-31 | AN20: 2024-04-30 | AO20: 2024-10-31 | AP20: 2024-12-30 | AQ20: 2020-11-25 | AR20: 2020-12-25 | AS20: 2021-04-15 | AT20: 2021-07-05 | AU20: 2021-11-02 | AV20: 2021-03-31 | AW20: 2022-01-31 | AX20: 2022-03-31 | AY20: 2022-05-31 | AZ20: 2023-11-30 | BA20: 2024-01-31 | BB20: 2024-03-30 | BC20: 2020-11-25 | BD20: 2020-12-25 | BE20: 2021-04-15 | BF20: 2021-07-05 | BG20: 2021-11-30 | BH20: 2022-04-20 | BI20: 2022-05-30 | BJ20: 2022-04-30 | BK20: 2022-06-30 | BL20: 2023-10-30 | BM20: 2023-12-30 | BN20: 2024-06-30 | BO20: 2022-06-01 | BP20: 2024-06-30 | BQ20: 2022-06-01 | BR20: 2024-06-01 | BS20: 2022-06-01 | BT20: 2024-06-01 | BU20: 2022-06-01 | BV20: 2024-07-01 | BW20: 2021-12-30 | BX20: 2023-12-01 | BY20: 2021-12-02 | BZ20: 2023-12-01 | CA20: 2021-12-02 | CB20: 2023-12-01 | CC20: 2021-12-02 | CD20: 2023-12-01 | CE20: 2021-12-02 | CF20: 2023-12-01 | CG20: 2021-12-02 | CH20: 2023-12-01 | CI20: 2021-12-02 | CJ20: 2023-12-01 | CK20: 2021-12-02 | CL20: 2023-12-01 | CM20: 2021-12-02 | CN20: 2023-12-01 | CO20: 2021-12-02 | CP20: 2023-12-01 | CQ20: 2021-12-02 | CR20: 2023-12-01 | CS20: 2021-12-02 | CT20: 2023-12-01 | CU20: 2021-12-02 | CV20: 2023-12-01 | CW20: 2021-12-02 | CX20: 2023-12-01 | CY20: 2021-12-02 | CZ20: 2023-12-01 | DA20: 2021-12-02 | DB20: 2023-12-01 | DC20: 2021-12-30 | DD20: 2023-12-01 | DE20: 2021-12-02 | DF20: 2023-12-01 | DG20: 2021-12-30 | DH20: 2023-12-01 | DI20: 2021-12-30 | DJ20: 2023-12-01 | DK20: 2021-12-30 | DL20: 2022-01-31 | DM20: 2023-12-31 | DN20: 2021-12-30 | DO20: 2022-01-31 | DP20: 2023-11-30 | DQ20: 2021-12-30 | DR20: 2022-01-31 | DS20: 2023-11-30 | DT20: 2021-12-30 | DU20: 2022-01-31 | DV20: 2023-11-30 | DW20: 2022-05-05 | DX20: 2022-05-19 | DY20: 2023-11-30 | DZ20: 2022-05-05 | EA20: 2022-05-19 | EB20: 2023-11-30 | EC20: 23 | ED20: 24 | EE20: 2020-12-25 | EF20: 2021-07-05 | EG20: 2022-04-30 | EH20: 2022-05-14 | EI20: 2023-11-30 | EJ20: 2022-05-15 | EK20: 2022-05-29 | EL20: 2023-11-30 | EM20: =(#REF!-#REF!)/30 ->  | EN20: 2022-05-15 | EO20: 2022-05-29 | EP20: 2023-11-30 | EQ20: 2022-05-15 | ER20: 2022-05-29 | ES20: 2023-11-30 | ET20: 2022-05-15 | EU20: 2022-05-29 | EV20: 2023-11-30 | EW20: 2022-05-15 | EX20: 2022-05-29 | EY20: 2023-11-30 | EZ20: 2022-05-15 | FA20: 2022-05-29 | FB20: 2023-11-30 | FC20: 2022-05-15 | FD20: 2022-05-30 | FE20: 2023-11-30 | FF20: 2022-07-30 | FG20: 2022-07-30 | FH20: 2023-11-30 | FI20: 2022-07-30 | FJ20: 2022-07-30 | FK20: 2023-11-30 | FL20: 2022-07-30 | FM20: 2022-07-30 | FN20: 2023-12-10 | FO20: 2022-07-30 | FP20: 2022-09-01 | FQ20: 2024-11-30 | FR20: 27 | FS20: 2022-07-30 | FT20: 2022-09-01 | FU20: 2024-11-30 | FV20: 2022-08-15 | FW20: 2022-08-29 | FX20: 2023-12-10 | FY20: 2022-08-15 | FZ20: =FY20+14 -> 2022-08-29 | GA20: 2023-12-10 | GB20: 2022-08-15 | GC20: =GB20+14 -> 2022-08-29 | GD20: 2023-12-10 | GE20: 2022-08-15 | GF20: =GE20+14 -> 2022-08-29 | GG20: 2023-12-10 | GH20: 2022-08-15 | GI20: =GH20+14 -> 2022-08-29 | GJ20: 2023-12-10 | GK20: 2022-08-31 | GL20: 2022-08-31 | GM20: 2023-12-10 | GN20: 2022-09-30 | GO20: 2022-09-30 | GP20: 2023-12-10 | GQ20: 2022-09-30 | GR20: 2022-09-30 | GS20: 2023-12-10 | GT20: 2022-09-30 | GU20: 2022-09-30 | GV20: 2023-12-10 | GW20: 2022-09-30 | GX20: 2022-09-30 | GY20: 2023-12-10 | GZ20: 2022-10-24 | HA20: 2022-10-24 | HB20: 2023-12-10 | HC20: 2022-10-24 | HD20: 2022-10-24 | HE20: 2023-12-10 | HF20: 2022-10-27 | HG20: 2022-10-27 | HH20: 2023-12-10 | HI20: 2022-11-10 | HJ20: 2022-11-10 | HK20: 2023-12-10 | HL20: 2022-11-10 | HM20: 2022-11-10 | HN20: 2023-12-10 | HP20: АБ-1 | HQ20: АБ-1 | HR20: АБСт | HT20: 2025-06-30 | HX20: ● | IA20: ● | IE20: ● | IG20: 0 | IH20: =IF(YEAR(#REF!)=HU$8,$J20,0) ->  | II20: =IF(AND(YEAR(#REF!)<=HU$8,YEAR(#REF!)>HU$8),$J20,0) ->  | IJ20: 5,286 | IQ20: =I20/2 -> 48 | IR20: =I20/2 -> 48 | IU20: ▪
A21: 32 | B21: 2.3.2 | C21: СД00.03.1.03.2 | D21: ЖК "Светлая Долина" ПК-3 ж/д 3-2 | E21: 7,460 | F21: Керамзит М600 | H21: м3 | I21: =142.129/580*L21 -> 98 | J21: 5,286 | K21: 4,887 | L21: 398 | N21: 99 | O21: 2 | P21: 11 (9) | Q21: 1 | R21: КПД, 1 Каркас | S21: Перепривязка | T21: 3,288 | U21: 2,584 | V21: 264 | W21: =SUM(IG21,#REF!,#REF!,#REF!,#REF!,#REF!,#REF!,#REF!) ->  | AC21: Прединвест | AE21: 2020-11-25 | AF21: 2020-12-25 | AG21: 2021-04-15 | AH21: 2021-04-30 | AI21: 2021-09-30 | AJ21: 2021-10-31 | AK21: 2022-01-31 | AN21: 2024-04-30 | AO21: 2024-10-31 | AP21: 2024-12-30 | AQ21: 2020-11-25 | AR21: 2020-12-25 | AS21: 2021-04-15 | AT21: 2021-07-05 | AU21: 2021-11-02 | AV21: 2021-03-31 | AW21: 2022-01-31 | AX21: 2022-03-31 | AY21: 2022-05-31 | AZ21: 2023-11-30 | BA21: 2024-01-31 | BB21: 2024-03-30 | BC21: 2020-11-25 | BD21: 2020-12-25 | BE21: 2021-04-15 | BF21: 2021-07-05 | BG21: 2021-11-30 | BH21: 2022-04-20 | BI21: 2022-05-30 | BJ21: 2022-04-30 | BK21: 2022-06-30 | BL21: 2023-10-30 | BM21: 2023-12-30 | BN21: 2024-06-30 | BO21: 2022-06-01 | BP21: 2024-06-30 | BQ21: 2022-06-01 | BR21: 2024-06-01 | BS21: 2022-06-01 | BT21: 2024-06-01 | BU21: 2022-06-01 | BV21: 2024-07-01 | BW21: 2021-12-30 | BX21: 2023-12-01 | BY21: 2021-12-02 | BZ21: 2023-12-01 | CA21: 2021-12-02 | CB21: 2023-12-01 | CC21: 2021-12-02 | CD21: 2023-12-01 | CE21: 2021-12-02 | CF21: 2023-12-01 | CG21: 2021-12-02 | CH21: 2023-12-01 | CI21: 2021-12-02 | CJ21: 2023-12-01 | CK21: 2021-12-02 | CL21: 2023-12-01 | CM21: 2021-12-02 | CN21: 2023-12-01 | CO21: 2021-12-02 | CP21: 2023-12-01 | CQ21: 2021-12-02 | CR21: 2023-12-01 | CS21: 2021-12-02 | CT21: 2023-12-01 | CU21: 2021-12-02 | CV21: 2023-12-01 | CW21: 2021-12-02 | CX21: 2023-12-01 | CY21: 2021-12-02 | CZ21: 2023-12-01 | DA21: 2021-12-02 | DB21: 2023-12-01 | DC21: 2021-12-30 | DD21: 2023-12-01 | DE21: 2021-12-02 | DF21: 2023-12-01 | DG21: 2021-12-30 | DH21: 2023-12-01 | DI21: 2021-12-30 | DJ21: 2023-12-01 | DK21: 2021-12-30 | DL21: 2022-01-31 | DM21: 2023-12-31 | DN21: 2021-12-30 | DO21: 2022-01-31 | DP21: 2023-11-30 | DQ21: 2021-12-30 | DR21: 2022-01-31 | DS21: 2023-11-30 | DT21: 2021-12-30 | DU21: 2022-01-31 | DV21: 2023-11-30 | DW21: 2022-05-05 | DX21: 2022-05-19 | DY21: 2023-11-30 | DZ21: 2022-05-05 | EA21: 2022-05-19 | EB21: 2023-11-30 | EC21: 23 | ED21: 24 | EE21: 2020-12-25 | EF21: 2021-07-05 | EG21: 2022-04-30 | EH21: 2022-05-14 | EI21: 2023-11-30 | EJ21: 2022-05-15 | EK21: 2022-05-29 | EL21: 2023-11-30 | EM21: =(#REF!-#REF!)/30 ->  | EN21: 2022-05-15 | EO21: 2022-05-29 | EP21: 2023-11-30 | EQ21: 2022-05-15 | ER21: 2022-05-29 | ES21: 2023-11-30 | ET21: 2022-05-15 | EU21: 2022-05-29 | EV21: 2023-11-30 | EW21: 2022-05-15 | EX21: 2022-05-29 | EY21: 2023-11-30 | EZ21: 2022-05-15 | FA21: 2022-05-29 | FB21: 2023-11-30 | FC21: 2022-05-15 | FD21: 2022-05-30 | FE21: 2023-11-30 | FF21: 2022-07-30 | FG21: 2022-07-30 | FH21: 2023-11-30 | FI21: 2022-07-30 | FJ21: 2022-07-30 | FK21: 2023-11-30 | FL21: 2022-07-30 | FM21: 2022-07-30 | FN21: 2023-12-10 | FO21: 2022-07-30 | FP21: 2022-09-01 | FQ21: 2024-11-30 | FR21: 27 | FS21: 2022-07-30 | FT21: 2022-09-01 | FU21: 2024-11-30 | FV21: 2022-08-15 | FW21: 2022-08-29 | FX21: 2023-12-10 | FY21: 2022-08-15 | FZ21: 2022-08-29 | GA21: 2023-12-10 | GB21: 2022-08-15 | GC21: 2022-08-29 | GD21: 2023-12-10 | GE21: 2022-08-15 | GF21: 2022-08-29 | GG21: 2023-12-10 | GH21: 2022-08-15 | GI21: 2022-08-29 | GJ21: 2023-12-10 | GK21: 2022-08-31 | GL21: 2022-08-31 | GM21: 2023-12-10 | GN21: 2022-09-30 | GO21: 2022-09-30 | GP21: 2023-12-10 | GQ21: 2022-09-30 | GR21: 2022-09-30 | GS21: 2023-12-10 | GT21: 2022-09-30 | GU21: 2022-09-30 | GV21: 2023-12-10 | GW21: 2022-09-30 | GX21: 2022-09-30 | GY21: 2023-12-10 | GZ21: 2022-10-24 | HA21: 2022-10-24 | HB21: 2023-12-10 | HC21: 2022-10-24 | HD21: 2022-10-24 | HE21: 2023-12-10 | HF21: 2022-10-27 | HG21: 2022-10-27 | HH21: 2023-12-10 | HI21: 2022-11-10 | HJ21: 2022-11-10 | HK21: 2023-12-10 | HL21: 2022-11-10 | HM21: 2022-11-10 | HN21: 2023-12-10 | HP21: АБ-1 | HQ21: АБ-1 | HR21: АБСт | HT21: 2025-06-30 | HX21: ● | IA21: ● | IE21: ● | IG21: 0 | IH21: =IF(YEAR(#REF!)=HU$8,$J21,0) ->  | II21: =IF(AND(YEAR(#REF!)<=HU$8,YEAR(#REF!)>HU$8),$J21,0) ->  | IJ21: 5,286 | IQ21: =I21/2 -> 49 | IR21: =I21/2 -> 49 | IU21: ▪
A22: 32 | B22: 2.3.2 | C22: СД00.03.1.03.2 | D22: ЖК "Светлая Долина" ПК-3 ж/д 3-2 | E22: 7,460 | F22: Плиты теплоизоляционные пенополистирольные экструдированные 100мм | H22: м3 | I22: =14.146/580*L22 -> 10 | J22: 5,286 | K22: 4,887 | L22: 398 | N22: 99 | O22: 2 | P22: 11 (9) | Q22: 1 | R22: КПД, 1 Каркас | S22: Перепривязка | T22: 3,288 | U22: 2,584 | V22: 264 | W22: =SUM(IG22,#REF!,#REF!,#REF!,#REF!,#REF!,#REF!,#REF!) ->  | AC22: Прединвест | AE22: 2020-11-25 | AF22: 2020-12-25 | AG22: 2021-04-15 | AH22: 2021-04-30 | AI22: 2021-09-30 | AJ22: 2021-10-31 | AK22: 2022-01-31 | AN22: 2024-04-30 | AO22: 2024-10-31 | AP22: 2024-12-30 | AQ22: 2020-11-25 | AR22: 2020-12-25 | AS22: 2021-04-15 | AT22: 2021-07-05 | AU22: 2021-11-02 | AV22: 2021-03-31 | AW22: 2022-01-31 | AX22: 2022-03-31 | AY22: 2022-05-31 | AZ22: 2023-11-30 | BA22: 2024-01-31 | BB22: 2024-03-30 | BC22: 2020-11-25 | BD22: 2020-12-25 | BE22: 2021-04-15 | BF22: 2021-07-05 | BG22: 2021-11-30 | BH22: 2022-04-20 | BI22: 2022-05-30 | BJ22: 2022-04-30 | BK22: 2022-06-30 | BL22: 2023-10-30 | BM22: 2023-12-30 | BN22: 2024-06-30 | BO22: 2022-06-01 | BP22: 2024-06-30 | BQ22: 2022-06-01 | BR22: 2024-06-01 | BS22: 2022-06-01 | BT22: 2024-06-01 | BU22: 2022-06-01 | BV22: 2024-07-01 | BW22: 2021-12-30 | BX22: 2023-12-01 | BY22: 2021-12-02 | BZ22: 2023-12-01 | CA22: 2021-12-02 | CB22: 2023-12-01 | CC22: 2021-12-02 | CD22: 2023-12-01 | CE22: 2021-12-02 | CF22: 2023-12-01 | CG22: 2021-12-02 | CH22: 2023-12-01 | CI22: 2021-12-02 | CJ22: 2023-12-01 | CK22: 2021-12-02 | CL22: 2023-12-01 | CM22: 2021-12-02 | CN22: 2023-12-01 | CO22: 2021-12-02 | CP22: 2023-12-01 | CQ22: 2021-12-02 | CR22: 2023-12-01 | CS22: 2021-12-02 | CT22: 2023-12-01 | CU22: 2021-12-02 | CV22: 2023-12-01 | CW22: 2021-12-02 | CX22: 2023-12-01 | CY22: 2021-12-02 | CZ22: 2023-12-01 | DA22: 2021-12-02 | DB22: 2023-12-01 | DC22: 2021-12-30 | DD22: 2023-12-01 | DE22: 2021-12-02 | DF22: 2023-12-01 | DG22: 2021-12-30 | DH22: 2023-12-01 | DI22: 2021-12-30 | DJ22: 2023-12-01 | DK22: 2021-12-30 | DL22: 2022-01-31 | DM22: 2023-12-31 | DN22: 2021-12-30 | DO22: 2022-01-31 | DP22: 2023-11-30 | DQ22: 2021-12-30 | DR22: 2022-01-31 | DS22: 2023-11-30 | DT22: 2021-12-30 | DU22: 2022-01-31 | DV22: 2023-11-30 | DW22: 2022-05-05 | DX22: 2022-05-19 | DY22: 2023-11-30 | DZ22: 2022-05-05 | EA22: 2022-05-19 | EB22: 2023-11-30 | EC22: 23 | ED22: 24 | EE22: 2020-12-25 | EF22: 2021-07-05 | EG22: 2022-04-30 | EH22: 2022-05-14 | EI22: 2023-11-30 | EJ22: 2022-05-15 | EK22: 2022-05-29 | EL22: 2023-11-30 | EM22: =(#REF!-#REF!)/30 ->  | EN22: 2022-05-15 | EO22: 2022-05-29 | EP22: 2023-11-30 | EQ22: 2022-05-15 | ER22: 2022-05-29 | ES22: 2023-11-30 | ET22: 2022-05-15 | EU22: 2022-05-29 | EV22: 2023-11-30 | EW22: 2022-05-15 | EX22: 2022-05-29 | EY22: 2023-11-30 | EZ22: 2022-05-15 | FA22: 2022-05-29 | FB22: 2023-11-30 | FC22: 2022-05-15 | FD22: 2022-05-30 | FE22: 2023-11-30 | FF22: 2022-07-30 | FG22: 2022-07-30 | FH22: 2023-11-30 | FI22: 2022-07-30 | FJ22: 2022-07-30 | FK22: 2023-11-30 | FL22: 2022-07-30 | FM22: 2022-07-30 | FN22: 2023-12-10 | FO22: 2022-07-30 | FP22: 2022-09-01 | FQ22: 2024-11-30 | FR22: 27 | FS22: 2022-07-30 | FT22: 2022-09-01 | FU22: 2024-11-30 | FV22: 2022-08-15 | FW22: 2022-08-29 | FX22: 2023-12-10 | FY22: 2022-08-15 | FZ22: 2022-08-29 | GA22: 2023-12-10 | GB22: 2022-08-15 | GC22: 2022-08-29 | GD22: 2023-12-10 | GE22: 2022-08-15 | GF22: 2022-08-29 | GG22: 2023-12-10 | GH22: 2022-08-15 | GI22: 2022-08-29 | GJ22: 2023-12-10 | GK22: 2022-08-31 | GL22: 2022-08-31 | GM22: 2023-12-10 | GN22: 2022-09-30 | GO22: 2022-09-30 | GP22: 2023-12-10 | GQ22: 2022-09-30 | GR22: 2022-09-30 | GS22: 2023-12-10 | GT22: 2022-09-30 | GU22: 2022-09-30 | GV22: 2023-12-10 | GW22: 2022-09-30 | GX22: 2022-09-30 | GY22: 2023-12-10 | GZ22: 2022-10-24 | HA22: 2022-10-24 | HB22: 2023-12-10 | HC22: 2022-10-24 | HD22: 2022-10-24 | HE22: 2023-12-10 | HF22: 2022-10-27 | HG22: 2022-10-27 | HH22: 2023-12-10 | HI22: 2022-11-10 | HJ22: 2022-11-10 | HK22: 2023-12-10 | HL22: 2022-11-10 | HM22: 2022-11-10 | HN22: 2023-12-10 | HP22: АБ-1 | HQ22: АБ-1 | HR22: АБСт | HT22: 2025-06-30 | HX22: ● | IA22: ● | IE22: ● | IG22: 0 | IH22: =IF(YEAR(#REF!)=HU$8,$J22,0) ->  | II22: =IF(AND(YEAR(#REF!)<=HU$8,YEAR(#REF!)>HU$8),$J22,0) ->  | IJ22: 5,286 | IQ22: 5 | IR22: 5 | IU22: ▪
A23: 32 | B23: 2.3.2 | C23: СД00.03.1.03.2 | D23: ЖК "Светлая Долина" ПК-3 ж/д 3-2 | E23: 7,460 | F23: Плиты теплоизоляционные пенополистирольные экструдированные 50мм | H23: м3 | I23: =3.939/580*L23 -> 3 | J23: 5,286 | K23: 4,887 | L23: 398 | N23: 99 | O23: 2 | P23: 11 (9) | Q23: 1 | R23: КПД, 1 Каркас | S23: Перепривязка | T23: 3,288 | U23: 2,584 | V23: 264 | W23: =SUM(IG23,#REF!,#REF!,#REF!,#REF!,#REF!,#REF!,#REF!) ->  | AC23: Прединвест | AE23: 2020-11-25 | AF23: 2020-12-25 | AG23: 2021-04-15 | AH23: 2021-04-30 | AI23: 2021-09-30 | AJ23: 2021-10-31 | AK23: 2022-01-31 | AN23: 2024-04-30 | AO23: 2024-10-31 | AP23: 2024-12-30 | AQ23: 2020-11-25 | AR23: 2020-12-25 | AS23: 2021-04-15 | AT23: 2021-07-05 | AU23: 2021-11-02 | AV23: 2021-03-31 | AW23: 2022-01-31 | AX23: 2022-03-31 | AY23: 2022-05-31 | AZ23: 2023-11-30 | BA23: 2024-01-31 | BB23: 2024-03-30 | BC23: 2020-11-25 | BD23: 2020-12-25 | BE23: 2021-04-15 | BF23: 2021-07-05 | BG23: 2021-11-30 | BH23: 2022-04-20 | BI23: 2022-05-30 | BJ23: 2022-04-30 | BK23: 2022-06-30 | BL23: 2023-10-30 | BM23: 2023-12-30 | BN23: 2024-06-30 | BO23: 2022-06-01 | BP23: 2024-06-30 | BQ23: 2022-06-01 | BR23: 2024-06-01 | BS23: 2022-06-01 | BT23: 2024-06-01 | BU23: 2022-06-01 | BV23: 2024-07-01 | BW23: 2021-12-30 | BX23: 2023-12-01 | BY23: 2021-12-02 | BZ23: 2023-12-01 | CA23: 2021-12-02 | CB23: 2023-12-01 | CC23: 2021-12-02 | CD23: 2023-12-01 | CE23: 2021-12-02 | CF23: 2023-12-01 | CG23: 2021-12-02 | CH23: 2023-12-01 | CI23: 2021-12-02 | CJ23: 2023-12-01 | CK23: 2021-12-02 | CL23: 2023-12-01 | CM23: 2021-12-02 | CN23: 2023-12-01 | CO23: 2021-12-02 | CP23: 2023-12-01 | CQ23: 2021-12-02 | CR23: 2023-12-01 | CS23: 2021-12-02 | CT23: 2023-12-01 | CU23: 2021-12-02 | CV23: 2023-12-01 | CW23: 2021-12-02 | CX23: 2023-12-01 | CY23: 2021-12-02 | CZ23: 2023-12-01 | DA23: 2021-12-02 | DB23: 2023-12-01 | DC23: 2021-12-30 | DD23: 2023-12-01 | DE23: 2021-12-02 | DF23: 2023-12-01 | DG23: 2021-12-30 | DH23: 2023-12-01 | DI23: 2021-12-30 | DJ23: 2023-12-01 | DK23: 2021-12-30 | DL23: 2022-01-31 | DM23: 2023-12-31 | DN23: 2021-12-30 | DO23: 2022-01-31 | DP23: 2023-11-30 | DQ23: 2021-12-30 | DR23: 2022-01-31 | DS23: 2023-11-30 | DT23: 2021-12-30 | DU23: 2022-01-31 | DV23: 2023-11-30 | DW23: 2022-05-05 | DX23: 2022-05-19 | DY23: 2023-11-30 | DZ23: 2022-05-05 | EA23: 2022-05-19 | EB23: 2023-11-30 | EC23: 23 | ED23: 24 | EE23: 2020-12-25 | EF23: 2021-07-05 | EG23: 2022-04-30 | EH23: 2022-05-14 | EI23: 2023-11-30 | EJ23: 2022-05-15 | EK23: 2022-05-29 | EL23: 2023-11-30 | EM23: =(#REF!-#REF!)/30 ->  | EN23: 2022-05-15 | EO23: 2022-05-29 | EP23: 2023-11-30 | EQ23: 2022-05-15 | ER23: 2022-05-29 | ES23: 2023-11-30 | ET23: 2022-05-15 | EU23: 2022-05-29 | EV23: 2023-11-30 | EW23: 2022-05-15 | EX23: 2022-05-29 | EY23: 2023-11-30 | EZ23: 2022-05-15 | FA23: 2022-05-29 | FB23: 2023-11-30 | FC23: 2022-05-15 | FD23: 2022-05-30 | FE23: 2023-11-30 | FF23: 2022-07-30 | FG23: 2022-07-30 | FH23: 2023-11-30 | FI23: 2022-07-30 | FJ23: 2022-07-30 | FK23: 2023-11-30 | FL23: 2022-07-30 | FM23: 2022-07-30 | FN23: 2023-12-10 | FO23: 2022-07-30 | FP23: 2022-09-01 | FQ23: 2024-11-30 | FR23: 27 | FS23: 2022-07-30 | FT23: 2022-09-01 | FU23: 2024-11-30 | FV23: 2022-08-15 | FW23: 2022-08-29 | FX23: 2023-12-10 | FY23: 2022-08-15 | FZ23: 2022-08-29 | GA23: 2023-12-10 | GB23: 2022-08-15 | GC23: 2022-08-29 | GD23: 2023-12-10 | GE23: 2022-08-15 | GF23: 2022-08-29 | GG23: 2023-12-10 | GH23: 2022-08-15 | GI23: 2022-08-29 | GJ23: 2023-12-10 | GK23: 2022-08-31 | GL23: 2022-08-31 | GM23: 2023-12-10 | GN23: 2022-09-30 | GO23: 2022-09-30 | GP23: 2023-12-10 | GQ23: 2022-09-30 | GR23: 2022-09-30 | GS23: 2023-12-10 | GT23: 2022-09-30 | GU23: 2022-09-30 | GV23: 2023-12-10 | GW23: 2022-09-30 | GX23: 2022-09-30 | GY23: 2023-12-10 | GZ23: 2022-10-24 | HA23: 2022-10-24 | HB23: 2023-12-10 | HC23: 2022-10-24 | HD23: 2022-10-24 | HE23: 2023-12-10 | HF23: 2022-10-27 | HG23: 2022-10-27 | HH23: 2023-12-10 | HI23: 2022-11-10 | HJ23: 2022-11-10 | HK23: 2023-12-10 | HL23: 2022-11-10 | HM23: 2022-11-10 | HN23: 2023-12-10 | HP23: АБ-1 | HQ23: АБ-1 | HR23: АБСт | HT23: 2025-06-30 | HX23: ● | IA23: ● | IE23: ● | IG23: 0 | IH23: =IF(YEAR(#REF!)=HU$8,$J23,0) ->  | II23: =IF(AND(YEAR(#REF!)<=HU$8,YEAR(#REF!)>HU$8),$J23,0) ->  | IJ23: 5,286 | IQ23: 1 | IR23: 1 | IU23: ▪
A24: 32 | B24: 2.3.2 | C24: СД00.03.1.03.2 | D24: ЖК "Светлая Долина" ПК-3 ж/д 3-2 | E24: 7,460 | F24: Материал рулонный кровельный гидроизоляционный верхний слой | G24: основа: полиэстeр;температура гибкости на брусе R=25мм не менее -20; толщина 1м² не менее 3,8мм | H24: м2 | I24: =1730.022/580*L24 -> 1,188 | J24: 5,286 | K24: 4,887 | L24: 398 | N24: 99 | O24: 2 | P24: 11 (9) | Q24: 1 | R24: КПД, 1 Каркас | S24: Перепривязка | T24: 3,288 | U24: 2,584 | V24: 264 | W24: =SUM(IG24,#REF!,#REF!,#REF!,#REF!,#REF!,#REF!,#REF!) ->  | AC24: Прединвест | AE24: 2020-11-25 | AF24: 2020-12-25 | AG24: 2021-04-15 | AH24: 2021-04-30 | AI24: 2021-09-30 | AJ24: 2021-10-31 | AK24: 2022-01-31 | AN24: 2024-04-30 | AO24: 2024-10-31 | AP24: 2024-12-30 | AQ24: 2020-11-25 | AR24: 2020-12-25 | AS24: 2021-04-15 | AT24: 2021-07-05 | AU24: 2021-11-02 | AV24: 2021-03-31 | AW24: 2022-01-31 | AX24: 2022-03-31 | AY24: 2022-05-31 | AZ24: 2023-11-30 | BA24: 2024-01-31 | BB24: 2024-03-30 | BC24: 2020-11-25 | BD24: 2020-12-25 | BE24: 2021-04-15 | BF24: 2021-07-05 | BG24: 2021-11-30 | BH24: 2022-04-20 | BI24: 2022-05-30 | BJ24: 2022-04-30 | BK24: 2022-06-30 | BL24: 2023-10-30 | BM24: 2023-12-30 | BN24: 2024-06-30 | BO24: 2022-06-01 | BP24: 2024-06-30 | BQ24: 2022-06-01 | BR24: 2024-06-01 | BS24: 2022-06-01 | BT24: 2024-06-01 | BU24: 2022-06-01 | BV24: 2024-07-01 | BW24: 2021-12-30 | BX24: 2023-12-01 | BY24: 2021-12-02 | BZ24: 2023-12-01 | CA24: 2021-12-02 | CB24: 2023-12-01 | CC24: 2021-12-02 | CD24: 2023-12-01 | CE24: 2021-12-02 | CF24: 2023-12-01 | CG24: 2021-12-02 | CH24: 2023-12-01 | CI24: 2021-12-02 | CJ24: 2023-12-01 | CK24: 2021-12-02 | CL24: 2023-12-01 | CM24: 2021-12-02 | CN24: 2023-12-01 | CO24: 2021-12-02 | CP24: 2023-12-01 | CQ24: 2021-12-02 | CR24: 2023-12-01 | CS24: 2021-12-02 | CT24: 2023-12-01 | CU24: 2021-12-02 | CV24: 2023-12-01 | CW24: 2021-12-02 | CX24: 2023-12-01 | CY24: 2021-12-02 | CZ24: 2023-12-01 | DA24: 2021-12-02 | DB24: 2023-12-01 | DC24: 2021-12-30 | DD24: 2023-12-01 | DE24: 2021-12-02 | DF24: 2023-12-01 | DG24: 2021-12-30 | DH24: 2023-12-01 | DI24: 2021-12-30 | DJ24: 2023-12-01 | DK24: 2021-12-30 | DL24: 2022-01-31 | DM24: 2023-12-31 | DN24: 2021-12-30 | DO24: 2022-01-31 | DP24: 2023-11-30 | DQ24: 2021-12-30 | DR24: 2022-01-31 | DS24: 2023-11-30 | DT24: 2021-12-30 | DU24: 2022-01-31 | DV24: 2023-11-30 | DW24: 2022-05-05 | DX24: 2022-05-19 | DY24: 2023-11-30 | DZ24: 2022-05-05 | EA24: 2022-05-19 | EB24: 2023-11-30 | EC24: 23 | ED24: 24 | EE24: 2020-12-25 | EF24: 2021-07-05 | EG24: 2022-04-30 | EH24: 2022-05-14 | EI24: 2023-11-30 | EJ24: 2022-05-15 | EK24: 2022-05-29 | EL24: 2023-11-30 | EM24: =(#REF!-#REF!)/30 ->  | EN24: 2022-05-15 | EO24: 2022-05-29 | EP24: 2023-11-30 | EQ24: 2022-05-15 | ER24: 2022-05-29 | ES24: 2023-11-30 | ET24: 2022-05-15 | EU24: 2022-05-29 | EV24: 2023-11-30 | EW24: 2022-05-15 | EX24: 2022-05-29 | EY24: 2023-11-30 | EZ24: 2022-05-15 | FA24: 2022-05-29 | FB24: 2023-11-30 | FC24: 2022-05-15 | FD24: 2022-05-30 | FE24: 2023-11-30 | FF24: 2022-07-30 | FG24: 2022-07-30 | FH24: 2023-11-30 | FI24: 2022-07-30 | FJ24: 2022-07-30 | FK24: 2023-11-30 | FL24: 2022-07-30 | FM24: 2022-07-30 | FN24: 2023-12-10 | FO24: 2022-07-30 | FP24: 2022-09-01 | FQ24: 2024-11-30 | FR24: 27 | FS24: 2022-07-30 | FT24: 2022-09-01 | FU24: 2024-11-30 | FV24: 2022-08-15 | FW24: 2022-08-29 | FX24: 2023-12-10 | FY24: 2022-08-15 | FZ24: 2022-08-29 | GA24: 2023-12-10 | GB24: 2022-08-15 | GC24: 2022-08-29 | GD24: 2023-12-10 | GE24: 2022-08-15 | GF24: 2022-08-29 | GG24: 2023-12-10 | GH24: 2022-08-15 | GI24: 2022-08-29 | GJ24: 2023-12-10 | GK24: 2022-08-31 | GL24: 2022-08-31 | GM24: 2023-12-10 | GN24: 2022-09-30 | GO24: 2022-09-30 | GP24: 2023-12-10 | GQ24: 2022-09-30 | GR24: 2022-09-30 | GS24: 2023-12-10 | GT24: 2022-09-30 | GU24: 2022-09-30 | GV24: 2023-12-10 | GW24: 2022-09-30 | GX24: 2022-09-30 | GY24: 2023-12-10 | GZ24: 2022-10-24 | HA24: 2022-10-24 | HB24: 2023-12-10 | HC24: 2022-10-24 | HD24: 2022-10-24 | HE24: 2023-12-10 | HF24: 2022-10-27 | HG24: 2022-10-27 | HH24: 2023-12-10 | HI24: 2022-11-10 | HJ24: 2022-11-10 | HK24: 2023-12-10 | HL24: 2022-11-10 | HM24: 2022-11-10 | HN24: 2023-12-10 | HP24: АБ-1 | HQ24: АБ-1 | HR24: АБСт | HT24: 2025-06-30 | HX24: ● | IA24: ● | IE24: ● | IG24: 0 | IH24: =IF(YEAR(#REF!)=HU$8,$J24,0) ->  | II24: =IF(AND(YEAR(#REF!)<=HU$8,YEAR(#REF!)>HU$8),$J24,0) ->  | IJ24: 5,286 | IQ24: 594 | IR24: 594 | IU24: ▪
A25: 32 | B25: 2.3.2 | C25: СД00.03.1.03.2 | D25: ЖК "Светлая Долина" ПК-3 ж/д 3-2 | E25: 7,460 | F25: Материал рулонный кровельный гидроизоляционный нижний слой | G25: основа: полиэстeр;температура гибкости на брусе R=25мм не менее -20; толщина 1м² не менее 2,8мм | H25: м2 | I25: =1243.267/580*L25 -> 854 | J25: 5,286 | K25: 4,887 | L25: 398 | N25: 99 | O25: 2 | P25: 11 (9) | Q25: 1 | R25: КПД, 1 Каркас | S25: Перепривязка | T25: 3,288 | U25: 2,584 | V25: 264 | W25: =SUM(IG25,#REF!,#REF!,#REF!,#REF!,#REF!,#REF!,#REF!) ->  | AC25: Прединвест | AE25: 2020-11-25 | AF25: 2020-12-25 | AG25: 2021-04-15 | AH25: 2021-04-30 | AI25: 2021-09-30 | AJ25: 2021-10-31 | AK25: 2022-01-31 | AN25: 2024-04-30 | AO25: 2024-10-31 | AP25: 2024-12-30 | AQ25: 2020-11-25 | AR25: 2020-12-25 | AS25: 2021-04-15 | AT25: 2021-07-05 | AU25: 2021-11-02 | AV25: 2021-03-31 | AW25: 2022-01-31 | AX25: 2022-03-31 | AY25: 2022-05-31 | AZ25: 2023-11-30 | BA25: 2024-01-31 | BB25: 2024-03-30 | BC25: 2020-11-25 | BD25: 2020-12-25 | BE25: 2021-04-15 | BF25: 2021-07-05 | BG25: 2021-11-30 | BH25: 2022-04-20 | BI25: 2022-05-30 | BJ25: 2022-04-30 | BK25: 2022-06-30 | BL25: 2023-10-30 | BM25: 2023-12-30 | BN25: 2024-06-30 | BO25: 2022-06-01 | BP25: 2024-06-30 | BQ25: 2022-06-01 | BR25: 2024-06-01 | BS25: 2022-06-01 | BT25: 2024-06-01 | BU25: 2022-06-01 | BV25: 2024-07-01 | BW25: 2021-12-30 | BX25: 2023-12-01 | BY25: 2021-12-02 | BZ25: 2023-12-01 | CA25: 2021-12-02 | CB25: 2023-12-01 | CC25: 2021-12-02 | CD25: 2023-12-01 | CE25: 2021-12-02 | CF25: 2023-12-01 | CG25: 2021-12-02 | CH25: 2023-12-01 | CI25: 2021-12-02 | CJ25: 2023-12-01 | CK25: 2021-12-02 | CL25: 2023-12-01 | CM25: 2021-12-02 | CN25: 2023-12-01 | CO25: 2021-12-02 | CP25: 2023-12-01 | CQ25: 2021-12-02 | CR25: 2023-12-01 | CS25: 2021-12-02 | CT25: 2023-12-01 | CU25: 2021-12-02 | CV25: 2023-12-01 | CW25: 2021-12-02 | CX25: 2023-12-01 | CY25: 2021-12-02 | CZ25: 2023-12-01 | DA25: 2021-12-02 | DB25: 2023-12-01 | DC25: 2021-12-30 | DD25: 2023-12-01 | DE25: 2021-12-02 | DF25: 2023-12-01 | DG25: 2021-12-30 | DH25: 2023-12-01 | DI25: 2021-12-30 | DJ25: 2023-12-01 | DK25: 2021-12-30 | DL25: 2022-01-31 | DM25: 2023-12-31 | DN25: 2021-12-30 | DO25: 2022-01-31 | DP25: 2023-11-30 | DQ25: 2021-12-30 | DR25: 2022-01-31 | DS25: 2023-11-30 | DT25: 2021-12-30 | DU25: 2022-01-31 | DV25: 2023-11-30 | DW25: 2022-05-05 | DX25: 2022-05-19 | DY25: 2023-11-30 | DZ25: 2022-05-05 | EA25: 2022-05-19 | EB25: 2023-11-30 | EC25: 23 | ED25: 24 | EE25: 2020-12-25 | EF25: 2021-07-05 | EG25: 2022-04-30 | EH25: 2022-05-14 | EI25: 2023-11-30 | EJ25: 2022-05-15 | EK25: 2022-05-29 | EL25: 2023-11-30 | EM25: =(#REF!-#REF!)/30 ->  | EN25: 2022-05-15 | EO25: 2022-05-29 | EP25: 2023-11-30 | EQ25: 2022-05-15 | ER25: 2022-05-29 | ES25: 2023-11-30 | ET25: 2022-05-15 | EU25: 2022-05-29 | EV25: 2023-11-30 | EW25: 2022-05-15 | EX25: 2022-05-29 | EY25: 2023-11-30 | EZ25: 2022-05-15 | FA25: 2022-05-29 | FB25: 2023-11-30 | FC25: 2022-05-15 | FD25: 2022-05-30 | FE25: 2023-11-30 | FF25: 2022-07-30 | FG25: 2022-07-30 | FH25: 2023-11-30 | FI25: 2022-07-30 | FJ25: 2022-07-30 | FK25: 2023-11-30 | FL25: 2022-07-30 | FM25: 2022-07-30 | FN25: 2023-12-10 | FO25: 2022-07-30 | FP25: 2022-09-01 | FQ25: 2024-11-30 | FR25: 27 | FS25: 2022-07-30 | FT25: 2022-09-01 | FU25: 2024-11-30 | FV25: 2022-08-15 | FW25: 2022-08-29 | FX25: 2023-12-10 | FY25: 2022-08-15 | FZ25: 2022-08-29 | GA25: 2023-12-10 | GB25: 2022-08-15 | GC25: 2022-08-29 | GD25: 2023-12-10 | GE25: 2022-08-15 | GF25: 2022-08-29 | GG25: 2023-12-10 | GH25: 2022-08-15 | GI25: 2022-08-29 | GJ25: 2023-12-10 | GK25: 2022-08-31 | GL25: 2022-08-31 | GM25: 2023-12-10 | GN25: 2022-09-30 | GO25: 2022-09-30 | GP25: 2023-12-10 | GQ25: 2022-09-30 | GR25: 2022-09-30 | GS25: 2023-12-10 | GT25: 2022-09-30 | GU25: 2022-09-30 | GV25: 2023-12-10 | GW25: 2022-09-30 | GX25: 2022-09-30 | GY25: 2023-12-10 | GZ25: 2022-10-24 | HA25: 2022-10-24 | HB25: 2023-12-10 | HC25: 2022-10-24 | HD25: 2022-10-24 | HE25: 2023-12-10 | HF25: 2022-10-27 | HG25: 2022-10-27 | HH25: 2023-12-10 | HI25: 2022-11-10 | HJ25: 2022-11-10 | HK25: 2023-12-10 | HL25: 2022-11-10 | HM25: 2022-11-10 | HN25: 2023-12-10 | HP25: АБ-1 | HQ25: АБ-1 | HR25: АБСт | HT25: 2025-06-30 | HX25: ● | IA25: ● | IE25: ● | IG25: 0 | IH25: =IF(YEAR(#REF!)=HU$8,$J25,0) ->  | II25: =IF(AND(YEAR(#REF!)<=HU$8,YEAR(#REF!)>HU$8),$J25,0) ->  | IJ25: 5,286 | IQ25: 427 | IR25: 427 | IU25: ▪
A26: 34 | B26: 2.3.4 | C26: СД00.03.1.03.3 | D26: ЖК "Светлая Долина" ПК-3 ж/д 3-3 | E26: 17,140 | F26: Плиты теплоизоляционные пенополистирольные ППС-25 150мм | H26: м3 | I26: =140.294/580*L26 -> 170 | J26: 12,418 | K26: 11,715 | L26: 704 | N26: 250 | O26: 2 | P26: 18-20 (16-18) | Q26: 1 | R26: КПД, 1 Каркас | S26: Перепривязка | T26: 7,104 | U26: 5,584 | V26: 500 | W26: =SUM(IG26,#REF!,#REF!,#REF!,#REF!,#REF!,#REF!,#REF!) ->  | AC26: Прединвест | AE26: 2020-11-25 | AF26: 2020-12-25 | AG26: 2021-04-15 | AH26: 2021-04-30 | AI26: 2021-09-30 | AJ26: 2021-10-31 | AK26: 2022-01-31 | AN26: 2024-04-30 | AO26: 2024-10-31 | AP26: 2024-12-30 | AQ26: 2020-11-25 | AR26: 2020-12-25 | AS26: 2021-04-15 | AT26: 2021-07-05 | AU26: 2021-11-04 | AV26: 2021-03-31 | AW26: 2022-01-31 | AX26: 2022-05-31 | AY26: 2022-07-31 | AZ26: 2023-11-30 | BA26: 2024-01-31 | BB26: 2024-03-30 | BC26: 2020-11-25 | BD26: 2020-12-25 | BE26: 2021-04-15 | BF26: 2021-07-05 | BG26: 2021-11-30 | BH26: 2022-04-20 | BI26: 2022-05-30 | BJ26: 2022-04-30 | BK26: 2022-06-30 | BL26: 2023-10-30 | BM26: 2023-12-30 | BN26: 2024-06-30 | BO26: 2022-06-01 | BP26: 2024-06-30 | BQ26: 2022-06-01 | BR26: 2024-06-01 | BS26: 2022-06-01 | BT26: 2024-06-01 | BU26: 2022-06-01 | BV26: 2024-07-01 | BW26: 2021-12-30 | BX26: 2023-12-02 | BY26: 2021-12-03 | BZ26: 2023-12-02 | CA26: 2021-12-03 | CB26: 2023-12-02 | CC26: 2021-12-03 | CD26: 2023-12-02 | CE26: 2021-12-03 | CF26: 2023-12-02 | CG26: 2021-12-03 | CH26: 2023-12-02 | CI26: 2021-12-03 | CJ26: 2023-12-02 | CK26: 2021-12-03 | CL26: 2023-12-02 | CM26: 2021-12-03 | CN26: 2023-12-02 | CO26: 2021-12-03 | CP26: 2023-12-02 | CQ26: 2021-12-03 | CR26: 2023-12-02 | CS26: 2021-12-03 | CT26: 2023-12-02 | CU26: 2021-12-03 | CV26: 2023-12-02 | CW26: 2021-12-03 | CX26: 2023-12-02 | CY26: 2021-12-03 | CZ26: 2023-12-02 | DA26: 2021-12-03 | DB26: 2023-12-02 | DC26: 2021-12-30 | DD26: 2023-12-02 | DE26: 2021-12-03 | DF26: 2023-12-02 | DG26: 2021-12-30 | DH26: 2023-12-02 | DI26: 2021-12-30 | DJ26: 2023-12-02 | DK26: 2021-12-30 | DL26: 2022-02-02 | DM26: 2023-12-31 | DN26: 2021-12-30 | DO26: 2022-02-02 | DP26: 2023-11-30 | DQ26: 2021-12-30 | DR26: 2022-01-31 | DS26: 2023-11-30 | DT26: 2021-12-30 | DU26: 2022-01-31 | DV26: 2023-11-30 | DW26: 2022-05-05 | DX26: 2022-05-19 | DY26: 2023-11-30 | DZ26: 2022-05-05 | EA26: 2022-05-19 | EB26: 2023-11-30 | EC26: 23 | ED26: 24 | EE26: 2020-12-25 | EF26: 2021-07-05 | EG26: 2022-04-30 | EH26: 2022-05-14 | EI26: 2023-11-30 | EJ26: 2022-05-15 | EK26: 2022-05-29 | EL26: 2023-11-30 | EM26: =(#REF!-#REF!)/30 ->  | EN26: 2022-05-15 | EO26: 2022-05-29 | EP26: 2023-11-30 | EQ26: 2022-05-15 | ER26: 2022-05-29 | ES26: 2023-11-30 | ET26: 2022-05-15 | EU26: 2022-05-29 | EV26: 2023-11-30 | EW26: 2022-05-15 | EX26: 2022-05-29 | EY26: 2023-11-30 | EZ26: 2022-05-15 | FA26: 2022-05-29 | FB26: 2023-11-30 | FC26: 2022-05-15 | FD26: 2022-05-30 | FE26: 2023-11-30 | FF26: 2022-07-30 | FG26: 2022-07-30 | FH26: 2023-11-30 | FI26: 2022-07-30 | FJ26: 2022-07-30 | FK26: 2023-11-30 | FL26: 2022-07-30 | FM26: 2022-07-30 | FN26: 2023-12-10 | FO26: 2022-07-30 | FP26: 2022-09-01 | FQ26: 2024-11-30 | FR26: 27 | FS26: 2022-07-30 | FT26: 2022-09-01 | FU26: 2024-11-30 | FV26: 2022-08-15 | FW26: 2022-08-29 | FX26: 2023-12-10 | FY26: 2022-08-15 | FZ26: 2022-08-29 | GA26: 2023-12-10 | GB26: 2022-08-15 | GC26: 2022-08-29 | GD26: 2023-12-10 | GE26: 2022-08-15 | GF26: 2022-08-29 | GG26: 2023-12-10 | GH26: 2022-08-15 | GI26: 2022-08-29 | GJ26: 2023-12-10 | GK26: 2022-08-31 | GL26: 2022-08-31 | GM26: 2023-12-10 | GN26: 2022-09-30 | GO26: 2022-09-30 | GP26: 2023-12-10 | GQ26: 2022-09-30 | GR26: 2022-09-30 | GS26: 2023-12-10 | GT26: 2022-09-30 | GU26: 2022-09-30 | GV26: 2023-12-10 | GW26: 2022-09-30 | GX26: 2022-09-30 | GY26: 2023-12-10 | GZ26: 2022-10-24 | HA26: 2022-10-24 | HB26: 2023-12-10 | HC26: 2022-10-24 | HD26: 2022-10-24 | HE26: 2023-12-10 | HF26: 2022-10-27 | HG26: 2022-10-27 | HH26: 2023-12-10 | HI26: 2022-11-10 | HJ26: 2022-11-10 | HK26: 2023-12-10 | HL26: 2022-11-10 | HM26: 2022-11-10 | HN26: 2023-12-10 | HP26: АБ-1 | HQ26: АБ-1 | HR26: АБСт | HT26: 2025-06-30 | HX26: ● | IA26: ● | IE26: ● | IG26: 0 | IH26: =IF(YEAR(#REF!)=HU$8,$J26,0) ->  | II26: =IF(AND(YEAR(#REF!)<=HU$8,YEAR(#REF!)>HU$8),$J26,0) ->  | IJ26: 12,418 | IS26: =I26/2 -> 85 | IT26: =I26/2 -> 85 | IU26: ▪
A27: 34 | B27: 2.3.4 | C27: СД00.03.1.03.3 | D27: ЖК "Светлая Долина" ПК-3 ж/д 3-3 | E27: 17,140 | F27: Керамзит М600 | H27: м3 | I27: =142.129/580*L27 -> 172 | J27: 12,418 | K27: 11,715 | L27: 704 | N27: 250 | O27: 2 | P27: 18-20 (16-18) | Q27: 1 | R27: КПД, 1 Каркас | S27: Перепривязка | T27: 7,104 | U27: 5,584 | V27: 500 | W27: =SUM(IG27,#REF!,#REF!,#REF!,#REF!,#REF!,#REF!,#REF!) ->  | AC27: Прединвест | AE27: 2020-11-25 | AF27: 2020-12-25 | AG27: 2021-04-15 | AH27: 2021-04-30 | AI27: 2021-09-30 | AJ27: 2021-10-31 | AK27: 2022-01-31 | AN27: 2024-04-30 | AO27: 2024-10-31 | AP27: 2024-12-30 | AQ27: 2020-11-25 | AR27: 2020-12-25 | AS27: 2021-04-15 | AT27: 2021-07-05 | AU27: 2021-11-04 | AV27: 2021-03-31 | AW27: 2022-01-31 | AX27: 2022-05-31 | AY27: 2022-07-31 | AZ27: 2023-11-30 | BA27: 2024-01-31 | BB27: 2024-03-30 | BC27: 2020-11-25 | BD27: 2020-12-25 | BE27: 2021-04-15 | BF27: 2021-07-05 | BG27: 2021-11-30 | BH27: 2022-04-20 | BI27: 2022-05-30 | BJ27: 2022-04-30 | BK27: 2022-06-30 | BL27: 2023-10-30 | BM27: 2023-12-30 | BN27: 2024-06-30 | BO27: 2022-06-01 | BP27: 2024-06-30 | BQ27: 2022-06-01 | BR27: 2024-06-01 | BS27: 2022-06-01 | BT27: 2024-06-01 | BU27: 2022-06-01 | BV27: 2024-07-01 | BW27: 2021-12-30 | BX27: 2023-12-02 | BY27: 2021-12-03 | BZ27: 2023-12-02 | CA27: 2021-12-03 | CB27: 2023-12-02 | CC27: 2021-12-03 | CD27: 2023-12-02 | CE27: 2021-12-03 | CF27: 2023-12-02 | CG27: 2021-12-03 | CH27: 2023-12-02 | CI27: 2021-12-03 | CJ27: 2023-12-02 | CK27: 2021-12-03 | CL27: 2023-12-02 | CM27: 2021-12-03 | CN27: 2023-12-02 | CO27: 2021-12-03 | CP27: 2023-12-02 | CQ27: 2021-12-03 | CR27: 2023-12-02 | CS27: 2021-12-03 | CT27: 2023-12-02 | CU27: 2021-12-03 | CV27: 2023-12-02 | CW27: 2021-12-03 | CX27: 2023-12-02 | CY27: 2021-12-03 | CZ27: 2023-12-02 | DA27: 2021-12-03 | DB27: 2023-12-02 | DC27: 2021-12-30 | DD27: 2023-12-02 | DE27: 2021-12-03 | DF27: 2023-12-02 | DG27: 2021-12-30 | DH27: 2023-12-02 | DI27: 2021-12-30 | DJ27: 2023-12-02 | DK27: 2021-12-30 | DL27: 2022-02-02 | DM27: 2023-12-31 | DN27: 2021-12-30 | DO27: 2022-02-02 | DP27: 2023-11-30 | DQ27: 2021-12-30 | DR27: 2022-01-31 | DS27: 2023-11-30 | DT27: 2021-12-30 | DU27: 2022-01-31 | DV27: 2023-11-30 | DW27: 2022-05-05 | DX27: 2022-05-19 | DY27: 2023-11-30 | DZ27: 2022-05-05 | EA27: 2022-05-19 | EB27: 2023-11-30 | EC27: 23 | ED27: 24 | EE27: 2020-12-25 | EF27: 2021-07-05 | EG27: 2022-04-30 | EH27: 2022-05-14 | EI27: 2023-11-30 | EJ27: 2022-05-15 | EK27: 2022-05-29 | EL27: 2023-11-30 | EM27: =(#REF!-#REF!)/30 ->  | EN27: 2022-05-15 | EO27: 2022-05-29 | EP27: 2023-11-30 | EQ27: 2022-05-15 | ER27: 2022-05-29 | ES27: 2023-11-30 | ET27: 2022-05-15 | EU27: 2022-05-29 | EV27: 2023-11-30 | EW27: 2022-05-15 | EX27: 2022-05-29 | EY27: 2023-11-30 | EZ27: 2022-05-15 | FA27: 2022-05-29 | FB27: 2023-11-30 | FC27: 2022-05-15 | FD27: 2022-05-30 | FE27: 2023-11-30 | FF27: 2022-07-30 | FG27: 2022-07-30 | FH27: 2023-11-30 | FI27: 2022-07-30 | FJ27: 2022-07-30 | FK27: 2023-11-30 | FL27: 2022-07-30 | FM27: 2022-07-30 | FN27: 2023-12-10 | FO27: 2022-07-30 | FP27: 2022-09-01 | FQ27: 2024-11-30 | FR27: 27 | FS27: 2022-07-30 | FT27: 2022-09-01 | FU27: 2024-11-30 | FV27: 2022-08-15 | FW27: 2022-08-29 | FX27: 2023-12-10 | FY27: 2022-08-15 | FZ27: 2022-08-29 | GA27: 2023-12-10 | GB27: 2022-08-15 | GC27: 2022-08-29 | GD27: 2023-12-10 | GE27: 2022-08-15 | GF27: 2022-08-29 | GG27: 2023-12-10 | GH27: 2022-08-15 | GI27: 2022-08-29 | GJ27: 2023-12-10 | GK27: 2022-08-31 | GL27: 2022-08-31 | GM27: 2023-12-10 | GN27: 2022-09-30 | GO27: 2022-09-30 | GP27: 2023-12-10 | GQ27: 2022-09-30 | GR27: 2022-09-30 | GS27: 2023-12-10 | GT27: 2022-09-30 | GU27: 2022-09-30 | GV27: 2023-12-10 | GW27: 2022-09-30 | GX27: 2022-09-30 | GY27: 2023-12-10 | GZ27: 2022-10-24 | HA27: 2022-10-24 | HB27: 2023-12-10 | HC27: 2022-10-24 | HD27: 2022-10-24 | HE27: 2023-12-10 | HF27: 2022-10-27 | HG27: 2022-10-27 | HH27: 2023-12-10 | HI27: 2022-11-10 | HJ27: 2022-11-10 | HK27: 2023-12-10 | HL27: 2022-11-10 | HM27: 2022-11-10 | HN27: 2023-12-10 | HP27: АБ-1 | HQ27: АБ-1 | HR27: АБСт | HT27: 2025-06-30 | HX27: ● | IA27: ● | IE27: ● | IG27: 0 | IH27: =IF(YEAR(#REF!)=HU$8,$J27,0) ->  | II27: =IF(AND(YEAR(#REF!)<=HU$8,YEAR(#REF!)>HU$8),$J27,0) ->  | IJ27: 12,418 | IS27: =I27/2 -> 86 | IT27: =I27/2 -> 86 | IU27: ▪
A28: 34 | B28: 2.3.4 | C28: СД00.03.1.03.3 | D28: ЖК "Светлая Долина" ПК-3 ж/д 3-3 | E28: 17,140 | F28: Плиты теплоизоляционные пенополистирольные экструдированные 100мм | H28: м3 | I28: =14.146/580*L28 -> 17 | J28: 12,418 | K28: 11,715 | L28: 704 | N28: 250 | O28: 2 | P28: 18-20 (16-18) | Q28: 1 | R28: КПД, 1 Каркас | S28: Перепривязка | T28: 7,104 | U28: 5,584 | V28: 500 | W28: =SUM(IG28,#REF!,#REF!,#REF!,#REF!,#REF!,#REF!,#REF!) ->  | AC28: Прединвест | AE28: 2020-11-25 | AF28: 2020-12-25 | AG28: 2021-04-15 | AH28: 2021-04-30 | AI28: 2021-09-30 | AJ28: 2021-10-31 | AK28: 2022-01-31 | AN28: 2024-04-30 | AO28: 2024-10-31 | AP28: 2024-12-30 | AQ28: 2020-11-25 | AR28: 2020-12-25 | AS28: 2021-04-15 | AT28: 2021-07-05 | AU28: 2021-11-04 | AV28: 2021-03-31 | AW28: 2022-01-31 | AX28: 2022-05-31 | AY28: 2022-07-31 | AZ28: 2023-11-30 | BA28: 2024-01-31 | BB28: 2024-03-30 | BC28: 2020-11-25 | BD28: 2020-12-25 | BE28: 2021-04-15 | BF28: 2021-07-05 | BG28: 2021-11-30 | BH28: 2022-04-20 | BI28: 2022-05-30 | BJ28: 2022-04-30 | BK28: 2022-06-30 | BL28: 2023-10-30 | BM28: 2023-12-30 | BN28: 2024-06-30 | BO28: 2022-06-01 | BP28: 2024-06-30 | BQ28: 2022-06-01 | BR28: 2024-06-01 | BS28: 2022-06-01 | BT28: 2024-06-01 | BU28: 2022-06-01 | BV28: 2024-07-01 | BW28: 2021-12-30 | BX28: 2023-12-02 | BY28: 2021-12-03 | BZ28: 2023-12-02 | CA28: 2021-12-03 | CB28: 2023-12-02 | CC28: 2021-12-03 | CD28: 2023-12-02 | CE28: 2021-12-03 | CF28: 2023-12-02 | CG28: 2021-12-03 | CH28: 2023-12-02 | CI28: 2021-12-03 | CJ28: 2023-12-02 | CK28: 2021-12-03 | CL28: 2023-12-02 | CM28: 2021-12-03 | CN28: 2023-12-02 | CO28: 2021-12-03 | CP28: 2023-12-02 | CQ28: 2021-12-03 | CR28: 2023-12-02 | CS28: 2021-12-03 | CT28: 2023-12-02 | CU28: 2021-12-03 | CV28: 2023-12-02 | CW28: 2021-12-03 | CX28: 2023-12-02 | CY28: 2021-12-03 | CZ28: 2023-12-02 | DA28: 2021-12-03 | DB28: 2023-12-02 | DC28: 2021-12-30 | DD28: 2023-12-02 | DE28: 2021-12-03 | DF28: 2023-12-02 | DG28: 2021-12-30 | DH28: 2023-12-02 | DI28: 2021-12-30 | DJ28: 2023-12-02 | DK28: 2021-12-30 | DL28: 2022-02-02 | DM28: 2023-12-31 | DN28: 2021-12-30 | DO28: 2022-02-02 | DP28: 2023-11-30 | DQ28: 2021-12-30 | DR28: 2022-01-31 | DS28: 2023-11-30 | DT28: 2021-12-30 | DU28: 2022-01-31 | DV28: 2023-11-30 | DW28: 2022-05-05 | DX28: 2022-05-19 | DY28: 2023-11-30 | DZ28: 2022-05-05 | EA28: 2022-05-19 | EB28: 2023-11-30 | EC28: 23 | ED28: 24 | EE28: 2020-12-25 | EF28: 2021-07-05 | EG28: 2022-04-30 | EH28: 2022-05-14 | EI28: 2023-11-30 | EJ28: 2022-05-15 | EK28: 2022-05-29 | EL28: 2023-11-30 | EM28: =(#REF!-#REF!)/30 ->  | EN28: 2022-05-15 | EO28: 2022-05-29 | EP28: 2023-11-30 | EQ28: 2022-05-15 | ER28: 2022-05-29 | ES28: 2023-11-30 | ET28: 2022-05-15 | EU28: 2022-05-29 | EV28: 2023-11-30 | EW28: 2022-05-15 | EX28: 2022-05-29 | EY28: 2023-11-30 | EZ28: 2022-05-15 | FA28: 2022-05-29 | FB28: 2023-11-30 | FC28: 2022-05-15 | FD28: 2022-05-30 | FE28: 2023-11-30 | FF28: 2022-07-30 | FG28: 2022-07-30 | FH28: 2023-11-30 | FI28: 2022-07-30 | FJ28: 2022-07-30 | FK28: 2023-11-30 | FL28: 2022-07-30 | FM28: 2022-07-30 | FN28: 2023-12-10 | FO28: 2022-07-30 | FP28: 2022-09-01 | FQ28: 2024-11-30 | FR28: 27 | FS28: 2022-07-30 | FT28: 2022-09-01 | FU28: 2024-11-30 | FV28: 2022-08-15 | FW28: 2022-08-29 | FX28: 2023-12-10 | FY28: 2022-08-15 | FZ28: 2022-08-29 | GA28: 2023-12-10 | GB28: 2022-08-15 | GC28: 2022-08-29 | GD28: 2023-12-10 | GE28: 2022-08-15 | GF28: 2022-08-29 | GG28: 2023-12-10 | GH28: 2022-08-15 | GI28: 2022-08-29 | GJ28: 2023-12-10 | GK28: 2022-08-31 | GL28: 2022-08-31 | GM28: 2023-12-10 | GN28: 2022-09-30 | GO28: 2022-09-30 | GP28: 2023-12-10 | GQ28: 2022-09-30 | GR28: 2022-09-30 | GS28: 2023-12-10 | GT28: 2022-09-30 | GU28: 2022-09-30 | GV28: 2023-12-10 | GW28: 2022-09-30 | GX28: 2022-09-30 | GY28: 2023-12-10 | GZ28: 2022-10-24 | HA28: 2022-10-24 | HB28: 2023-12-10 | HC28: 2022-10-24 | HD28: 2022-10-24 | HE28: 2023-12-10 | HF28: 2022-10-27 | HG28: 2022-10-27 | HH28: 2023-12-10 | HI28: 2022-11-10 | HJ28: 2022-11-10 | HK28: 2023-12-10 | HL28: 2022-11-10 | HM28: 2022-11-10 | HN28: 2023-12-10 | HP28: АБ-1 | HQ28: АБ-1 | HR28: АБСт | HT28: 2025-06-30 | HX28: ● | IA28: ● | IE28: ● | IG28: 0 | IH28: =IF(YEAR(#REF!)=HU$8,$J28,0) ->  | II28: =IF(AND(YEAR(#REF!)<=HU$8,YEAR(#REF!)>HU$8),$J28,0) ->  | IJ28: 12,418 | IS28: 9 | IT28: 9 | IU28: ▪
A29: 34 | B29: 2.3.4 | C29: СД00.03.1.03.3 | D29: ЖК "Светлая Долина" ПК-3 ж/д 3-3 | E29: 17,140 | F29: Плиты теплоизоляционные пенополистирольные экструдированные 50мм | H29: м3 | I29: =3.939/580*L29 -> 5 | J29: 12,418 | K29: 11,715 | L29: 704 | N29: 250 | O29: 2 | P29: 18-20 (16-18) | Q29: 1 | R29: КПД, 1 Каркас | S29: Перепривязка | T29: 7,104 | U29: 5,584 | V29: 500 | W29: =SUM(IG29,#REF!,#REF!,#REF!,#REF!,#REF!,#REF!,#REF!) ->  | AC29: Прединвест | AE29: 2020-11-25 | AF29: 2020-12-25 | AG29: 2021-04-15 | AH29: 2021-04-30 | AI29: 2021-09-30 | AJ29: 2021-10-31 | AK29: 2022-01-31 | AN29: 2024-04-30 | AO29: 2024-10-31 | AP29: 2024-12-30 | AQ29: 2020-11-25 | AR29: 2020-12-25 | AS29: 2021-04-15 | AT29: 2021-07-05 | AU29: 2021-11-04 | AV29: 2021-03-31 | AW29: 2022-01-31 | AX29: 2022-05-31 | AY29: 2022-07-31 | AZ29: 2023-11-30 | BA29: 2024-01-31 | BB29: 2024-03-30 | BC29: 2020-11-25 | BD29: 2020-12-25 | BE29: 2021-04-15 | BF29: 2021-07-05 | BG29: 2021-11-30 | BH29: 2022-04-20 | BI29: 2022-05-30 | BJ29: 2022-04-30 | BK29: 2022-06-30 | BL29: 2023-10-30 | BM29: 2023-12-30 | BN29: 2024-06-30 | BO29: 2022-06-01 | BP29: 2024-06-30 | BQ29: 2022-06-01 | BR29: 2024-06-01 | BS29: 2022-06-01 | BT29: 2024-06-01 | BU29: 2022-06-01 | BV29: 2024-07-01 | BW29: 2021-12-30 | BX29: 2023-12-02 | BY29: 2021-12-03 | BZ29: 2023-12-02 | CA29: 2021-12-03 | CB29: 2023-12-02 | CC29: 2021-12-03 | CD29: 2023-12-02 | CE29: 2021-12-03 | CF29: 2023-12-02 | CG29: 2021-12-03 | CH29: 2023-12-02 | CI29: 2021-12-03 | CJ29: 2023-12-02 | CK29: 2021-12-03 | CL29: 2023-12-02 | CM29: 2021-12-03 | CN29: 2023-12-02 | CO29: 2021-12-03 | CP29: 2023-12-02 | CQ29: 2021-12-03 | CR29: 2023-12-02 | CS29: 2021-12-03 | CT29: 2023-12-02 | CU29: 2021-12-03 | CV29: 2023-12-02 | CW29: 2021-12-03 | CX29: 2023-12-02 | CY29: 2021-12-03 | CZ29: 2023-12-02 | DA29: 2021-12-03 | DB29: 2023-12-02 | DC29: 2021-12-30 | DD29: 2023-12-02 | DE29: 2021-12-03 | DF29: 2023-12-02 | DG29: 2021-12-30 | DH29: 2023-12-02 | DI29: 2021-12-30 | DJ29: 2023-12-02 | DK29: 2021-12-30 | DL29: 2022-02-02 | DM29: 2023-12-31 | DN29: 2021-12-30 | DO29: 2022-02-02 | DP29: 2023-11-30 | DQ29: 2021-12-30 | DR29: 2022-01-31 | DS29: 2023-11-30 | DT29: 2021-12-30 | DU29: 2022-01-31 | DV29: 2023-11-30 | DW29: 2022-05-05 | DX29: 2022-05-19 | DY29: 2023-11-30 | DZ29: 2022-05-05 | EA29: 2022-05-19 | EB29: 2023-11-30 | EC29: 23 | ED29: 24 | EE29: 2020-12-25 | EF29: 2021-07-05 | EG29: 2022-04-30 | EH29: 2022-05-14 | EI29: 2023-11-30 | EJ29: 2022-05-15 | EK29: 2022-05-29 | EL29: 2023-11-30 | EM29: =(#REF!-#REF!)/30 ->  | EN29: 2022-05-15 | EO29: 2022-05-29 | EP29: 2023-11-30 | EQ29: 2022-05-15 | ER29: 2022-05-29 | ES29: 2023-11-30 | ET29: 2022-05-15 | EU29: 2022-05-29 | EV29: 2023-11-30 | EW29: 2022-05-15 | EX29: 2022-05-29 | EY29: 2023-11-30 | EZ29: 2022-05-15 | FA29: 2022-05-29 | FB29: 2023-11-30 | FC29: 2022-05-15 | FD29: 2022-05-30 | FE29: 2023-11-30 | FF29: 2022-07-30 | FG29: 2022-07-30 | FH29: 2023-11-30 | FI29: 2022-07-30 | FJ29: 2022-07-30 | FK29: 2023-11-30 | FL29: 2022-07-30 | FM29: 2022-07-30 | FN29: 2023-12-10 | FO29: 2022-07-30 | FP29: 2022-09-01 | FQ29: 2024-11-30 | FR29: 27 | FS29: 2022-07-30 | FT29: 2022-09-01 | FU29: 2024-11-30 | FV29: 2022-08-15 | FW29: 2022-08-29 | FX29: 2023-12-10 | FY29: 2022-08-15 | FZ29: 2022-08-29 | GA29: 2023-12-10 | GB29: 2022-08-15 | GC29: 2022-08-29 | GD29: 2023-12-10 | GE29: 2022-08-15 | GF29: 2022-08-29 | GG29: 2023-12-10 | GH29: 2022-08-15 | GI29: 2022-08-29 | GJ29: 2023-12-10 | GK29: 2022-08-31 | GL29: 2022-08-31 | GM29: 2023-12-10 | GN29: 2022-09-30 | GO29: 2022-09-30 | GP29: 2023-12-10 | GQ29: 2022-09-30 | GR29: 2022-09-30 | GS29: 2023-12-10 | GT29: 2022-09-30 | GU29: 2022-09-30 | GV29: 2023-12-10 | GW29: 2022-09-30 | GX29: 2022-09-30 | GY29: 2023-12-10 | GZ29: 2022-10-24 | HA29: 2022-10-24 | HB29: 2023-12-10 | HC29: 2022-10-24 | HD29: 2022-10-24 | HE29: 2023-12-10 | HF29: 2022-10-27 | HG29: 2022-10-27 | HH29: 2023-12-10 | HI29: 2022-11-10 | HJ29: 2022-11-10 | HK29: 2023-12-10 | HL29: 2022-11-10 | HM29: 2022-11-10 | HN29: 2023-12-10 | HP29: АБ-1 | HQ29: АБ-1 | HR29: АБСт | HT29: 2025-06-30 | HX29: ● | IA29: ● | IE29: ● | IG29: 0 | IH29: =IF(YEAR(#REF!)=HU$8,$J29,0) ->  | II29: =IF(AND(YEAR(#REF!)<=HU$8,YEAR(#REF!)>HU$8),$J29,0) ->  | IJ29: 12,418 | IS29: 2 | IT29: 2 | IU29: ▪
A30: 34 | B30: 2.3.4 | C30: СД00.03.1.03.3 | D30: ЖК "Светлая Долина" ПК-3 ж/д 3-3 | E30: 17,140 | F30: Материал рулонный кровельный гидроизоляционный верхний слой | G30: основа: полиэстeр;температура гибкости на брусе R=25мм не менее -20; толщина 1м² не менее 3,8мм | H30: м2 | I30: =1730.022/580*L30 -> 2,099 | J30: 12,418 | K30: 11,715 | L30: 704 | N30: 250 | O30: 2 | P30: 18-20 (16-18) | Q30: 1 | R30: КПД, 1 Каркас | S30: Перепривязка | T30: 7,104 | U30: 5,584 | V30: 500 | W30: =SUM(IG30,#REF!,#REF!,#REF!,#REF!,#REF!,#REF!,#REF!) ->  | AC30: Прединвест | AE30: 2020-11-25 | AF30: 2020-12-25 | AG30: 2021-04-15 | AH30: 2021-04-30 | AI30: 2021-09-30 | AJ30: 2021-10-31 | AK30: 2022-01-31 | AN30: 2024-04-30 | AO30: 2024-10-31 | AP30: 2024-12-30 | AQ30: 2020-11-25 | AR30: 2020-12-25 | AS30: 2021-04-15 | AT30: 2021-07-05 | AU30: 2021-11-04 | AV30: 2021-03-31 | AW30: 2022-01-31 | AX30: 2022-05-31 | AY30: 2022-07-31 | AZ30: 2023-11-30 | BA30: 2024-01-31 | BB30: 2024-03-30 | BC30: 2020-11-25 | BD30: 2020-12-25 | BE30: 2021-04-15 | BF30: 2021-07-05 | BG30: 2021-11-30 | BH30: 2022-04-20 | BI30: 2022-05-30 | BJ30: 2022-04-30 | BK30: 2022-06-30 | BL30: 2023-10-30 | BM30: 2023-12-30 | BN30: 2024-06-30 | BO30: 2022-06-01 | BP30: 2024-06-30 | BQ30: 2022-06-01 | BR30: 2024-06-01 | BS30: 2022-06-01 | BT30: 2024-06-01 | BU30: 2022-06-01 | BV30: 2024-07-01 | BW30: 2021-12-30 | BX30: 2023-12-02 | BY30: 2021-12-03 | BZ30: 2023-12-02 | CA30: 2021-12-03 | CB30: 2023-12-02 | CC30: 2021-12-03 | CD30: 2023-12-02 | CE30: 2021-12-03 | CF30: 2023-12-02 | CG30: 2021-12-03 | CH30: 2023-12-02 | CI30: 2021-12-03 | CJ30: 2023-12-02 | CK30: 2021-12-03 | CL30: 2023-12-02 | CM30: 2021-12-03 | CN30: 2023-12-02 | CO30: 2021-12-03 | CP30: 2023-12-02 | CQ30: 2021-12-03 | CR30: 2023-12-02 | CS30: 2021-12-03 | CT30: 2023-12-02 | CU30: 2021-12-03 | CV30: 2023-12-02 | CW30: 2021-12-03 | CX30: 2023-12-02 | CY30: 2021-12-03 | CZ30: 2023-12-02 | DA30: 2021-12-03 | DB30: 2023-12-02 | DC30: 2021-12-30 | DD30: 2023-12-02 | DE30: 2021-12-03 | DF30: 2023-12-02 | DG30: 2021-12-30 | DH30: 2023-12-02 | DI30: 2021-12-30 | DJ30: 2023-12-02 | DK30: 2021-12-30 | DL30: 2022-02-02 | DM30: 2023-12-31 | DN30: 2021-12-30 | DO30: 2022-02-02 | DP30: 2023-11-30 | DQ30: 2021-12-30 | DR30: 2022-01-31 | DS30: 2023-11-30 | DT30: 2021-12-30 | DU30: 2022-01-31 | DV30: 2023-11-30 | DW30: 2022-05-05 | DX30: 2022-05-19 | DY30: 2023-11-30 | DZ30: 2022-05-05 | EA30: 2022-05-19 | EB30: 2023-11-30 | EC30: 23 | ED30: 24 | EE30: 2020-12-25 | EF30: 2021-07-05 | EG30: 2022-04-30 | EH30: 2022-05-14 | EI30: 2023-11-30 | EJ30: 2022-05-15 | EK30: 2022-05-29 | EL30: 2023-11-30 | EM30: =(#REF!-#REF!)/30 ->  | EN30: 2022-05-15 | EO30: 2022-05-29 | EP30: 2023-11-30 | EQ30: 2022-05-15 | ER30: 2022-05-29 | ES30: 2023-11-30 | ET30: 2022-05-15 | EU30: 2022-05-29 | EV30: 2023-11-30 | EW30: 2022-05-15 | EX30: 2022-05-29 | EY30: 2023-11-30 | EZ30: 2022-05-15 | FA30: 2022-05-29 | FB30: 2023-11-30 | FC30: 2022-05-15 | FD30: 2022-05-30 | FE30: 2023-11-30 | FF30: 2022-07-30 | FG30: 2022-07-30 | FH30: 2023-11-30 | FI30: 2022-07-30 | FJ30: 2022-07-30 | FK30: 2023-11-30 | FL30: 2022-07-30 | FM30: 2022-07-30 | FN30: 2023-12-10 | FO30: 2022-07-30 | FP30: 2022-09-01 | FQ30: 2024-11-30 | FR30: 27 | FS30: 2022-07-30 | FT30: 2022-09-01 | FU30: 2024-11-30 | FV30: 2022-08-15 | FW30: 2022-08-29 | FX30: 2023-12-10 | FY30: 2022-08-15 | FZ30: 2022-08-29 | GA30: 2023-12-10 | GB30: 2022-08-15 | GC30: 2022-08-29 | GD30: 2023-12-10 | GE30: 2022-08-15 | GF30: 2022-08-29 | GG30: 2023-12-10 | GH30: 2022-08-15 | GI30: 2022-08-29 | GJ30: 2023-12-10 | GK30: 2022-08-31 | GL30: 2022-08-31 | GM30: 2023-12-10 | GN30: 2022-09-30 | GO30: 2022-09-30 | GP30: 2023-12-10 | GQ30: 2022-09-30 | GR30: 2022-09-30 | GS30: 2023-12-10 | GT30: 2022-09-30 | GU30: 2022-09-30 | GV30: 2023-12-10 | GW30: 2022-09-30 | GX30: 2022-09-30 | GY30: 2023-12-10 | GZ30: 2022-10-24 | HA30: 2022-10-24 | HB30: 2023-12-10 | HC30: 2022-10-24 | HD30: 2022-10-24 | HE30: 2023-12-10 | HF30: 2022-10-27 | HG30: 2022-10-27 | HH30: 2023-12-10 | HI30: 2022-11-10 | HJ30: 2022-11-10 | HK30: 2023-12-10 | HL30: 2022-11-10 | HM30: 2022-11-10 | HN30: 2023-12-10 | HP30: АБ-1 | HQ30: АБ-1 | HR30: АБСт | HT30: 2025-06-30 | HX30: ● | IA30: ● | IE30: ● | IG30: 0 | IH30: =IF(YEAR(#REF!)=HU$8,$J30,0) ->  | II30: =IF(AND(YEAR(#REF!)<=HU$8,YEAR(#REF!)>HU$8),$J30,0) ->  | IJ30: 12,418 | IS30: 1,049 | IT30: 1,049 | IU30: ▪
A31: 34 | B31: 2.3.4 | C31: СД00.03.1.03.3 | D31: ЖК "Светлая Долина" ПК-3 ж/д 3-3 | E31: 17,140 | F31: Материал рулонный кровельный гидроизоляционный нижний слой | G31: основа: полиэстeр;температура гибкости на брусе R=25мм не менее -20; толщина 1м² не менее 2,8мм | H31: м2 | I31: =1243.267/580*L31 -> 1,508 | J31: 12,418 | K31: 11,715 | L31: 704 | N31: 250 | O31: 2 | P31: 18-20 (16-18) | Q31: 1 | R31: КПД, 1 Каркас | S31: Перепривязка | T31: 7,104 | U31: 5,584 | V31: 500 | W31: =SUM(IG31,#REF!,#REF!,#REF!,#REF!,#REF!,#REF!,#REF!) ->  | AC31: Прединвест | AE31: 2020-11-25 | AF31: 2020-12-25 | AG31: 2021-04-15 | AH31: 2021-04-30 | AI31: 2021-09-30 | AJ31: 2021-10-31 | AK31: 2022-01-31 | AN31: 2024-04-30 | AO31: 2024-10-31 | AP31: 2024-12-30 | AQ31: 2020-11-25 | AR31: 2020-12-25 | AS31: 2021-04-15 | AT31: 2021-07-05 | AU31: 2021-11-04 | AV31: 2021-03-31 | AW31: 2022-01-31 | AX31: 2022-05-31 | AY31: 2022-07-31 | AZ31: 2023-11-30 | BA31: 2024-01-31 | BB31: 2024-03-30 | BC31: 2020-11-25 | BD31: 2020-12-25 | BE31: 2021-04-15 | BF31: 2021-07-05 | BG31: 2021-11-30 | BH31: 2022-04-20 | BI31: 2022-05-30 | BJ31: 2022-04-30 | BK31: 2022-06-30 | BL31: 2023-10-30 | BM31: 2023-12-30 | BN31: 2024-06-30 | BO31: 2022-06-01 | BP31: 2024-06-30 | BQ31: 2022-06-01 | BR31: 2024-06-01 | BS31: 2022-06-01 | BT31: 2024-06-01 | BU31: 2022-06-01 | BV31: 2024-07-01 | BW31: 2021-12-30 | BX31: 2023-12-02 | BY31: 2021-12-03 | BZ31: 2023-12-02 | CA31: 2021-12-03 | CB31: 2023-12-02 | CC31: 2021-12-03 | CD31: 2023-12-02 | CE31: 2021-12-03 | CF31: 2023-12-02 | CG31: 2021-12-03 | CH31: 2023-12-02 | CI31: 2021-12-03 | CJ31: 2023-12-02 | CK31: 2021-12-03 | CL31: 2023-12-02 | CM31: 2021-12-03 | CN31: 2023-12-02 | CO31: 2021-12-03 | CP31: 2023-12-02 | CQ31: 2021-12-03 | CR31: 2023-12-02 | CS31: 2021-12-03 | CT31: 2023-12-02 | CU31: 2021-12-03 | CV31: 2023-12-02 | CW31: 2021-12-03 | CX31: 2023-12-02 | CY31: 2021-12-03 | CZ31: 2023-12-02 | DA31: 2021-12-03 | DB31: 2023-12-02 | DC31: 2021-12-30 | DD31: 2023-12-02 | DE31: 2021-12-03 | DF31: 2023-12-02 | DG31: 2021-12-30 | DH31: 2023-12-02 | DI31: 2021-12-30 | DJ31: 2023-12-02 | DK31: 2021-12-30 | DL31: 2022-02-02 | DM31: 2023-12-31 | DN31: 2021-12-30 | DO31: 2022-02-02 | DP31: 2023-11-30 | DQ31: 2021-12-30 | DR31: 2022-01-31 | DS31: 2023-11-30 | DT31: 2021-12-30 | DU31: 2022-01-31 | DV31: 2023-11-30 | DW31: 2022-05-05 | DX31: 2022-05-19 | DY31: 2023-11-30 | DZ31: 2022-05-05 | EA31: 2022-05-19 | EB31: 2023-11-30 | EC31: 23 | ED31: 24 | EE31: 2020-12-25 | EF31: 2021-07-05 | EG31: 2022-04-30 | EH31: 2022-05-14 | EI31: 2023-11-30 | EJ31: 2022-05-15 | EK31: 2022-05-29 | EL31: 2023-11-30 | EM31: =(#REF!-#REF!)/30 ->  | EN31: 2022-05-15 | EO31: 2022-05-29 | EP31: 2023-11-30 | EQ31: 2022-05-15 | ER31: 2022-05-29 | ES31: 2023-11-30 | ET31: 2022-05-15 | EU31: 2022-05-29 | EV31: 2023-11-30 | EW31: 2022-05-15 | EX31: 2022-05-29 | EY31: 2023-11-30 | EZ31: 2022-05-15 | FA31: 2022-05-29 | FB31: 2023-11-30 | FC31: 2022-05-15 | FD31: 2022-05-30 | FE31: 2023-11-30 | FF31: 2022-07-30 | FG31: 2022-07-30 | FH31: 2023-11-30 | FI31: 2022-07-30 | FJ31: 2022-07-30 | FK31: 2023-11-30 | FL31: 2022-07-30 | FM31: 2022-07-30 | FN31: 2023-12-10 | FO31: 2022-07-30 | FP31: 2022-09-01 | FQ31: 2024-11-30 | FR31: 27 | FS31: 2022-07-30 | FT31: 2022-09-01 | FU31: 2024-11-30 | FV31: 2022-08-15 | FW31: 2022-08-29 | FX31: 2023-12-10 | FY31: 2022-08-15 | FZ31: 2022-08-29 | GA31: 2023-12-10 | GB31: 2022-08-15 | GC31: 2022-08-29 | GD31: 2023-12-10 | GE31: 2022-08-15 | GF31: 2022-08-29 | GG31: 2023-12-10 | GH31: 2022-08-15 | GI31: 2022-08-29 | GJ31: 2023-12-10 | GK31: 2022-08-31 | GL31: 2022-08-31 | GM31: 2023-12-10 | GN31: 2022-09-30 | GO31: 2022-09-30 | GP31: 2023-12-10 | GQ31: 2022-09-30 | GR31: 2022-09-30 | GS31: 2023-12-10 | GT31: 2022-09-30 | GU31: 2022-09-30 | GV31: 2023-12-10 | GW31: 2022-09-30 | GX31: 2022-09-30 | GY31: 2023-12-10 | GZ31: 2022-10-24 | HA31: 2022-10-24 | HB31: 2023-12-10 | HC31: 2022-10-24 | HD31: 2022-10-24 | HE31: 2023-12-10 | HF31: 2022-10-27 | HG31: 2022-10-27 | HH31: 2023-12-10 | HI31: 2022-11-10 | HJ31: 2022-11-10 | HK31: 2023-12-10 | HL31: 2022-11-10 | HM31: 2022-11-10 | HN31: 2023-12-10 | HP31: АБ-1 | HQ31: АБ-1 | HR31: АБСт | HT31: 2025-06-30 | HX31: ● | IA31: ● | IE31: ● | IG31: 0 | IH31: =IF(YEAR(#REF!)=HU$8,$J31,0) ->  | II31: =IF(AND(YEAR(#REF!)<=HU$8,YEAR(#REF!)>HU$8),$J31,0) ->  | IJ31: 12,418 | IS31: 754 | IT31: 754 | IU31: ▪
A32: 36 | B32: 2.3.6 | C32: СД00.03.1.03.4 | D32: ЖК "Светлая Долина" ПК-3 ж/д 3-4 | E32: 10,363 | F32: Плиты теплоизоляционные пенополистирольные ППС-25 150мм | H32: м3 | I32: =140.294/580*L32 -> 106 | J32: 7,519 | K32: 7,081 | L32: 438 | N32: 160 | O32: 1 | P32: 18 (16) | Q32: 1 | R32: КПД, 1 Каркас | S32: Перепривязка | T32: 4,480 | U32: 3,521 | V32: 311 | W32: =SUM(IG32,#REF!,#REF!,#REF!,#REF!,#REF!,#REF!,#REF!) ->  | AC32: Прединвест | AE32: 2020-11-25 | AF32: 2020-12-25 | AG32: 2021-04-15 | AH32: 2021-04-30 | AI32: 2021-09-30 | AJ32: 2021-10-31 | AK32: 2022-01-31 | AN32: 2024-04-30 | AO32: 2024-10-31 | AP32: 2024-12-30 | AQ32: 2020-11-25 | AR32: 2020-12-25 | AS32: 2021-04-15 | AT32: 2021-07-05 | AU32: 2021-11-06 | AV32: 2021-03-31 | AW32: 2022-01-31 | AX32: 2022-07-31 | AY32: 2022-09-30 | AZ32: 2023-11-30 | BA32: 2024-01-31 | BB32: 2024-03-30 | BC32: 2020-11-25 | BD32: 2020-12-25 | BE32: 2021-04-15 | BF32: 2021-07-05 | BG32: 2021-11-30 | BH32: 2022-04-20 | BI32: 2022-05-30 | BJ32: 2022-04-30 | BK32: 2022-07-31 | BL32: 2023-10-30 | BM32: 2023-12-30 | BN32: 2024-06-30 | BO32: 2022-06-01 | BP32: 2024-06-30 | BQ32: 2022-06-01 | BR32: 2024-06-01 | BS32: 2022-06-01 | BT32: 2024-06-01 | BU32: 2022-06-01 | BV32: 2024-07-01 | BW32: 2021-12-30 | BX32: 2023-12-03 | BY32: 2021-12-04 | BZ32: 2023-12-03 | CA32: 2021-12-04 | CB32: 2023-12-03 | CC32: 2021-12-04 | CD32: 2023-12-03 | CE32: 2021-12-04 | CF32: 2023-12-03 | CG32: 2021-12-04 | CH32: 2023-12-03 | CI32: 2021-12-04 | CJ32: 2023-12-03 | CK32: 2021-12-04 | CL32: 2023-12-03 | CM32: 2021-12-04 | CN32: 2023-12-03 | CO32: 2021-12-04 | CP32: 2023-12-03 | CQ32: 2021-12-04 | CR32: 2023-12-03 | CS32: 2021-12-04 | CT32: 2023-12-03 | CU32: 2021-12-04 | CV32: 2023-12-03 | CW32: 2021-12-04 | CX32: 2023-12-03 | CY32: 2021-12-04 | CZ32: 2023-12-03 | DA32: 2021-12-04 | DB32: 2023-12-03 | DC32: 2021-12-30 | DD32: 2023-12-03 | DE32: 2021-12-04 | DF32: 2023-12-03 | DG32: 2021-12-30 | DH32: 2023-12-03 | DI32: 2021-12-30 | DJ32: 2023-12-03 | DK32: 2021-12-30 | DL32: 2022-02-04 | DM32: 2023-12-31 | DN32: 2021-12-30 | DO32: 2022-02-04 | DP32: 2023-11-30 | DQ32: 2021-12-30 | DR32: 2022-01-31 | DS32: 2023-11-30 | DT32: 2021-12-30 | DU32: 2022-01-31 | DV32: 2023-11-30 | DW32: 2022-05-05 | DX32: 2022-05-19 | DY32: 2023-11-30 | DZ32: 2022-05-05 | EA32: 2022-05-19 | EB32: 2023-11-30 | EC32: 23 | ED32: 24 | EE32: 2020-12-25 | EF32: 2021-07-05 | EG32: 2022-04-30 | EH32: 2022-05-14 | EI32: 2023-11-30 | EJ32: 2022-05-15 | EK32: 2022-05-29 | EL32: 2023-11-30 | EM32: =(#REF!-#REF!)/30 ->  | EN32: 2022-05-15 | EO32: 2022-05-29 | EP32: 2023-11-30 | EQ32: 2022-05-15 | ER32: 2022-05-29 | ES32: 2023-11-30 | ET32: 2022-05-15 | EU32: 2022-05-29 | EV32: 2023-11-30 | EW32: 2022-05-15 | EX32: 2022-05-29 | EY32: 2023-11-30 | EZ32: 2022-05-15 | FA32: 2022-05-29 | FB32: 2023-11-30 | FC32: 2022-05-15 | FD32: 2022-05-30 | FE32: 2023-11-30 | FF32: 2022-07-30 | FG32: 2022-07-30 | FH32: 2023-11-30 | FI32: 2022-07-30 | FJ32: 2022-07-30 | FK32: 2023-11-30 | FL32: 2022-07-30 | FM32: 2022-07-30 | FN32: 2023-12-10 | FO32: 2022-07-30 | FP32: 2022-09-01 | FQ32: 2024-11-30 | FR32: 27 | FS32: 2022-07-30 | FT32: 2022-09-01 | FU32: 2024-11-30 | FV32: 2022-08-15 | FW32: 2022-08-29 | FX32: 2023-12-10 | FY32: 2022-08-15 | FZ32: 2022-08-29 | GA32: 2023-12-10 | GB32: 2022-08-15 | GC32: 2022-08-29 | GD32: 2023-12-10 | GE32: 2022-08-15 | GF32: 2022-08-29 | GG32: 2023-12-10 | GH32: 2022-08-15 | GI32: 2022-08-29 | GJ32: 2023-12-10 | GK32: 2022-08-31 | GL32: 2022-08-31 | GM32: 2023-12-10 | GN32: 2022-09-30 | GO32: 2022-09-30 | GP32: 2023-12-10 | GQ32: 2022-09-30 | GR32: 2022-09-30 | GS32: 2023-12-10 | GT32: 2022-09-30 | GU32: 2022-09-30 | GV32: 2023-12-10 | GW32: 2022-09-30 | GX32: 2022-09-30 | GY32: 2023-12-10 | GZ32: 2022-10-24 | HA32: 2022-10-24 | HB32: 2023-12-10 | HC32: 2022-10-24 | HD32: 2022-10-24 | HE32: 2023-12-10 | HF32: 2022-10-27 | HG32: 2022-10-27 | HH32: 2023-12-10 | HI32: 2022-11-10 | HJ32: 2022-11-10 | HK32: 2023-12-10 | HL32: 2022-11-10 | HM32: 2022-11-10 | HN32: 2023-12-10 | HP32: АБ-1 | HQ32: АБ-1 | HR32: АБСт | HT32: 2025-06-30 | HX32: ● | IA32: ● | IE32: ● | IG32: 0 | IH32: =IF(YEAR(#REF!)=HU$8,$J32,0) ->  | II32: =IF(AND(YEAR(#REF!)<=HU$8,YEAR(#REF!)>HU$8),$J32,0) ->  | IJ32: 7,519 | IR32: =I32 -> 106 | IU32: ▪
A33: 36 | B33: 2.3.6 | C33: СД00.03.1.03.4 | D33: ЖК "Светлая Долина" ПК-3 ж/д 3-4 | E33: 10,363 | F33: Керамзит М600 | H33: м3 | I33: =142.129/580*L33 -> 107 | J33: 7,519 | K33: 7,081 | L33: 438 | N33: 160 | O33: 1 | P33: 18 (16) | Q33: 1 | R33: КПД, 1 Каркас | S33: Перепривязка | T33: 4,480 | U33: 3,521 | V33: 311 | W33: =SUM(IG33,#REF!,#REF!,#REF!,#REF!,#REF!,#REF!,#REF!) ->  | AC33: Прединвест | AE33: 2020-11-25 | AF33: 2020-12-25 | AG33: 2021-04-15 | AH33: 2021-04-30 | AI33: 2021-09-30 | AJ33: 2021-10-31 | AK33: 2022-01-31 | AN33: 2024-04-30 | AO33: 2024-10-31 | AP33: 2024-12-30 | AQ33: 2020-11-25 | AR33: 2020-12-25 | AS33: 2021-04-15 | AT33: 2021-07-05 | AU33: 2021-11-06 | AV33: 2021-03-31 | AW33: 2022-01-31 | AX33: 2022-07-31 | AY33: 2022-09-30 | AZ33: 2023-11-30 | BA33: 2024-01-31 | BB33: 2024-03-30 | BC33: 2020-11-25 | BD33: 2020-12-25 | BE33: 2021-04-15 | BF33: 2021-07-05 | BG33: 2021-11-30 | BH33: 2022-04-20 | BI33: 2022-05-30 | BJ33: 2022-04-30 | BK33: 2022-07-31 | BL33: 2023-10-30 | BM33: 2023-12-30 | BN33: 2024-06-30 | BO33: 2022-06-01 | BP33: 2024-06-30 | BQ33: 2022-06-01 | BR33: 2024-06-01 | BS33: 2022-06-01 | BT33: 2024-06-01 | BU33: 2022-06-01 | BV33: 2024-07-01 | BW33: 2021-12-30 | BX33: 2023-12-03 | BY33: 2021-12-04 | BZ33: 2023-12-03 | CA33: 2021-12-04 | CB33: 2023-12-03 | CC33: 2021-12-04 | CD33: 2023-12-03 | CE33: 2021-12-04 | CF33: 2023-12-03 | CG33: 2021-12-04 | CH33: 2023-12-03 | CI33: 2021-12-04 | CJ33: 2023-12-03 | CK33: 2021-12-04 | CL33: 2023-12-03 | CM33: 2021-12-04 | CN33: 2023-12-03 | CO33: 2021-12-04 | CP33: 2023-12-03 | CQ33: 2021-12-04 | CR33: 2023-12-03 | CS33: 2021-12-04 | CT33: 2023-12-03 | CU33: 2021-12-04 | CV33: 2023-12-03 | CW33: 2021-12-04 | CX33: 2023-12-03 | CY33: 2021-12-04 | CZ33: 2023-12-03 | DA33: 2021-12-04 | DB33: 2023-12-03 | DC33: 2021-12-30 | DD33: 2023-12-03 | DE33: 2021-12-04 | DF33: 2023-12-03 | DG33: 2021-12-30 | DH33: 2023-12-03 | DI33: 2021-12-30 | DJ33: 2023-12-03 | DK33: 2021-12-30 | DL33: 2022-02-04 | DM33: 2023-12-31 | DN33: 2021-12-30 | DO33: 2022-02-04 | DP33: 2023-11-30 | DQ33: 2021-12-30 | DR33: 2022-01-31 | DS33: 2023-11-30 | DT33: 2021-12-30 | DU33: 2022-01-31 | DV33: 2023-11-30 | DW33: 2022-05-05 | DX33: 2022-05-19 | DY33: 2023-11-30 | DZ33: 2022-05-05 | EA33: 2022-05-19 | EB33: 2023-11-30 | EC33: 23 | ED33: 24 | EE33: 2020-12-25 | EF33: 2021-07-05 | EG33: 2022-04-30 | EH33: 2022-05-14 | EI33: 2023-11-30 | EJ33: 2022-05-15 | EK33: 2022-05-29 | EL33: 2023-11-30 | EM33: =(#REF!-#REF!)/30 ->  | EN33: 2022-05-15 | EO33: 2022-05-29 | EP33: 2023-11-30 | EQ33: 2022-05-15 | ER33: 2022-05-29 | ES33: 2023-11-30 | ET33: 2022-05-15 | EU33: 2022-05-29 | EV33: 2023-11-30 | EW33: 2022-05-15 | EX33: 2022-05-29 | EY33: 2023-11-30 | EZ33: 2022-05-15 | FA33: 2022-05-29 | FB33: 2023-11-30 | FC33: 2022-05-15 | FD33: 2022-05-30 | FE33: 2023-11-30 | FF33: 2022-07-30 | FG33: 2022-07-30 | FH33: 2023-11-30 | FI33: 2022-07-30 | FJ33: 2022-07-30 | FK33: 2023-11-30 | FL33: 2022-07-30 | FM33: 2022-07-30 | FN33: 2023-12-10 | FO33: 2022-07-30 | FP33: 2022-09-01 | FQ33: 2024-11-30 | FR33: 27 | FS33: 2022-07-30 | FT33: 2022-09-01 | FU33: 2024-11-30 | FV33: 2022-08-15 | FW33: 2022-08-29 | FX33: 2023-12-10 | FY33: 2022-08-15 | FZ33: 2022-08-29 | GA33: 2023-12-10 | GB33: 2022-08-15 | GC33: 2022-08-29 | GD33: 2023-12-10 | GE33: 2022-08-15 | GF33: 2022-08-29 | GG33: 2023-12-10 | GH33: 2022-08-15 | GI33: 2022-08-29 | GJ33: 2023-12-10 | GK33: 2022-08-31 | GL33: 2022-08-31 | GM33: 2023-12-10 | GN33: 2022-09-30 | GO33: 2022-09-30 | GP33: 2023-12-10 | GQ33: 2022-09-30 | GR33: 2022-09-30 | GS33: 2023-12-10 | GT33: 2022-09-30 | GU33: 2022-09-30 | GV33: 2023-12-10 | GW33: 2022-09-30 | GX33: 2022-09-30 | GY33: 2023-12-10 | GZ33: 2022-10-24 | HA33: 2022-10-24 | HB33: 2023-12-10 | HC33: 2022-10-24 | HD33: 2022-10-24 | HE33: 2023-12-10 | HF33: 2022-10-27 | HG33: 2022-10-27 | HH33: 2023-12-10 | HI33: 2022-11-10 | HJ33: 2022-11-10 | HK33: 2023-12-10 | HL33: 2022-11-10 | HM33: 2022-11-10 | HN33: 2023-12-10 | HP33: АБ-1 | HQ33: АБ-1 | HR33: АБСт | HT33: 2025-06-30 | HX33: ● | IA33: ● | IE33: ● | IG33: 0 | IH33: =IF(YEAR(#REF!)=HU$8,$J33,0) ->  | II33: =IF(AND(YEAR(#REF!)<=HU$8,YEAR(#REF!)>HU$8),$J33,0) ->  | IJ33: 7,519 | IR33: =I33 -> 107 | IU33: ▪
A34: 36 | B34: 2.3.6 | C34: СД00.03.1.03.4 | D34: ЖК "Светлая Долина" ПК-3 ж/д 3-4 | E34: 10,363 | F34: Плиты теплоизоляционные пенополистирольные экструдированные 100мм | H34: м3 | I34: =14.146/580*L34 -> 11 | J34: 7,519 | K34: 7,081 | L34: 438 | N34: 160 | O34: 1 | P34: 18 (16) | Q34: 1 | R34: КПД, 1 Каркас | S34: Перепривязка | T34: 4,480 | U34: 3,521 | V34: 311 | W34: =SUM(IG34,#REF!,#REF!,#REF!,#REF!,#REF!,#REF!,#REF!) ->  | AC34: Прединвест | AE34: 2020-11-25 | AF34: 2020-12-25 | AG34: 2021-04-15 | AH34: 2021-04-30 | AI34: 2021-09-30 | AJ34: 2021-10-31 | AK34: 2022-01-31 | AN34: 2024-04-30 | AO34: 2024-10-31 | AP34: 2024-12-30 | AQ34: 2020-11-25 | AR34: 2020-12-25 | AS34: 2021-04-15 | AT34: 2021-07-05 | AU34: 2021-11-06 | AV34: 2021-03-31 | AW34: 2022-01-31 | AX34: 2022-07-31 | AY34: 2022-09-30 | AZ34: 2023-11-30 | BA34: 2024-01-31 | BB34: 2024-03-30 | BC34: 2020-11-25 | BD34: 2020-12-25 | BE34: 2021-04-15 | BF34: 2021-07-05 | BG34: 2021-11-30 | BH34: 2022-04-20 | BI34: 2022-05-30 | BJ34: 2022-04-30 | BK34: 2022-07-31 | BL34: 2023-10-30 | BM34: 2023-12-30 | BN34: 2024-06-30 | BO34: 2022-06-01 | BP34: 2024-06-30 | BQ34: 2022-06-01 | BR34: 2024-06-01 | BS34: 2022-06-01 | BT34: 2024-06-01 | BU34: 2022-06-01 | BV34: 2024-07-01 | BW34: 2021-12-30 | BX34: 2023-12-03 | BY34: 2021-12-04 | BZ34: 2023-12-03 | CA34: 2021-12-04 | CB34: 2023-12-03 | CC34: 2021-12-04 | CD34: 2023-12-03 | CE34: 2021-12-04 | CF34: 2023-12-03 | CG34: 2021-12-04 | CH34: 2023-12-03 | CI34: 2021-12-04 | CJ34: 2023-12-03 | CK34: 2021-12-04 | CL34: 2023-12-03 | CM34: 2021-12-04 | CN34: 2023-12-03 | CO34: 2021-12-04 | CP34: 2023-12-03 | CQ34: 2021-12-04 | CR34: 2023-12-03 | CS34: 2021-12-04 | CT34: 2023-12-03 | CU34: 2021-12-04 | CV34: 2023-12-03 | CW34: 2021-12-04 | CX34: 2023-12-03 | CY34: 2021-12-04 | CZ34: 2023-12-03 | DA34: 2021-12-04 | DB34: 2023-12-03 | DC34: 2021-12-30 | DD34: 2023-12-03 | DE34: 2021-12-04 | DF34: 2023-12-03 | DG34: 2021-12-30 | DH34: 2023-12-03 | DI34: 2021-12-30 | DJ34: 2023-12-03 | DK34: 2021-12-30 | DL34: 2022-02-04 | DM34: 2023-12-31 | DN34: 2021-12-30 | DO34: 2022-02-04 | DP34: 2023-11-30 | DQ34: 2021-12-30 | DR34: 2022-01-31 | DS34: 2023-11-30 | DT34: 2021-12-30 | DU34: 2022-01-31 | DV34: 2023-11-30 | DW34: 2022-05-05 | DX34: 2022-05-19 | DY34: 2023-11-30 | DZ34: 2022-05-05 | EA34: 2022-05-19 | EB34: 2023-11-30 | EC34: 23 | ED34: 24 | EE34: 2020-12-25 | EF34: 2021-07-05 | EG34: 2022-04-30 | EH34: 2022-05-14 | EI34: 2023-11-30 | EJ34: 2022-05-15 | EK34: 2022-05-29 | EL34: 2023-11-30 | EM34: =(#REF!-#REF!)/30 ->  | EN34: 2022-05-15 | EO34: 2022-05-29 | EP34: 2023-11-30 | EQ34: 2022-05-15 | ER34: 2022-05-29 | ES34: 2023-11-30 | ET34: 2022-05-15 | EU34: 2022-05-29 | EV34: 2023-11-30 | EW34: 2022-05-15 | EX34: 2022-05-29 | EY34: 2023-11-30 | EZ34: 2022-05-15 | FA34: 2022-05-29 | FB34: 2023-11-30 | FC34: 2022-05-15 | FD34: 2022-05-30 | FE34: 2023-11-30 | FF34: 2022-07-30 | FG34: 2022-07-30 | FH34: 2023-11-30 | FI34: 2022-07-30 | FJ34: 2022-07-30 | FK34: 2023-11-30 | FL34: 2022-07-30 | FM34: 2022-07-30 | FN34: 2023-12-10 | FO34: 2022-07-30 | FP34: 2022-09-01 | FQ34: 2024-11-30 | FR34: 27 | FS34: 2022-07-30 | FT34: 2022-09-01 | FU34: 2024-11-30 | FV34: 2022-08-15 | FW34: 2022-08-29 | FX34: 2023-12-10 | FY34: 2022-08-15 | FZ34: 2022-08-29 | GA34: 2023-12-10 | GB34: 2022-08-15 | GC34: 2022-08-29 | GD34: 2023-12-10 | GE34: 2022-08-15 | GF34: 2022-08-29 | GG34: 2023-12-10 | GH34: 2022-08-15 | GI34: 2022-08-29 | GJ34: 2023-12-10 | GK34: 2022-08-31 | GL34: 2022-08-31 | GM34: 2023-12-10 | GN34: 2022-09-30 | GO34: 2022-09-30 | GP34: 2023-12-10 | GQ34: 2022-09-30 | GR34: 2022-09-30 | GS34: 2023-12-10 | GT34: 2022-09-30 | GU34: 2022-09-30 | GV34: 2023-12-10 | GW34: 2022-09-30 | GX34: 2022-09-30 | GY34: 2023-12-10 | GZ34: 2022-10-24 | HA34: 2022-10-24 | HB34: 2023-12-10 | HC34: 2022-10-24 | HD34: 2022-10-24 | HE34: 2023-12-10 | HF34: 2022-10-27 | HG34: 2022-10-27 | HH34: 2023-12-10 | HI34: 2022-11-10 | HJ34: 2022-11-10 | HK34: 2023-12-10 | HL34: 2022-11-10 | HM34: 2022-11-10 | HN34: 2023-12-10 | HP34: АБ-1 | HQ34: АБ-1 | HR34: АБСт | HT34: 2025-06-30 | HX34: ● | IA34: ● | IE34: ● | IG34: 0 | IH34: =IF(YEAR(#REF!)=HU$8,$J34,0) ->  | II34: =IF(AND(YEAR(#REF!)<=HU$8,YEAR(#REF!)>HU$8),$J34,0) ->  | IJ34: 7,519 | IR34: 11 | IU34: ▪
A35: 36 | B35: 2.3.6 | C35: СД00.03.1.03.4 | D35: ЖК "Светлая Долина" ПК-3 ж/д 3-4 | E35: 10,363 | F35: Плиты теплоизоляционные пенополистирольные экструдированные 50мм | H35: м3 | I35: =3.939/580*L35 -> 3 | J35: 7,519 | K35: 7,081 | L35: 438 | N35: 160 | O35: 1 | P35: 18 (16) | Q35: 1 | R35: КПД, 1 Каркас | S35: Перепривязка | T35: 4,480 | U35: 3,521 | V35: 311 | W35: =SUM(IG35,#REF!,#REF!,#REF!,#REF!,#REF!,#REF!,#REF!) ->  | AC35: Прединвест | AE35: 2020-11-25 | AF35: 2020-12-25 | AG35: 2021-04-15 | AH35: 2021-04-30 | AI35: 2021-09-30 | AJ35: 2021-10-31 | AK35: 2022-01-31 | AN35: 2024-04-30 | AO35: 2024-10-31 | AP35: 2024-12-30 | AQ35: 2020-11-25 | AR35: 2020-12-25 | AS35: 2021-04-15 | AT35: 2021-07-05 | AU35: 2021-11-06 | AV35: 2021-03-31 | AW35: 2022-01-31 | AX35: 2022-07-31 | AY35: 2022-09-30 | AZ35: 2023-11-30 | BA35: 2024-01-31 | BB35: 2024-03-30 | BC35: 2020-11-25 | BD35: 2020-12-25 | BE35: 2021-04-15 | BF35: 2021-07-05 | BG35: 2021-11-30 | BH35: 2022-04-20 | BI35: 2022-05-30 | BJ35: 2022-04-30 | BK35: 2022-07-31 | BL35: 2023-10-30 | BM35: 2023-12-30 | BN35: 2024-06-30 | BO35: 2022-06-01 | BP35: 2024-06-30 | BQ35: 2022-06-01 | BR35: 2024-06-01 | BS35: 2022-06-01 | BT35: 2024-06-01 | BU35: 2022-06-01 | BV35: 2024-07-01 | BW35: 2021-12-30 | BX35: 2023-12-03 | BY35: 2021-12-04 | BZ35: 2023-12-03 | CA35: 2021-12-04 | CB35: 2023-12-03 | CC35: 2021-12-04 | CD35: 2023-12-03 | CE35: 2021-12-04 | CF35: 2023-12-03 | CG35: 2021-12-04 | CH35: 2023-12-03 | CI35: 2021-12-04 | CJ35: 2023-12-03 | CK35: 2021-12-04 | CL35: 2023-12-03 | CM35: 2021-12-04 | CN35: 2023-12-03 | CO35: 2021-12-04 | CP35: 2023-12-03 | CQ35: 2021-12-04 | CR35: 2023-12-03 | CS35: 2021-12-04 | CT35: 2023-12-03 | CU35: 2021-12-04 | CV35: 2023-12-03 | CW35: 2021-12-04 | CX35: 2023-12-03 | CY35: 2021-12-04 | CZ35: 2023-12-03 | DA35: 2021-12-04 | DB35: 2023-12-03 | DC35: 2021-12-30 | DD35: 2023-12-03 | DE35: 2021-12-04 | DF35: 2023-12-03 | DG35: 2021-12-30 | DH35: 2023-12-03 | DI35: 2021-12-30 | DJ35: 2023-12-03 | DK35: 2021-12-30 | DL35: 2022-02-04 | DM35: 2023-12-31 | DN35: 2021-12-30 | DO35: 2022-02-04 | DP35: 2023-11-30 | DQ35: 2021-12-30 | DR35: 2022-01-31 | DS35: 2023-11-30 | DT35: 2021-12-30 | DU35: 2022-01-31 | DV35: 2023-11-30 | DW35: 2022-05-05 | DX35: 2022-05-19 | DY35: 2023-11-30 | DZ35: 2022-05-05 | EA35: 2022-05-19 | EB35: 2023-11-30 | EC35: 23 | ED35: 24 | EE35: 2020-12-25 | EF35: 2021-07-05 | EG35: 2022-04-30 | EH35: 2022-05-14 | EI35: 2023-11-30 | EJ35: 2022-05-15 | EK35: 2022-05-29 | EL35: 2023-11-30 | EM35: =(#REF!-#REF!)/30 ->  | EN35: 2022-05-15 | EO35: 2022-05-29 | EP35: 2023-11-30 | EQ35: 2022-05-15 | ER35: 2022-05-29 | ES35: 2023-11-30 | ET35: 2022-05-15 | EU35: 2022-05-29 | EV35: 2023-11-30 | EW35: 2022-05-15 | EX35: 2022-05-29 | EY35: 2023-11-30 | EZ35: 2022-05-15 | FA35: 2022-05-29 | FB35: 2023-11-30 | FC35: 2022-05-15 | FD35: 2022-05-30 | FE35: 2023-11-30 | FF35: 2022-07-30 | FG35: 2022-07-30 | FH35: 2023-11-30 | FI35: 2022-07-30 | FJ35: 2022-07-30 | FK35: 2023-11-30 | FL35: 2022-07-30 | FM35: 2022-07-30 | FN35: 2023-12-10 | FO35: 2022-07-30 | FP35: 2022-09-01 | FQ35: 2024-11-30 | FR35: 27 | FS35: 2022-07-30 | FT35: 2022-09-01 | FU35: 2024-11-30 | FV35: 2022-08-15 | FW35: 2022-08-29 | FX35: 2023-12-10 | FY35: 2022-08-15 | FZ35: 2022-08-29 | GA35: 2023-12-10 | GB35: 2022-08-15 | GC35: 2022-08-29 | GD35: 2023-12-10 | GE35: 2022-08-15 | GF35: 2022-08-29 | GG35: 2023-12-10 | GH35: 2022-08-15 | GI35: 2022-08-29 | GJ35: 2023-12-10 | GK35: 2022-08-31 | GL35: 2022-08-31 | GM35: 2023-12-10 | GN35: 2022-09-30 | GO35: 2022-09-30 | GP35: 2023-12-10 | GQ35: 2022-09-30 | GR35: 2022-09-30 | GS35: 2023-12-10 | GT35: 2022-09-30 | GU35: 2022-09-30 | GV35: 2023-12-10 | GW35: 2022-09-30 | GX35: 2022-09-30 | GY35: 2023-12-10 | GZ35: 2022-10-24 | HA35: 2022-10-24 | HB35: 2023-12-10 | HC35: 2022-10-24 | HD35: 2022-10-24 | HE35: 2023-12-10 | HF35: 2022-10-27 | HG35: 2022-10-27 | HH35: 2023-12-10 | HI35: 2022-11-10 | HJ35: 2022-11-10 | HK35: 2023-12-10 | HL35: 2022-11-10 | HM35: 2022-11-10 | HN35: 2023-12-10 | HP35: АБ-1 | HQ35: АБ-1 | HR35: АБСт | HT35: 2025-06-30 | HX35: ● | IA35: ● | IE35: ● | IG35: 0 | IH35: =IF(YEAR(#REF!)=HU$8,$J35,0) ->  | II35: =IF(AND(YEAR(#REF!)<=HU$8,YEAR(#REF!)>HU$8),$J35,0) ->  | IJ35: 7,519 | IR35: 3 | IU35: ▪
A36: 36 | B36: 2.3.6 | C36: СД00.03.1.03.4 | D36: ЖК "Светлая Долина" ПК-3 ж/д 3-4 | E36: 10,363 | F36: Материал рулонный кровельный гидроизоляционный верхний слой | G36: основа: полиэстeр;температура гибкости на брусе R=25мм не менее -20; толщина 1м² не менее 3,8мм | H36: м2 | I36: =1730.022/580*L36 -> 1,306 | J36: 7,519 | K36: 7,081 | L36: 438 | N36: 160 | O36: 1 | P36: 18 (16) | Q36: 1 | R36: КПД, 1 Каркас | S36: Перепривязка | T36: 4,480 | U36: 3,521 | V36: 311 | W36: =SUM(IG36,#REF!,#REF!,#REF!,#REF!,#REF!,#REF!,#REF!) ->  | AC36: Прединвест | AE36: 2020-11-25 | AF36: 2020-12-25 | AG36: 2021-04-15 | AH36: 2021-04-30 | AI36: 2021-09-30 | AJ36: 2021-10-31 | AK36: 2022-01-31 | AN36: 2024-04-30 | AO36: 2024-10-31 | AP36: 2024-12-30 | AQ36: 2020-11-25 | AR36: 2020-12-25 | AS36: 2021-04-15 | AT36: 2021-07-05 | AU36: 2021-11-06 | AV36: 2021-03-31 | AW36: 2022-01-31 | AX36: 2022-07-31 | AY36: 2022-09-30 | AZ36: 2023-11-30 | BA36: 2024-01-31 | BB36: 2024-03-30 | BC36: 2020-11-25 | BD36: 2020-12-25 | BE36: 2021-04-15 | BF36: 2021-07-05 | BG36: 2021-11-30 | BH36: 2022-04-20 | BI36: 2022-05-30 | BJ36: 2022-04-30 | BK36: 2022-07-31 | BL36: 2023-10-30 | BM36: 2023-12-30 | BN36: 2024-06-30 | BO36: 2022-06-01 | BP36: 2024-06-30 | BQ36: 2022-06-01 | BR36: 2024-06-01 | BS36: 2022-06-01 | BT36: 2024-06-01 | BU36: 2022-06-01 | BV36: 2024-07-01 | BW36: 2021-12-30 | BX36: 2023-12-03 | BY36: 2021-12-04 | BZ36: 2023-12-03 | CA36: 2021-12-04 | CB36: 2023-12-03 | CC36: 2021-12-04 | CD36: 2023-12-03 | CE36: 2021-12-04 | CF36: 2023-12-03 | CG36: 2021-12-04 | CH36: 2023-12-03 | CI36: 2021-12-04 | CJ36: 2023-12-03 | CK36: 2021-12-04 | CL36: 2023-12-03 | CM36: 2021-12-04 | CN36: 2023-12-03 | CO36: 2021-12-04 | CP36: 2023-12-03 | CQ36: 2021-12-04 | CR36: 2023-12-03 | CS36: 2021-12-04 | CT36: 2023-12-03 | CU36: 2021-12-04 | CV36: 2023-12-03 | CW36: 2021-12-04 | CX36: 2023-12-03 | CY36: 2021-12-04 | CZ36: 2023-12-03 | DA36: 2021-12-04 | DB36: 2023-12-03 | DC36: 2021-12-30 | DD36: 2023-12-03 | DE36: 2021-12-04 | DF36: 2023-12-03 | DG36: 2021-12-30 | DH36: 2023-12-03 | DI36: 2021-12-30 | DJ36: 2023-12-03 | DK36: 2021-12-30 | DL36: 2022-02-04 | DM36: 2023-12-31 | DN36: 2021-12-30 | DO36: 2022-02-04 | DP36: 2023-11-30 | DQ36: 2021-12-30 | DR36: 2022-01-31 | DS36: 2023-11-30 | DT36: 2021-12-30 | DU36: 2022-01-31 | DV36: 2023-11-30 | DW36: 2022-05-05 | DX36: 2022-05-19 | DY36: 2023-11-30 | DZ36: 2022-05-05 | EA36: 2022-05-19 | EB36: 2023-11-30 | EC36: 23 | ED36: 24 | EE36: 2020-12-25 | EF36: 2021-07-05 | EG36: 2022-04-30 | EH36: 2022-05-14 | EI36: 2023-11-30 | EJ36: 2022-05-15 | EK36: 2022-05-29 | EL36: 2023-11-30 | EM36: =(#REF!-#REF!)/30 ->  | EN36: 2022-05-15 | EO36: 2022-05-29 | EP36: 2023-11-30 | EQ36: 2022-05-15 | ER36: 2022-05-29 | ES36: 2023-11-30 | ET36: 2022-05-15 | EU36: 2022-05-29 | EV36: 2023-11-30 | EW36: 2022-05-15 | EX36: 2022-05-29 | EY36: 2023-11-30 | EZ36: 2022-05-15 | FA36: 2022-05-29 | FB36: 2023-11-30 | FC36: 2022-05-15 | FD36: 2022-05-30 | FE36: 2023-11-30 | FF36: 2022-07-30 | FG36: 2022-07-30 | FH36: 2023-11-30 | FI36: 2022-07-30 | FJ36: 2022-07-30 | FK36: 2023-11-30 | FL36: 2022-07-30 | FM36: 2022-07-30 | FN36: 2023-12-10 | FO36: 2022-07-30 | FP36: 2022-09-01 | FQ36: 2024-11-30 | FR36: 27 | FS36: 2022-07-30 | FT36: 2022-09-01 | FU36: 2024-11-30 | FV36: 2022-08-15 | FW36: 2022-08-29 | FX36: 2023-12-10 | FY36: 2022-08-15 | FZ36: 2022-08-29 | GA36: 2023-12-10 | GB36: 2022-08-15 | GC36: 2022-08-29 | GD36: 2023-12-10 | GE36: 2022-08-15 | GF36: 2022-08-29 | GG36: 2023-12-10 | GH36: 2022-08-15 | GI36: 2022-08-29 | GJ36: 2023-12-10 | GK36: 2022-08-31 | GL36: 2022-08-31 | GM36: 2023-12-10 | GN36: 2022-09-30 | GO36: 2022-09-30 | GP36: 2023-12-10 | GQ36: 2022-09-30 | GR36: 2022-09-30 | GS36: 2023-12-10 | GT36: 2022-09-30 | GU36: 2022-09-30 | GV36: 2023-12-10 | GW36: 2022-09-30 | GX36: 2022-09-30 | GY36: 2023-12-10 | GZ36: 2022-10-24 | HA36: 2022-10-24 | HB36: 2023-12-10 | HC36: 2022-10-24 | HD36: 2022-10-24 | HE36: 2023-12-10 | HF36: 2022-10-27 | HG36: 2022-10-27 | HH36: 2023-12-10 | HI36: 2022-11-10 | HJ36: 2022-11-10 | HK36: 2023-12-10 | HL36: 2022-11-10 | HM36: 2022-11-10 | HN36: 2023-12-10 | HP36: АБ-1 | HQ36: АБ-1 | HR36: АБСт | HT36: 2025-06-30 | HX36: ● | IA36: ● | IE36: ● | IG36: 0 | IH36: =IF(YEAR(#REF!)=HU$8,$J36,0) ->  | II36: =IF(AND(YEAR(#REF!)<=HU$8,YEAR(#REF!)>HU$8),$J36,0) ->  | IJ36: 7,519 | IR36: 1,306 | IU36: ▪
A37: 36 | B37: 2.3.6 | C37: СД00.03.1.03.4 | D37: ЖК "Светлая Долина" ПК-3 ж/д 3-4 | E37: 10,363 | F37: Материал рулонный кровельный гидроизоляционный нижний слой | G37: основа: полиэстeр;температура гибкости на брусе R=25мм не менее -20; толщина 1м² не менее 2,8мм | H37: м2 | I37: =1243.267/580*L37 -> 939 | J37: 7,519 | K37: 7,081 | L37: 438 | N37: 160 | O37: 1 | P37: 18 (16) | Q37: 1 | R37: КПД, 1 Каркас | S37: Перепривязка | T37: 4,480 | U37: 3,521 | V37: 311 | W37: =SUM(IG37,#REF!,#REF!,#REF!,#REF!,#REF!,#REF!,#REF!) ->  | AC37: Прединвест | AE37: 2020-11-25 | AF37: 2020-12-25 | AG37: 2021-04-15 | AH37: 2021-04-30 | AI37: 2021-09-30 | AJ37: 2021-10-31 | AK37: 2022-01-31 | AN37: 2024-04-30 | AO37: 2024-10-31 | AP37: 2024-12-30 | AQ37: 2020-11-25 | AR37: 2020-12-25 | AS37: 2021-04-15 | AT37: 2021-07-05 | AU37: 2021-11-06 | AV37: 2021-03-31 | AW37: 2022-01-31 | AX37: 2022-07-31 | AY37: 2022-09-30 | AZ37: 2023-11-30 | BA37: 2024-01-31 | BB37: 2024-03-30 | BC37: 2020-11-25 | BD37: 2020-12-25 | BE37: 2021-04-15 | BF37: 2021-07-05 | BG37: 2021-11-30 | BH37: 2022-04-20 | BI37: 2022-05-30 | BJ37: 2022-04-30 | BK37: 2022-07-31 | BL37: 2023-10-30 | BM37: 2023-12-30 | BN37: 2024-06-30 | BO37: 2022-06-01 | BP37: 2024-06-30 | BQ37: 2022-06-01 | BR37: 2024-06-01 | BS37: 2022-06-01 | BT37: 2024-06-01 | BU37: 2022-06-01 | BV37: 2024-07-01 | BW37: 2021-12-30 | BX37: 2023-12-03 | BY37: 2021-12-04 | BZ37: 2023-12-03 | CA37: 2021-12-04 | CB37: 2023-12-03 | CC37: 2021-12-04 | CD37: 2023-12-03 | CE37: 2021-12-04 | CF37: 2023-12-03 | CG37: 2021-12-04 | CH37: 2023-12-03 | CI37: 2021-12-04 | CJ37: 2023-12-03 | CK37: 2021-12-04 | CL37: 2023-12-03 | CM37: 2021-12-04 | CN37: 2023-12-03 | CO37: 2021-12-04 | CP37: 2023-12-03 | CQ37: 2021-12-04 | CR37: 2023-12-03 | CS37: 2021-12-04 | CT37: 2023-12-03 | CU37: 2021-12-04 | CV37: 2023-12-03 | CW37: 2021-12-04 | CX37: 2023-12-03 | CY37: 2021-12-04 | CZ37: 2023-12-03 | DA37: 2021-12-04 | DB37: 2023-12-03 | DC37: 2021-12-30 | DD37: 2023-12-03 | DE37: 2021-12-04 | DF37: 2023-12-03 | DG37: 2021-12-30 | DH37: 2023-12-03 | DI37: 2021-12-30 | DJ37: 2023-12-03 | DK37: 2021-12-30 | DL37: 2022-02-04 | DM37: 2023-12-31 | DN37: 2021-12-30 | DO37: 2022-02-04 | DP37: 2023-11-30 | DQ37: 2021-12-30 | DR37: 2022-01-31 | DS37: 2023-11-30 | DT37: 2021-12-30 | DU37: 2022-01-31 | DV37: 2023-11-30 | DW37: 2022-05-05 | DX37: 2022-05-19 | DY37: 2023-11-30 | DZ37: 2022-05-05 | EA37: 2022-05-19 | EB37: 2023-11-30 | EC37: 23 | ED37: 24 | EE37: 2020-12-25 | EF37: 2021-07-05 | EG37: 2022-04-30 | EH37: 2022-05-14 | EI37: 2023-11-30 | EJ37: 2022-05-15 | EK37: 2022-05-29 | EL37: 2023-11-30 | EM37: =(#REF!-#REF!)/30 ->  | EN37: 2022-05-15 | EO37: 2022-05-29 | EP37: 2023-11-30 | EQ37: 2022-05-15 | ER37: 2022-05-29 | ES37: 2023-11-30 | ET37: 2022-05-15 | EU37: 2022-05-29 | EV37: 2023-11-30 | EW37: 2022-05-15 | EX37: 2022-05-29 | EY37: 2023-11-30 | EZ37: 2022-05-15 | FA37: 2022-05-29 | FB37: 2023-11-30 | FC37: 2022-05-15 | FD37: 2022-05-30 | FE37: 2023-11-30 | FF37: 2022-07-30 | FG37: 2022-07-30 | FH37: 2023-11-30 | FI37: 2022-07-30 | FJ37: 2022-07-30 | FK37: 2023-11-30 | FL37: 2022-07-30 | FM37: 2022-07-30 | FN37: 2023-12-10 | FO37: 2022-07-30 | FP37: 2022-09-01 | FQ37: 2024-11-30 | FR37: 27 | FS37: 2022-07-30 | FT37: 2022-09-01 | FU37: 2024-11-30 | FV37: 2022-08-15 | FW37: 2022-08-29 | FX37: 2023-12-10 | FY37: 2022-08-15 | FZ37: 2022-08-29 | GA37: 2023-12-10 | GB37: 2022-08-15 | GC37: 2022-08-29 | GD37: 2023-12-10 | GE37: 2022-08-15 | GF37: 2022-08-29 | GG37: 2023-12-10 | GH37: 2022-08-15 | GI37: 2022-08-29 | GJ37: 2023-12-10 | GK37: 2022-08-31 | GL37: 2022-08-31 | GM37: 2023-12-10 | GN37: 2022-09-30 | GO37: 2022-09-30 | GP37: 2023-12-10 | GQ37: 2022-09-30 | GR37: 2022-09-30 | GS37: 2023-12-10 | GT37: 2022-09-30 | GU37: 2022-09-30 | GV37: 2023-12-10 | GW37: 2022-09-30 | GX37: 2022-09-30 | GY37: 2023-12-10 | GZ37: 2022-10-24 | HA37: 2022-10-24 | HB37: 2023-12-10 | HC37: 2022-10-24 | HD37: 2022-10-24 | HE37: 2023-12-10 | HF37: 2022-10-27 | HG37: 2022-10-27 | HH37: 2023-12-10 | HI37: 2022-11-10 | HJ37: 2022-11-10 | HK37: 2023-12-10 | HL37: 2022-11-10 | HM37: 2022-11-10 | HN37: 2023-12-10 | HP37: АБ-1 | HQ37: АБ-1 | HR37: АБСт | HT37: 2025-06-30 | HX37: ● | IA37: ● | IE37: ● | IG37: 0 | IH37: =IF(YEAR(#REF!)=HU$8,$J37,0) ->  | II37: =IF(AND(YEAR(#REF!)<=HU$8,YEAR(#REF!)>HU$8),$J37,0) ->  | IJ37: 7,519 | IR37: 939 | IU37: ▪
B38: 2.5 | C38: СД00.03.0.00.0 | D38: ЖК "Светлая Долина" ПК-5 | E38: =E39 -> 16,357
B39: 2.5.1 | C39: СД00.05.3.05.1 | D39: ЖК "Светлая долина" ПК-5 паркинг 5-1 на 506 м/м | E39: 16,357 | F39: Плиты теплоизоляционные пенополистирольные ППС-25 150мм | H39: м3 | I39: =140.294/580*L39 -> 307 | J39: 1,268 | L39: 1,268 | M39: 506 | P39: 9 | R39: Каркас | S39: Перепривязка | IN39: =I39/3 -> 102 | IO39: =I39/3 -> 102 | IP39: =I39/3 -> 102
B40: 2.5.1 | C40: СД00.05.3.05.1 | D40: ЖК "Светлая долина" ПК-5 паркинг 5-1 на 506 м/м | E40: 16,357 | F40: Керамзит М600 | H40: м3 | I40: 6.087 | J40: 1,268 | L40: 1,268 | M40: 506 | P40: 9 | R40: Каркас | S40: Перепривязка | IN40: =I40/3 -> 2 | IO40: =I40/3 -> 2 | IP40: =I40/3 -> 2
B41: 2.5.1 | C41: СД00.05.3.05.1 | D41: ЖК "Светлая долина" ПК-5 паркинг 5-1 на 506 м/м | E41: 16,357 | F41: Плиты теплоизоляционные пенополистирольные экструдированные 100мм | H41: м3 | I41: =14.146/580*L41 -> 31 | J41: 1,268 | L41: 1,268 | M41: 506 | P41: 9 | R41: Каркас | S41: Перепривязка | IN41: 10 | IO41: 10 | IP41: 10
B42: 2.5.1 | C42: СД00.05.3.05.1 | D42: ЖК "Светлая долина" ПК-5 паркинг 5-1 на 506 м/м | E42: 16,357 | F42: Плиты теплоизоляционные пенополистирольные экструдированные 50мм | H42: м3 | I42: =3.939/580*L42 -> 9 | J42: 1,268 | L42: 1,268 | M42: 506 | P42: 9 | R42: Каркас | S42: Перепривязка | IN42: 3 | IO42: 3 | IP42: 3
B43: 2.5.1 | C43: СД00.05.3.05.1 | D43: ЖК "Светлая долина" ПК-5 паркинг 5-1 на 506 м/м | E43: 16,357 | F43: Материал рулонный кровельный гидроизоляционный верхний слой | G43: основа: полиэстeр;температура гибкости на брусе R=25мм не менее -20; толщина 1м² не менее 3,8мм | H43: м2 | I43: =1730.022/580*L43 -> 3,781 | J43: 1,268 | L43: 1,268 | M43: 506 | P43: 9 | R43: Каркас | S43: Перепривязка | IN43: 1,260 | IO43: 1,260 | IP43: 1,260
B44: 2.5.1 | C44: СД00.05.3.05.1 | D44: ЖК "Светлая долина" ПК-5 паркинг 5-1 на 506 м/м | E44: 16,357 | F44: Материал рулонный кровельный гидроизоляционный нижний слой | G44: основа: полиэстeр;температура гибкости на брусе R=25мм не менее -20; толщина 1м² не менее 2,8мм | H44: м2 | I44: =1243.267/580*L44 -> 2,717 | J44: 1,268 | L44: 1,268 | M44: 506 | P44: 9 | R44: Каркас | S44: Перепривязка | IN44: 906 | IO44: 906 | IP44: 906
B45: 2.5.2 | D45: ЖК "Светлая долина" ПК-5 паркинг 5-2 на 506 м/м | F45: Плиты теплоизоляционные пенополистирольные ППС-25 150мм | H45: м3 | I45: =140.294/580*L45 -> 307 | J45: =L45+K45 -> 1,268 | L45: 1,268 | M45: 506 | P45: 9 | R45: Каркас | S45: Перепривязка | IU45: =I45/2 -> 153 | IV45: =I45/2 -> 153
B46: 2.5.2 | D46: ЖК "Светлая долина" ПК-5 паркинг 5-2 на 506 м/м | F46: Керамзит М600 | H46: м3 | I46: 6.087 | J46: =L46+K46 -> 1,268 | L46: 1,268 | M46: 506 | P46: 9 | R46: Каркас | S46: Перепривязка | IU46: =I46/2 -> 3 | IV46: =I46/2 -> 3
B47: 2.5.2 | D47: ЖК "Светлая долина" ПК-5 паркинг 5-2 на 506 м/м | F47: Плиты теплоизоляционные пенополистирольные экструдированные 100мм | H47: м3 | I47: =14.146/580*L47 -> 31 | J47: 1,268 | L47: 1,268 | M47: 506 | P47: 9 | R47: Каркас | S47: Перепривязка | IU47: 15 | IV47: 15
B48: 2.5.2 | D48: ЖК "Светлая долина" ПК-5 паркинг 5-2 на 506 м/м | F48: Плиты теплоизоляционные пенополистирольные экструдированные 50мм | H48: м3 | I48: =3.939/580*L48 -> 9 | J48: 1,268 | L48: 1,268 | M48: 506 | P48: 9 | R48: Каркас | S48: Перепривязка | IU48: 4 | IV48: 4
B49: 2.5.2 | D49: ЖК "Светлая долина" ПК-5 паркинг 5-2 на 506 м/м | F49: Материал рулонный кровельный гидроизоляционный верхний слой | G49: основа: полиэстeр;температура гибкости на брусе R=25мм не менее -20; толщина 1м² не менее 3,8мм | H49: м2 | I49: =1730.022/580*L49 -> 3,781 | J49: 1,268 | L49: 1,268 | M49: 506 | P49: 9 | R49: Каркас | S49: Перепривязка | IU49: 1,891 | IV49: 1,891
B50: 2.5.2 | D50: ЖК "Светлая долина" ПК-5 паркинг 5-2 на 506 м/м | F50: Материал рулонный кровельный гидроизоляционный нижний слой | G50: основа: полиэстeр;температура гибкости на брусе R=25мм не менее -20; толщина 1м² не менее 2,8мм | H50: м2 | I50: =1243.267/580*L50 -> 2,717 | J50: 1,268 | L50: 1,268 | M50: 506 | P50: 9 | R50: Каркас | S50: Перепривязка | IU50: 1,359 | IV50: 1,359
A51: 71 | B51: 3.4.1 | C51: СНМ1.01.0.00.0 | D51: ЖР "Седьмое Небо" ЖК "Мой ритм" Микрорайон М-1 ПК-1 | E51: =SUM(E52:E63) -> 0 | K51: 302,781 | L51: 41,413 | M51: 1,890 | N51: 6,366 | Q51: =SUM(Q52:Q63) -> 12 | T51: =SUM(T52:T63) -> 0 | U51: =SUM(U52:U63) -> 0 | W51: =SUM(IG51,#REF!,#REF!,#REF!,#REF!,#REF!,#REF!,#REF!) ->  | X51: =T51-W51-Y51 ->  | BO51: 2020-08-01 | BP51: 2022-08-30 | BQ51: 2021-03-01 | BR51: 2023-03-30 | BS51: 2021-08-01 | BT51: 2023-09-30 | BU51: 2021-07-01 | BV51: 2023-12-30 | BW51: 2021-07-01 | BX51: 2023-12-30 | BY51: 2021-07-01 | BZ51: 2023-12-30 | CA51: 2021-07-01 | CB51: 2023-12-30 | CC51: 2021-09-01 | CD51: 2023-12-30 | CE51: 2021-09-01 | CF51: 2023-12-30 | CG51: 2021-09-01 | CH51: 2023-12-30 | CI51: 2021-10-01 | CJ51: 2023-12-30 | CK51: 2021-09-01 | CL51: 2023-12-30 | CM51: 2021-09-01 | CN51: 2023-12-30 | CO51: =MIN(CO52:CO63) -> 2021-11-02 | CP51: =MAX(CP52:CP63) -> 2023-12-30 | CQ51: =MIN(CQ52:CQ63) -> 2021-12-01 | CR51: =MAX(CR52:CR63) -> 2024-09-30 | CS51: =MIN(CS52:CS63) -> 2021-12-01 | CT51: =MAX(CT52:CT63) -> 2024-09-30 | CU51: =MIN(CU52:CU63) -> 2021-12-01 | CV51: =MAX(CV52:CV63) -> 2024-09-30 | CW51: =MIN(CW52:CW63) -> 2022-04-25 | CX51: =MAX(CX52:CX63) -> 2025-04-05 | CY51: =MIN(CY52:CY63) -> 2022-05-21 | CZ51: =MAX(CZ52:CZ63) -> 2025-04-05 | DA51: =MIN(DA52:DA63) -> 2022-05-21 | DB51: =MAX(DB52:DB63) -> 2025-04-05 | DC51: =MIN(DC52:DC63) -> 2022-05-21 | DD51: =MAX(DD52:DD63) -> 2025-04-05 | DE51: =MIN(DE52:DE63) -> 2022-05-21 | DF51: =MAX(DF52:DF63) -> 2025-04-05 | DG51: =MIN(DG52:DG63) -> 2022-05-21 | DH51: =MAX(DH52:DH63) -> 2025-04-05 | DI51: =MIN(DI52:DI63) -> 2022-05-21 | DJ51: =MAX(DJ52:DJ63) -> 2025-04-05 | DK51: =MIN(DK52:DK63) -> 2022-05-21 | DL51: =MIN(DL52:DL63) -> 2022-06-04 | DM51: =MAX(DM52:DM63) -> 2025-04-05 | DN51: =MIN(DN52:DN63) -> 2022-05-21 | DO51: =MIN(DO52:DO63) -> 2022-06-04 | DP51: =MAX(DP52:DP63) -> 2025-10-30 | DQ51: =MIN(DQ52:DQ63) -> 2022-05-21 | DR51: =MIN(DR52:DR63) -> 2022-06-04 | DS51: =MAX(DS52:DS63) -> 2025-10-30 | DT51: =MIN(DT52:DT63) -> 2022-05-21 | DU51: =MIN(DU52:DU63) -> 2022-06-04 | DV51: =MAX(DV52:DV63) -> 2025-10-30 | DW51: =MIN(DW52:DW63) -> 2022-05-21 | DX51: =MIN(DX52:DX63) -> 2022-06-04 | DY51: =MAX(DY52:DY63) -> 2024-11-30 | DZ51: 2022-05-21 | EA51: 2022-06-04 | EB51: 2024-11-30 | EG51: 2022-05-21 | EH51: 2022-06-04 | EI51: 2024-11-30 | EJ51: =MIN(EJ52:EJ63) -> 2022-06-10 | EK51: =MIN(EK52:EK63) -> 2022-06-24 | EL51: =MAX(EL52:EL63) -> 2024-11-30 | EN51: =MIN(EN52:EN63) -> 2022-06-10 | EO51: =MIN(EO52:EO63) -> 2022-06-24 | EP51: =MAX(EP52:EP63) -> 2025-08-30 | EQ51: =MIN(EQ52:EQ63) -> 2022-06-10 | ER51: =MIN(ER52:ER63) -> 2022-06-24 | ES51: =MAX(ES52:ES63) -> 2025-08-30 | ET51: =MIN(ET52:ET63) -> 2022-06-10 | EU51: =MIN(EU52:EU63) -> 2022-06-24 | EV51: =MAX(EV52:EV63) -> 2025-08-30 | EW51: 2022-06-10 | EX51: 2022-06-24 | EY51: 2025-08-30 | EZ51: =MIN(EZ52:EZ63) -> 2022-08-26 | FA51: =MIN(FA52:FA63) -> 2022-09-09 | FB51: =MAX(FB52:FB63) -> 2025-11-30 | FC51: =MIN(FC52:FC63) -> 2022-08-26 | FD51: =MIN(FD52:FD63) -> 2022-09-15 | FE51: =MAX(FE52:FE63) -> 2025-11-30 | FF51: 2022-08-26 | FG51: 2022-09-15 | FH51: 2025-11-30 | FI51: =MIN(FI52:FI63) -> 2022-08-26 | FJ51: =MIN(FJ52:FJ63) -> 2022-09-15 | FK51: =MAX(FK52:FK63) -> 2025-11-30 | FL51: =MIN(FL52:FL63) -> 2022-09-15 | FM51: =MIN(FM52:FM63) -> 2022-09-29 | FN51: =MAX(FN52:FN63) -> 2025-11-30 | FO51: 2022-09-15 | FP51: 2022-11-01 | FQ51: 2025-11-01 | FS51: =MIN(FS52:FS63) -> 2022-09-15 | FT51: =MIN(FT52:FT63) -> 2022-11-01 | FU51: =MAX(FU52:FU63) -> 2025-11-30 | FV51: 2022-09-15 | FW51: 2022-11-01 | FX51: 2025-11-30 | FY51: =MIN(FY52:FY63) -> 2022-09-15 | FZ51: =MIN(FZ52:FZ63) -> 2022-11-01 | GA51: =MAX(GA52:GA63) -> 2025-11-30 | GB51: =MIN(GB52:GB63) -> 2022-09-30 | GC51: =MIN(GC52:GC63) -> 2022-11-01 | GD51: =MAX(GD52:GD63) -> 2025-11-30 | GE51: =MIN(GE52:GE63) -> 2022-10-31 | GF51: =MIN(GF52:GF63) -> 2022-11-14 | GG51: =MAX(GG52:GG63) -> 2025-11-30 | GH51: =MIN(GH52:GH63) -> 2022-10-31 | GI51: =MIN(GI52:GI63) -> 2022-11-14 | GJ51: =MAX(GJ52:GJ63) -> 2025-11-30 | GK51: =MIN(GK52:GK63) -> 2022-11-25 | GL51: =MIN(GL52:GL63) -> 2022-12-09 | GM51: =MAX(GM52:GM63) -> 2025-11-30 | GN51: =MIN(GN52:GN63) -> 2022-11-25 | GO51: =MIN(GO52:GO63) -> 2022-12-09 | GP51: =MAX(GP52:GP63) -> 2025-11-30 | GQ51: =MIN(GQ52:GQ63) -> 2022-11-25 | GR51: =MIN(GR52:GR63) -> 2022-12-09 | GS51: =MAX(GS52:GS63) -> 2025-11-30 | GT51: =MIN(GT52:GT63) -> 2022-11-25 | GU51: =MIN(GU52:GU63) -> 2022-12-09 | GV51: =MAX(GV52:GV63) -> 2025-11-30 | GW51: =MIN(GW52:GW63) -> 2022-11-30 | GX51: =MIN(GX52:GX63) -> 2022-12-14 | GY51: =MAX(GY52:GY63) -> 2025-11-30 | GZ51: =MIN(GZ52:GZ63) -> 2022-11-30 | HA51: =MIN(HA52:HA63) -> 2022-12-14 | HB51: =MAX(HB52:HB63) -> 2025-11-30 | HC51: =MIN(HC52:HC63) -> 2022-12-10 | HD51: =MIN(HD52:HD63) -> 2022-12-24 | HE51: =MAX(HE52:HE63) -> 2025-11-30 | HF51: =MIN(HF52:HF63) -> 2022-12-10 | HG51: =MIN(HG52:HG63) -> 2022-12-24 | HH51: =MAX(HH52:HH63) -> 2025-11-30 | HI51: =MIN(HI52:HI63) -> 2022-12-20 | HJ51: =MIN(HJ52:HJ63) -> 2023-01-13 | HK51: =MAX(HK52:HK63) -> 2025-11-30 | HL51: =MIN(HL52:HL63) -> 2022-12-20 | HM51: =MIN(HM52:HM63) -> 2023-01-13 | HN51: =MAX(HN52:HN63) -> 2025-11-30 | HT51: =MAX(HT52:HT63) -> 2026-06-30 | HU51: =SUM(HU52:HU63) -> 0 | HV51: 0 | HW51: 0 | HX51: 0 | HY51: 0 | HZ51: 0 | IA51: =SUM(IA52:IA63) -> 0 | IB51: 0 | IC51: 0 | ID51: 0 | IE51: 0 | IF51: 0 | IG51: 0 | IJ51: 344,194
A52: 72 | B52: 3.4.1.1 | C52: СНМ1.01.1.01.1 | D52: ЖР "Седьмое Небо" ЖК "Мой ритм" Микрорайон М-1 ПК-1 ж/д 1-1 | F52: Плиты теплоизоляционные пенополистирольные ППС-25 150мм | H52: м3 | I52: 582 | J52: =K52+L52 -> 30,245 | K52: 25,747 | L52: 4,497 | M52: 315 | N52: 590 | O52: 3 | P52: 21-26 | Q52: 1 | R52: Монолит | S52: Новое | W52: =SUM(IG52,#REF!,#REF!,#REF!,#REF!,#REF!,#REF!,#REF!) ->  | AC52: Прединвест | AQ52: нет | AR52: 2019-08-10 | AS52: 2019-09-12 | AT52: 2020-05-13 | AU52: 2021-10-30 | AV52: 2022-05-01 | AW52: 2022-06-04 | AX52: Не требуется | AY52: Не требуется | AZ52: 2025-09-30 | BA52: 2025-11-29 | BB52: 2025-12-31 | BC52: нет | BD52: 2019-08-10 | BE52: 2019-09-12 | BF52: 2020-05-13 | BG52: 2021-10-30 | BH52: 2022-08-15 | BI52: 2022-09-26 | BJ52: Не требуется | BK52: Не требуется | BL52: 2025-10-30 | BM52: 2025-12-29 | BN52: 2026-06-30 | BO52: 2020-08-01 | BP52: 2022-08-30 | BQ52: 2021-03-01 | BR52: 2023-03-30 | BS52: 2021-08-01 | BT52: 2023-09-30 | BU52: 2021-07-01 | BV52: 2023-12-30 | BW52: 2021-07-01 | BX52: 2023-12-30 | BY52: 2021-07-01 | BZ52: 2023-12-30 | CA52: 2021-07-01 | CB52: 2023-12-30 | CC52: 2021-09-01 | CD52: 2023-12-30 | CE52: 2021-09-01 | CF52: 2023-12-30 | CG52: 2021-09-01 | CH52: 2023-12-30 | CI52: 2021-10-01 | CJ52: 2023-12-30 | CK52: 2021-09-01 | CL52: 2023-12-30 | CM52: 2021-09-01 | CN52: 2023-12-30 | CO52: 2021-11-02 | CP52: 2023-12-30 | CQ52: 2021-12-01 | CR52: 2024-09-30 | CS52: 2021-12-01 | CT52: 2024-09-30 | CU52: 2021-12-01 | CV52: 2024-09-30 | CW52: 2022-04-25 | CX52: 2025-04-05 | CY52: 2022-05-21 | CZ52: 2025-04-05 | DA52: 2022-05-21 | DB52: 2025-04-05 | DC52: 2022-05-21 | DD52: 2025-04-05 | DE52: 2022-05-21 | DF52: 2025-04-05 | DG52: 2022-05-21 | DH52: 2025-04-05 | DI52: 2022-05-21 | DJ52: 2025-04-05 | DK52: 2022-05-21 | DL52: =DK52+14 -> 2022-06-04 | DM52: 2025-04-05 | DN52: 2022-05-21 | DO52: =DN52+14 -> 2022-06-04 | DP52: 2025-10-30 | DQ52: 2022-05-21 | DR52: =DQ52+14 -> 2022-06-04 | DS52: 2025-10-30 | DT52: 2022-05-21 | DU52: =DT52+14 -> 2022-06-04 | DV52: 2025-10-30 | DW52: 2022-05-21 | DX52: =DW52+14 -> 2022-06-04 | DY52: 2024-11-30 | DZ52: 2022-05-21 | EA52: 2022-06-04 | EB52: 2024-11-30 | EC52: =(DM52-DL52)/30 -> 35 | ED52: =(DM52-DK52)/30 -> 35 | EE52: 2019-08-10 | EF52: 2020-05-13 | EG52: 2022-05-21 | EH52: 2022-06-04 | EI52: 2024-11-30 | EJ52: 2022-06-10 | EK52: =EJ52+14 -> 2022-06-24 | EL52: 2024-11-30 | EM52: =(#REF!-#REF!)/30 ->  | EN52: 2022-06-10 | EO52: =EN52+14 -> 2022-06-24 | EP52: 2025-08-30 | EQ52: 2022-06-10 | ER52: =EQ52+14 -> 2022-06-24 | ES52: 2025-08-30 | ET52: 2022-06-10 | EU52: =ET52+14 -> 2022-06-24 | EV52: 2025-08-30 | EW52: 2022-06-10 | EX52: 2022-06-24 | EY52: 2025-08-30 | EZ52: 2022-08-26 | FA52: =EZ52+14 -> 2022-09-09 | FB52: 2025-11-30 | FC52: 2022-08-26 | FD52: 2022-09-15 | FE52: 2025-11-30 | FF52: 2022-08-26 | FG52: 2022-09-15 | FH52: 2025-11-30 | FI52: 2022-08-26 | FJ52: 2022-09-15 | FK52: 2025-11-30 | FL52: 2022-09-15 | FM52: =FL52+14 -> 2022-09-29 | FN52: 2025-11-30 | FO52: 2022-09-15 | FP52: 2022-11-01 | FQ52: 2025-11-01 | FR52: =(FQ52-FP52)/30 -> 37 | FS52: 2022-09-15 | FT52: 2022-11-01 | FU52: 2025-11-30 | FV52: 2022-09-15 | FW52: 2022-11-01 | FX52: 2025-11-30 | FY52: 2022-09-15 | FZ52: 2022-11-01 | GA52: 2025-11-30 | GB52: 2022-09-30 | GC52: 2022-11-01 | GD52: 2025-11-30 | GE52: 2022-10-31 | GF52: 2022-11-14 | GG52: 2025-11-30 | GH52: 2022-10-31 | GI52: 2022-11-14 | GJ52: 2025-11-30 | GK52: 2022-11-25 | GL52: =GK52+14 -> 2022-12-09 | GM52: 2025-11-30 | GN52: 2022-11-25 | GO52: =GN52+14 -> 2022-12-09 | GP52: 2025-11-30 | GQ52: 2022-11-25 | GR52: =GQ52+14 -> 2022-12-09 | GS52: 2025-11-30 | GT52: 2022-11-25 | GU52: =GT52+14 -> 2022-12-09 | GV52: 2025-11-30 | GW52: 2022-11-30 | GX52: =GW52+14 -> 2022-12-14 | GY52: 2025-11-30 | GZ52: 2022-11-30 | HA52: =GZ52+14 -> 2022-12-14 | HB52: 2025-11-30 | HC52: 2022-12-10 | HD52: =HC52+14 -> 2022-12-24 | HE52: 2025-11-30 | HF52: 2022-12-10 | HG52: =HF52+14 -> 2022-12-24 | HH52: 2025-11-30 | HI52: 2022-12-20 | HJ52: =HI52+24 -> 2023-01-13 | HK52: 2025-11-30 | HL52: 2022-12-20 | HM52: =HL52+24 -> 2023-01-13 | HN52: 2025-11-30 | HP52: АБ-1 | HQ52: ТИГП | HR52: Не определен | HT52: 2026-06-30 | ID52: ● | IG52: =SUM(HU52:IF52) -> 0 | IH52: =IF(YEAR(#REF!)=HU$8,$J52,0) ->  | II52: =IF(AND(YEAR(#REF!)<=HU$8,YEAR(#REF!)>HU$8),$J52,0) ->  | IJ52: =J52 -> 30,245 | IT52: =I52/3 -> 194 | IU52: =I52/3 -> 194 | IV52: =I52/3 -> 194
A53: 72 | B53: 3.4.1.1 | C53: СНМ1.01.1.01.1 | D53: ЖР "Седьмое Небо" ЖК "Мой ритм" Микрорайон М-1 ПК-1 ж/д 1-1 | F53: Керамзит М600 | H53: м3 | I53: 589 | J53: 30,245 | K53: 25,747 | L53: 4,497 | M53: 315 | N53: 590 | O53: 3 | P53: 21-26 | Q53: 1 | R53: Монолит | S53: Новое | W53: =SUM(IG53,#REF!,#REF!,#REF!,#REF!,#REF!,#REF!,#REF!) ->  | AC53: Прединвест | AQ53: нет | AR53: 2019-08-10 | AS53: 2019-09-12 | AT53: 2020-05-13 | AU53: 2021-10-30 | AV53: 2022-05-01 | AW53: 2022-06-04 | AX53: Не требуется | AY53: Не требуется | AZ53: 2025-09-30 | BA53: 2025-11-29 | BB53: 2025-12-31 | BC53: нет | BD53: 2019-08-10 | BE53: 2019-09-12 | BF53: 2020-05-13 | BG53: 2021-10-30 | BH53: 2022-08-15 | BI53: 2022-09-26 | BJ53: Не требуется | BK53: Не требуется | BL53: 2025-10-30 | BM53: 2025-12-29 | BN53: 2026-06-30 | BO53: 2020-08-01 | BP53: 2022-08-30 | BQ53: 2021-03-01 | BR53: 2023-03-30 | BS53: 2021-08-01 | BT53: 2023-09-30 | BU53: 2021-07-01 | BV53: 2023-12-30 | BW53: 2021-07-01 | BX53: 2023-12-30 | BY53: 2021-07-01 | BZ53: 2023-12-30 | CA53: 2021-07-01 | CB53: 2023-12-30 | CC53: 2021-09-01 | CD53: 2023-12-30 | CE53: 2021-09-01 | CF53: 2023-12-30 | CG53: 2021-09-01 | CH53: 2023-12-30 | CI53: 2021-10-01 | CJ53: 2023-12-30 | CK53: 2021-09-01 | CL53: 2023-12-30 | CM53: 2021-09-01 | CN53: 2023-12-30 | CO53: 2021-11-02 | CP53: 2023-12-30 | CQ53: 2021-12-01 | CR53: 2024-09-30 | CS53: 2021-12-01 | CT53: 2024-09-30 | CU53: 2021-12-01 | CV53: 2024-09-30 | CW53: 2022-04-25 | CX53: 2025-04-05 | CY53: 2022-05-21 | CZ53: 2025-04-05 | DA53: 2022-05-21 | DB53: 2025-04-05 | DC53: 2022-05-21 | DD53: 2025-04-05 | DE53: 2022-05-21 | DF53: 2025-04-05 | DG53: 2022-05-21 | DH53: 2025-04-05 | DI53: 2022-05-21 | DJ53: 2025-04-05 | DK53: 2022-05-21 | DL53: 2022-06-04 | DM53: 2025-04-05 | DN53: 2022-05-21 | DO53: 2022-06-04 | DP53: 2025-10-30 | DQ53: 2022-05-21 | DR53: 2022-06-04 | DS53: 2025-10-30 | DT53: 2022-05-21 | DU53: 2022-06-04 | DV53: 2025-10-30 | DW53: 2022-05-21 | DX53: 2022-06-04 | DY53: 2024-11-30 | DZ53: 2022-05-21 | EA53: 2022-06-04 | EB53: 2024-11-30 | EC53: 35 | ED53: 35 | EE53: 2019-08-10 | EF53: 2020-05-13 | EG53: 2022-05-21 | EH53: 2022-06-04 | EI53: 2024-11-30 | EJ53: 2022-06-10 | EK53: 2022-06-24 | EL53: 2024-11-30 | EM53: =(#REF!-#REF!)/30 ->  | EN53: 2022-06-10 | EO53: 2022-06-24 | EP53: 2025-08-30 | EQ53: 2022-06-10 | ER53: 2022-06-24 | ES53: 2025-08-30 | ET53: 2022-06-10 | EU53: 2022-06-24 | EV53: 2025-08-30 | EW53: 2022-06-10 | EX53: 2022-06-24 | EY53: 2025-08-30 | EZ53: 2022-08-26 | FA53: 2022-09-09 | FB53: 2025-11-30 | FC53: 2022-08-26 | FD53: 2022-09-15 | FE53: 2025-11-30 | FF53: 2022-08-26 | FG53: 2022-09-15 | FH53: 2025-11-30 | FI53: 2022-08-26 | FJ53: 2022-09-15 | FK53: 2025-11-30 | FL53: 2022-09-15 | FM53: 2022-09-29 | FN53: 2025-11-30 | FO53: 2022-09-15 | FP53: 2022-11-01 | FQ53: 2025-11-01 | FR53: 37 | FS53: 2022-09-15 | FT53: 2022-11-01 | FU53: 2025-11-30 | FV53: 2022-09-15 | FW53: 2022-11-01 | FX53: 2025-11-30 | FY53: 2022-09-15 | FZ53: 2022-11-01 | GA53: 2025-11-30 | GB53: 2022-09-30 | GC53: 2022-11-01 | GD53: 2025-11-30 | GE53: 2022-10-31 | GF53: 2022-11-14 | GG53: 2025-11-30 | GH53: 2022-10-31 | GI53: 2022-11-14 | GJ53: 2025-11-30 | GK53: 2022-11-25 | GL53: 2022-12-09 | GM53: 2025-11-30 | GN53: 2022-11-25 | GO53: 2022-12-09 | GP53: 2025-11-30 | GQ53: 2022-11-25 | GR53: 2022-12-09 | GS53: 2025-11-30 | GT53: 2022-11-25 | GU53: 2022-12-09 | GV53: 2025-11-30 | GW53: 2022-11-30 | GX53: 2022-12-14 | GY53: 2025-11-30 | GZ53: 2022-11-30 | HA53: 2022-12-14 | HB53: 2025-11-30 | HC53: 2022-12-10 | HD53: 2022-12-24 | HE53: 2025-11-30 | HF53: 2022-12-10 | HG53: 2022-12-24 | HH53: 2025-11-30 | HI53: 2022-12-20 | HJ53: 2023-01-13 | HK53: 2025-11-30 | HL53: 2022-12-20 | HM53: 2023-01-13 | HN53: 2025-11-30 | HP53: АБ-1 | HQ53: ТИГП | HR53: Не определен | HT53: 2026-06-30 | ID53: ● | IG53: 0 | IH53: =IF(YEAR(#REF!)=HU$8,$J53,0) ->  | II53: =IF(AND(YEAR(#REF!)<=HU$8,YEAR(#REF!)>HU$8),$J53,0) ->  | IJ53: 30,245 | IT53: =I53/3 -> 196 | IU53: =I53/3 -> 196 | IV53: =I53/3 -> 196
A54: 72 | B54: 3.4.1.1 | C54: СНМ1.01.1.01.1 | D54: ЖР "Седьмое Небо" ЖК "Мой ритм" Микрорайон М-1 ПК-1 ж/д 1-1 | F54: Плиты теплоизоляционные пенополистирольные экструдированные 100мм | H54: м3 | I54: 59 | J54: 30,245 | K54: 25,747 | L54: 4,497 | M54: 315 | N54: 590 | O54: 3 | P54: 21-26 | Q54: 1 | R54: Монолит | S54: Новое | W54: =SUM(IG54,#REF!,#REF!,#REF!,#REF!,#REF!,#REF!,#REF!) ->  | AC54: Прединвест | AQ54: нет | AR54: 2019-08-10 | AS54: 2019-09-12 | AT54: 2020-05-13 | AU54: 2021-10-30 | AV54: 2022-05-01 | AW54: 2022-06-04 | AX54: Не требуется | AY54: Не требуется | AZ54: 2025-09-30 | BA54: 2025-11-29 | BB54: 2025-12-31 | BC54: нет | BD54: 2019-08-10 | BE54: 2019-09-12 | BF54: 2020-05-13 | BG54: 2021-10-30 | BH54: 2022-08-15 | BI54: 2022-09-26 | BJ54: Не требуется | BK54: Не требуется | BL54: 2025-10-30 | BM54: 2025-12-29 | BN54: 2026-06-30 | BO54: 2020-08-01 | BP54: 2022-08-30 | BQ54: 2021-03-01 | BR54: 2023-03-30 | BS54: 2021-08-01 | BT54: 2023-09-30 | BU54: 2021-07-01 | BV54: 2023-12-30 | BW54: 2021-07-01 | BX54: 2023-12-30 | BY54: 2021-07-01 | BZ54: 2023-12-30 | CA54: 2021-07-01 | CB54: 2023-12-30 | CC54: 2021-09-01 | CD54: 2023-12-30 | CE54: 2021-09-01 | CF54: 2023-12-30 | CG54: 2021-09-01 | CH54: 2023-12-30 | CI54: 2021-10-01 | CJ54: 2023-12-30 | CK54: 2021-09-01 | CL54: 2023-12-30 | CM54: 2021-09-01 | CN54: 2023-12-30 | CO54: 2021-11-02 | CP54: 2023-12-30 | CQ54: 2021-12-01 | CR54: 2024-09-30 | CS54: 2021-12-01 | CT54: 2024-09-30 | CU54: 2021-12-01 | CV54: 2024-09-30 | CW54: 2022-04-25 | CX54: 2025-04-05 | CY54: 2022-05-21 | CZ54: 2025-04-05 | DA54: 2022-05-21 | DB54: 2025-04-05 | DC54: 2022-05-21 | DD54: 2025-04-05 | DE54: 2022-05-21 | DF54: 2025-04-05 | DG54: 2022-05-21 | DH54: 2025-04-05 | DI54: 2022-05-21 | DJ54: 2025-04-05 | DK54: 2022-05-21 | DL54: 2022-06-04 | DM54: 2025-04-05 | DN54: 2022-05-21 | DO54: 2022-06-04 | DP54: 2025-10-30 | DQ54: 2022-05-21 | DR54: 2022-06-04 | DS54: 2025-10-30 | DT54: 2022-05-21 | DU54: 2022-06-04 | DV54: 2025-10-30 | DW54: 2022-05-21 | DX54: 2022-06-04 | DY54: 2024-11-30 | DZ54: 2022-05-21 | EA54: 2022-06-04 | EB54: 2024-11-30 | EC54: 35 | ED54: 35 | EE54: 2019-08-10 | EF54: 2020-05-13 | EG54: 2022-05-21 | EH54: 2022-06-04 | EI54: 2024-11-30 | EJ54: 2022-06-10 | EK54: 2022-06-24 | EL54: 2024-11-30 | EM54: =(#REF!-#REF!)/30 ->  | EN54: 2022-06-10 | EO54: 2022-06-24 | EP54: 2025-08-30 | EQ54: 2022-06-10 | ER54: 2022-06-24 | ES54: 2025-08-30 | ET54: 2022-06-10 | EU54: 2022-06-24 | EV54: 2025-08-30 | EW54: 2022-06-10 | EX54: 2022-06-24 | EY54: 2025-08-30 | EZ54: 2022-08-26 | FA54: 2022-09-09 | FB54: 2025-11-30 | FC54: 2022-08-26 | FD54: 2022-09-15 | FE54: 2025-11-30 | FF54: 2022-08-26 | FG54: 2022-09-15 | FH54: 2025-11-30 | FI54: 2022-08-26 | FJ54: 2022-09-15 | FK54: 2025-11-30 | FL54: 2022-09-15 | FM54: 2022-09-29 | FN54: 2025-11-30 | FO54: 2022-09-15 | FP54: 2022-11-01 | FQ54: 2025-11-01 | FR54: 37 | FS54: 2022-09-15 | FT54: 2022-11-01 | FU54: 2025-11-30 | FV54: 2022-09-15 | FW54: 2022-11-01 | FX54: 2025-11-30 | FY54: 2022-09-15 | FZ54: 2022-11-01 | GA54: 2025-11-30 | GB54: 2022-09-30 | GC54: 2022-11-01 | GD54: 2025-11-30 | GE54: 2022-10-31 | GF54: 2022-11-14 | GG54: 2025-11-30 | GH54: 2022-10-31 | GI54: 2022-11-14 | GJ54: 2025-11-30 | GK54: 2022-11-25 | GL54: 2022-12-09 | GM54: 2025-11-30 | GN54: 2022-11-25 | GO54: 2022-12-09 | GP54: 2025-11-30 | GQ54: 2022-11-25 | GR54: 2022-12-09 | GS54: 2025-11-30 | GT54: 2022-11-25 | GU54: 2022-12-09 | GV54: 2025-11-30 | GW54: 2022-11-30 | GX54: 2022-12-14 | GY54: 2025-11-30 | GZ54: 2022-11-30 | HA54: 2022-12-14 | HB54: 2025-11-30 | HC54: 2022-12-10 | HD54: 2022-12-24 | HE54: 2025-11-30 | HF54: 2022-12-10 | HG54: 2022-12-24 | HH54: 2025-11-30 | HI54: 2022-12-20 | HJ54: 2023-01-13 | HK54: 2025-11-30 | HL54: 2022-12-20 | HM54: 2023-01-13 | HN54: 2025-11-30 | HP54: АБ-1 | HQ54: ТИГП | HR54: Не определен | HT54: 2026-06-30 | ID54: ● | IG54: 0 | IH54: =IF(YEAR(#REF!)=HU$8,$J54,0) ->  | II54: =IF(AND(YEAR(#REF!)<=HU$8,YEAR(#REF!)>HU$8),$J54,0) ->  | IJ54: 30,245 | IT54: 20 | IU54: 20 | IV54: 20
A55: 72 | B55: 3.4.1.1 | C55: СНМ1.01.1.01.1 | D55: ЖР "Седьмое Небо" ЖК "Мой ритм" Микрорайон М-1 ПК-1 ж/д 1-1 | F55: Плиты теплоизоляционные пенополистирольные экструдированные 50мм | H55: м3 | I55: 16 | J55: 30,245 | K55: 25,747 | L55: 4,497 | M55: 315 | N55: 590 | O55: 3 | P55: 21-26 | Q55: 1 | R55: Монолит | S55: Новое | W55: =SUM(IG55,#REF!,#REF!,#REF!,#REF!,#REF!,#REF!,#REF!) ->  | AC55: Прединвест | AQ55: нет | AR55: 2019-08-10 | AS55: 2019-09-12 | AT55: 2020-05-13 | AU55: 2021-10-30 | AV55: 2022-05-01 | AW55: 2022-06-04 | AX55: Не требуется | AY55: Не требуется | AZ55: 2025-09-30 | BA55: 2025-11-29 | BB55: 2025-12-31 | BC55: нет | BD55: 2019-08-10 | BE55: 2019-09-12 | BF55: 2020-05-13 | BG55: 2021-10-30 | BH55: 2022-08-15 | BI55: 2022-09-26 | BJ55: Не требуется | BK55: Не требуется | BL55: 2025-10-30 | BM55: 2025-12-29 | BN55: 2026-06-30 | BO55: 2020-08-01 | BP55: 2022-08-30 | BQ55: 2021-03-01 | BR55: 2023-03-30 | BS55: 2021-08-01 | BT55: 2023-09-30 | BU55: 2021-07-01 | BV55: 2023-12-30 | BW55: 2021-07-01 | BX55: 2023-12-30 | BY55: 2021-07-01 | BZ55: 2023-12-30 | CA55: 2021-07-01 | CB55: 2023-12-30 | CC55: 2021-09-01 | CD55: 2023-12-30 | CE55: 2021-09-01 | CF55: 2023-12-30 | CG55: 2021-09-01 | CH55: 2023-12-30 | CI55: 2021-10-01 | CJ55: 2023-12-30 | CK55: 2021-09-01 | CL55: 2023-12-30 | CM55: 2021-09-01 | CN55: 2023-12-30 | CO55: 2021-11-02 | CP55: 2023-12-30 | CQ55: 2021-12-01 | CR55: 2024-09-30 | CS55: 2021-12-01 | CT55: 2024-09-30 | CU55: 2021-12-01 | CV55: 2024-09-30 | CW55: 2022-04-25 | CX55: 2025-04-05 | CY55: 2022-05-21 | CZ55: 2025-04-05 | DA55: 2022-05-21 | DB55: 2025-04-05 | DC55: 2022-05-21 | DD55: 2025-04-05 | DE55: 2022-05-21 | DF55: 2025-04-05 | DG55: 2022-05-21 | DH55: 2025-04-05 | DI55: 2022-05-21 | DJ55: 2025-04-05 | DK55: 2022-05-21 | DL55: 2022-06-04 | DM55: 2025-04-05 | DN55: 2022-05-21 | DO55: 2022-06-04 | DP55: 2025-10-30 | DQ55: 2022-05-21 | DR55: 2022-06-04 | DS55: 2025-10-30 | DT55: 2022-05-21 | DU55: 2022-06-04 | DV55: 2025-10-30 | DW55: 2022-05-21 | DX55: 2022-06-04 | DY55: 2024-11-30 | DZ55: 2022-05-21 | EA55: 2022-06-04 | EB55: 2024-11-30 | EC55: 35 | ED55: 35 | EE55: 2019-08-10 | EF55: 2020-05-13 | EG55: 2022-05-21 | EH55: 2022-06-04 | EI55: 2024-11-30 | EJ55: 2022-06-10 | EK55: 2022-06-24 | EL55: 2024-11-30 | EM55: =(#REF!-#REF!)/30 ->  | EN55: 2022-06-10 | EO55: 2022-06-24 | EP55: 2025-08-30 | EQ55: 2022-06-10 | ER55: 2022-06-24 | ES55: 2025-08-30 | ET55: 2022-06-10 | EU55: 2022-06-24 | EV55: 2025-08-30 | EW55: 2022-06-10 | EX55: 2022-06-24 | EY55: 2025-08-30 | EZ55: 2022-08-26 | FA55: 2022-09-09 | FB55: 2025-11-30 | FC55: 2022-08-26 | FD55: 2022-09-15 | FE55: 2025-11-30 | FF55: 2022-08-26 | FG55: 2022-09-15 | FH55: 2025-11-30 | FI55: 2022-08-26 | FJ55: 2022-09-15 | FK55: 2025-11-30 | FL55: 2022-09-15 | FM55: 2022-09-29 | FN55: 2025-11-30 | FO55: 2022-09-15 | FP55: 2022-11-01 | FQ55: 2025-11-01 | FR55: 37 | FS55: 2022-09-15 | FT55: 2022-11-01 | FU55: 2025-11-30 | FV55: 2022-09-15 | FW55: 2022-11-01 | FX55: 2025-11-30 | FY55: 2022-09-15 | FZ55: 2022-11-01 | GA55: 2025-11-30 | GB55: 2022-09-30 | GC55: 2022-11-01 | GD55: 2025-11-30 | GE55: 2022-10-31 | GF55: 2022-11-14 | GG55: 2025-11-30 | GH55: 2022-10-31 | GI55: 2022-11-14 | GJ55: 2025-11-30 | GK55: 2022-11-25 | GL55: 2022-12-09 | GM55: 2025-11-30 | GN55: 2022-11-25 | GO55: 2022-12-09 | GP55: 2025-11-30 | GQ55: 2022-11-25 | GR55: 2022-12-09 | GS55: 2025-11-30 | GT55: 2022-11-25 | GU55: 2022-12-09 | GV55: 2025-11-30 | GW55: 2022-11-30 | GX55: 2022-12-14 | GY55: 2025-11-30 | GZ55: 2022-11-30 | HA55: 2022-12-14 | HB55: 2025-11-30 | HC55: 2022-12-10 | HD55: 2022-12-24 | HE55: 2025-11-30 | HF55: 2022-12-10 | HG55: 2022-12-24 | HH55: 2025-11-30 | HI55: 2022-12-20 | HJ55: 2023-01-13 | HK55: 2025-11-30 | HL55: 2022-12-20 | HM55: 2023-01-13 | HN55: 2025-11-30 | HP55: АБ-1 | HQ55: ТИГП | HR55: Не определен | HT55: 2026-06-30 | ID55: ● | IG55: 0 | IH55: =IF(YEAR(#REF!)=HU$8,$J55,0) ->  | II55: =IF(AND(YEAR(#REF!)<=HU$8,YEAR(#REF!)>HU$8),$J55,0) ->  | IJ55: 30,245 | IT55: 5 | IU55: 5 | IV55: 5
A56: 72 | B56: 3.4.1.1 | C56: СНМ1.01.1.01.1 | D56: ЖР "Седьмое Небо" ЖК "Мой ритм" Микрорайон М-1 ПК-1 ж/д 1-1 | F56: Материал рулонный кровельный гидроизоляционный верхний слой | G56: основа: полиэстeр;температура гибкости на брусе R=25мм не менее -20; толщина 1м² не менее 3,8мм | H56: м2 | I56: 7,174 | J56: 30,245 | K56: 25,747 | L56: 4,497 | M56: 315 | N56: 590 | O56: 3 | P56: 21-26 | Q56: 1 | R56: Монолит | S56: Новое | W56: =SUM(IG56,#REF!,#REF!,#REF!,#REF!,#REF!,#REF!,#REF!) ->  | AC56: Прединвест | AQ56: нет | AR56: 2019-08-10 | AS56: 2019-09-12 | AT56: 2020-05-13 | AU56: 2021-10-30 | AV56: 2022-05-01 | AW56: 2022-06-04 | AX56: Не требуется | AY56: Не требуется | AZ56: 2025-09-30 | BA56: 2025-11-29 | BB56: 2025-12-31 | BC56: нет | BD56: 2019-08-10 | BE56: 2019-09-12 | BF56: 2020-05-13 | BG56: 2021-10-30 | BH56: 2022-08-15 | BI56: 2022-09-26 | BJ56: Не требуется | BK56: Не требуется | BL56: 2025-10-30 | BM56: 2025-12-29 | BN56: 2026-06-30 | BO56: 2020-08-01 | BP56: 2022-08-30 | BQ56: 2021-03-01 | BR56: 2023-03-30 | BS56: 2021-08-01 | BT56: 2023-09-30 | BU56: 2021-07-01 | BV56: 2023-12-30 | BW56: 2021-07-01 | BX56: 2023-12-30 | BY56: 2021-07-01 | BZ56: 2023-12-30 | CA56: 2021-07-01 | CB56: 2023-12-30 | CC56: 2021-09-01 | CD56: 2023-12-30 | CE56: 2021-09-01 | CF56: 2023-12-30 | CG56: 2021-09-01 | CH56: 2023-12-30 | CI56: 2021-10-01 | CJ56: 2023-12-30 | CK56: 2021-09-01 | CL56: 2023-12-30 | CM56: 2021-09-01 | CN56: 2023-12-30 | CO56: 2021-11-02 | CP56: 2023-12-30 | CQ56: 2021-12-01 | CR56: 2024-09-30 | CS56: 2021-12-01 | CT56: 2024-09-30 | CU56: 2021-12-01 | CV56: 2024-09-30 | CW56: 2022-04-25 | CX56: 2025-04-05 | CY56: 2022-05-21 | CZ56: 2025-04-05 | DA56: 2022-05-21 | DB56: 2025-04-05 | DC56: 2022-05-21 | DD56: 2025-04-05 | DE56: 2022-05-21 | DF56: 2025-04-05 | DG56: 2022-05-21 | DH56: 2025-04-05 | DI56: 2022-05-21 | DJ56: 2025-04-05 | DK56: 2022-05-21 | DL56: 2022-06-04 | DM56: 2025-04-05 | DN56: 2022-05-21 | DO56: 2022-06-04 | DP56: 2025-10-30 | DQ56: 2022-05-21 | DR56: 2022-06-04 | DS56: 2025-10-30 | DT56: 2022-05-21 | DU56: 2022-06-04 | DV56: 2025-10-30 | DW56: 2022-05-21 | DX56: 2022-06-04 | DY56: 2024-11-30 | DZ56: 2022-05-21 | EA56: 2022-06-04 | EB56: 2024-11-30 | EC56: 35 | ED56: 35 | EE56: 2019-08-10 | EF56: 2020-05-13 | EG56: 2022-05-21 | EH56: 2022-06-04 | EI56: 2024-11-30 | EJ56: 2022-06-10 | EK56: 2022-06-24 | EL56: 2024-11-30 | EM56: =(#REF!-#REF!)/30 ->  | EN56: 2022-06-10 | EO56: 2022-06-24 | EP56: 2025-08-30 | EQ56: 2022-06-10 | ER56: 2022-06-24 | ES56: 2025-08-30 | ET56: 2022-06-10 | EU56: 2022-06-24 | EV56: 2025-08-30 | EW56: 2022-06-10 | EX56: 2022-06-24 | EY56: 2025-08-30 | EZ56: 2022-08-26 | FA56: 2022-09-09 | FB56: 2025-11-30 | FC56: 2022-08-26 | FD56: 2022-09-15 | FE56: 2025-11-30 | FF56: 2022-08-26 | FG56: 2022-09-15 | FH56: 2025-11-30 | FI56: 2022-08-26 | FJ56: 2022-09-15 | FK56: 2025-11-30 | FL56: 2022-09-15 | FM56: 2022-09-29 | FN56: 2025-11-30 | FO56: 2022-09-15 | FP56: 2022-11-01 | FQ56: 2025-11-01 | FR56: 37 | FS56: 2022-09-15 | FT56: 2022-11-01 | FU56: 2025-11-30 | FV56: 2022-09-15 | FW56: 2022-11-01 | FX56: 2025-11-30 | FY56: 2022-09-15 | FZ56: 2022-11-01 | GA56: 2025-11-30 | GB56: 2022-09-30 | GC56: 2022-11-01 | GD56: 2025-11-30 | GE56: 2022-10-31 | GF56: 2022-11-14 | GG56: 2025-11-30 | GH56: 2022-10-31 | GI56: 2022-11-14 | GJ56: 2025-11-30 | GK56: 2022-11-25 | GL56: 2022-12-09 | GM56: 2025-11-30 | GN56: 2022-11-25 | GO56: 2022-12-09 | GP56: 2025-11-30 | GQ56: 2022-11-25 | GR56: 2022-12-09 | GS56: 2025-11-30 | GT56: 2022-11-25 | GU56: 2022-12-09 | GV56: 2025-11-30 | GW56: 2022-11-30 | GX56: 2022-12-14 | GY56: 2025-11-30 | GZ56: 2022-11-30 | HA56: 2022-12-14 | HB56: 2025-11-30 | HC56: 2022-12-10 | HD56: 2022-12-24 | HE56: 2025-11-30 | HF56: 2022-12-10 | HG56: 2022-12-24 | HH56: 2025-11-30 | HI56: 2022-12-20 | HJ56: 2023-01-13 | HK56: 2025-11-30 | HL56: 2022-12-20 | HM56: 2023-01-13 | HN56: 2025-11-30 | HP56: АБ-1 | HQ56: ТИГП | HR56: Не определен | HT56: 2026-06-30 | ID56: ● | IG56: 0 | IH56: =IF(YEAR(#REF!)=HU$8,$J56,0) ->  | II56: =IF(AND(YEAR(#REF!)<=HU$8,YEAR(#REF!)>HU$8),$J56,0) ->  | IJ56: 30,245 | IT56: 2,391 | IU56: 2,391 | IV56: 2,391
A57: 72 | B57: 3.4.1.1 | C57: СНМ1.01.1.01.1 | D57: ЖР "Седьмое Небо" ЖК "Мой ритм" Микрорайон М-1 ПК-1 ж/д 1-1 | F57: Материал рулонный кровельный гидроизоляционный нижний слой | G57: основа: полиэстeр;температура гибкости на брусе R=25мм не менее -20; толщина 1м² не менее 2,8мм | H57: м2 | I57: 5,156 | J57: 30,245 | K57: 25,747 | L57: 4,497 | M57: 315 | N57: 590 | O57: 3 | P57: 21-26 | Q57: 1 | R57: Монолит | S57: Новое | W57: =SUM(IG57,#REF!,#REF!,#REF!,#REF!,#REF!,#REF!,#REF!) ->  | AC57: Прединвест | AQ57: нет | AR57: 2019-08-10 | AS57: 2019-09-12 | AT57: 2020-05-13 | AU57: 2021-10-30 | AV57: 2022-05-01 | AW57: 2022-06-04 | AX57: Не требуется | AY57: Не требуется | AZ57: 2025-09-30 | BA57: 2025-11-29 | BB57: 2025-12-31 | BC57: нет | BD57: 2019-08-10 | BE57: 2019-09-12 | BF57: 2020-05-13 | BG57: 2021-10-30 | BH57: 2022-08-15 | BI57: 2022-09-26 | BJ57: Не требуется | BK57: Не требуется | BL57: 2025-10-30 | BM57: 2025-12-29 | BN57: 2026-06-30 | BO57: 2020-08-01 | BP57: 2022-08-30 | BQ57: 2021-03-01 | BR57: 2023-03-30 | BS57: 2021-08-01 | BT57: 2023-09-30 | BU57: 2021-07-01 | BV57: 2023-12-30 | BW57: 2021-07-01 | BX57: 2023-12-30 | BY57: 2021-07-01 | BZ57: 2023-12-30 | CA57: 2021-07-01 | CB57: 2023-12-30 | CC57: 2021-09-01 | CD57: 2023-12-30 | CE57: 2021-09-01 | CF57: 2023-12-30 | CG57: 2021-09-01 | CH57: 2023-12-30 | CI57: 2021-10-01 | CJ57: 2023-12-30 | CK57: 2021-09-01 | CL57: 2023-12-30 | CM57: 2021-09-01 | CN57: 2023-12-30 | CO57: 2021-11-02 | CP57: 2023-12-30 | CQ57: 2021-12-01 | CR57: 2024-09-30 | CS57: 2021-12-01 | CT57: 2024-09-30 | CU57: 2021-12-01 | CV57: 2024-09-30 | CW57: 2022-04-25 | CX57: 2025-04-05 | CY57: 2022-05-21 | CZ57: 2025-04-05 | DA57: 2022-05-21 | DB57: 2025-04-05 | DC57: 2022-05-21 | DD57: 2025-04-05 | DE57: 2022-05-21 | DF57: 2025-04-05 | DG57: 2022-05-21 | DH57: 2025-04-05 | DI57: 2022-05-21 | DJ57: 2025-04-05 | DK57: 2022-05-21 | DL57: 2022-06-04 | DM57: 2025-04-05 | DN57: 2022-05-21 | DO57: 2022-06-04 | DP57: 2025-10-30 | DQ57: 2022-05-21 | DR57: 2022-06-04 | DS57: 2025-10-30 | DT57: 2022-05-21 | DU57: 2022-06-04 | DV57: 2025-10-30 | DW57: 2022-05-21 | DX57: 2022-06-04 | DY57: 2024-11-30 | DZ57: 2022-05-21 | EA57: 2022-06-04 | EB57: 2024-11-30 | EC57: 35 | ED57: 35 | EE57: 2019-08-10 | EF57: 2020-05-13 | EG57: 2022-05-21 | EH57: 2022-06-04 | EI57: 2024-11-30 | EJ57: 2022-06-10 | EK57: 2022-06-24 | EL57: 2024-11-30 | EM57: =(#REF!-#REF!)/30 ->  | EN57: 2022-06-10 | EO57: 2022-06-24 | EP57: 2025-08-30 | EQ57: 2022-06-10 | ER57: 2022-06-24 | ES57: 2025-08-30 | ET57: 2022-06-10 | EU57: 2022-06-24 | EV57: 2025-08-30 | EW57: 2022-06-10 | EX57: 2022-06-24 | EY57: 2025-08-30 | EZ57: 2022-08-26 | FA57: 2022-09-09 | FB57: 2025-11-30 | FC57: 2022-08-26 | FD57: 2022-09-15 | FE57: 2025-11-30 | FF57: 2022-08-26 | FG57: 2022-09-15 | FH57: 2025-11-30 | FI57: 2022-08-26 | FJ57: 2022-09-15 | FK57: 2025-11-30 | FL57: 2022-09-15 | FM57: 2022-09-29 | FN57: 2025-11-30 | FO57: 2022-09-15 | FP57: 2022-11-01 | FQ57: 2025-11-01 | FR57: 37 | FS57: 2022-09-15 | FT57: 2022-11-01 | FU57: 2025-11-30 | FV57: 2022-09-15 | FW57: 2022-11-01 | FX57: 2025-11-30 | FY57: 2022-09-15 | FZ57: 2022-11-01 | GA57: 2025-11-30 | GB57: 2022-09-30 | GC57: 2022-11-01 | GD57: 2025-11-30 | GE57: 2022-10-31 | GF57: 2022-11-14 | GG57: 2025-11-30 | GH57: 2022-10-31 | GI57: 2022-11-14 | GJ57: 2025-11-30 | GK57: 2022-11-25 | GL57: 2022-12-09 | GM57: 2025-11-30 | GN57: 2022-11-25 | GO57: 2022-12-09 | GP57: 2025-11-30 | GQ57: 2022-11-25 | GR57: 2022-12-09 | GS57: 2025-11-30 | GT57: 2022-11-25 | GU57: 2022-12-09 | GV57: 2025-11-30 | GW57: 2022-11-30 | GX57: 2022-12-14 | GY57: 2025-11-30 | GZ57: 2022-11-30 | HA57: 2022-12-14 | HB57: 2025-11-30 | HC57: 2022-12-10 | HD57: 2022-12-24 | HE57: 2025-11-30 | HF57: 2022-12-10 | HG57: 2022-12-24 | HH57: 2025-11-30 | HI57: 2022-12-20 | HJ57: 2023-01-13 | HK57: 2025-11-30 | HL57: 2022-12-20 | HM57: 2023-01-13 | HN57: 2025-11-30 | HP57: АБ-1 | HQ57: ТИГП | HR57: Не определен | HT57: 2026-06-30 | ID57: ● | IG57: 0 | IH57: =IF(YEAR(#REF!)=HU$8,$J57,0) ->  | II57: =IF(AND(YEAR(#REF!)<=HU$8,YEAR(#REF!)>HU$8),$J57,0) ->  | IJ57: 30,245 | IT57: 1,719 | IU57: 1,719 | IV57: 1,719
A58: 73 | B58: 3.4.1.2 | C58: СНМ1.01.1.01.2 | D58: ЖР "Седьмое Небо" ЖК "Мой ритм" Микрорайон М-1 ПК-1 ж/д 1-2 | F58: Плиты теплоизоляционные пенополистирольные ППС-25 150мм | H58: м3 | I58: =140.294/580*L58 -> 582 | J58: 27,121 | K58: 24,716 | L58: 2,405 | N58: 471 | O58: 7 | P58: 11-18 | Q58: 1 | R58: Монолит | S58: Новое | W58: =SUM(IG58,#REF!,#REF!,#REF!,#REF!,#REF!,#REF!,#REF!) ->  | AC58: Прединвест | AQ58: нет | AR58: 2019-08-10 | AS58: 2019-09-12 | AT58: 2020-05-13 | AU58: 2021-10-30 | AV58: 2022-05-01 | AW58: 2022-06-04 | AX58: Не требуется | AY58: Не требуется | AZ58: 2025-09-30 | BA58: 2025-11-29 | BB58: 2025-12-31 | BC58: нет | BD58: 2019-08-10 | BE58: 2019-09-12 | BF58: 2020-05-13 | BG58: 2021-10-30 | BH58: 2022-08-15 | BI58: 2022-09-26 | BJ58: Не требуется | BK58: Не требуется | BL58: 2025-10-30 | BM58: 2025-12-29 | BN58: 2026-06-30 | BO58: 2020-08-01 | BP58: 2022-08-30 | BQ58: 2021-03-01 | BR58: 2023-03-30 | BS58: 2021-08-01 | BT58: 2023-09-30 | BU58: 2021-07-01 | BV58: 2023-08-30 | BW58: 2021-07-01 | BX58: 2023-08-30 | BY58: 2021-07-01 | BZ58: 2023-08-30 | CA58: 2021-07-01 | CB58: 2023-08-30 | CC58: 2021-09-01 | CD58: 2023-12-30 | CE58: 2021-09-01 | CF58: 2023-12-30 | CG58: 2021-09-01 | CH58: 2023-12-30 | CI58: 2021-10-01 | CJ58: 2023-12-30 | CK58: 2021-09-01 | CL58: 2023-12-30 | CM58: 2021-09-01 | CN58: 2023-12-30 | CO58: 2021-11-02 | CP58: 2023-12-30 | CQ58: 2021-12-01 | CR58: 2024-09-30 | CS58: 2021-12-01 | CT58: 2024-09-30 | CU58: 2021-12-01 | CV58: 2024-09-30 | CW58: 2022-04-25 | CX58: 2025-04-05 | CY58: 2022-05-21 | CZ58: 2025-04-05 | DA58: 2022-05-21 | DB58: 2025-04-05 | DC58: 2022-05-21 | DD58: 2025-04-05 | DE58: 2022-05-21 | DF58: 2025-04-05 | DG58: 2022-05-21 | DH58: 2025-04-05 | DI58: 2022-05-21 | DJ58: 2025-04-05 | DK58: 2022-05-21 | DL58: 2022-06-04 | DM58: 2025-04-05 | DN58: 2022-05-21 | DO58: 2022-06-04 | DP58: 2025-10-30 | DQ58: 2022-05-21 | DR58: 2022-06-04 | DS58: 2025-10-30 | DT58: 2022-05-21 | DU58: 2022-06-04 | DV58: 2025-10-30 | DW58: 2022-05-21 | DX58: 2022-06-04 | DY58: 2024-11-30 | DZ58: 2022-05-21 | EA58: 2022-06-04 | EB58: 2024-11-30 | EC58: 35 | ED58: 35 | EE58: 2019-08-10 | EF58: 2020-05-13 | EG58: 2022-05-21 | EH58: 2022-06-04 | EI58: 2024-11-30 | EJ58: 2022-06-10 | EK58: 2022-06-24 | EL58: 2024-11-30 | EM58: =(#REF!-#REF!)/30 ->  | EN58: 2022-06-10 | EO58: 2022-06-24 | EP58: 2025-08-30 | EQ58: 2022-06-10 | ER58: 2022-06-24 | ES58: 2025-08-30 | ET58: 2022-06-10 | EU58: 2022-06-24 | EV58: 2025-08-30 | EW58: 2022-06-10 | EX58: 2022-06-24 | EY58: 2025-08-30 | EZ58: 2022-08-26 | FA58: 2022-09-09 | FB58: 2025-11-30 | FC58: 2022-08-26 | FD58: 2022-09-15 | FE58: 2025-11-30 | FF58: 2022-08-26 | FG58: 2022-09-15 | FH58: 2025-11-30 | FI58: 2022-08-26 | FJ58: 2022-09-15 | FK58: 2025-11-30 | FL58: 2022-09-15 | FM58: 2022-09-29 | FN58: 2025-11-30 | FO58: 2022-09-15 | FP58: 2022-11-01 | FQ58: 2025-11-01 | FR58: 37 | FS58: 2022-09-15 | FT58: 2022-11-01 | FU58: 2025-11-30 | FV58: 2022-09-15 | FW58: 2022-11-01 | FX58: 2025-11-30 | FY58: 2022-09-15 | FZ58: 2022-11-01 | GA58: 2025-11-30 | GB58: 2022-09-30 | GC58: 2022-11-01 | GD58: 2025-11-30 | GE58: 2022-10-31 | GF58: 2022-11-14 | GG58: 2025-11-30 | GH58: 2022-10-31 | GI58: 2022-11-14 | GJ58: 2025-11-30 | GK58: 2022-11-25 | GL58: 2022-12-09 | GM58: 2025-11-30 | GN58: 2022-11-25 | GO58: 2022-12-09 | GP58: 2025-11-30 | GQ58: 2022-11-25 | GR58: 2022-12-09 | GS58: 2025-11-30 | GT58: 2022-11-25 | GU58: 2022-12-09 | GV58: 2025-11-30 | GW58: 2022-11-30 | GX58: 2022-12-14 | GY58: 2025-11-30 | GZ58: 2022-11-30 | HA58: 2022-12-14 | HB58: 2025-11-30 | HC58: 2022-12-10 | HD58: 2022-12-24 | HE58: 2025-11-30 | HF58: 2022-12-10 | HG58: 2022-12-24 | HH58: 2025-11-30 | HI58: 2022-12-20 | HJ58: 2023-01-13 | HK58: 2025-11-30 | HL58: 2022-12-20 | HM58: 2023-01-13 | HN58: 2025-11-30 | HP58: АБ-1 | HQ58: ТИГП | HR58: Не определен | HT58: 2026-06-30 | ID58: ● | IG58: 0 | IH58: =IF(YEAR(#REF!)=HU$8,$J58,0) ->  | II58: =IF(AND(YEAR(#REF!)<=HU$8,YEAR(#REF!)>HU$8),$J58,0) ->  | IJ58: 27,121 | IT58: 194 | IU58: 194 | IV58: 194
A59: 73 | B59: 3.4.1.2 | C59: СНМ1.01.1.01.2 | D59: ЖР "Седьмое Небо" ЖК "Мой ритм" Микрорайон М-1 ПК-1 ж/д 1-2 | F59: Керамзит М600 | H59: м3 | I59: =142.129/580*L59 -> 589 | J59: 27,121 | K59: 24,716 | L59: 2,405 | N59: 471 | O59: 7 | P59: 11-18 | Q59: 1 | R59: Монолит | S59: Новое | W59: =SUM(IG59,#REF!,#REF!,#REF!,#REF!,#REF!,#REF!,#REF!) ->  | AC59: Прединвест | AQ59: нет | AR59: 2019-08-10 | AS59: 2019-09-12 | AT59: 2020-05-13 | AU59: 2021-10-30 | AV59: 2022-05-01 | AW59: 2022-06-04 | AX59: Не требуется | AY59: Не требуется | AZ59: 2025-09-30 | BA59: 2025-11-29 | BB59: 2025-12-31 | BC59: нет | BD59: 2019-08-10 | BE59: 2019-09-12 | BF59: 2020-05-13 | BG59: 2021-10-30 | BH59: 2022-08-15 | BI59: 2022-09-26 | BJ59: Не требуется | BK59: Не требуется | BL59: 2025-10-30 | BM59: 2025-12-29 | BN59: 2026-06-30 | BO59: 2020-08-01 | BP59: 2022-08-30 | BQ59: 2021-03-01 | BR59: 2023-03-30 | BS59: 2021-08-01 | BT59: 2023-09-30 | BU59: 2021-07-01 | BV59: 2023-08-30 | BW59: 2021-07-01 | BX59: 2023-08-30 | BY59: 2021-07-01 | BZ59: 2023-08-30 | CA59: 2021-07-01 | CB59: 2023-08-30 | CC59: 2021-09-01 | CD59: 2023-12-30 | CE59: 2021-09-01 | CF59: 2023-12-30 | CG59: 2021-09-01 | CH59: 2023-12-30 | CI59: 2021-10-01 | CJ59: 2023-12-30 | CK59: 2021-09-01 | CL59: 2023-12-30 | CM59: 2021-09-01 | CN59: 2023-12-30 | CO59: 2021-11-02 | CP59: 2023-12-30 | CQ59: 2021-12-01 | CR59: 2024-09-30 | CS59: 2021-12-01 | CT59: 2024-09-30 | CU59: 2021-12-01 | CV59: 2024-09-30 | CW59: 2022-04-25 | CX59: 2025-04-05 | CY59: 2022-05-21 | CZ59: 2025-04-05 | DA59: 2022-05-21 | DB59: 2025-04-05 | DC59: 2022-05-21 | DD59: 2025-04-05 | DE59: 2022-05-21 | DF59: 2025-04-05 | DG59: 2022-05-21 | DH59: 2025-04-05 | DI59: 2022-05-21 | DJ59: 2025-04-05 | DK59: 2022-05-21 | DL59: 2022-06-04 | DM59: 2025-04-05 | DN59: 2022-05-21 | DO59: 2022-06-04 | DP59: 2025-10-30 | DQ59: 2022-05-21 | DR59: 2022-06-04 | DS59: 2025-10-30 | DT59: 2022-05-21 | DU59: 2022-06-04 | DV59: 2025-10-30 | DW59: 2022-05-21 | DX59: 2022-06-04 | DY59: 2024-11-30 | DZ59: 2022-05-21 | EA59: 2022-06-04 | EB59: 2024-11-30 | EC59: 35 | ED59: 35 | EE59: 2019-08-10 | EF59: 2020-05-13 | EG59: 2022-05-21 | EH59: 2022-06-04 | EI59: 2024-11-30 | EJ59: 2022-06-10 | EK59: 2022-06-24 | EL59: 2024-11-30 | EM59: =(#REF!-#REF!)/30 ->  | EN59: 2022-06-10 | EO59: 2022-06-24 | EP59: 2025-08-30 | EQ59: 2022-06-10 | ER59: 2022-06-24 | ES59: 2025-08-30 | ET59: 2022-06-10 | EU59: 2022-06-24 | EV59: 2025-08-30 | EW59: 2022-06-10 | EX59: 2022-06-24 | EY59: 2025-08-30 | EZ59: 2022-08-26 | FA59: 2022-09-09 | FB59: 2025-11-30 | FC59: 2022-08-26 | FD59: 2022-09-15 | FE59: 2025-11-30 | FF59: 2022-08-26 | FG59: 2022-09-15 | FH59: 2025-11-30 | FI59: 2022-08-26 | FJ59: 2022-09-15 | FK59: 2025-11-30 | FL59: 2022-09-15 | FM59: 2022-09-29 | FN59: 2025-11-30 | FO59: 2022-09-15 | FP59: 2022-11-01 | FQ59: 2025-11-01 | FR59: 37 | FS59: 2022-09-15 | FT59: 2022-11-01 | FU59: 2025-11-30 | FV59: 2022-09-15 | FW59: 2022-11-01 | FX59: 2025-11-30 | FY59: 2022-09-15 | FZ59: 2022-11-01 | GA59: 2025-11-30 | GB59: 2022-09-30 | GC59: 2022-11-01 | GD59: 2025-11-30 | GE59: 2022-10-31 | GF59: 2022-11-14 | GG59: 2025-11-30 | GH59: 2022-10-31 | GI59: 2022-11-14 | GJ59: 2025-11-30 | GK59: 2022-11-25 | GL59: 2022-12-09 | GM59: 2025-11-30 | GN59: 2022-11-25 | GO59: 2022-12-09 | GP59: 2025-11-30 | GQ59: 2022-11-25 | GR59: 2022-12-09 | GS59: 2025-11-30 | GT59: 2022-11-25 | GU59: 2022-12-09 | GV59: 2025-11-30 | GW59: 2022-11-30 | GX59: 2022-12-14 | GY59: 2025-11-30 | GZ59: 2022-11-30 | HA59: 2022-12-14 | HB59: 2025-11-30 | HC59: 2022-12-10 | HD59: 2022-12-24 | HE59: 2025-11-30 | HF59: 2022-12-10 | HG59: 2022-12-24 | HH59: 2025-11-30 | HI59: 2022-12-20 | HJ59: 2023-01-13 | HK59: 2025-11-30 | HL59: 2022-12-20 | HM59: 2023-01-13 | HN59: 2025-11-30 | HP59: АБ-1 | HQ59: ТИГП | HR59: Не определен | HT59: 2026-06-30 | ID59: ● | IG59: 0 | IH59: =IF(YEAR(#REF!)=HU$8,$J59,0) ->  | II59: =IF(AND(YEAR(#REF!)<=HU$8,YEAR(#REF!)>HU$8),$J59,0) ->  | IJ59: 27,121 | IT59: 196 | IU59: 196 | IV59: 196
A60: 73 | B60: 3.4.1.2 | C60: СНМ1.01.1.01.2 | D60: ЖР "Седьмое Небо" ЖК "Мой ритм" Микрорайон М-1 ПК-1 ж/д 1-2 | F60: Плиты теплоизоляционные пенополистирольные экструдированные 100мм | H60: м3 | I60: =14.146/580*L60 -> 59 | J60: 27,121 | K60: 24,716 | L60: 2,405 | N60: 471 | O60: 7 | P60: 11-18 | Q60: 1 | R60: Монолит | S60: Новое | W60: =SUM(IG60,#REF!,#REF!,#REF!,#REF!,#REF!,#REF!,#REF!) ->  | AC60: Прединвест | AQ60: нет | AR60: 2019-08-10 | AS60: 2019-09-12 | AT60: 2020-05-13 | AU60: 2021-10-30 | AV60: 2022-05-01 | AW60: 2022-06-04 | AX60: Не требуется | AY60: Не требуется | AZ60: 2025-09-30 | BA60: 2025-11-29 | BB60: 2025-12-31 | BC60: нет | BD60: 2019-08-10 | BE60: 2019-09-12 | BF60: 2020-05-13 | BG60: 2021-10-30 | BH60: 2022-08-15 | BI60: 2022-09-26 | BJ60: Не требуется | BK60: Не требуется | BL60: 2025-10-30 | BM60: 2025-12-29 | BN60: 2026-06-30 | BO60: 2020-08-01 | BP60: 2022-08-30 | BQ60: 2021-03-01 | BR60: 2023-03-30 | BS60: 2021-08-01 | BT60: 2023-09-30 | BU60: 2021-07-01 | BV60: 2023-08-30 | BW60: 2021-07-01 | BX60: 2023-08-30 | BY60: 2021-07-01 | BZ60: 2023-08-30 | CA60: 2021-07-01 | CB60: 2023-08-30 | CC60: 2021-09-01 | CD60: 2023-12-30 | CE60: 2021-09-01 | CF60: 2023-12-30 | CG60: 2021-09-01 | CH60: 2023-12-30 | CI60: 2021-10-01 | CJ60: 2023-12-30 | CK60: 2021-09-01 | CL60: 2023-12-30 | CM60: 2021-09-01 | CN60: 2023-12-30 | CO60: 2021-11-02 | CP60: 2023-12-30 | CQ60: 2021-12-01 | CR60: 2024-09-30 | CS60: 2021-12-01 | CT60: 2024-09-30 | CU60: 2021-12-01 | CV60: 2024-09-30 | CW60: 2022-04-25 | CX60: 2025-04-05 | CY60: 2022-05-21 | CZ60: 2025-04-05 | DA60: 2022-05-21 | DB60: 2025-04-05 | DC60: 2022-05-21 | DD60: 2025-04-05 | DE60: 2022-05-21 | DF60: 2025-04-05 | DG60: 2022-05-21 | DH60: 2025-04-05 | DI60: 2022-05-21 | DJ60: 2025-04-05 | DK60: 2022-05-21 | DL60: 2022-06-04 | DM60: 2025-04-05 | DN60: 2022-05-21 | DO60: 2022-06-04 | DP60: 2025-10-30 | DQ60: 2022-05-21 | DR60: 2022-06-04 | DS60: 2025-10-30 | DT60: 2022-05-21 | DU60: 2022-06-04 | DV60: 2025-10-30 | DW60: 2022-05-21 | DX60: 2022-06-04 | DY60: 2024-11-30 | DZ60: 2022-05-21 | EA60: 2022-06-04 | EB60: 2024-11-30 | EC60: 35 | ED60: 35 | EE60: 2019-08-10 | EF60: 2020-05-13 | EG60: 2022-05-21 | EH60: 2022-06-04 | EI60: 2024-11-30 | EJ60: 2022-06-10 | EK60: 2022-06-24 | EL60: 2024-11-30 | EM60: =(#REF!-#REF!)/30 ->  | EN60: 2022-06-10 | EO60: 2022-06-24 | EP60: 2025-08-30 | EQ60: 2022-06-10 | ER60: 2022-06-24 | ES60: 2025-08-30 | ET60: 2022-06-10 | EU60: 2022-06-24 | EV60: 2025-08-30 | EW60: 2022-06-10 | EX60: 2022-06-24 | EY60: 2025-08-30 | EZ60: 2022-08-26 | FA60: 2022-09-09 | FB60: 2025-11-30 | FC60: 2022-08-26 | FD60: 2022-09-15 | FE60: 2025-11-30 | FF60: 2022-08-26 | FG60: 2022-09-15 | FH60: 2025-11-30 | FI60: 2022-08-26 | FJ60: 2022-09-15 | FK60: 2025-11-30 | FL60: 2022-09-15 | FM60: 2022-09-29 | FN60: 2025-11-30 | FO60: 2022-09-15 | FP60: 2022-11-01 | FQ60: 2025-11-01 | FR60: 37 | FS60: 2022-09-15 | FT60: 2022-11-01 | FU60: 2025-11-30 | FV60: 2022-09-15 | FW60: 2022-11-01 | FX60: 2025-11-30 | FY60: 2022-09-15 | FZ60: 2022-11-01 | GA60: 2025-11-30 | GB60: 2022-09-30 | GC60: 2022-11-01 | GD60: 2025-11-30 | GE60: 2022-10-31 | GF60: 2022-11-14 | GG60: 2025-11-30 | GH60: 2022-10-31 | GI60: 2022-11-14 | GJ60: 2025-11-30 | GK60: 2022-11-25 | GL60: 2022-12-09 | GM60: 2025-11-30 | GN60: 2022-11-25 | GO60: 2022-12-09 | GP60: 2025-11-30 | GQ60: 2022-11-25 | GR60: 2022-12-09 | GS60: 2025-11-30 | GT60: 2022-11-25 | GU60: 2022-12-09 | GV60: 2025-11-30 | GW60: 2022-11-30 | GX60: 2022-12-14 | GY60: 2025-11-30 | GZ60: 2022-11-30 | HA60: 2022-12-14 | HB60: 2025-11-30 | HC60: 2022-12-10 | HD60: 2022-12-24 | HE60: 2025-11-30 | HF60: 2022-12-10 | HG60: 2022-12-24 | HH60: 2025-11-30 | HI60: 2022-12-20 | HJ60: 2023-01-13 | HK60: 2025-11-30 | HL60: 2022-12-20 | HM60: 2023-01-13 | HN60: 2025-11-30 | HP60: АБ-1 | HQ60: ТИГП | HR60: Не определен | HT60: 2026-06-30 | ID60: ● | IG60: 0 | IH60: =IF(YEAR(#REF!)=HU$8,$J60,0) ->  | II60: =IF(AND(YEAR(#REF!)<=HU$8,YEAR(#REF!)>HU$8),$J60,0) ->  | IJ60: 27,121 | IT60: 20 | IU60: 20 | IV60: 20
A61: 73 | B61: 3.4.1.2 | C61: СНМ1.01.1.01.2 | D61: ЖР "Седьмое Небо" ЖК "Мой ритм" Микрорайон М-1 ПК-1 ж/д 1-2 | F61: Плиты теплоизоляционные пенополистирольные экструдированные 50мм | H61: м3 | I61: =3.939/580*L61 -> 16 | J61: 27,121 | K61: 24,716 | L61: 2,405 | N61: 471 | O61: 7 | P61: 11-18 | Q61: 1 | R61: Монолит | S61: Новое | W61: =SUM(IG61,#REF!,#REF!,#REF!,#REF!,#REF!,#REF!,#REF!) ->  | AC61: Прединвест | AQ61: нет | AR61: 2019-08-10 | AS61: 2019-09-12 | AT61: 2020-05-13 | AU61: 2021-10-30 | AV61: 2022-05-01 | AW61: 2022-06-04 | AX61: Не требуется | AY61: Не требуется | AZ61: 2025-09-30 | BA61: 2025-11-29 | BB61: 2025-12-31 | BC61: нет | BD61: 2019-08-10 | BE61: 2019-09-12 | BF61: 2020-05-13 | BG61: 2021-10-30 | BH61: 2022-08-15 | BI61: 2022-09-26 | BJ61: Не требуется | BK61: Не требуется | BL61: 2025-10-30 | BM61: 2025-12-29 | BN61: 2026-06-30 | BO61: 2020-08-01 | BP61: 2022-08-30 | BQ61: 2021-03-01 | BR61: 2023-03-30 | BS61: 2021-08-01 | BT61: 2023-09-30 | BU61: 2021-07-01 | BV61: 2023-08-30 | BW61: 2021-07-01 | BX61: 2023-08-30 | BY61: 2021-07-01 | BZ61: 2023-08-30 | CA61: 2021-07-01 | CB61: 2023-08-30 | CC61: 2021-09-01 | CD61: 2023-12-30 | CE61: 2021-09-01 | CF61: 2023-12-30 | CG61: 2021-09-01 | CH61: 2023-12-30 | CI61: 2021-10-01 | CJ61: 2023-12-30 | CK61: 2021-09-01 | CL61: 2023-12-30 | CM61: 2021-09-01 | CN61: 2023-12-30 | CO61: 2021-11-02 | CP61: 2023-12-30 | CQ61: 2021-12-01 | CR61: 2024-09-30 | CS61: 2021-12-01 | CT61: 2024-09-30 | CU61: 2021-12-01 | CV61: 2024-09-30 | CW61: 2022-04-25 | CX61: 2025-04-05 | CY61: 2022-05-21 | CZ61: 2025-04-05 | DA61: 2022-05-21 | DB61: 2025-04-05 | DC61: 2022-05-21 | DD61: 2025-04-05 | DE61: 2022-05-21 | DF61: 2025-04-05 | DG61: 2022-05-21 | DH61: 2025-04-05 | DI61: 2022-05-21 | DJ61: 2025-04-05 | DK61: 2022-05-21 | DL61: 2022-06-04 | DM61: 2025-04-05 | DN61: 2022-05-21 | DO61: 2022-06-04 | DP61: 2025-10-30 | DQ61: 2022-05-21 | DR61: 2022-06-04 | DS61: 2025-10-30 | DT61: 2022-05-21 | DU61: 2022-06-04 | DV61: 2025-10-30 | DW61: 2022-05-21 | DX61: 2022-06-04 | DY61: 2024-11-30 | DZ61: 2022-05-21 | EA61: 2022-06-04 | EB61: 2024-11-30 | EC61: 35 | ED61: 35 | EE61: 2019-08-10 | EF61: 2020-05-13 | EG61: 2022-05-21 | EH61: 2022-06-04 | EI61: 2024-11-30 | EJ61: 2022-06-10 | EK61: 2022-06-24 | EL61: 2024-11-30 | EM61: =(#REF!-#REF!)/30 ->  | EN61: 2022-06-10 | EO61: 2022-06-24 | EP61: 2025-08-30 | EQ61: 2022-06-10 | ER61: 2022-06-24 | ES61: 2025-08-30 | ET61: 2022-06-10 | EU61: 2022-06-24 | EV61: 2025-08-30 | EW61: 2022-06-10 | EX61: 2022-06-24 | EY61: 2025-08-30 | EZ61: 2022-08-26 | FA61: 2022-09-09 | FB61: 2025-11-30 | FC61: 2022-08-26 | FD61: 2022-09-15 | FE61: 2025-11-30 | FF61: 2022-08-26 | FG61: 2022-09-15 | FH61: 2025-11-30 | FI61: 2022-08-26 | FJ61: 2022-09-15 | FK61: 2025-11-30 | FL61: 2022-09-15 | FM61: 2022-09-29 | FN61: 2025-11-30 | FO61: 2022-09-15 | FP61: 2022-11-01 | FQ61: 2025-11-01 | FR61: 37 | FS61: 2022-09-15 | FT61: 2022-11-01 | FU61: 2025-11-30 | FV61: 2022-09-15 | FW61: 2022-11-01 | FX61: 2025-11-30 | FY61: 2022-09-15 | FZ61: 2022-11-01 | GA61: 2025-11-30 | GB61: 2022-09-30 | GC61: 2022-11-01 | GD61: 2025-11-30 | GE61: 2022-10-31 | GF61: 2022-11-14 | GG61: 2025-11-30 | GH61: 2022-10-31 | GI61: 2022-11-14 | GJ61: 2025-11-30 | GK61: 2022-11-25 | GL61: 2022-12-09 | GM61: 2025-11-30 | GN61: 2022-11-25 | GO61: 2022-12-09 | GP61: 2025-11-30 | GQ61: 2022-11-25 | GR61: 2022-12-09 | GS61: 2025-11-30 | GT61: 2022-11-25 | GU61: 2022-12-09 | GV61: 2025-11-30 | GW61: 2022-11-30 | GX61: 2022-12-14 | GY61: 2025-11-30 | GZ61: 2022-11-30 | HA61: 2022-12-14 | HB61: 2025-11-30 | HC61: 2022-12-10 | HD61: 2022-12-24 | HE61: 2025-11-30 | HF61: 2022-12-10 | HG61: 2022-12-24 | HH61: 2025-11-30 | HI61: 2022-12-20 | HJ61: 2023-01-13 | HK61: 2025-11-30 | HL61: 2022-12-20 | HM61: 2023-01-13 | HN61: 2025-11-30 | HP61: АБ-1 | HQ61: ТИГП | HR61: Не определен | HT61: 2026-06-30 | ID61: ● | IG61: 0 | IH61: =IF(YEAR(#REF!)=HU$8,$J61,0) ->  | II61: =IF(AND(YEAR(#REF!)<=HU$8,YEAR(#REF!)>HU$8),$J61,0) ->  | IJ61: 27,121 | IT61: 5 | IU61: 5 | IV61: 5
A62: 73 | B62: 3.4.1.2 | C62: СНМ1.01.1.01.2 | D62: ЖР "Седьмое Небо" ЖК "Мой ритм" Микрорайон М-1 ПК-1 ж/д 1-2 | F62: Материал рулонный кровельный гидроизоляционный верхний слой | G62: основа: полиэстeр;температура гибкости на брусе R=25мм не менее -20; толщина 1м² не менее 3,8мм | H62: м2 | I62: =1730.022/580*L62 -> 7,174 | J62: 27,121 | K62: 24,716 | L62: 2,405 | N62: 471 | O62: 7 | P62: 11-18 | Q62: 1 | R62: Монолит | S62: Новое | W62: =SUM(IG62,#REF!,#REF!,#REF!,#REF!,#REF!,#REF!,#REF!) ->  | AC62: Прединвест | AQ62: нет | AR62: 2019-08-10 | AS62: 2019-09-12 | AT62: 2020-05-13 | AU62: 2021-10-30 | AV62: 2022-05-01 | AW62: 2022-06-04 | AX62: Не требуется | AY62: Не требуется | AZ62: 2025-09-30 | BA62: 2025-11-29 | BB62: 2025-12-31 | BC62: нет | BD62: 2019-08-10 | BE62: 2019-09-12 | BF62: 2020-05-13 | BG62: 2021-10-30 | BH62: 2022-08-15 | BI62: 2022-09-26 | BJ62: Не требуется | BK62: Не требуется | BL62: 2025-10-30 | BM62: 2025-12-29 | BN62: 2026-06-30 | BO62: 2020-08-01 | BP62: 2022-08-30 | BQ62: 2021-03-01 | BR62: 2023-03-30 | BS62: 2021-08-01 | BT62: 2023-09-30 | BU62: 2021-07-01 | BV62: 2023-08-30 | BW62: 2021-07-01 | BX62: 2023-08-30 | BY62: 2021-07-01 | BZ62: 2023-08-30 | CA62: 2021-07-01 | CB62: 2023-08-30 | CC62: 2021-09-01 | CD62: 2023-12-30 | CE62: 2021-09-01 | CF62: 2023-12-30 | CG62: 2021-09-01 | CH62: 2023-12-30 | CI62: 2021-10-01 | CJ62: 2023-12-30 | CK62: 2021-09-01 | CL62: 2023-12-30 | CM62: 2021-09-01 | CN62: 2023-12-30 | CO62: 2021-11-02 | CP62: 2023-12-30 | CQ62: 2021-12-01 | CR62: 2024-09-30 | CS62: 2021-12-01 | CT62: 2024-09-30 | CU62: 2021-12-01 | CV62: 2024-09-30 | CW62: 2022-04-25 | CX62: 2025-04-05 | CY62: 2022-05-21 | CZ62: 2025-04-05 | DA62: 2022-05-21 | DB62: 2025-04-05 | DC62: 2022-05-21 | DD62: 2025-04-05 | DE62: 2022-05-21 | DF62: 2025-04-05 | DG62: 2022-05-21 | DH62: 2025-04-05 | DI62: 2022-05-21 | DJ62: 2025-04-05 | DK62: 2022-05-21 | DL62: 2022-06-04 | DM62: 2025-04-05 | DN62: 2022-05-21 | DO62: 2022-06-04 | DP62: 2025-10-30 | DQ62: 2022-05-21 | DR62: 2022-06-04 | DS62: 2025-10-30 | DT62: 2022-05-21 | DU62: 2022-06-04 | DV62: 2025-10-30 | DW62: 2022-05-21 | DX62: 2022-06-04 | DY62: 2024-11-30 | DZ62: 2022-05-21 | EA62: 2022-06-04 | EB62: 2024-11-30 | EC62: 35 | ED62: 35 | EE62: 2019-08-10 | EF62: 2020-05-13 | EG62: 2022-05-21 | EH62: 2022-06-04 | EI62: 2024-11-30 | EJ62: 2022-06-10 | EK62: 2022-06-24 | EL62: 2024-11-30 | EM62: =(#REF!-#REF!)/30 ->  | EN62: 2022-06-10 | EO62: 2022-06-24 | EP62: 2025-08-30 | EQ62: 2022-06-10 | ER62: 2022-06-24 | ES62: 2025-08-30 | ET62: 2022-06-10 | EU62: 2022-06-24 | EV62: 2025-08-30 | EW62: 2022-06-10 | EX62: 2022-06-24 | EY62: 2025-08-30 | EZ62: 2022-08-26 | FA62: 2022-09-09 | FB62: 2025-11-30 | FC62: 2022-08-26 | FD62: 2022-09-15 | FE62: 2025-11-30 | FF62: 2022-08-26 | FG62: 2022-09-15 | FH62: 2025-11-30 | FI62: 2022-08-26 | FJ62: 2022-09-15 | FK62: 2025-11-30 | FL62: 2022-09-15 | FM62: 2022-09-29 | FN62: 2025-11-30 | FO62: 2022-09-15 | FP62: 2022-11-01 | FQ62: 2025-11-01 | FR62: 37 | FS62: 2022-09-15 | FT62: 2022-11-01 | FU62: 2025-11-30 | FV62: 2022-09-15 | FW62: 2022-11-01 | FX62: 2025-11-30 | FY62: 2022-09-15 | FZ62: 2022-11-01 | GA62: 2025-11-30 | GB62: 2022-09-30 | GC62: 2022-11-01 | GD62: 2025-11-30 | GE62: 2022-10-31 | GF62: 2022-11-14 | GG62: 2025-11-30 | GH62: 2022-10-31 | GI62: 2022-11-14 | GJ62: 2025-11-30 | GK62: 2022-11-25 | GL62: 2022-12-09 | GM62: 2025-11-30 | GN62: 2022-11-25 | GO62: 2022-12-09 | GP62: 2025-11-30 | GQ62: 2022-11-25 | GR62: 2022-12-09 | GS62: 2025-11-30 | GT62: 2022-11-25 | GU62: 2022-12-09 | GV62: 2025-11-30 | GW62: 2022-11-30 | GX62: 2022-12-14 | GY62: 2025-11-30 | GZ62: 2022-11-30 | HA62: 2022-12-14 | HB62: 2025-11-30 | HC62: 2022-12-10 | HD62: 2022-12-24 | HE62: 2025-11-30 | HF62: 2022-12-10 | HG62: 2022-12-24 | HH62: 2025-11-30 | HI62: 2022-12-20 | HJ62: 2023-01-13 | HK62: 2025-11-30 | HL62: 2022-12-20 | HM62: 2023-01-13 | HN62: 2025-11-30 | HP62: АБ-1 | HQ62: ТИГП | HR62: Не определен | HT62: 2026-06-30 | ID62: ● | IG62: 0 | IH62: =IF(YEAR(#REF!)=HU$8,$J62,0) ->  | II62: =IF(AND(YEAR(#REF!)<=HU$8,YEAR(#REF!)>HU$8),$J62,0) ->  | IJ62: 27,121 | IT62: 2,391 | IU62: 2,391 | IV62: 2,391
A63: 73 | B63: 3.4.1.2 | C63: СНМ1.01.1.01.2 | D63: ЖР "Седьмое Небо" ЖК "Мой ритм" Микрорайон М-1 ПК-1 ж/д 1-2 | F63: Материал рулонный кровельный гидроизоляционный нижний слой | G63: основа: полиэстeр;температура гибкости на брусе R=25мм не менее -20; толщина 1м² не менее 2,8мм | H63: м2 | I63: =1243.267/580*L63 -> 5,156 | J63: 27,121 | K63: 24,716 | L63: 2,405 | N63: 471 | O63: 7 | P63: 11-18 | Q63: 1 | R63: Монолит | S63: Новое | W63: =SUM(IG63,#REF!,#REF!,#REF!,#REF!,#REF!,#REF!,#REF!) ->  | AC63: Прединвест | AQ63: нет | AR63: 2019-08-10 | AS63: 2019-09-12 | AT63: 2020-05-13 | AU63: 2021-10-30 | AV63: 2022-05-01 | AW63: 2022-06-04 | AX63: Не требуется | AY63: Не требуется | AZ63: 2025-09-30 | BA63: 2025-11-29 | BB63: 2025-12-31 | BC63: нет | BD63: 2019-08-10 | BE63: 2019-09-12 | BF63: 2020-05-13 | BG63: 2021-10-30 | BH63: 2022-08-15 | BI63: 2022-09-26 | BJ63: Не требуется | BK63: Не требуется | BL63: 2025-10-30 | BM63: 2025-12-29 | BN63: 2026-06-30 | BO63: 2020-08-01 | BP63: 2022-08-30 | BQ63: 2021-03-01 | BR63: 2023-03-30 | BS63: 2021-08-01 | BT63: 2023-09-30 | BU63: 2021-07-01 | BV63: 2023-08-30 | BW63: 2021-07-01 | BX63: 2023-08-30 | BY63: 2021-07-01 | BZ63: 2023-08-30 | CA63: 2021-07-01 | CB63: 2023-08-30 | CC63: 2021-09-01 | CD63: 2023-12-30 | CE63: 2021-09-01 | CF63: 2023-12-30 | CG63: 2021-09-01 | CH63: 2023-12-30 | CI63: 2021-10-01 | CJ63: 2023-12-30 | CK63: 2021-09-01 | CL63: 2023-12-30 | CM63: 2021-09-01 | CN63: 2023-12-30 | CO63: 2021-11-02 | CP63: 2023-12-30 | CQ63: 2021-12-01 | CR63: 2024-09-30 | CS63: 2021-12-01 | CT63: 2024-09-30 | CU63: 2021-12-01 | CV63: 2024-09-30 | CW63: 2022-04-25 | CX63: 2025-04-05 | CY63: 2022-05-21 | CZ63: 2025-04-05 | DA63: 2022-05-21 | DB63: 2025-04-05 | DC63: 2022-05-21 | DD63: 2025-04-05 | DE63: 2022-05-21 | DF63: 2025-04-05 | DG63: 2022-05-21 | DH63: 2025-04-05 | DI63: 2022-05-21 | DJ63: 2025-04-05 | DK63: 2022-05-21 | DL63: 2022-06-04 | DM63: 2025-04-05 | DN63: 2022-05-21 | DO63: 2022-06-04 | DP63: 2025-10-30 | DQ63: 2022-05-21 | DR63: 2022-06-04 | DS63: 2025-10-30 | DT63: 2022-05-21 | DU63: 2022-06-04 | DV63: 2025-10-30 | DW63: 2022-05-21 | DX63: 2022-06-04 | DY63: 2024-11-30 | DZ63: 2022-05-21 | EA63: 2022-06-04 | EB63: 2024-11-30 | EC63: 35 | ED63: 35 | EE63: 2019-08-10 | EF63: 2020-05-13 | EG63: 2022-05-21 | EH63: 2022-06-04 | EI63: 2024-11-30 | EJ63: 2022-06-10 | EK63: 2022-06-24 | EL63: 2024-11-30 | EM63: =(#REF!-#REF!)/30 ->  | EN63: 2022-06-10 | EO63: 2022-06-24 | EP63: 2025-08-30 | EQ63: 2022-06-10 | ER63: 2022-06-24 | ES63: 2025-08-30 | ET63: 2022-06-10 | EU63: 2022-06-24 | EV63: 2025-08-30 | EW63: 2022-06-10 | EX63: 2022-06-24 | EY63: 2025-08-30 | EZ63: 2022-08-26 | FA63: 2022-09-09 | FB63: 2025-11-30 | FC63: 2022-08-26 | FD63: 2022-09-15 | FE63: 2025-11-30 | FF63: 2022-08-26 | FG63: 2022-09-15 | FH63: 2025-11-30 | FI63: 2022-08-26 | FJ63: 2022-09-15 | FK63: 2025-11-30 | FL63: 2022-09-15 | FM63: 2022-09-29 | FN63: 2025-11-30 | FO63: 2022-09-15 | FP63: 2022-11-01 | FQ63: 2025-11-01 | FR63: 37 | FS63: 2022-09-15 | FT63: 2022-11-01 | FU63: 2025-11-30 | FV63: 2022-09-15 | FW63: 2022-11-01 | FX63: 2025-11-30 | FY63: 2022-09-15 | FZ63: 2022-11-01 | GA63: 2025-11-30 | GB63: 2022-09-30 | GC63: 2022-11-01 | GD63: 2025-11-30 | GE63: 2022-10-31 | GF63: 2022-11-14 | GG63: 2025-11-30 | GH63: 2022-10-31 | GI63: 2022-11-14 | GJ63: 2025-11-30 | GK63: 2022-11-25 | GL63: 2022-12-09 | GM63: 2025-11-30 | GN63: 2022-11-25 | GO63: 2022-12-09 | GP63: 2025-11-30 | GQ63: 2022-11-25 | GR63: 2022-12-09 | GS63: 2025-11-30 | GT63: 2022-11-25 | GU63: 2022-12-09 | GV63: 2025-11-30 | GW63: 2022-11-30 | GX63: 2022-12-14 | GY63: 2025-11-30 | GZ63: 2022-11-30 | HA63: 2022-12-14 | HB63: 2025-11-30 | HC63: 2022-12-10 | HD63: 2022-12-24 | HE63: 2025-11-30 | HF63: 2022-12-10 | HG63: 2022-12-24 | HH63: 2025-11-30 | HI63: 2022-12-20 | HJ63: 2023-01-13 | HK63: 2025-11-30 | HL63: 2022-12-20 | HM63: 2023-01-13 | HN63: 2025-11-30 | HP63: АБ-1 | HQ63: ТИГП | HR63: Не определен | HT63: 2026-06-30 | ID63: ● | IG63: 0 | IH63: =IF(YEAR(#REF!)=HU$8,$J63,0) ->  | II63: =IF(AND(YEAR(#REF!)<=HU$8,YEAR(#REF!)>HU$8),$J63,0) ->  | IJ63: 27,121 | IT63: 1,719 | IU63: 1,719 | IV63: 1,719
A64: 266 | B64: 13.1.2 | C64: СК00.01.0.00.0 | D64: ЖК "Салават Купере" Квартал №1 | E64: =SUM(E65:E131) -> 0 | K64: =SUM(K65:K131) -> 503,345 | L64: =SUM(L65:L131) -> 34,069 | M64: =SUM(M65:M131) -> 0 | N64: =SUM(N65:N131) -> 9,568 | Q64: =SUM(Q65:Q131) -> 67 | T64: =SUM(T65:T131) -> 338,398 | U64: =SUM(U65:U131) -> 265,981 | V64: =SUM(V65:V131) -> 24,871 | W64: =SUM(IG64,#REF!,#REF!,#REF!,#REF!,#REF!,#REF!,#REF!) ->  | Y64: =SUM(Y65:Y131) -> 0 | Z64: =IG64+#REF!+#REF!+#REF!+#REF!+#REF!+#REF!+#REF! ->  | AA64: =J64-Z64 ->  | BO64: 2020-08-01 | BP64: 2022-06-30 | BQ64: 2020-07-01 | BR64: 2022-11-30 | BS64: 2020-07-01 | BT64: 2022-08-30 | BU64: 2020-06-01 | BV64: 2022-07-03 | BW64: 2020-06-01 | BX64: 2022-07-03 | BY64: 2020-06-01 | BZ64: 2022-07-03 | CA64: 2020-06-01 | CB64: 2022-07-03 | CC64: 2020-06-01 | CD64: 2022-07-03 | CE64: 2020-06-01 | CF64: 2022-07-03 | CG64: 2020-06-01 | CH64: 2022-07-03 | CI64: 2020-06-01 | CJ64: 2022-07-03 | CK64: 2020-06-01 | CL64: 2022-07-03 | CM64: 2020-06-01 | CN64: 2022-07-03 | CO64: =MIN(CO65:CO131) -> 00:00:00 | CP64: =MAX(CP65:CP131) -> 00:00:00 | CQ64: =MIN(CQ65:CQ131) -> 00:00:00 | CR64: =MAX(CR65:CR131) -> 00:00:00 | CS64: =MIN(CS65:CS131) -> 00:00:00 | CT64: =MAX(CT65:CT131) -> 00:00:00 | CU64: =MIN(CU65:CU131) -> 00:00:00 | CV64: =MAX(CV65:CV131) -> 00:00:00 | CW64: =MIN(CW65:CW131) -> 00:00:00 | CX64: =MAX(CX65:CX131) -> 00:00:00 | CY64: =MIN(CY65:CY131) -> 00:00:00 | CZ64: =MAX(CZ65:CZ131) -> 00:00:00 | DA64: =MIN(DA65:DA131) -> 00:00:00 | DB64: =MAX(DB65:DB131) -> 00:00:00 | DC64: =MIN(DC65:DC131) -> 00:00:00 | DD64: =MAX(DD65:DD131) -> 00:00:00 | DE64: =MIN(DE65:DE131) -> 00:00:00 | DF64: =MAX(DF65:DF131) -> 00:00:00 | DG64: =MIN(DG65:DG131) -> 00:00:00 | DH64: =MAX(DH65:DH131) -> 00:00:00 | DI64: =MIN(DI65:DI131) -> 00:00:00 | DJ64: =MAX(DJ65:DJ131) -> 00:00:00 | DK64: =MIN(DK65:DK131) -> 00:00:00 | DL64: =MIN(DL65:DL131) -> 00:00:00 | DM64: =MAX(DM65:DM131) -> 00:00:00 | DN64: =MIN(DN65:DN131) -> 00:00:00 | DO64: =MIN(DO65:DO131) -> 00:00:00 | DP64: =MAX(DP65:DP131) -> 00:00:00 | DQ64: =MIN(DQ65:DQ131) -> 00:00:00 | DR64: =MIN(DR65:DR131) -> 00:00:00 | DS64: =MAX(DS65:DS131) -> 00:00:00 | DT64: =MIN(DT65:DT131) -> 00:00:00 | DU64: =MIN(DU65:DU131) -> 00:00:00 | DV64: =MAX(DV65:DV131) -> 00:00:00 | DW64: =MIN(DW65:DW131) -> 00:00:00 | DX64: =MIN(DX65:DX131) -> 00:00:00 | DY64: =MAX(DY65:DY131) -> 00:00:00 | DZ64: 2020-07-01 | EA64: 2020-06-01 | EB64: 2022-07-03 | EG64: 2020-07-01 | EH64: 2020-06-01 | EI64: 2022-07-03 | EJ64: =MIN(EJ65:EJ131) -> 00:00:00 | EK64: =MIN(EK65:EK131) -> 00:00:00 | EL64: =MAX(EL65:EL131) -> 00:00:00 | EN64: =MIN(EN65:EN131) -> 00:00:00 | EO64: =MIN(EO65:EO131) -> 00:00:00 | EP64: =MAX(EP65:EP131) -> 00:00:00 | EQ64: =MIN(EQ65:EQ131) -> 00:00:00 | ER64: =MIN(ER65:ER131) -> 00:00:00 | ES64: =MAX(ES65:ES131) -> 00:00:00 | ET64: =MIN(ET65:ET131) -> 00:00:00 | EU64: =MIN(EU65:EU131) -> 00:00:00 | EV64: =MAX(EV65:EV131) -> 00:00:00 | EW64: 2020-07-01 | EX64: 2020-07-01 | EY64: 2022-07-03 | EZ64: =MIN(EZ65:EZ131) -> 00:00:00 | FA64: =MIN(FA65:FA131) -> 00:00:00 | FB64: =MAX(FB65:FB131) -> 00:00:00 | FC64: =MIN(FC65:FC131) -> 00:00:00 | FD64: =MIN(FD65:FD131) -> 00:00:00 | FE64: =MAX(FE65:FE131) -> 00:00:00 | FF64: 2020-07-01 | FG64: 2020-07-01 | FH64: 2022-07-03 | FI64: =MIN(FI65:FI131) -> 00:00:00 | FJ64: =MIN(FJ65:FJ131) -> 00:00:00 | FK64: =MAX(FK65:FK131) -> 00:00:00 | FL64: =MIN(FL65:FL131) -> 00:00:00 | FM64: =MIN(FM65:FM131) -> 00:00:00 | FN64: =MAX(FN65:FN131) -> 00:00:00 | FO64: 2020-07-01 | FP64: 2020-07-01 | FQ64: 2022-07-03 | FS64: =MIN(FS65:FS131) -> 2022-08-01 | FT64: =MIN(FT65:FT131) -> 2022-08-15 | FU64: =MAX(FU65:FU131) -> 2025-01-21 | FV64: 2022-09-30 | FW64: 2022-07-15 | FX64: 2024-12-30 | FY64: =MIN(FY65:FY131) -> 2022-09-30 | FZ64: =MIN(FZ65:FZ131) -> 2022-07-15 | GA64: =MAX(GA65:GA131) -> 2024-12-30 | GB64: =MIN(GB65:GB131) -> 2022-09-30 | GC64: =MIN(GC65:GC131) -> 2022-07-15 | GD64: =MAX(GD65:GD131) -> 2024-12-30 | GE64: =MIN(GE65:GE131) -> 2022-09-30 | GF64: =MIN(GF65:GF131) -> 2022-07-15 | GG64: =MAX(GG65:GG131) -> 2024-12-30 | GH64: =MIN(GH65:GH131) -> 2022-09-30 | GI64: =MIN(GI65:GI131) -> 2022-07-15 | GJ64: =MAX(GJ65:GJ131) -> 2024-12-30 | GK64: =MIN(GK65:GK131) -> 2022-09-30 | GL64: =MIN(GL65:GL131) -> 2022-07-01 | GM64: =MAX(GM65:GM131) -> 2024-12-30 | GN64: =MIN(GN65:GN131) -> 2022-09-30 | GO64: =MIN(GO65:GO131) -> 2022-07-01 | GP64: =MAX(GP65:GP131) -> 2024-10-30 | GQ64: =MIN(GQ65:GQ131) -> 2022-09-30 | GR64: =MIN(GR65:GR131) -> 2022-07-01 | GS64: =MAX(GS65:GS131) -> 2024-10-30 | GT64: =MIN(GT65:GT131) -> 2022-09-30 | GU64: =MIN(GU65:GU131) -> 2022-07-01 | GV64: =MAX(GV65:GV131) -> 2024-10-30 | GW64: =MIN(GW65:GW131) -> 2022-09-30 | GX64: =MIN(GX65:GX131) -> 2022-07-01 | GY64: =MAX(GY65:GY131) -> 2025-11-30 | GZ64: =MIN(GZ65:GZ131) -> 2022-09-30 | HA64: =MIN(HA65:HA131) -> 2022-07-01 | HB64: =MAX(HB65:HB131) -> 2025-11-30 | HC64: =MIN(HC65:HC131) -> 2022-09-30 | HD64: =MIN(HD65:HD131) -> 2022-07-01 | HE64: =MAX(HE65:HE131) -> 2024-12-30 | HF64: =MIN(HF65:HF131) -> 2022-11-30 | HG64: =MIN(HG65:HG131) -> 2022-07-01 | HH64: =MAX(HH65:HH131) -> 2024-12-30 | HI64: =MIN(HI65:HI131) -> 2022-11-30 | HJ64: =MIN(HJ65:HJ131) -> 2022-07-01 | HK64: =MAX(HK65:HK131) -> 2024-12-30 | HL64: =MIN(HL65:HL131) -> 2022-11-30 | HM64: =MIN(HM65:HM131) -> 2022-07-01 | HN64: =MAX(HN65:HN131) -> 2024-12-30 | HU64: =SUM(HU65:HU131) -> 0 | HV64: 0 | HW64: 0 | HX64: 0 | HY64: 0 | HZ64: 0 | IA64: 0 | IB64: 0 | IC64: 0 | ID64: 0 | IE64: 0 | IF64: 0 | IG64: 0 | IJ64: 0
A65: 279 | B65: 13.1.2.1 | C65: СК00.01.1.05.1 | D65: ЖК "Салават Купере" Квартал №1 ж/д 5-1 | F65: Плиты теплоизоляционные пенополистирольные ППС-25 150мм | H65: м3 | I65: 111 | J65: 5,325 | K65: 4,915 | L65: 411 | N65: 72 | Q65: 1 | R65: КПД, 1 каркас | S65: Перепривязка | T65: 3,637 | U65: =T65*0.786 -> 2,859 | V65: 300 | W65: =SUM(IG65,#REF!,#REF!,#REF!,#REF!,#REF!,#REF!,#REF!) ->  | FS65: 2022-08-01 | FT65: =FS65+14 -> 2022-08-15 | FU65: 2023-11-24 | FV65: 2022-09-30 | FW65: 2022-07-15 | FX65: 2023-10-30 | FY65: 2022-09-30 | FZ65: 2022-07-15 | GA65: 2023-10-30 | GB65: 2022-09-30 | GC65: 2022-07-15 | GD65: 2023-10-30 | GE65: 2022-09-30 | GF65: 2022-07-15 | GG65: 2023-10-30 | GH65: 2022-09-30 | GI65: 2022-07-15 | GJ65: 2023-10-30 | GK65: 2022-09-30 | GL65: 2022-07-01 | GM65: 2023-10-30 | GN65: 2022-09-30 | GO65: 2022-07-01 | GP65: 2023-10-30 | GQ65: 2022-09-30 | GR65: 2022-07-01 | GS65: 2023-10-30 | GT65: 2022-09-30 | GU65: 2022-07-01 | GV65: 2023-10-30 | GW65: 2022-09-30 | GX65: 2022-07-01 | GY65: 2023-10-30 | GZ65: 2022-09-30 | HA65: 2022-07-01 | HB65: 2023-10-30 | HC65: 2022-09-30 | HD65: 2022-07-01 | HE65: 2023-10-30 | HF65: 2022-11-30 | HG65: 2022-07-01 | HH65: 2023-10-30 | HI65: 2022-11-30 | HJ65: 2022-07-01 | HK65: 2023-10-30 | HL65: 2022-11-30 | HM65: 2022-07-01 | HN65: 2023-10-30 | HP65: АБ-1 | HQ65: АБ-1 | HR65: АБСт | HT65: - | IG65: =SUM(HU65:IF65) -> 0 | IH65: =IF(YEAR(#REF!)=HU$8,$J65,0) ->  | II65: =IF(AND(YEAR(#REF!)<=HU$8,YEAR(#REF!)>HU$8),$J65,0) ->  | IM65: =I65 -> 111 | IS65: ▪
A66: 279 | B66: 13.1.2.1 | C66: СК00.01.1.05.1 | D66: ЖК "Салават Купере" Квартал №1 ж/д 5-1 | F66: Керамзит М600 | H66: м3 | I66: =104.47 -> 104 | J66: 5,325 | K66: 4,915 | L66: 411 | N66: 72 | Q66: 1 | R66: КПД, 1 каркас | S66: Перепривязка | T66: 3,637 | U66: =T66*0.786 -> 2,859 | V66: 300 | W66: =SUM(IG66,#REF!,#REF!,#REF!,#REF!,#REF!,#REF!,#REF!) ->  | FS66: 2022-08-01 | FT66: =FS66+14 -> 2022-08-15 | FU66: 2023-11-24 | FV66: 2022-09-30 | FW66: 2022-07-15 | FX66: 2023-10-30 | FY66: 2022-09-30 | FZ66: 2022-07-15 | GA66: 2023-10-30 | GB66: 2022-09-30 | GC66: 2022-07-15 | GD66: 2023-10-30 | GE66: 2022-09-30 | GF66: 2022-07-15 | GG66: 2023-10-30 | GH66: 2022-09-30 | GI66: 2022-07-15 | GJ66: 2023-10-30 | GK66: 2022-09-30 | GL66: 2022-07-01 | GM66: 2023-10-30 | GN66: 2022-09-30 | GO66: 2022-07-01 | GP66: 2023-10-30 | GQ66: 2022-09-30 | GR66: 2022-07-01 | GS66: 2023-10-30 | GT66: 2022-09-30 | GU66: 2022-07-01 | GV66: 2023-10-30 | GW66: 2022-09-30 | GX66: 2022-07-01 | GY66: 2023-10-30 | GZ66: 2022-09-30 | HA66: 2022-07-01 | HB66: 2023-10-30 | HC66: 2022-09-30 | HD66: 2022-07-01 | HE66: 2023-10-30 | HF66: 2022-11-30 | HG66: 2022-07-01 | HH66: 2023-10-30 | HI66: 2022-11-30 | HJ66: 2022-07-01 | HK66: 2023-10-30 | HL66: 2022-11-30 | HM66: 2022-07-01 | HN66: 2023-10-30 | HP66: АБ-1 | HQ66: АБ-1 | HR66: АБСт | HT66: - | IG66: =SUM(HU66:IF66) -> 0 | IH66: =IF(YEAR(#REF!)=HU$8,$J66,0) ->  | II66: =IF(AND(YEAR(#REF!)<=HU$8,YEAR(#REF!)>HU$8),$J66,0) ->  | IM66: =I66 -> 104 | IS66: ▪
A67: 279 | B67: 13.1.2.1 | C67: СК00.01.1.05.1 | D67: ЖК "Салават Купере" Квартал №1 ж/д 5-1 | F67: Плиты теплоизоляционные пенополистирольные экструдированные 100мм | H67: м3 | I67: 14 | J67: 5,325 | K67: 4,915 | L67: 411 | N67: 72 | Q67: 1 | R67: КПД, 1 каркас | S67: Перепривязка | T67: 3,637 | U67: 2,859 | V67: 300 | W67: =SUM(IG67,#REF!,#REF!,#REF!,#REF!,#REF!,#REF!,#REF!) ->  | FS67: 2022-08-01 | FT67: 2022-08-15 | FU67: 2023-11-24 | FV67: 2022-09-30 | FW67: 2022-07-15 | FX67: 2023-10-30 | FY67: 2022-09-30 | FZ67: 2022-07-15 | GA67: 2023-10-30 | GB67: 2022-09-30 | GC67: 2022-07-15 | GD67: 2023-10-30 | GE67: 2022-09-30 | GF67: 2022-07-15 | GG67: 2023-10-30 | GH67: 2022-09-30 | GI67: 2022-07-15 | GJ67: 2023-10-30 | GK67: 2022-09-30 | GL67: 2022-07-01 | GM67: 2023-10-30 | GN67: 2022-09-30 | GO67: 2022-07-01 | GP67: 2023-10-30 | GQ67: 2022-09-30 | GR67: 2022-07-01 | GS67: 2023-10-30 | GT67: 2022-09-30 | GU67: 2022-07-01 | GV67: 2023-10-30 | GW67: 2022-09-30 | GX67: 2022-07-01 | GY67: 2023-10-30 | GZ67: 2022-09-30 | HA67: 2022-07-01 | HB67: 2023-10-30 | HC67: 2022-09-30 | HD67: 2022-07-01 | HE67: 2023-10-30 | HF67: 2022-11-30 | HG67: 2022-07-01 | HH67: 2023-10-30 | HI67: 2022-11-30 | HJ67: 2022-07-01 | HK67: 2023-10-30 | HL67: 2022-11-30 | HM67: 2022-07-01 | HN67: 2023-10-30 | HP67: АБ-1 | HQ67: АБ-1 | HR67: АБСт | HT67: - | IG67: 0 | IH67: =IF(YEAR(#REF!)=HU$8,$J67,0) ->  | II67: =IF(AND(YEAR(#REF!)<=HU$8,YEAR(#REF!)>HU$8),$J67,0) ->  | IM67: 14 | IS67: ▪
A68: 279 | B68: 13.1.2.1 | C68: СК00.01.1.05.1 | D68: ЖК "Салават Купере" Квартал №1 ж/д 5-1 | F68: Плиты теплоизоляционные пенополистирольные экструдированные 50мм | H68: м3 | I68: 4 | J68: 5,325 | K68: 4,915 | L68: 411 | N68: 72 | Q68: 1 | R68: КПД, 1 каркас | S68: Перепривязка | T68: 3,637 | U68: =T68*0.786 -> 2,859 | V68: 300 | W68: =SUM(IG68,#REF!,#REF!,#REF!,#REF!,#REF!,#REF!,#REF!) ->  | FS68: 2022-08-01 | FT68: =FS68+14 -> 2022-08-15 | FU68: 2023-11-24 | FV68: 2022-09-30 | FW68: 2022-07-15 | FX68: 2023-10-30 | FY68: 2022-09-30 | FZ68: 2022-07-15 | GA68: 2023-10-30 | GB68: 2022-09-30 | GC68: 2022-07-15 | GD68: 2023-10-30 | GE68: 2022-09-30 | GF68: 2022-07-15 | GG68: 2023-10-30 | GH68: 2022-09-30 | GI68: 2022-07-15 | GJ68: 2023-10-30 | GK68: 2022-09-30 | GL68: 2022-07-01 | GM68: 2023-10-30 | GN68: 2022-09-30 | GO68: 2022-07-01 | GP68: 2023-10-30 | GQ68: 2022-09-30 | GR68: 2022-07-01 | GS68: 2023-10-30 | GT68: 2022-09-30 | GU68: 2022-07-01 | GV68: 2023-10-30 | GW68: 2022-09-30 | GX68: 2022-07-01 | GY68: 2023-10-30 | GZ68: 2022-09-30 | HA68: 2022-07-01 | HB68: 2023-10-30 | HC68: 2022-09-30 | HD68: 2022-07-01 | HE68: 2023-10-30 | HF68: 2022-11-30 | HG68: 2022-07-01 | HH68: 2023-10-30 | HI68: 2022-11-30 | HJ68: 2022-07-01 | HK68: 2023-10-30 | HL68: 2022-11-30 | HM68: 2022-07-01 | HN68: 2023-10-30 | HP68: АБ-1 | HQ68: АБ-1 | HR68: АБСт | HT68: - | IG68: =SUM(HU68:IF68) -> 0 | IH68: =IF(YEAR(#REF!)=HU$8,$J68,0) ->  | II68: =IF(AND(YEAR(#REF!)<=HU$8,YEAR(#REF!)>HU$8),$J68,0) ->  | IM68: 4 | IS68: ▪
A69: 279 | B69: 13.1.2.1 | C69: СК00.01.1.05.1 | D69: ЖК "Салават Купере" Квартал №1 ж/д 5-1 | F69: Материал рулонный кровельный гидроизоляционный верхний слой | G69: основа: полиэстeр;температура гибкости на брусе R=25мм не менее -20; толщина 1м² не менее 3,8мм | H69: м2 | I69: 1,730 | J69: 5,325 | K69: 4,915 | L69: 411 | N69: 72 | Q69: 1 | R69: КПД, 1 каркас | S69: Перепривязка | T69: 3,637 | U69: 2,859 | V69: 300 | W69: =SUM(IG69,#REF!,#REF!,#REF!,#REF!,#REF!,#REF!,#REF!) ->  | FS69: 2022-08-01 | FT69: 2022-08-15 | FU69: 2023-11-24 | FV69: 2022-09-30 | FW69: 2022-07-15 | FX69: 2023-10-30 | FY69: 2022-09-30 | FZ69: 2022-07-15 | GA69: 2023-10-30 | GB69: 2022-09-30 | GC69: 2022-07-15 | GD69: 2023-10-30 | GE69: 2022-09-30 | GF69: 2022-07-15 | GG69: 2023-10-30 | GH69: 2022-09-30 | GI69: 2022-07-15 | GJ69: 2023-10-30 | GK69: 2022-09-30 | GL69: 2022-07-01 | GM69: 2023-10-30 | GN69: 2022-09-30 | GO69: 2022-07-01 | GP69: 2023-10-30 | GQ69: 2022-09-30 | GR69: 2022-07-01 | GS69: 2023-10-30 | GT69: 2022-09-30 | GU69: 2022-07-01 | GV69: 2023-10-30 | GW69: 2022-09-30 | GX69: 2022-07-01 | GY69: 2023-10-30 | GZ69: 2022-09-30 | HA69: 2022-07-01 | HB69: 2023-10-30 | HC69: 2022-09-30 | HD69: 2022-07-01 | HE69: 2023-10-30 | HF69: 2022-11-30 | HG69: 2022-07-01 | HH69: 2023-10-30 | HI69: 2022-11-30 | HJ69: 2022-07-01 | HK69: 2023-10-30 | HL69: 2022-11-30 | HM69: 2022-07-01 | HN69: 2023-10-30 | HP69: АБ-1 | HQ69: АБ-1 | HR69: АБСт | HT69: - | IG69: 0 | IH69: =IF(YEAR(#REF!)=HU$8,$J69,0) ->  | II69: =IF(AND(YEAR(#REF!)<=HU$8,YEAR(#REF!)>HU$8),$J69,0) ->  | IM69: 1,730 | IS69: ▪
A70: 279 | B70: 13.1.2.1 | C70: СК00.01.1.05.1 | D70: ЖК "Салават Купере" Квартал №1 ж/д 5-1 | F70: Материал рулонный кровельный гидроизоляционный нижний слой | G70: основа: полиэстeр;температура гибкости на брусе R=25мм не менее -20; толщина 1м² не менее 2,8мм | H70: м2 | I70: 1,243 | J70: 5,325 | K70: 4,915 | L70: 411 | N70: 72 | Q70: 1 | R70: КПД, 1 каркас | S70: Перепривязка | T70: 3,637 | U70: =T70*0.786 -> 2,859 | V70: 300 | W70: =SUM(IG70,#REF!,#REF!,#REF!,#REF!,#REF!,#REF!,#REF!) ->  | FS70: 2022-08-01 | FT70: =FS70+14 -> 2022-08-15 | FU70: 2023-11-24 | FV70: 2022-09-30 | FW70: 2022-07-15 | FX70: 2023-10-30 | FY70: 2022-09-30 | FZ70: 2022-07-15 | GA70: 2023-10-30 | GB70: 2022-09-30 | GC70: 2022-07-15 | GD70: 2023-10-30 | GE70: 2022-09-30 | GF70: 2022-07-15 | GG70: 2023-10-30 | GH70: 2022-09-30 | GI70: 2022-07-15 | GJ70: 2023-10-30 | GK70: 2022-09-30 | GL70: 2022-07-01 | GM70: 2023-10-30 | GN70: 2022-09-30 | GO70: 2022-07-01 | GP70: 2023-10-30 | GQ70: 2022-09-30 | GR70: 2022-07-01 | GS70: 2023-10-30 | GT70: 2022-09-30 | GU70: 2022-07-01 | GV70: 2023-10-30 | GW70: 2022-09-30 | GX70: 2022-07-01 | GY70: 2023-10-30 | GZ70: 2022-09-30 | HA70: 2022-07-01 | HB70: 2023-10-30 | HC70: 2022-09-30 | HD70: 2022-07-01 | HE70: 2023-10-30 | HF70: 2022-11-30 | HG70: 2022-07-01 | HH70: 2023-10-30 | HI70: 2022-11-30 | HJ70: 2022-07-01 | HK70: 2023-10-30 | HL70: 2022-11-30 | HM70: 2022-07-01 | HN70: 2023-10-30 | HP70: АБ-1 | HQ70: АБ-1 | HR70: АБСт | HT70: - | IG70: =SUM(HU70:IF70) -> 0 | IH70: =IF(YEAR(#REF!)=HU$8,$J70,0) ->  | II70: =IF(AND(YEAR(#REF!)<=HU$8,YEAR(#REF!)>HU$8),$J70,0) ->  | IM70: 1,243 | IS70: ▪
A71: 279 | B71: 13.1.2.2 | C71: СК00.01.1.05.2 | D71: ЖК "Салават Купере" Квартал №1 ж/д 5-2 | F71: Плиты теплоизоляционные пенополистирольные ППС-25 150мм | H71: м3 | I71: 111 | J71: 5,325 | K71: 4,915 | L71: 411 | N71: 72 | Q71: 1 | R71: КПД, 1 Каркас | S71: Перепривязка | T71: 3,637 | U71: =T71*0.786 -> 2,859 | V71: 300 | W71: =SUM(IG71,#REF!,#REF!,#REF!,#REF!,#REF!,#REF!,#REF!) ->  | FS71: 2022-08-01 | FT71: =FS71+14 -> 2022-08-15 | FU71: 2023-11-24 | FV71: 2022-09-30 | FW71: 2022-07-15 | FX71: 2023-10-30 | FY71: 2022-09-30 | FZ71: 2022-07-15 | GA71: 2023-10-30 | GB71: 2022-09-30 | GC71: 2022-07-15 | GD71: 2023-10-30 | GE71: 2022-09-30 | GF71: 2022-07-15 | GG71: 2023-10-30 | GH71: 2022-09-30 | GI71: 2022-07-15 | GJ71: 2023-10-30 | GK71: 2022-09-30 | GL71: 2022-07-01 | GM71: 2023-10-30 | GN71: 2022-09-30 | GO71: 2022-07-01 | GP71: 2023-10-30 | GQ71: 2022-09-30 | GR71: 2022-07-01 | GS71: 2023-10-30 | GT71: 2022-09-30 | GU71: 2022-07-01 | GV71: 2023-10-30 | GW71: 2022-09-30 | GX71: 2022-07-01 | GY71: 2023-10-30 | GZ71: 2022-09-30 | HA71: 2022-07-01 | HB71: 2023-10-30 | HC71: 2022-09-30 | HD71: 2022-07-01 | HE71: 2023-10-30 | HF71: 2022-11-30 | HG71: 2022-07-01 | HH71: 2023-10-30 | HI71: 2022-11-30 | HJ71: 2022-07-01 | HK71: 2023-10-30 | HL71: 2022-11-30 | HM71: 2022-07-01 | HN71: 2023-10-30 | HP71: АБ-1 | HQ71: АБ-1 | HR71: АБСт | HT71: - | IG71: =SUM(HU71:IF71) -> 0 | IH71: =IF(YEAR(#REF!)=HU$8,$J71,0) ->  | II71: =IF(AND(YEAR(#REF!)<=HU$8,YEAR(#REF!)>HU$8),$J71,0) ->  | IN71: =I71 -> 111 | IS71: ▪
A72: 279 | B72: 13.1.2.2 | C72: СК00.01.1.05.2 | D72: ЖК "Салават Купере" Квартал №1 ж/д 5-2 | F72: Керамзит М600 | H72: м3 | I72: =104.47 -> 104 | J72: 5,325 | K72: 4,915 | L72: 411 | N72: 72 | Q72: 1 | R72: КПД, 1 Каркас | S72: Перепривязка | T72: 3,637 | U72: 2,859 | V72: 300 | W72: =SUM(IG72,#REF!,#REF!,#REF!,#REF!,#REF!,#REF!,#REF!) ->  | FS72: 2022-08-01 | FT72: 2022-08-15 | FU72: 2023-11-24 | FV72: 2022-09-30 | FW72: 2022-07-15 | FX72: 2023-10-30 | FY72: 2022-09-30 | FZ72: 2022-07-15 | GA72: 2023-10-30 | GB72: 2022-09-30 | GC72: 2022-07-15 | GD72: 2023-10-30 | GE72: 2022-09-30 | GF72: 2022-07-15 | GG72: 2023-10-30 | GH72: 2022-09-30 | GI72: 2022-07-15 | GJ72: 2023-10-30 | GK72: 2022-09-30 | GL72: 2022-07-01 | GM72: 2023-10-30 | GN72: 2022-09-30 | GO72: 2022-07-01 | GP72: 2023-10-30 | GQ72: 2022-09-30 | GR72: 2022-07-01 | GS72: 2023-10-30 | GT72: 2022-09-30 | GU72: 2022-07-01 | GV72: 2023-10-30 | GW72: 2022-09-30 | GX72: 2022-07-01 | GY72: 2023-10-30 | GZ72: 2022-09-30 | HA72: 2022-07-01 | HB72: 2023-10-30 | HC72: 2022-09-30 | HD72: 2022-07-01 | HE72: 2023-10-30 | HF72: 2022-11-30 | HG72: 2022-07-01 | HH72: 2023-10-30 | HI72: 2022-11-30 | HJ72: 2022-07-01 | HK72: 2023-10-30 | HL72: 2022-11-30 | HM72: 2022-07-01 | HN72: 2023-10-30 | HP72: АБ-1 | HQ72: АБ-1 | HR72: АБСт | HT72: - | IG72: 0 | IH72: =IF(YEAR(#REF!)=HU$8,$J72,0) ->  | II72: =IF(AND(YEAR(#REF!)<=HU$8,YEAR(#REF!)>HU$8),$J72,0) ->  | IN72: =I72 -> 104 | IS72: ▪
A73: 279 | B73: 13.1.2.2 | C73: СК00.01.1.05.2 | D73: ЖК "Салават Купере" Квартал №1 ж/д 5-2 | F73: Плиты теплоизоляционные пенополистирольные экструдированные 100мм | H73: м3 | I73: 14 | J73: 5,325 | K73: 4,915 | L73: 411 | N73: 72 | Q73: 1 | R73: КПД, 1 Каркас | S73: Перепривязка | T73: 3,637 | U73: =T73*0.786 -> 2,859 | V73: 300 | W73: =SUM(IG73,#REF!,#REF!,#REF!,#REF!,#REF!,#REF!,#REF!) ->  | FS73: 2022-08-01 | FT73: =FS73+14 -> 2022-08-15 | FU73: 2023-11-24 | FV73: 2022-09-30 | FW73: 2022-07-15 | FX73: 2023-10-30 | FY73: 2022-09-30 | FZ73: 2022-07-15 | GA73: 2023-10-30 | GB73: 2022-09-30 | GC73: 2022-07-15 | GD73: 2023-10-30 | GE73: 2022-09-30 | GF73: 2022-07-15 | GG73: 2023-10-30 | GH73: 2022-09-30 | GI73: 2022-07-15 | GJ73: 2023-10-30 | GK73: 2022-09-30 | GL73: 2022-07-01 | GM73: 2023-10-30 | GN73: 2022-09-30 | GO73: 2022-07-01 | GP73: 2023-10-30 | GQ73: 2022-09-30 | GR73: 2022-07-01 | GS73: 2023-10-30 | GT73: 2022-09-30 | GU73: 2022-07-01 | GV73: 2023-10-30 | GW73: 2022-09-30 | GX73: 2022-07-01 | GY73: 2023-10-30 | GZ73: 2022-09-30 | HA73: 2022-07-01 | HB73: 2023-10-30 | HC73: 2022-09-30 | HD73: 2022-07-01 | HE73: 2023-10-30 | HF73: 2022-11-30 | HG73: 2022-07-01 | HH73: 2023-10-30 | HI73: 2022-11-30 | HJ73: 2022-07-01 | HK73: 2023-10-30 | HL73: 2022-11-30 | HM73: 2022-07-01 | HN73: 2023-10-30 | HP73: АБ-1 | HQ73: АБ-1 | HR73: АБСт | HT73: - | IG73: =SUM(HU73:IF73) -> 0 | IH73: =IF(YEAR(#REF!)=HU$8,$J73,0) ->  | II73: =IF(AND(YEAR(#REF!)<=HU$8,YEAR(#REF!)>HU$8),$J73,0) ->  | IN73: 14 | IS73: ▪
A74: 279 | B74: 13.1.2.2 | C74: СК00.01.1.05.2 | D74: ЖК "Салават Купере" Квартал №1 ж/д 5-2 | F74: Плиты теплоизоляционные пенополистирольные экструдированные 50мм | H74: м3 | I74: 4 | J74: 5,325 | K74: 4,915 | L74: 411 | N74: 72 | Q74: 1 | R74: КПД, 1 Каркас | S74: Перепривязка | T74: 3,637 | U74: =T74*0.786 -> 2,859 | V74: 300 | W74: =SUM(IG74,#REF!,#REF!,#REF!,#REF!,#REF!,#REF!,#REF!) ->  | FS74: 2022-08-01 | FT74: =FS74+14 -> 2022-08-15 | FU74: 2023-11-24 | FV74: 2022-09-30 | FW74: 2022-07-15 | FX74: 2023-10-30 | FY74: 2022-09-30 | FZ74: 2022-07-15 | GA74: 2023-10-30 | GB74: 2022-09-30 | GC74: 2022-07-15 | GD74: 2023-10-30 | GE74: 2022-09-30 | GF74: 2022-07-15 | GG74: 2023-10-30 | GH74: 2022-09-30 | GI74: 2022-07-15 | GJ74: 2023-10-30 | GK74: 2022-09-30 | GL74: 2022-07-01 | GM74: 2023-10-30 | GN74: 2022-09-30 | GO74: 2022-07-01 | GP74: 2023-10-30 | GQ74: 2022-09-30 | GR74: 2022-07-01 | GS74: 2023-10-30 | GT74: 2022-09-30 | GU74: 2022-07-01 | GV74: 2023-10-30 | GW74: 2022-09-30 | GX74: 2022-07-01 | GY74: 2023-10-30 | GZ74: 2022-09-30 | HA74: 2022-07-01 | HB74: 2023-10-30 | HC74: 2022-09-30 | HD74: 2022-07-01 | HE74: 2023-10-30 | HF74: 2022-11-30 | HG74: 2022-07-01 | HH74: 2023-10-30 | HI74: 2022-11-30 | HJ74: 2022-07-01 | HK74: 2023-10-30 | HL74: 2022-11-30 | HM74: 2022-07-01 | HN74: 2023-10-30 | HP74: АБ-1 | HQ74: АБ-1 | HR74: АБСт | HT74: - | IG74: =SUM(HU74:IF74) -> 0 | IH74: =IF(YEAR(#REF!)=HU$8,$J74,0) ->  | II74: =IF(AND(YEAR(#REF!)<=HU$8,YEAR(#REF!)>HU$8),$J74,0) ->  | IN74: 4 | IS74: ▪
A75: 279 | B75: 13.1.2.2 | C75: СК00.01.1.05.2 | D75: ЖК "Салават Купере" Квартал №1 ж/д 5-2 | F75: Материал рулонный кровельный гидроизоляционный верхний слой | G75: основа: полиэстeр;температура гибкости на брусе R=25мм не менее -20; толщина 1м² не менее 3,8мм | H75: м2 | I75: 1,730 | J75: 5,325 | K75: 4,915 | L75: 411 | N75: 72 | Q75: 1 | R75: КПД, 1 Каркас | S75: Перепривязка | T75: 3,637 | U75: =T75*0.786 -> 2,859 | V75: 300 | W75: =SUM(IG75,#REF!,#REF!,#REF!,#REF!,#REF!,#REF!,#REF!) ->  | FS75: 2022-08-01 | FT75: =FS75+14 -> 2022-08-15 | FU75: 2023-11-24 | FV75: 2022-09-30 | FW75: 2022-07-15 | FX75: 2023-10-30 | FY75: 2022-09-30 | FZ75: 2022-07-15 | GA75: 2023-10-30 | GB75: 2022-09-30 | GC75: 2022-07-15 | GD75: 2023-10-30 | GE75: 2022-09-30 | GF75: 2022-07-15 | GG75: 2023-10-30 | GH75: 2022-09-30 | GI75: 2022-07-15 | GJ75: 2023-10-30 | GK75: 2022-09-30 | GL75: 2022-07-01 | GM75: 2023-10-30 | GN75: 2022-09-30 | GO75: 2022-07-01 | GP75: 2023-10-30 | GQ75: 2022-09-30 | GR75: 2022-07-01 | GS75: 2023-10-30 | GT75: 2022-09-30 | GU75: 2022-07-01 | GV75: 2023-10-30 | GW75: 2022-09-30 | GX75: 2022-07-01 | GY75: 2023-10-30 | GZ75: 2022-09-30 | HA75: 2022-07-01 | HB75: 2023-10-30 | HC75: 2022-09-30 | HD75: 2022-07-01 | HE75: 2023-10-30 | HF75: 2022-11-30 | HG75: 2022-07-01 | HH75: 2023-10-30 | HI75: 2022-11-30 | HJ75: 2022-07-01 | HK75: 2023-10-30 | HL75: 2022-11-30 | HM75: 2022-07-01 | HN75: 2023-10-30 | HP75: АБ-1 | HQ75: АБ-1 | HR75: АБСт | HT75: - | IG75: =SUM(HU75:IF75) -> 0 | IH75: =IF(YEAR(#REF!)=HU$8,$J75,0) ->  | II75: =IF(AND(YEAR(#REF!)<=HU$8,YEAR(#REF!)>HU$8),$J75,0) ->  | IN75: 1,730 | IS75: ▪
A76: 279 | B76: 13.1.2.2 | C76: СК00.01.1.05.2 | D76: ЖК "Салават Купере" Квартал №1 ж/д 5-2 | F76: Материал рулонный кровельный гидроизоляционный нижний слой | G76: основа: полиэстeр;температура гибкости на брусе R=25мм не менее -20; толщина 1м² не менее 2,8мм | H76: м2 | I76: 1,243 | J76: 5,325 | K76: 4,915 | L76: 411 | N76: 72 | Q76: 1 | R76: КПД, 1 Каркас | S76: Перепривязка | T76: 3,637 | U76: =T76*0.786 -> 2,859 | V76: 300 | W76: =SUM(IG76,#REF!,#REF!,#REF!,#REF!,#REF!,#REF!,#REF!) ->  | FS76: 2022-08-01 | FT76: =FS76+14 -> 2022-08-15 | FU76: 2023-11-24 | FV76: 2022-09-30 | FW76: 2022-07-15 | FX76: 2023-10-30 | FY76: 2022-09-30 | FZ76: 2022-07-15 | GA76: 2023-10-30 | GB76: 2022-09-30 | GC76: 2022-07-15 | GD76: 2023-10-30 | GE76: 2022-09-30 | GF76: 2022-07-15 | GG76: 2023-10-30 | GH76: 2022-09-30 | GI76: 2022-07-15 | GJ76: 2023-10-30 | GK76: 2022-09-30 | GL76: 2022-07-01 | GM76: 2023-10-30 | GN76: 2022-09-30 | GO76: 2022-07-01 | GP76: 2023-10-30 | GQ76: 2022-09-30 | GR76: 2022-07-01 | GS76: 2023-10-30 | GT76: 2022-09-30 | GU76: 2022-07-01 | GV76: 2023-10-30 | GW76: 2022-09-30 | GX76: 2022-07-01 | GY76: 2023-10-30 | GZ76: 2022-09-30 | HA76: 2022-07-01 | HB76: 2023-10-30 | HC76: 2022-09-30 | HD76: 2022-07-01 | HE76: 2023-10-30 | HF76: 2022-11-30 | HG76: 2022-07-01 | HH76: 2023-10-30 | HI76: 2022-11-30 | HJ76: 2022-07-01 | HK76: 2023-10-30 | HL76: 2022-11-30 | HM76: 2022-07-01 | HN76: 2023-10-30 | HP76: АБ-1 | HQ76: АБ-1 | HR76: АБСт | HT76: - | IG76: =SUM(HU76:IF76) -> 0 | IH76: =IF(YEAR(#REF!)=HU$8,$J76,0) ->  | II76: =IF(AND(YEAR(#REF!)<=HU$8,YEAR(#REF!)>HU$8),$J76,0) ->  | IN76: 1,243 | IS76: ▪
A77: 267 | B77: 13.1.2.3 | C77: СК00.01.1.03.1 | D77: ЖК "Салават Купере" Квартал №1 ж/д 3-1 | F77: Плиты теплоизоляционные пенополистирольные ППС-25 150мм | H77: м3 | I77: 106 | J77: 7,766 | K77: 7,366 | L77: 400 | N77: 140 | Q77: 1 | R77: КПД, 1 Каркас | S77: Новое | T77: 4,788 | U77: 3,763 | V77: 292 | W77: =SUM(IG77,#REF!,#REF!,#REF!,#REF!,#REF!,#REF!,#REF!) ->  | FS77: 2022-11-01 | FT77: 2022-11-15 | FU77: 2024-06-23 | FV77: 2022-12-30 | FW77: 2022-09-30 | FX77: 2023-12-30 | FY77: 2022-12-30 | FZ77: 2022-09-30 | GA77: 2023-12-30 | GB77: 2022-12-30 | GC77: 2022-09-30 | GD77: 2023-12-30 | GE77: 2022-12-30 | GF77: 2022-09-30 | GG77: 2023-12-30 | GH77: 2022-12-30 | GI77: 2022-09-30 | GJ77: 2023-12-30 | GK77: 2022-12-30 | GL77: 2022-09-30 | GM77: 2023-12-30 | GN77: 2022-12-30 | GO77: 2022-09-30 | GP77: 2023-12-30 | GQ77: 2022-12-30 | GR77: 2022-09-30 | GS77: 2023-12-30 | GT77: 2022-12-30 | GU77: 2022-09-30 | GV77: 2023-12-30 | GW77: 2022-12-30 | GX77: 2022-09-30 | GY77: 2023-12-30 | GZ77: 2022-12-30 | HA77: 2022-09-30 | HB77: 2023-12-30 | HC77: 2022-12-30 | HD77: 2022-09-30 | HE77: 2023-12-30 | HF77: 2022-12-30 | HG77: 2022-09-30 | HH77: 2023-12-30 | HI77: 2022-12-30 | HJ77: 2022-09-30 | HK77: 2023-12-30 | HL77: 2022-12-30 | HM77: 2022-09-30 | HN77: 2023-12-30 | HP77: АБ-1 | HQ77: АБ-1 | HR77: АБСт | HT77: - | IG77: 0 | IH77: =IF(YEAR(#REF!)=HU$8,$J77,0) ->  | II77: =IF(AND(YEAR(#REF!)<=HU$8,YEAR(#REF!)>HU$8),$J77,0) ->  | IN77: 106 | IU77: ▪
A78: 267 | B78: 13.1.2.3 | C78: СК00.01.1.03.1 | D78: ЖК "Салават Купере" Квартал №1 ж/д 3-1 | F78: Керамзит М600 | H78: м3 | I78: 86 | J78: 7,766 | K78: 7,366 | L78: 400 | N78: 140 | Q78: 1 | R78: КПД, 1 Каркас | S78: Новое | T78: 4,788 | U78: =T78*0.786 -> 3,763 | V78: 292 | W78: =SUM(IG78,#REF!,#REF!,#REF!,#REF!,#REF!,#REF!,#REF!) ->  | FS78: 2022-11-01 | FT78: =FS78+14 -> 2022-11-15 | FU78: 2024-06-23 | FV78: 2022-12-30 | FW78: 2022-09-30 | FX78: 2023-12-30 | FY78: 2022-12-30 | FZ78: 2022-09-30 | GA78: 2023-12-30 | GB78: 2022-12-30 | GC78: 2022-09-30 | GD78: 2023-12-30 | GE78: 2022-12-30 | GF78: 2022-09-30 | GG78: 2023-12-30 | GH78: 2022-12-30 | GI78: 2022-09-30 | GJ78: 2023-12-30 | GK78: 2022-12-30 | GL78: 2022-09-30 | GM78: 2023-12-30 | GN78: 2022-12-30 | GO78: 2022-09-30 | GP78: 2023-12-30 | GQ78: 2022-12-30 | GR78: 2022-09-30 | GS78: 2023-12-30 | GT78: 2022-12-30 | GU78: 2022-09-30 | GV78: 2023-12-30 | GW78: 2022-12-30 | GX78: 2022-09-30 | GY78: 2023-12-30 | GZ78: 2022-12-30 | HA78: 2022-09-30 | HB78: 2023-12-30 | HC78: 2022-12-30 | HD78: 2022-09-30 | HE78: 2023-12-30 | HF78: 2022-12-30 | HG78: 2022-09-30 | HH78: 2023-12-30 | HI78: 2022-12-30 | HJ78: 2022-09-30 | HK78: 2023-12-30 | HL78: 2022-12-30 | HM78: 2022-09-30 | HN78: 2023-12-30 | HP78: АБ-1 | HQ78: АБ-1 | HR78: АБСт | HT78: - | IG78: =SUM(HU78:IF78) -> 0 | IH78: =IF(YEAR(#REF!)=HU$8,$J78,0) ->  | II78: =IF(AND(YEAR(#REF!)<=HU$8,YEAR(#REF!)>HU$8),$J78,0) ->  | IN78: 86 | IU78: ▪
A79: 267 | B79: 13.1.2.3 | C79: СК00.01.1.03.1 | D79: ЖК "Салават Купере" Квартал №1 ж/д 3-1 | F79: Плиты теплоизоляционные пенополистирольные экструдированные 100мм | H79: м3 | I79: 14 | J79: 7,766 | K79: 7,366 | L79: 400 | N79: 140 | Q79: 1 | R79: КПД, 1 Каркас | S79: Новое | T79: 4,788 | U79: 3,763 | V79: 292 | W79: =SUM(IG79,#REF!,#REF!,#REF!,#REF!,#REF!,#REF!,#REF!) ->  | FS79: 2022-11-01 | FT79: 2022-11-15 | FU79: 2024-06-23 | FV79: 2022-12-30 | FW79: 2022-09-30 | FX79: 2023-12-30 | FY79: 2022-12-30 | FZ79: 2022-09-30 | GA79: 2023-12-30 | GB79: 2022-12-30 | GC79: 2022-09-30 | GD79: 2023-12-30 | GE79: 2022-12-30 | GF79: 2022-09-30 | GG79: 2023-12-30 | GH79: 2022-12-30 | GI79: 2022-09-30 | GJ79: 2023-12-30 | GK79: 2022-12-30 | GL79: 2022-09-30 | GM79: 2023-12-30 | GN79: 2022-12-30 | GO79: 2022-09-30 | GP79: 2023-12-30 | GQ79: 2022-12-30 | GR79: 2022-09-30 | GS79: 2023-12-30 | GT79: 2022-12-30 | GU79: 2022-09-30 | GV79: 2023-12-30 | GW79: 2022-12-30 | GX79: 2022-09-30 | GY79: 2023-12-30 | GZ79: 2022-12-30 | HA79: 2022-09-30 | HB79: 2023-12-30 | HC79: 2022-12-30 | HD79: 2022-09-30 | HE79: 2023-12-30 | HF79: 2022-12-30 | HG79: 2022-09-30 | HH79: 2023-12-30 | HI79: 2022-12-30 | HJ79: 2022-09-30 | HK79: 2023-12-30 | HL79: 2022-12-30 | HM79: 2022-09-30 | HN79: 2023-12-30 | HP79: АБ-1 | HQ79: АБ-1 | HR79: АБСт | HT79: - | IG79: 0 | IH79: =IF(YEAR(#REF!)=HU$8,$J79,0) ->  | II79: =IF(AND(YEAR(#REF!)<=HU$8,YEAR(#REF!)>HU$8),$J79,0) ->  | IN79: 14 | IU79: ▪
A80: 267 | B80: 13.1.2.3 | C80: СК00.01.1.03.1 | D80: ЖК "Салават Купере" Квартал №1 ж/д 3-1 | F80: Плиты теплоизоляционные пенополистирольные экструдированные 50мм | H80: м3 | I80: 4 | J80: 7,766 | K80: 7,366 | L80: 400 | N80: 140 | Q80: 1 | R80: КПД, 1 Каркас | S80: Новое | T80: 4,788 | U80: 3,763 | V80: 292 | W80: =SUM(IG80,#REF!,#REF!,#REF!,#REF!,#REF!,#REF!,#REF!) ->  | FS80: 2022-11-01 | FT80: 2022-11-15 | FU80: 2024-06-23 | FV80: 2022-12-30 | FW80: 2022-09-30 | FX80: 2023-12-30 | FY80: 2022-12-30 | FZ80: 2022-09-30 | GA80: 2023-12-30 | GB80: 2022-12-30 | GC80: 2022-09-30 | GD80: 2023-12-30 | GE80: 2022-12-30 | GF80: 2022-09-30 | GG80: 2023-12-30 | GH80: 2022-12-30 | GI80: 2022-09-30 | GJ80: 2023-12-30 | GK80: 2022-12-30 | GL80: 2022-09-30 | GM80: 2023-12-30 | GN80: 2022-12-30 | GO80: 2022-09-30 | GP80: 2023-12-30 | GQ80: 2022-12-30 | GR80: 2022-09-30 | GS80: 2023-12-30 | GT80: 2022-12-30 | GU80: 2022-09-30 | GV80: 2023-12-30 | GW80: 2022-12-30 | GX80: 2022-09-30 | GY80: 2023-12-30 | GZ80: 2022-12-30 | HA80: 2022-09-30 | HB80: 2023-12-30 | HC80: 2022-12-30 | HD80: 2022-09-30 | HE80: 2023-12-30 | HF80: 2022-12-30 | HG80: 2022-09-30 | HH80: 2023-12-30 | HI80: 2022-12-30 | HJ80: 2022-09-30 | HK80: 2023-12-30 | HL80: 2022-12-30 | HM80: 2022-09-30 | HN80: 2023-12-30 | HP80: АБ-1 | HQ80: АБ-1 | HR80: АБСт | HT80: - | IG80: 0 | IH80: =IF(YEAR(#REF!)=HU$8,$J80,0) ->  | II80: =IF(AND(YEAR(#REF!)<=HU$8,YEAR(#REF!)>HU$8),$J80,0) ->  | IN80: 4 | IU80: ▪
A81: 267 | B81: 13.1.2.3 | C81: СК00.01.1.03.1 | D81: ЖК "Салават Купере" Квартал №1 ж/д 3-1 | F81: Материал рулонный кровельный гидроизоляционный верхний слой | G81: основа: полиэстeр;температура гибкости на брусе R=25мм не менее -20; толщина 1м² не менее 3,8мм | H81: м2 | I81: 1,730 | J81: 7,766 | K81: 7,366 | L81: 400 | N81: 140 | Q81: 1 | R81: КПД, 1 Каркас | S81: Новое | T81: 4,788 | U81: 3,763 | V81: 292 | W81: =SUM(IG81,#REF!,#REF!,#REF!,#REF!,#REF!,#REF!,#REF!) ->  | FS81: 2022-11-01 | FT81: 2022-11-15 | FU81: 2024-06-23 | FV81: 2022-12-30 | FW81: 2022-09-30 | FX81: 2023-12-30 | FY81: 2022-12-30 | FZ81: 2022-09-30 | GA81: 2023-12-30 | GB81: 2022-12-30 | GC81: 2022-09-30 | GD81: 2023-12-30 | GE81: 2022-12-30 | GF81: 2022-09-30 | GG81: 2023-12-30 | GH81: 2022-12-30 | GI81: 2022-09-30 | GJ81: 2023-12-30 | GK81: 2022-12-30 | GL81: 2022-09-30 | GM81: 2023-12-30 | GN81: 2022-12-30 | GO81: 2022-09-30 | GP81: 2023-12-30 | GQ81: 2022-12-30 | GR81: 2022-09-30 | GS81: 2023-12-30 | GT81: 2022-12-30 | GU81: 2022-09-30 | GV81: 2023-12-30 | GW81: 2022-12-30 | GX81: 2022-09-30 | GY81: 2023-12-30 | GZ81: 2022-12-30 | HA81: 2022-09-30 | HB81: 2023-12-30 | HC81: 2022-12-30 | HD81: 2022-09-30 | HE81: 2023-12-30 | HF81: 2022-12-30 | HG81: 2022-09-30 | HH81: 2023-12-30 | HI81: 2022-12-30 | HJ81: 2022-09-30 | HK81: 2023-12-30 | HL81: 2022-12-30 | HM81: 2022-09-30 | HN81: 2023-12-30 | HP81: АБ-1 | HQ81: АБ-1 | HR81: АБСт | HT81: - | IG81: 0 | IH81: =IF(YEAR(#REF!)=HU$8,$J81,0) ->  | II81: =IF(AND(YEAR(#REF!)<=HU$8,YEAR(#REF!)>HU$8),$J81,0) ->  | IN81: 1,730 | IU81: ▪
A82: 267 | B82: 13.1.2.3 | C82: СК00.01.1.03.1 | D82: ЖК "Салават Купере" Квартал №1 ж/д 3-1 | F82: Материал рулонный кровельный гидроизоляционный нижний слой | G82: основа: полиэстeр;температура гибкости на брусе R=25мм не менее -20; толщина 1м² не менее 2,8мм | H82: м2 | I82: 1,243 | J82: 7,766 | K82: 7,366 | L82: 400 | N82: 140 | Q82: 1 | R82: КПД, 1 Каркас | S82: Новое | T82: 4,788 | U82: 3,763 | V82: 292 | W82: =SUM(IG82,#REF!,#REF!,#REF!,#REF!,#REF!,#REF!,#REF!) ->  | FS82: 2022-11-01 | FT82: 2022-11-15 | FU82: 2024-06-23 | FV82: 2022-12-30 | FW82: 2022-09-30 | FX82: 2023-12-30 | FY82: 2022-12-30 | FZ82: 2022-09-30 | GA82: 2023-12-30 | GB82: 2022-12-30 | GC82: 2022-09-30 | GD82: 2023-12-30 | GE82: 2022-12-30 | GF82: 2022-09-30 | GG82: 2023-12-30 | GH82: 2022-12-30 | GI82: 2022-09-30 | GJ82: 2023-12-30 | GK82: 2022-12-30 | GL82: 2022-09-30 | GM82: 2023-12-30 | GN82: 2022-12-30 | GO82: 2022-09-30 | GP82: 2023-12-30 | GQ82: 2022-12-30 | GR82: 2022-09-30 | GS82: 2023-12-30 | GT82: 2022-12-30 | GU82: 2022-09-30 | GV82: 2023-12-30 | GW82: 2022-12-30 | GX82: 2022-09-30 | GY82: 2023-12-30 | GZ82: 2022-12-30 | HA82: 2022-09-30 | HB82: 2023-12-30 | HC82: 2022-12-30 | HD82: 2022-09-30 | HE82: 2023-12-30 | HF82: 2022-12-30 | HG82: 2022-09-30 | HH82: 2023-12-30 | HI82: 2022-12-30 | HJ82: 2022-09-30 | HK82: 2023-12-30 | HL82: 2022-12-30 | HM82: 2022-09-30 | HN82: 2023-12-30 | HP82: АБ-1 | HQ82: АБ-1 | HR82: АБСт | HT82: - | IG82: 0 | IH82: =IF(YEAR(#REF!)=HU$8,$J82,0) ->  | II82: =IF(AND(YEAR(#REF!)<=HU$8,YEAR(#REF!)>HU$8),$J82,0) ->  | IN82: 1,243 | IU82: ▪
A83: 268 | B83: 13.1.2.4 | C83: СК00.01.1.03.2 | D83: ЖК "Салават Купере" Квартал №1 ж/д 3-2 | F83: Плиты теплоизоляционные пенополистирольные ППС-25 150мм | H83: м3 | I83: =140.294/580*L83 -> 140 | J83: 8,789 | K83: 8,209 | L83: 580 | N83: 168 | Q83: 1 | R83: КПД, 1 Каркас | S83: Новое | T83: 5,336 | U83: 4,194 | V83: 423 | W83: =SUM(IG83,#REF!,#REF!,#REF!,#REF!,#REF!,#REF!,#REF!) ->  | X83: =T83-W83-Y83 ->  | FS83: 2023-01-01 | FT83: =FS83+14 -> 2023-01-15 | FU83: 2024-08-23 | FV83: 2022-12-30 | FW83: 2022-09-30 | FX83: 2023-12-30 | FY83: 2022-12-30 | FZ83: 2022-09-30 | GA83: 2023-12-30 | GB83: 2022-12-30 | GC83: 2022-09-30 | GD83: 2023-12-30 | GE83: 2022-12-30 | GF83: 2022-09-30 | GG83: 2023-12-30 | GH83: 2022-12-30 | GI83: 2022-09-30 | GJ83: 2023-12-30 | GK83: 2022-12-30 | GL83: 2022-09-30 | GM83: 2023-12-30 | GN83: 2022-12-30 | GO83: 2022-09-30 | GP83: 2023-12-30 | GQ83: 2022-12-30 | GR83: 2022-09-30 | GS83: 2023-12-30 | GT83: 2022-12-30 | GU83: 2022-09-30 | GV83: 2023-12-30 | GW83: 2022-12-30 | GX83: 2022-09-30 | GY83: 2023-12-30 | GZ83: 2022-12-30 | HA83: 2022-09-30 | HB83: 2023-12-30 | HC83: 2022-12-30 | HD83: 2022-09-30 | HE83: 2023-12-30 | HF83: 2022-12-30 | HG83: 2022-09-30 | HH83: 2023-12-30 | HI83: 2022-12-30 | HJ83: 2022-09-30 | HK83: 2023-12-30 | HL83: 2022-12-30 | HM83: 2022-09-30 | HN83: 2023-12-30 | HP83: АБ-1 | HQ83: АБ-1 | HR83: АБСт | HT83: - | IG83: 0 | IH83: =IF(YEAR(#REF!)=HU$8,$J83,0) ->  | II83: =IF(AND(YEAR(#REF!)<=HU$8,YEAR(#REF!)>HU$8),$J83,0) ->  | IO83: =I83/2 -> 70 | IP83: =I83/2 -> 70 | IU83: ▪
A84: 268 | B84: 13.1.2.4 | C84: СК00.01.1.03.2 | D84: ЖК "Салават Купере" Квартал №1 ж/д 3-2 | F84: Керамзит М600 | H84: м3 | I84: =142.129/580*L84 -> 142 | J84: 8,789 | K84: 8,209 | L84: 580 | N84: 168 | Q84: 1 | R84: КПД, 1 Каркас | S84: Новое | T84: 5,336 | U84: =T84*0.786 -> 4,194 | V84: 423 | W84: =SUM(IG84,#REF!,#REF!,#REF!,#REF!,#REF!,#REF!,#REF!) ->  | FS84: 2023-01-01 | FT84: 2023-01-15 | FU84: 2024-08-23 | FV84: 2022-12-30 | FW84: 2022-09-30 | FX84: 2023-12-30 | FY84: 2022-12-30 | FZ84: 2022-09-30 | GA84: 2023-12-30 | GB84: 2022-12-30 | GC84: 2022-09-30 | GD84: 2023-12-30 | GE84: 2022-12-30 | GF84: 2022-09-30 | GG84: 2023-12-30 | GH84: 2022-12-30 | GI84: 2022-09-30 | GJ84: 2023-12-30 | GK84: 2022-12-30 | GL84: 2022-09-30 | GM84: 2023-12-30 | GN84: 2022-12-30 | GO84: 2022-09-30 | GP84: 2023-12-30 | GQ84: 2022-12-30 | GR84: 2022-09-30 | GS84: 2023-12-30 | GT84: 2022-12-30 | GU84: 2022-09-30 | GV84: 2023-12-30 | GW84: 2022-12-30 | GX84: 2022-09-30 | GY84: 2023-12-30 | GZ84: 2022-12-30 | HA84: 2022-09-30 | HB84: 2023-12-30 | HC84: 2022-12-30 | HD84: 2022-09-30 | HE84: 2023-12-30 | HF84: 2022-12-30 | HG84: 2022-09-30 | HH84: 2023-12-30 | HI84: 2022-12-30 | HJ84: 2022-09-30 | HK84: 2023-12-30 | HL84: 2022-12-30 | HM84: 2022-09-30 | HN84: 2023-12-30 | HP84: АБ-1 | HQ84: АБ-1 | HR84: АБСт | HT84: - | IG84: =SUM(HU84:IF84) -> 0 | IH84: =IF(YEAR(#REF!)=HU$8,$J84,0) ->  | II84: =IF(AND(YEAR(#REF!)<=HU$8,YEAR(#REF!)>HU$8),$J84,0) ->  | IO84: =I84/2 -> 71 | IP84: =I84/2 -> 71 | IU84: ▪
A85: 268 | B85: 13.1.2.4 | C85: СК00.01.1.03.2 | D85: ЖК "Салават Купере" Квартал №1 ж/д 3-2 | F85: Плиты теплоизоляционные пенополистирольные экструдированные 100мм | H85: м3 | I85: =14.146/580*L85 -> 14 | J85: 8,789 | K85: 8,209 | L85: 580 | N85: 168 | Q85: 1 | R85: КПД, 1 Каркас | S85: Новое | T85: 5,336 | U85: 4,194 | V85: 423 | W85: =SUM(IG85,#REF!,#REF!,#REF!,#REF!,#REF!,#REF!,#REF!) ->  | FS85: 2023-01-01 | FT85: 2023-01-15 | FU85: 2024-08-23 | FV85: 2022-12-30 | FW85: 2022-09-30 | FX85: 2023-12-30 | FY85: 2022-12-30 | FZ85: 2022-09-30 | GA85: 2023-12-30 | GB85: 2022-12-30 | GC85: 2022-09-30 | GD85: 2023-12-30 | GE85: 2022-12-30 | GF85: 2022-09-30 | GG85: 2023-12-30 | GH85: 2022-12-30 | GI85: 2022-09-30 | GJ85: 2023-12-30 | GK85: 2022-12-30 | GL85: 2022-09-30 | GM85: 2023-12-30 | GN85: 2022-12-30 | GO85: 2022-09-30 | GP85: 2023-12-30 | GQ85: 2022-12-30 | GR85: 2022-09-30 | GS85: 2023-12-30 | GT85: 2022-12-30 | GU85: 2022-09-30 | GV85: 2023-12-30 | GW85: 2022-12-30 | GX85: 2022-09-30 | GY85: 2023-12-30 | GZ85: 2022-12-30 | HA85: 2022-09-30 | HB85: 2023-12-30 | HC85: 2022-12-30 | HD85: 2022-09-30 | HE85: 2023-12-30 | HF85: 2022-12-30 | HG85: 2022-09-30 | HH85: 2023-12-30 | HI85: 2022-12-30 | HJ85: 2022-09-30 | HK85: 2023-12-30 | HL85: 2022-12-30 | HM85: 2022-09-30 | HN85: 2023-12-30 | HP85: АБ-1 | HQ85: АБ-1 | HR85: АБСт | HT85: - | IG85: 0 | IH85: =IF(YEAR(#REF!)=HU$8,$J85,0) ->  | II85: =IF(AND(YEAR(#REF!)<=HU$8,YEAR(#REF!)>HU$8),$J85,0) ->  | IO85: 7 | IP85: 7 | IU85: ▪
A86: 268 | B86: 13.1.2.4 | C86: СК00.01.1.03.2 | D86: ЖК "Салават Купере" Квартал №1 ж/д 3-2 | F86: Плиты теплоизоляционные пенополистирольные экструдированные 50мм | H86: м3 | I86: =3.939/580*L86 -> 4 | J86: 8,789 | K86: 8,209 | L86: 580 | N86: 168 | Q86: 1 | R86: КПД, 1 Каркас | S86: Новое | T86: 5,336 | U86: 4,194 | V86: 423 | W86: =SUM(IG86,#REF!,#REF!,#REF!,#REF!,#REF!,#REF!,#REF!) ->  | FS86: 2023-01-01 | FT86: 2023-01-15 | FU86: 2024-08-23 | FV86: 2022-12-30 | FW86: 2022-09-30 | FX86: 2023-12-30 | FY86: 2022-12-30 | FZ86: 2022-09-30 | GA86: 2023-12-30 | GB86: 2022-12-30 | GC86: 2022-09-30 | GD86: 2023-12-30 | GE86: 2022-12-30 | GF86: 2022-09-30 | GG86: 2023-12-30 | GH86: 2022-12-30 | GI86: 2022-09-30 | GJ86: 2023-12-30 | GK86: 2022-12-30 | GL86: 2022-09-30 | GM86: 2023-12-30 | GN86: 2022-12-30 | GO86: 2022-09-30 | GP86: 2023-12-30 | GQ86: 2022-12-30 | GR86: 2022-09-30 | GS86: 2023-12-30 | GT86: 2022-12-30 | GU86: 2022-09-30 | GV86: 2023-12-30 | GW86: 2022-12-30 | GX86: 2022-09-30 | GY86: 2023-12-30 | GZ86: 2022-12-30 | HA86: 2022-09-30 | HB86: 2023-12-30 | HC86: 2022-12-30 | HD86: 2022-09-30 | HE86: 2023-12-30 | HF86: 2022-12-30 | HG86: 2022-09-30 | HH86: 2023-12-30 | HI86: 2022-12-30 | HJ86: 2022-09-30 | HK86: 2023-12-30 | HL86: 2022-12-30 | HM86: 2022-09-30 | HN86: 2023-12-30 | HP86: АБ-1 | HQ86: АБ-1 | HR86: АБСт | HT86: - | IG86: 0 | IH86: =IF(YEAR(#REF!)=HU$8,$J86,0) ->  | II86: =IF(AND(YEAR(#REF!)<=HU$8,YEAR(#REF!)>HU$8),$J86,0) ->  | IO86: 2 | IP86: 2 | IU86: ▪
A87: 268 | B87: 13.1.2.4 | C87: СК00.01.1.03.2 | D87: ЖК "Салават Купере" Квартал №1 ж/д 3-2 | F87: Материал рулонный кровельный гидроизоляционный верхний слой | G87: основа: полиэстeр;температура гибкости на брусе R=25мм не менее -20; толщина 1м² не менее 3,8мм | H87: м2 | I87: =1730.022/580*L87 -> 1,730 | J87: 8,789 | K87: 8,209 | L87: 580 | N87: 168 | Q87: 1 | R87: КПД, 1 Каркас | S87: Новое | T87: 5,336 | U87: 4,194 | V87: 423 | W87: =SUM(IG87,#REF!,#REF!,#REF!,#REF!,#REF!,#REF!,#REF!) ->  | FS87: 2023-01-01 | FT87: 2023-01-15 | FU87: 2024-08-23 | FV87: 2022-12-30 | FW87: 2022-09-30 | FX87: 2023-12-30 | FY87: 2022-12-30 | FZ87: 2022-09-30 | GA87: 2023-12-30 | GB87: 2022-12-30 | GC87: 2022-09-30 | GD87: 2023-12-30 | GE87: 2022-12-30 | GF87: 2022-09-30 | GG87: 2023-12-30 | GH87: 2022-12-30 | GI87: 2022-09-30 | GJ87: 2023-12-30 | GK87: 2022-12-30 | GL87: 2022-09-30 | GM87: 2023-12-30 | GN87: 2022-12-30 | GO87: 2022-09-30 | GP87: 2023-12-30 | GQ87: 2022-12-30 | GR87: 2022-09-30 | GS87: 2023-12-30 | GT87: 2022-12-30 | GU87: 2022-09-30 | GV87: 2023-12-30 | GW87: 2022-12-30 | GX87: 2022-09-30 | GY87: 2023-12-30 | GZ87: 2022-12-30 | HA87: 2022-09-30 | HB87: 2023-12-30 | HC87: 2022-12-30 | HD87: 2022-09-30 | HE87: 2023-12-30 | HF87: 2022-12-30 | HG87: 2022-09-30 | HH87: 2023-12-30 | HI87: 2022-12-30 | HJ87: 2022-09-30 | HK87: 2023-12-30 | HL87: 2022-12-30 | HM87: 2022-09-30 | HN87: 2023-12-30 | HP87: АБ-1 | HQ87: АБ-1 | HR87: АБСт | HT87: - | IG87: 0 | IH87: =IF(YEAR(#REF!)=HU$8,$J87,0) ->  | II87: =IF(AND(YEAR(#REF!)<=HU$8,YEAR(#REF!)>HU$8),$J87,0) ->  | IO87: 865 | IP87: 865 | IU87: ▪
A88: 268 | B88: 13.1.2.4 | C88: СК00.01.1.03.2 | D88: ЖК "Салават Купере" Квартал №1 ж/д 3-2 | F88: Материал рулонный кровельный гидроизоляционный нижний слой | G88: основа: полиэстeр;температура гибкости на брусе R=25мм не менее -20; толщина 1м² не менее 2,8мм | H88: м2 | I88: =1243.267/580*L88 -> 1,243 | J88: 8,789 | K88: 8,209 | L88: 580 | N88: 168 | Q88: 1 | R88: КПД, 1 Каркас | S88: Новое | T88: 5,336 | U88: 4,194 | V88: 423 | W88: =SUM(IG88,#REF!,#REF!,#REF!,#REF!,#REF!,#REF!,#REF!) ->  | FS88: 2023-01-01 | FT88: 2023-01-15 | FU88: 2024-08-23 | FV88: 2022-12-30 | FW88: 2022-09-30 | FX88: 2023-12-30 | FY88: 2022-12-30 | FZ88: 2022-09-30 | GA88: 2023-12-30 | GB88: 2022-12-30 | GC88: 2022-09-30 | GD88: 2023-12-30 | GE88: 2022-12-30 | GF88: 2022-09-30 | GG88: 2023-12-30 | GH88: 2022-12-30 | GI88: 2022-09-30 | GJ88: 2023-12-30 | GK88: 2022-12-30 | GL88: 2022-09-30 | GM88: 2023-12-30 | GN88: 2022-12-30 | GO88: 2022-09-30 | GP88: 2023-12-30 | GQ88: 2022-12-30 | GR88: 2022-09-30 | GS88: 2023-12-30 | GT88: 2022-12-30 | GU88: 2022-09-30 | GV88: 2023-12-30 | GW88: 2022-12-30 | GX88: 2022-09-30 | GY88: 2023-12-30 | GZ88: 2022-12-30 | HA88: 2022-09-30 | HB88: 2023-12-30 | HC88: 2022-12-30 | HD88: 2022-09-30 | HE88: 2023-12-30 | HF88: 2022-12-30 | HG88: 2022-09-30 | HH88: 2023-12-30 | HI88: 2022-12-30 | HJ88: 2022-09-30 | HK88: 2023-12-30 | HL88: 2022-12-30 | HM88: 2022-09-30 | HN88: 2023-12-30 | HP88: АБ-1 | HQ88: АБ-1 | HR88: АБСт | HT88: - | IG88: 0 | IH88: =IF(YEAR(#REF!)=HU$8,$J88,0) ->  | II88: =IF(AND(YEAR(#REF!)<=HU$8,YEAR(#REF!)>HU$8),$J88,0) ->  | IO88: 622 | IP88: 622 | IU88: ▪
A89: 269 | B89: 13.1.2.5 | C89: СК00.01.1.03.3 | D89: ЖК "Салават Купере" Квартал №1 ж/д 3-3 | F89: Плиты теплоизоляционные пенополистирольные ППС-25 150мм | H89: м3 | I89: 140 | J89: 6,058 | K89: 5,478 | L89: 580 | N89: 112 | Q89: 1 | R89: КПД, 1 Каркас | S89: Новое | T89: 4,054 | U89: =T89*0.786 -> 3,186 | V89: 423 | W89: =SUM(IG89,#REF!,#REF!,#REF!,#REF!,#REF!,#REF!,#REF!) ->  | FS89: 2022-11-01 | FT89: =FS89+14 -> 2022-11-15 | FU89: 2024-02-24 | FV89: 2022-12-30 | FW89: 2022-09-30 | FX89: 2023-12-30 | FY89: 2022-12-30 | FZ89: 2022-09-30 | GA89: 2023-12-30 | GB89: 2022-12-30 | GC89: 2022-09-30 | GD89: 2023-12-30 | GE89: 2022-12-30 | GF89: 2022-09-30 | GG89: 2023-12-30 | GH89: 2022-12-30 | GI89: 2022-09-30 | GJ89: 2023-12-30 | GK89: 2022-12-30 | GL89: 2022-09-30 | GM89: 2023-12-30 | GN89: 2022-12-30 | GO89: 2022-09-30 | GP89: 2023-12-30 | GQ89: 2022-12-30 | GR89: 2022-09-30 | GS89: 2023-12-30 | GT89: 2022-12-30 | GU89: 2022-09-30 | GV89: 2023-12-30 | GW89: 2022-12-30 | GX89: 2022-09-30 | GY89: 2023-12-30 | GZ89: 2022-12-30 | HA89: 2022-09-30 | HB89: 2023-12-30 | HC89: 2022-12-30 | HD89: 2022-09-30 | HE89: 2023-12-30 | HF89: 2022-12-30 | HG89: 2022-09-30 | HH89: 2023-12-30 | HI89: 2022-12-30 | HJ89: 2022-09-30 | HK89: 2023-12-30 | HL89: 2022-12-30 | HM89: 2022-09-30 | HN89: 2023-12-30 | HP89: АБ-1 | HQ89: АБ-1 | HR89: АБСт | HT89: - | IG89: =SUM(HU89:IF89) -> 0 | IH89: =IF(YEAR(#REF!)=HU$8,$J89,0) ->  | II89: =IF(AND(YEAR(#REF!)<=HU$8,YEAR(#REF!)>HU$8),$J89,0) ->  | IM89: =I89 -> 140 | IU89: ▪
A90: 269 | B90: 13.1.2.5 | C90: СК00.01.1.03.3 | D90: ЖК "Салават Купере" Квартал №1 ж/д 3-3 | F90: Керамзит М600 | H90: м3 | I90: 142 | J90: 6,058 | K90: 5,478 | L90: 580 | N90: 112 | Q90: 1 | R90: КПД, 1 Каркас | S90: Новое | T90: 4,054 | U90: =T90*0.786 -> 3,186 | V90: 423 | W90: =SUM(IG90,#REF!,#REF!,#REF!,#REF!,#REF!,#REF!,#REF!) ->  | FS90: 2022-11-01 | FT90: =FS90+14 -> 2022-11-15 | FU90: 2024-02-24 | FV90: 2022-12-30 | FW90: 2022-09-30 | FX90: 2023-12-30 | FY90: 2022-12-30 | FZ90: 2022-09-30 | GA90: 2023-12-30 | GB90: 2022-12-30 | GC90: 2022-09-30 | GD90: 2023-12-30 | GE90: 2022-12-30 | GF90: 2022-09-30 | GG90: 2023-12-30 | GH90: 2022-12-30 | GI90: 2022-09-30 | GJ90: 2023-12-30 | GK90: 2022-12-30 | GL90: 2022-09-30 | GM90: 2023-12-30 | GN90: 2022-12-30 | GO90: 2022-09-30 | GP90: 2023-12-30 | GQ90: 2022-12-30 | GR90: 2022-09-30 | GS90: 2023-12-30 | GT90: 2022-12-30 | GU90: 2022-09-30 | GV90: 2023-12-30 | GW90: 2022-12-30 | GX90: 2022-09-30 | GY90: 2023-12-30 | GZ90: 2022-12-30 | HA90: 2022-09-30 | HB90: 2023-12-30 | HC90: 2022-12-30 | HD90: 2022-09-30 | HE90: 2023-12-30 | HF90: 2022-12-30 | HG90: 2022-09-30 | HH90: 2023-12-30 | HI90: 2022-12-30 | HJ90: 2022-09-30 | HK90: 2023-12-30 | HL90: 2022-12-30 | HM90: 2022-09-30 | HN90: 2023-12-30 | HP90: АБ-1 | HQ90: АБ-1 | HR90: АБСт | HT90: - | IG90: =SUM(HU90:IF90) -> 0 | IH90: =IF(YEAR(#REF!)=HU$8,$J90,0) ->  | II90: =IF(AND(YEAR(#REF!)<=HU$8,YEAR(#REF!)>HU$8),$J90,0) ->  | IM90: =I90 -> 142 | IU90: ▪
A91: 269 | B91: 13.1.2.5 | C91: СК00.01.1.03.3 | D91: ЖК "Салават Купере" Квартал №1 ж/д 3-3 | F91: Плиты теплоизоляционные пенополистирольные экструдированные 100мм | H91: м3 | I91: 14 | J91: 6,058 | K91: 5,478 | L91: 580 | N91: 112 | Q91: 1 | R91: КПД, 1 Каркас | S91: Новое | T91: 4,054 | U91: =T91*0.786 -> 3,186 | V91: 423 | W91: =SUM(IG91,#REF!,#REF!,#REF!,#REF!,#REF!,#REF!,#REF!) ->  | FS91: 2022-11-01 | FT91: =FS91+14 -> 2022-11-15 | FU91: 2024-02-24 | FV91: 2022-12-30 | FW91: 2022-09-30 | FX91: 2023-12-30 | FY91: 2022-12-30 | FZ91: 2022-09-30 | GA91: 2023-12-30 | GB91: 2022-12-30 | GC91: 2022-09-30 | GD91: 2023-12-30 | GE91: 2022-12-30 | GF91: 2022-09-30 | GG91: 2023-12-30 | GH91: 2022-12-30 | GI91: 2022-09-30 | GJ91: 2023-12-30 | GK91: 2022-12-30 | GL91: 2022-09-30 | GM91: 2023-12-30 | GN91: 2022-12-30 | GO91: 2022-09-30 | GP91: 2023-12-30 | GQ91: 2022-12-30 | GR91: 2022-09-30 | GS91: 2023-12-30 | GT91: 2022-12-30 | GU91: 2022-09-30 | GV91: 2023-12-30 | GW91: 2022-12-30 | GX91: 2022-09-30 | GY91: 2023-12-30 | GZ91: 2022-12-30 | HA91: 2022-09-30 | HB91: 2023-12-30 | HC91: 2022-12-30 | HD91: 2022-09-30 | HE91: 2023-12-30 | HF91: 2022-12-30 | HG91: 2022-09-30 | HH91: 2023-12-30 | HI91: 2022-12-30 | HJ91: 2022-09-30 | HK91: 2023-12-30 | HL91: 2022-12-30 | HM91: 2022-09-30 | HN91: 2023-12-30 | HP91: АБ-1 | HQ91: АБ-1 | HR91: АБСт | HT91: - | IG91: =SUM(HU91:IF91) -> 0 | IH91: =IF(YEAR(#REF!)=HU$8,$J91,0) ->  | II91: =IF(AND(YEAR(#REF!)<=HU$8,YEAR(#REF!)>HU$8),$J91,0) ->  | IM91: 14 | IU91: ▪
A92: 269 | B92: 13.1.2.5 | C92: СК00.01.1.03.3 | D92: ЖК "Салават Купере" Квартал №1 ж/д 3-3 | F92: Плиты теплоизоляционные пенополистирольные экструдированные 50мм | H92: м3 | I92: 4 | J92: 6,058 | K92: 5,478 | L92: 580 | N92: 112 | Q92: 1 | R92: КПД, 1 Каркас | S92: Новое | T92: 4,054 | U92: =T92*0.786 -> 3,186 | V92: 423 | W92: =SUM(IG92,#REF!,#REF!,#REF!,#REF!,#REF!,#REF!,#REF!) ->  | FS92: 2022-11-01 | FT92: =FS92+14 -> 2022-11-15 | FU92: 2024-02-24 | FV92: 2022-12-30 | FW92: 2022-09-30 | FX92: 2023-12-30 | FY92: 2022-12-30 | FZ92: 2022-09-30 | GA92: 2023-12-30 | GB92: 2022-12-30 | GC92: 2022-09-30 | GD92: 2023-12-30 | GE92: 2022-12-30 | GF92: 2022-09-30 | GG92: 2023-12-30 | GH92: 2022-12-30 | GI92: 2022-09-30 | GJ92: 2023-12-30 | GK92: 2022-12-30 | GL92: 2022-09-30 | GM92: 2023-12-30 | GN92: 2022-12-30 | GO92: 2022-09-30 | GP92: 2023-12-30 | GQ92: 2022-12-30 | GR92: 2022-09-30 | GS92: 2023-12-30 | GT92: 2022-12-30 | GU92: 2022-09-30 | GV92: 2023-12-30 | GW92: 2022-12-30 | GX92: 2022-09-30 | GY92: 2023-12-30 | GZ92: 2022-12-30 | HA92: 2022-09-30 | HB92: 2023-12-30 | HC92: 2022-12-30 | HD92: 2022-09-30 | HE92: 2023-12-30 | HF92: 2022-12-30 | HG92: 2022-09-30 | HH92: 2023-12-30 | HI92: 2022-12-30 | HJ92: 2022-09-30 | HK92: 2023-12-30 | HL92: 2022-12-30 | HM92: 2022-09-30 | HN92: 2023-12-30 | HP92: АБ-1 | HQ92: АБ-1 | HR92: АБСт | HT92: - | IG92: =SUM(HU92:IF92) -> 0 | IH92: =IF(YEAR(#REF!)=HU$8,$J92,0) ->  | II92: =IF(AND(YEAR(#REF!)<=HU$8,YEAR(#REF!)>HU$8),$J92,0) ->  | IM92: 4 | IU92: ▪
A93: 269 | B93: 13.1.2.5 | C93: СК00.01.1.03.3 | D93: ЖК "Салават Купере" Квартал №1 ж/д 3-3 | F93: Материал рулонный кровельный гидроизоляционный верхний слой | G93: основа: полиэстeр;температура гибкости на брусе R=25мм не менее -20; толщина 1м² не менее 3,8мм | H93: м2 | I93: 1,730 | J93: 6,058 | K93: 5,478 | L93: 580 | N93: 112 | Q93: 1 | R93: КПД, 1 Каркас | S93: Новое | T93: 4,054 | U93: =T93*0.786 -> 3,186 | V93: 423 | W93: =SUM(IG93,#REF!,#REF!,#REF!,#REF!,#REF!,#REF!,#REF!) ->  | FS93: 2022-11-01 | FT93: =FS93+14 -> 2022-11-15 | FU93: 2024-02-24 | FV93: 2022-12-30 | FW93: 2022-09-30 | FX93: 2023-12-30 | FY93: 2022-12-30 | FZ93: 2022-09-30 | GA93: 2023-12-30 | GB93: 2022-12-30 | GC93: 2022-09-30 | GD93: 2023-12-30 | GE93: 2022-12-30 | GF93: 2022-09-30 | GG93: 2023-12-30 | GH93: 2022-12-30 | GI93: 2022-09-30 | GJ93: 2023-12-30 | GK93: 2022-12-30 | GL93: 2022-09-30 | GM93: 2023-12-30 | GN93: 2022-12-30 | GO93: 2022-09-30 | GP93: 2023-12-30 | GQ93: 2022-12-30 | GR93: 2022-09-30 | GS93: 2023-12-30 | GT93: 2022-12-30 | GU93: 2022-09-30 | GV93: 2023-12-30 | GW93: 2022-12-30 | GX93: 2022-09-30 | GY93: 2023-12-30 | GZ93: 2022-12-30 | HA93: 2022-09-30 | HB93: 2023-12-30 | HC93: 2022-12-30 | HD93: 2022-09-30 | HE93: 2023-12-30 | HF93: 2022-12-30 | HG93: 2022-09-30 | HH93: 2023-12-30 | HI93: 2022-12-30 | HJ93: 2022-09-30 | HK93: 2023-12-30 | HL93: 2022-12-30 | HM93: 2022-09-30 | HN93: 2023-12-30 | HP93: АБ-1 | HQ93: АБ-1 | HR93: АБСт | HT93: - | IG93: =SUM(HU93:IF93) -> 0 | IH93: =IF(YEAR(#REF!)=HU$8,$J93,0) ->  | II93: =IF(AND(YEAR(#REF!)<=HU$8,YEAR(#REF!)>HU$8),$J93,0) ->  | IM93: 1,730 | IU93: ▪
A94: 269 | B94: 13.1.2.5 | C94: СК00.01.1.03.3 | D94: ЖК "Салават Купере" Квартал №1 ж/д 3-3 | F94: Материал рулонный кровельный гидроизоляционный нижний слой | G94: основа: полиэстeр;температура гибкости на брусе R=25мм не менее -20; толщина 1м² не менее 2,8мм | H94: м2 | I94: 1,243 | J94: 6,058 | K94: 5,478 | L94: 580 | N94: 112 | Q94: 1 | R94: КПД, 1 Каркас | S94: Новое | T94: 4,054 | U94: 3,186 | V94: 423 | W94: =SUM(IG94,#REF!,#REF!,#REF!,#REF!,#REF!,#REF!,#REF!) ->  | FS94: 2022-11-01 | FT94: 2022-11-15 | FU94: 2024-02-24 | FV94: 2022-12-30 | FW94: 2022-09-30 | FX94: 2023-12-30 | FY94: 2022-12-30 | FZ94: 2022-09-30 | GA94: 2023-12-30 | GB94: 2022-12-30 | GC94: 2022-09-30 | GD94: 2023-12-30 | GE94: 2022-12-30 | GF94: 2022-09-30 | GG94: 2023-12-30 | GH94: 2022-12-30 | GI94: 2022-09-30 | GJ94: 2023-12-30 | GK94: 2022-12-30 | GL94: 2022-09-30 | GM94: 2023-12-30 | GN94: 2022-12-30 | GO94: 2022-09-30 | GP94: 2023-12-30 | GQ94: 2022-12-30 | GR94: 2022-09-30 | GS94: 2023-12-30 | GT94: 2022-12-30 | GU94: 2022-09-30 | GV94: 2023-12-30 | GW94: 2022-12-30 | GX94: 2022-09-30 | GY94: 2023-12-30 | GZ94: 2022-12-30 | HA94: 2022-09-30 | HB94: 2023-12-30 | HC94: 2022-12-30 | HD94: 2022-09-30 | HE94: 2023-12-30 | HF94: 2022-12-30 | HG94: 2022-09-30 | HH94: 2023-12-30 | HI94: 2022-12-30 | HJ94: 2022-09-30 | HK94: 2023-12-30 | HL94: 2022-12-30 | HM94: 2022-09-30 | HN94: 2023-12-30 | HP94: АБ-1 | HQ94: АБ-1 | HR94: АБСт | HT94: - | IG94: 0 | IH94: =IF(YEAR(#REF!)=HU$8,$J94,0) ->  | II94: =IF(AND(YEAR(#REF!)<=HU$8,YEAR(#REF!)>HU$8),$J94,0) ->  | IM94: 1,243 | IU94: ▪
A95: 276 | B95: 13.1.2.6 | C95: СК00.01.1.04.1 | D95: ЖК "Салават Купере" Квартал №1 ж/д 4-1 | F95: Плиты теплоизоляционные пенополистирольные ППС-25 150мм | H95: м3 | I95: =140.294/580*L95 -> 167 | J95: =K95+L95 -> 13,327 | K95: 12,637 | L95: 690 | N95: 228 | Q95: 1 | R95: КПД, 1 Каркас | S95: Новое | T95: 8,214 | U95: 6,456 | V95: 504 | W95: =SUM(IG95,#REF!,#REF!,#REF!,#REF!,#REF!,#REF!,#REF!) ->  | FS95: 2023-02-01 | FT95: =FS95+14 -> 2023-02-15 | FU95: 2024-09-23 | FV95: 2023-01-01 | FW95: 2023-06-01 | FX95: 2024-12-30 | FY95: 2023-01-01 | FZ95: 2023-06-01 | GA95: 2024-12-30 | GB95: 2023-01-01 | GC95: 2023-06-01 | GD95: 2024-12-30 | GE95: 2023-01-01 | GF95: 2023-06-01 | GG95: 2024-12-30 | GH95: 2023-01-01 | GI95: 2023-06-01 | GJ95: 2024-12-30 | GK95: 2023-01-01 | GL95: 2023-06-01 | GM95: 2024-12-30 | GN95: 2023-01-01 | GO95: 2023-01-01 | GP95: 2024-10-30 | GQ95: 2023-01-01 | GR95: 2023-01-01 | GS95: 2024-10-30 | GT95: 2023-01-01 | GU95: 2023-01-01 | GV95: 2024-10-30 | GW95: 2023-01-01 | GX95: 2024-02-01 | GY95: 2025-09-01 | GZ95: 2023-01-01 | HA95: 2024-02-01 | HB95: 2025-09-01 | HC95: 2023-01-01 | HD95: 2023-02-01 | HE95: 2024-09-01 | HF95: 2023-01-01 | HG95: 2023-02-01 | HH95: 2024-09-01 | HI95: 2023-01-01 | HJ95: 2023-02-01 | HK95: 2024-09-01 | HL95: 2023-01-01 | HM95: 2023-02-01 | HN95: 2024-09-01 | HP95: АБ-1 | HQ95: АБ-1 | HR95: АБСт | HT95: - | IG95: 0 | IH95: =IF(YEAR(#REF!)=HU$8,$J95,0) ->  | II95: =IF(AND(YEAR(#REF!)<=HU$8,YEAR(#REF!)>HU$8),$J95,0) ->  | IV95: =I95 -> 167
A96: 276 | B96: 13.1.2.6 | C96: СК00.01.1.04.1 | D96: ЖК "Салават Купере" Квартал №1 ж/д 4-1 | F96: Керамзит М600 | H96: м3 | I96: =142.129/580*L96 -> 169 | J96: 13,327 | K96: 12,637 | L96: 690 | N96: 228 | Q96: 1 | R96: КПД, 1 Каркас | S96: Новое | T96: 8,214 | U96: =T96*0.786 -> 6,456 | V96: 504 | W96: =SUM(IG96,#REF!,#REF!,#REF!,#REF!,#REF!,#REF!,#REF!) ->  | FS96: 2023-02-01 | FT96: 2023-02-15 | FU96: 2024-09-23 | FV96: 2023-01-01 | FW96: 2023-06-01 | FX96: 2024-12-30 | FY96: 2023-01-01 | FZ96: 2023-06-01 | GA96: 2024-12-30 | GB96: 2023-01-01 | GC96: 2023-06-01 | GD96: 2024-12-30 | GE96: 2023-01-01 | GF96: 2023-06-01 | GG96: 2024-12-30 | GH96: 2023-01-01 | GI96: 2023-06-01 | GJ96: 2024-12-30 | GK96: 2023-01-01 | GL96: 2023-06-01 | GM96: 2024-12-30 | GN96: 2023-01-01 | GO96: 2023-01-01 | GP96: 2024-10-30 | GQ96: 2023-01-01 | GR96: 2023-01-01 | GS96: 2024-10-30 | GT96: 2023-01-01 | GU96: 2023-01-01 | GV96: 2024-10-30 | GW96: 2023-01-01 | GX96: 2024-02-01 | GY96: 2025-09-01 | GZ96: 2023-01-01 | HA96: 2024-02-01 | HB96: 2025-09-01 | HC96: 2023-01-01 | HD96: 2023-02-01 | HE96: 2024-09-01 | HF96: 2023-01-01 | HG96: 2023-02-01 | HH96: 2024-09-01 | HI96: 2023-01-01 | HJ96: 2023-02-01 | HK96: 2024-09-01 | HL96: 2023-01-01 | HM96: 2023-02-01 | HN96: 2024-09-01 | HP96: АБ-1 | HQ96: АБ-1 | HR96: АБСт | HT96: - | IG96: =SUM(HU96:IF96) -> 0 | IH96: =IF(YEAR(#REF!)=HU$8,$J96,0) ->  | II96: =IF(AND(YEAR(#REF!)<=HU$8,YEAR(#REF!)>HU$8),$J96,0) ->  | IV96: =I96 -> 169
A97: 276 | B97: 13.1.2.6 | C97: СК00.01.1.04.1 | D97: ЖК "Салават Купере" Квартал №1 ж/д 4-1 | F97: Плиты теплоизоляционные пенополистирольные экструдированные 100мм | H97: м3 | I97: =14.146/580*L97 -> 17 | J97: 13,327 | K97: 12,637 | L97: 690 | N97: 228 | Q97: 1 | R97: КПД, 1 Каркас | S97: Новое | T97: 8,214 | U97: 6,456 | V97: 504 | W97: =SUM(IG97,#REF!,#REF!,#REF!,#REF!,#REF!,#REF!,#REF!) ->  | FS97: 2023-02-01 | FT97: 2023-02-15 | FU97: 2024-09-23 | FV97: 2023-01-01 | FW97: 2023-06-01 | FX97: 2024-12-30 | FY97: 2023-01-01 | FZ97: 2023-06-01 | GA97: 2024-12-30 | GB97: 2023-01-01 | GC97: 2023-06-01 | GD97: 2024-12-30 | GE97: 2023-01-01 | GF97: 2023-06-01 | GG97: 2024-12-30 | GH97: 2023-01-01 | GI97: 2023-06-01 | GJ97: 2024-12-30 | GK97: 2023-01-01 | GL97: 2023-06-01 | GM97: 2024-12-30 | GN97: 2023-01-01 | GO97: 2023-01-01 | GP97: 2024-10-30 | GQ97: 2023-01-01 | GR97: 2023-01-01 | GS97: 2024-10-30 | GT97: 2023-01-01 | GU97: 2023-01-01 | GV97: 2024-10-30 | GW97: 2023-01-01 | GX97: 2024-02-01 | GY97: 2025-09-01 | GZ97: 2023-01-01 | HA97: 2024-02-01 | HB97: 2025-09-01 | HC97: 2023-01-01 | HD97: 2023-02-01 | HE97: 2024-09-01 | HF97: 2023-01-01 | HG97: 2023-02-01 | HH97: 2024-09-01 | HI97: 2023-01-01 | HJ97: 2023-02-01 | HK97: 2024-09-01 | HL97: 2023-01-01 | HM97: 2023-02-01 | HN97: 2024-09-01 | HP97: АБ-1 | HQ97: АБ-1 | HR97: АБСт | HT97: - | IG97: 0 | IH97: =IF(YEAR(#REF!)=HU$8,$J97,0) ->  | II97: =IF(AND(YEAR(#REF!)<=HU$8,YEAR(#REF!)>HU$8),$J97,0) ->  | IV97: 17
A98: 276 | B98: 13.1.2.6 | C98: СК00.01.1.04.1 | D98: ЖК "Салават Купере" Квартал №1 ж/д 4-1 | F98: Плиты теплоизоляционные пенополистирольные экструдированные 50мм | H98: м3 | I98: =3.939/580*L98 -> 5 | J98: 13,327 | K98: 12,637 | L98: 690 | N98: 228 | Q98: 1 | R98: КПД, 1 Каркас | S98: Новое | T98: 8,214 | U98: 6,456 | V98: 504 | W98: =SUM(IG98,#REF!,#REF!,#REF!,#REF!,#REF!,#REF!,#REF!) ->  | FS98: 2023-02-01 | FT98: 2023-02-15 | FU98: 2024-09-23 | FV98: 2023-01-01 | FW98: 2023-06-01 | FX98: 2024-12-30 | FY98: 2023-01-01 | FZ98: 2023-06-01 | GA98: 2024-12-30 | GB98: 2023-01-01 | GC98: 2023-06-01 | GD98: 2024-12-30 | GE98: 2023-01-01 | GF98: 2023-06-01 | GG98: 2024-12-30 | GH98: 2023-01-01 | GI98: 2023-06-01 | GJ98: 2024-12-30 | GK98: 2023-01-01 | GL98: 2023-06-01 | GM98: 2024-12-30 | GN98: 2023-01-01 | GO98: 2023-01-01 | GP98: 2024-10-30 | GQ98: 2023-01-01 | GR98: 2023-01-01 | GS98: 2024-10-30 | GT98: 2023-01-01 | GU98: 2023-01-01 | GV98: 2024-10-30 | GW98: 2023-01-01 | GX98: 2024-02-01 | GY98: 2025-09-01 | GZ98: 2023-01-01 | HA98: 2024-02-01 | HB98: 2025-09-01 | HC98: 2023-01-01 | HD98: 2023-02-01 | HE98: 2024-09-01 | HF98: 2023-01-01 | HG98: 2023-02-01 | HH98: 2024-09-01 | HI98: 2023-01-01 | HJ98: 2023-02-01 | HK98: 2024-09-01 | HL98: 2023-01-01 | HM98: 2023-02-01 | HN98: 2024-09-01 | HP98: АБ-1 | HQ98: АБ-1 | HR98: АБСт | HT98: - | IG98: 0 | IH98: =IF(YEAR(#REF!)=HU$8,$J98,0) ->  | II98: =IF(AND(YEAR(#REF!)<=HU$8,YEAR(#REF!)>HU$8),$J98,0) ->  | IV98: 5
A99: 276 | B99: 13.1.2.6 | C99: СК00.01.1.04.1 | D99: ЖК "Салават Купере" Квартал №1 ж/д 4-1 | F99: Материал рулонный кровельный гидроизоляционный верхний слой | G99: основа: полиэстeр;температура гибкости на брусе R=25мм не менее -20; толщина 1м² не менее 3,8мм | H99: м2 | I99: =1730.022/580*L99 -> 2,058 | J99: 13,327 | K99: 12,637 | L99: 690 | N99: 228 | Q99: 1 | R99: КПД, 1 Каркас | S99: Новое | T99: 8,214 | U99: 6,456 | V99: 504 | W99: =SUM(IG99,#REF!,#REF!,#REF!,#REF!,#REF!,#REF!,#REF!) ->  | FS99: 2023-02-01 | FT99: 2023-02-15 | FU99: 2024-09-23 | FV99: 2023-01-01 | FW99: 2023-06-01 | FX99: 2024-12-30 | FY99: 2023-01-01 | FZ99: 2023-06-01 | GA99: 2024-12-30 | GB99: 2023-01-01 | GC99: 2023-06-01 | GD99: 2024-12-30 | GE99: 2023-01-01 | GF99: 2023-06-01 | GG99: 2024-12-30 | GH99: 2023-01-01 | GI99: 2023-06-01 | GJ99: 2024-12-30 | GK99: 2023-01-01 | GL99: 2023-06-01 | GM99: 2024-12-30 | GN99: 2023-01-01 | GO99: 2023-01-01 | GP99: 2024-10-30 | GQ99: 2023-01-01 | GR99: 2023-01-01 | GS99: 2024-10-30 | GT99: 2023-01-01 | GU99: 2023-01-01 | GV99: 2024-10-30 | GW99: 2023-01-01 | GX99: 2024-02-01 | GY99: 2025-09-01 | GZ99: 2023-01-01 | HA99: 2024-02-01 | HB99: 2025-09-01 | HC99: 2023-01-01 | HD99: 2023-02-01 | HE99: 2024-09-01 | HF99: 2023-01-01 | HG99: 2023-02-01 | HH99: 2024-09-01 | HI99: 2023-01-01 | HJ99: 2023-02-01 | HK99: 2024-09-01 | HL99: 2023-01-01 | HM99: 2023-02-01 | HN99: 2024-09-01 | HP99: АБ-1 | HQ99: АБ-1 | HR99: АБСт | HT99: - | IG99: 0 | IH99: =IF(YEAR(#REF!)=HU$8,$J99,0) ->  | II99: =IF(AND(YEAR(#REF!)<=HU$8,YEAR(#REF!)>HU$8),$J99,0) ->  | IV99: 2,058
A100: 276 | B100: 13.1.2.6 | C100: СК00.01.1.04.1 | D100: ЖК "Салават Купере" Квартал №1 ж/д 4-1 | F100: Материал рулонный кровельный гидроизоляционный нижний слой | G100: основа: полиэстeр;температура гибкости на брусе R=25мм не менее -20; толщина 1м² не менее 2,8мм | H100: м2 | I100: =1243.267/580*L100 -> 1,479 | J100: 13,327 | K100: 12,637 | L100: 690 | N100: 228 | Q100: 1 | R100: КПД, 1 Каркас | S100: Новое | T100: 8,214 | U100: 6,456 | V100: 504 | W100: =SUM(IG100,#REF!,#REF!,#REF!,#REF!,#REF!,#REF!,#REF!) ->  | FS100: 2023-02-01 | FT100: 2023-02-15 | FU100: 2024-09-23 | FV100: 2023-01-01 | FW100: 2023-06-01 | FX100: 2024-12-30 | FY100: 2023-01-01 | FZ100: 2023-06-01 | GA100: 2024-12-30 | GB100: 2023-01-01 | GC100: 2023-06-01 | GD100: 2024-12-30 | GE100: 2023-01-01 | GF100: 2023-06-01 | GG100: 2024-12-30 | GH100: 2023-01-01 | GI100: 2023-06-01 | GJ100: 2024-12-30 | GK100: 2023-01-01 | GL100: 2023-06-01 | GM100: 2024-12-30 | GN100: 2023-01-01 | GO100: 2023-01-01 | GP100: 2024-10-30 | GQ100: 2023-01-01 | GR100: 2023-01-01 | GS100: 2024-10-30 | GT100: 2023-01-01 | GU100: 2023-01-01 | GV100: 2024-10-30 | GW100: 2023-01-01 | GX100: 2024-02-01 | GY100: 2025-09-01 | GZ100: 2023-01-01 | HA100: 2024-02-01 | HB100: 2025-09-01 | HC100: 2023-01-01 | HD100: 2023-02-01 | HE100: 2024-09-01 | HF100: 2023-01-01 | HG100: 2023-02-01 | HH100: 2024-09-01 | HI100: 2023-01-01 | HJ100: 2023-02-01 | HK100: 2024-09-01 | HL100: 2023-01-01 | HM100: 2023-02-01 | HN100: 2024-09-01 | HP100: АБ-1 | HQ100: АБ-1 | HR100: АБСт | HT100: - | IG100: 0 | IH100: =IF(YEAR(#REF!)=HU$8,$J100,0) ->  | II100: =IF(AND(YEAR(#REF!)<=HU$8,YEAR(#REF!)>HU$8),$J100,0) ->  | IV100: 1,479
A101: 277 | B101: 13.1.2.7 | C101: СК00.01.1.04.2 | D101: ЖК "Салават Купере" Квартал №1 ж/д 4-2 | F101: Плиты теплоизоляционные пенополистирольные ППС-25 150мм | H101: м3 | I101: =140.294/580*L101 -> 97 | J101: =K101+L101 -> 7,766 | K101: 7,366 | L101: 400 | N101: 196 | Q101: 1 | R101: КПД, 1 Каркас | S101: Перепривязка | T101: 4,788 | U101: 3,763 | V101: 292 | W101: =SUM(IG101,#REF!,#REF!,#REF!,#REF!,#REF!,#REF!,#REF!) ->  | FS101: 2022-12-01 | FT101: 2022-12-15 | FU101: 2024-07-23 | FV101: 2023-01-01 | FW101: 2023-06-01 | FX101: 2024-12-30 | FY101: 2023-01-01 | FZ101: 2023-06-01 | GA101: 2024-12-30 | GB101: 2023-01-01 | GC101: 2023-06-01 | GD101: 2024-12-30 | GE101: 2023-01-01 | GF101: 2023-06-01 | GG101: 2024-12-30 | GH101: 2023-01-01 | GI101: 2023-06-01 | GJ101: 2024-12-30 | GK101: 2023-01-01 | GL101: 2023-06-01 | GM101: 2024-12-30 | GN101: 2023-01-01 | GO101: 2022-09-01 | GP101: 2024-10-30 | GQ101: 2023-01-01 | GR101: 2022-09-01 | GS101: 2024-10-30 | GT101: 2023-01-01 | GU101: 2022-09-01 | GV101: 2024-10-30 | GW101: 2023-01-01 | GX101: 2024-01-10 | GY101: 2025-09-01 | GZ101: 2023-01-01 | HA101: 2024-01-10 | HB101: 2025-09-01 | HC101: 2023-01-01 | HD101: 2023-02-01 | HE101: 2024-09-01 | HF101: 2023-01-01 | HG101: 2023-02-01 | HH101: 2024-09-01 | HI101: 2023-01-01 | HJ101: 2023-02-01 | HK101: 2024-09-01 | HL101: 2023-01-01 | HM101: 2023-02-01 | HN101: 2024-09-01 | HP101: АБ-1 | HQ101: АБ-1 | HR101: АБСт | HT101: - | IG101: 0 | IH101: =IF(YEAR(#REF!)=HU$8,$J101,0) ->  | II101: =IF(AND(YEAR(#REF!)<=HU$8,YEAR(#REF!)>HU$8),$J101,0) ->  | IQ101: =I101/2 -> 48 | IR101: =I101/2 -> 48
A102: 277 | B102: 13.1.2.7 | C102: СК00.01.1.04.2 | D102: ЖК "Салават Купере" Квартал №1 ж/д 4-2 | F102: Керамзит М600 | H102: м3 | I102: =142.129/580*L102 -> 98 | J102: =K102+L102 -> 7,766 | K102: 7,366 | L102: 400 | N102: 196 | Q102: 1 | R102: КПД, 1 Каркас | S102: Перепривязка | T102: 4,788 | U102: =T102*0.786 -> 3,763 | V102: 292 | W102: =SUM(IG102,#REF!,#REF!,#REF!,#REF!,#REF!,#REF!,#REF!) ->  | FS102: 2022-12-01 | FT102: =FS102+14 -> 2022-12-15 | FU102: 2024-07-23 | FV102: 2023-01-01 | FW102: 2023-06-01 | FX102: 2024-12-30 | FY102: 2023-01-01 | FZ102: 2023-06-01 | GA102: 2024-12-30 | GB102: 2023-01-01 | GC102: 2023-06-01 | GD102: 2024-12-30 | GE102: 2023-01-01 | GF102: 2023-06-01 | GG102: 2024-12-30 | GH102: 2023-01-01 | GI102: 2023-06-01 | GJ102: 2024-12-30 | GK102: 2023-01-01 | GL102: 2023-06-01 | GM102: 2024-12-30 | GN102: 2023-01-01 | GO102: 2022-09-01 | GP102: 2024-10-30 | GQ102: 2023-01-01 | GR102: 2022-09-01 | GS102: 2024-10-30 | GT102: 2023-01-01 | GU102: 2022-09-01 | GV102: 2024-10-30 | GW102: 2023-01-01 | GX102: 2024-01-10 | GY102: 2025-09-01 | GZ102: 2023-01-01 | HA102: 2024-01-10 | HB102: 2025-09-01 | HC102: 2023-01-01 | HD102: 2023-02-01 | HE102: 2024-09-01 | HF102: 2023-01-01 | HG102: 2023-02-01 | HH102: 2024-09-01 | HI102: 2023-01-01 | HJ102: 2023-02-01 | HK102: 2024-09-01 | HL102: 2023-01-01 | HM102: 2023-02-01 | HN102: 2024-09-01 | HP102: АБ-1 | HQ102: АБ-1 | HR102: АБСт | HT102: - | IG102: =SUM(HU102:IF102) -> 0 | IH102: =IF(YEAR(#REF!)=HU$8,$J102,0) ->  | II102: =IF(AND(YEAR(#REF!)<=HU$8,YEAR(#REF!)>HU$8),$J102,0) ->  | IQ102: =I102/2 -> 49 | IR102: =I102/2 -> 49
A103: 277 | B103: 13.1.2.7 | C103: СК00.01.1.04.2 | D103: ЖК "Салават Купере" Квартал №1 ж/д 4-2 | F103: Плиты теплоизоляционные пенополистирольные экструдированные 100мм | H103: м3 | I103: =14.146/580*L103 -> 10 | J103: 7,766 | K103: 7,366 | L103: 400 | N103: 196 | Q103: 1 | R103: КПД, 1 Каркас | S103: Перепривязка | T103: 4,788 | U103: 3,763 | V103: 292 | W103: =SUM(IG103,#REF!,#REF!,#REF!,#REF!,#REF!,#REF!,#REF!) ->  | FS103: 2022-12-01 | FT103: 2022-12-15 | FU103: 2024-07-23 | FV103: 2023-01-01 | FW103: 2023-06-01 | FX103: 2024-12-30 | FY103: 2023-01-01 | FZ103: 2023-06-01 | GA103: 2024-12-30 | GB103: 2023-01-01 | GC103: 2023-06-01 | GD103: 2024-12-30 | GE103: 2023-01-01 | GF103: 2023-06-01 | GG103: 2024-12-30 | GH103: 2023-01-01 | GI103: 2023-06-01 | GJ103: 2024-12-30 | GK103: 2023-01-01 | GL103: 2023-06-01 | GM103: 2024-12-30 | GN103: 2023-01-01 | GO103: 2022-09-01 | GP103: 2024-10-30 | GQ103: 2023-01-01 | GR103: 2022-09-01 | GS103: 2024-10-30 | GT103: 2023-01-01 | GU103: 2022-09-01 | GV103: 2024-10-30 | GW103: 2023-01-01 | GX103: 2024-01-10 | GY103: 2025-09-01 | GZ103: 2023-01-01 | HA103: 2024-01-10 | HB103: 2025-09-01 | HC103: 2023-01-01 | HD103: 2023-02-01 | HE103: 2024-09-01 | HF103: 2023-01-01 | HG103: 2023-02-01 | HH103: 2024-09-01 | HI103: 2023-01-01 | HJ103: 2023-02-01 | HK103: 2024-09-01 | HL103: 2023-01-01 | HM103: 2023-02-01 | HN103: 2024-09-01 | HP103: АБ-1 | HQ103: АБ-1 | HR103: АБСт | HT103: - | IG103: 0 | IH103: =IF(YEAR(#REF!)=HU$8,$J103,0) ->  | II103: =IF(AND(YEAR(#REF!)<=HU$8,YEAR(#REF!)>HU$8),$J103,0) ->  | IQ103: 5 | IR103: 5
A104: 277 | B104: 13.1.2.7 | C104: СК00.01.1.04.2 | D104: ЖК "Салават Купере" Квартал №1 ж/д 4-2 | F104: Плиты теплоизоляционные пенополистирольные экструдированные 50мм | H104: м3 | I104: =3.939/580*L104 -> 3 | J104: 7,766 | K104: 7,366 | L104: 400 | N104: 196 | Q104: 1 | R104: КПД, 1 Каркас | S104: Перепривязка | T104: 4,788 | U104: 3,763 | V104: 292 | W104: =SUM(IG104,#REF!,#REF!,#REF!,#REF!,#REF!,#REF!,#REF!) ->  | FS104: 2022-12-01 | FT104: 2022-12-15 | FU104: 2024-07-23 | FV104: 2023-01-01 | FW104: 2023-06-01 | FX104: 2024-12-30 | FY104: 2023-01-01 | FZ104: 2023-06-01 | GA104: 2024-12-30 | GB104: 2023-01-01 | GC104: 2023-06-01 | GD104: 2024-12-30 | GE104: 2023-01-01 | GF104: 2023-06-01 | GG104: 2024-12-30 | GH104: 2023-01-01 | GI104: 2023-06-01 | GJ104: 2024-12-30 | GK104: 2023-01-01 | GL104: 2023-06-01 | GM104: 2024-12-30 | GN104: 2023-01-01 | GO104: 2022-09-01 | GP104: 2024-10-30 | GQ104: 2023-01-01 | GR104: 2022-09-01 | GS104: 2024-10-30 | GT104: 2023-01-01 | GU104: 2022-09-01 | GV104: 2024-10-30 | GW104: 2023-01-01 | GX104: 2024-01-10 | GY104: 2025-09-01 | GZ104: 2023-01-01 | HA104: 2024-01-10 | HB104: 2025-09-01 | HC104: 2023-01-01 | HD104: 2023-02-01 | HE104: 2024-09-01 | HF104: 2023-01-01 | HG104: 2023-02-01 | HH104: 2024-09-01 | HI104: 2023-01-01 | HJ104: 2023-02-01 | HK104: 2024-09-01 | HL104: 2023-01-01 | HM104: 2023-02-01 | HN104: 2024-09-01 | HP104: АБ-1 | HQ104: АБ-1 | HR104: АБСт | HT104: - | IG104: 0 | IH104: =IF(YEAR(#REF!)=HU$8,$J104,0) ->  | II104: =IF(AND(YEAR(#REF!)<=HU$8,YEAR(#REF!)>HU$8),$J104,0) ->  | IQ104: 1 | IR104: 1
A105: 277 | B105: 13.1.2.7 | C105: СК00.01.1.04.2 | D105: ЖК "Салават Купере" Квартал №1 ж/д 4-2 | F105: Материал рулонный кровельный гидроизоляционный верхний слой | G105: основа: полиэстeр;температура гибкости на брусе R=25мм не менее -20; толщина 1м² не менее 3,8мм | H105: м2 | I105: =1730.022/580*L105 -> 1,193 | J105: 7,766 | K105: 7,366 | L105: 400 | N105: 196 | Q105: 1 | R105: КПД, 1 Каркас | S105: Перепривязка | T105: 4,788 | U105: 3,763 | V105: 292 | W105: =SUM(IG105,#REF!,#REF!,#REF!,#REF!,#REF!,#REF!,#REF!) ->  | FS105: 2022-12-01 | FT105: 2022-12-15 | FU105: 2024-07-23 | FV105: 2023-01-01 | FW105: 2023-06-01 | FX105: 2024-12-30 | FY105: 2023-01-01 | FZ105: 2023-06-01 | GA105: 2024-12-30 | GB105: 2023-01-01 | GC105: 2023-06-01 | GD105: 2024-12-30 | GE105: 2023-01-01 | GF105: 2023-06-01 | GG105: 2024-12-30 | GH105: 2023-01-01 | GI105: 2023-06-01 | GJ105: 2024-12-30 | GK105: 2023-01-01 | GL105: 2023-06-01 | GM105: 2024-12-30 | GN105: 2023-01-01 | GO105: 2022-09-01 | GP105: 2024-10-30 | GQ105: 2023-01-01 | GR105: 2022-09-01 | GS105: 2024-10-30 | GT105: 2023-01-01 | GU105: 2022-09-01 | GV105: 2024-10-30 | GW105: 2023-01-01 | GX105: 2024-01-10 | GY105: 2025-09-01 | GZ105: 2023-01-01 | HA105: 2024-01-10 | HB105: 2025-09-01 | HC105: 2023-01-01 | HD105: 2023-02-01 | HE105: 2024-09-01 | HF105: 2023-01-01 | HG105: 2023-02-01 | HH105: 2024-09-01 | HI105: 2023-01-01 | HJ105: 2023-02-01 | HK105: 2024-09-01 | HL105: 2023-01-01 | HM105: 2023-02-01 | HN105: 2024-09-01 | HP105: АБ-1 | HQ105: АБ-1 | HR105: АБСт | HT105: - | IG105: 0 | IH105: =IF(YEAR(#REF!)=HU$8,$J105,0) ->  | II105: =IF(AND(YEAR(#REF!)<=HU$8,YEAR(#REF!)>HU$8),$J105,0) ->  | IQ105: 597 | IR105: 597
A106: 277 | B106: 13.1.2.7 | C106: СК00.01.1.04.2 | D106: ЖК "Салават Купере" Квартал №1 ж/д 4-2 | F106: Материал рулонный кровельный гидроизоляционный нижний слой | G106: основа: полиэстeр;температура гибкости на брусе R=25мм не менее -20; толщина 1м² не менее 2,8мм | H106: м2 | I106: =1243.267/580*L106 -> 857 | J106: 7,766 | K106: 7,366 | L106: 400 | N106: 196 | Q106: 1 | R106: КПД, 1 Каркас | S106: Перепривязка | T106: 4,788 | U106: 3,763 | V106: 292 | W106: =SUM(IG106,#REF!,#REF!,#REF!,#REF!,#REF!,#REF!,#REF!) ->  | FS106: 2022-12-01 | FT106: 2022-12-15 | FU106: 2024-07-23 | FV106: 2023-01-01 | FW106: 2023-06-01 | FX106: 2024-12-30 | FY106: 2023-01-01 | FZ106: 2023-06-01 | GA106: 2024-12-30 | GB106: 2023-01-01 | GC106: 2023-06-01 | GD106: 2024-12-30 | GE106: 2023-01-01 | GF106: 2023-06-01 | GG106: 2024-12-30 | GH106: 2023-01-01 | GI106: 2023-06-01 | GJ106: 2024-12-30 | GK106: 2023-01-01 | GL106: 2023-06-01 | GM106: 2024-12-30 | GN106: 2023-01-01 | GO106: 2022-09-01 | GP106: 2024-10-30 | GQ106: 2023-01-01 | GR106: 2022-09-01 | GS106: 2024-10-30 | GT106: 2023-01-01 | GU106: 2022-09-01 | GV106: 2024-10-30 | GW106: 2023-01-01 | GX106: 2024-01-10 | GY106: 2025-09-01 | GZ106: 2023-01-01 | HA106: 2024-01-10 | HB106: 2025-09-01 | HC106: 2023-01-01 | HD106: 2023-02-01 | HE106: 2024-09-01 | HF106: 2023-01-01 | HG106: 2023-02-01 | HH106: 2024-09-01 | HI106: 2023-01-01 | HJ106: 2023-02-01 | HK106: 2024-09-01 | HL106: 2023-01-01 | HM106: 2023-02-01 | HN106: 2024-09-01 | HP106: АБ-1 | HQ106: АБ-1 | HR106: АБСт | HT106: - | IG106: 0 | IH106: =IF(YEAR(#REF!)=HU$8,$J106,0) ->  | II106: =IF(AND(YEAR(#REF!)<=HU$8,YEAR(#REF!)>HU$8),$J106,0) ->  | IQ106: 429 | IR106: 429
A107: 278 | B107: 13.1.2.8 | C107: СК00.01.1.04.3 | D107: ЖК "Салават Купере" Квартал №1 ж/д 4-3 | F107: Плиты теплоизоляционные пенополистирольные ППС-25 150мм | H107: м3 | I107: =140.294/580*L107 -> 140 | J107: 10,078 | K107: 9,498 | L107: 580 | N107: 140 | Q107: 1 | R107: КПД, 1 Каркас | S107: Новое | T107: 6,174 | U107: 4,853 | V107: 423 | W107: =SUM(IG107,#REF!,#REF!,#REF!,#REF!,#REF!,#REF!,#REF!) ->  | FS107: 2023-04-01 | FT107: 2023-04-15 | FU107: 2024-11-21 | FV107: 2023-01-01 | FW107: 2023-06-01 | FX107: 2024-12-30 | FY107: 2023-01-01 | FZ107: 2023-06-01 | GA107: 2024-12-30 | GB107: 2023-01-01 | GC107: 2023-06-01 | GD107: 2024-12-30 | GE107: 2023-01-01 | GF107: 2023-06-01 | GG107: 2024-12-30 | GH107: 2023-01-01 | GI107: 2023-06-01 | GJ107: 2024-12-30 | GK107: 2023-01-10 | GL107: 2023-01-10 | GM107: 2024-12-30 | GN107: 2023-01-10 | GO107: 2022-12-01 | GP107: 2024-10-30 | GQ107: 2023-01-10 | GR107: 2022-12-01 | GS107: 2024-10-30 | GT107: 2023-01-10 | GU107: 2022-12-01 | GV107: 2024-10-30 | GW107: 2023-01-10 | GX107: 2024-01-10 | GY107: 2025-09-01 | GZ107: 2023-01-10 | HA107: 2024-01-10 | HB107: 2025-09-01 | HC107: 2023-01-10 | HD107: 2023-02-01 | HE107: 2024-09-01 | HF107: 2023-01-10 | HG107: 2023-02-01 | HH107: 2024-09-01 | HI107: 2023-01-10 | HJ107: 2023-02-01 | HK107: 2024-09-01 | HL107: 2023-01-10 | HM107: 2023-02-01 | HN107: 2024-09-01 | HP107: АБ-1 | HQ107: АБ-1 | HR107: АБСт | HT107: - | IG107: 0 | IH107: =IF(YEAR(#REF!)=HU$8,$J107,0) ->  | II107: =IF(AND(YEAR(#REF!)<=HU$8,YEAR(#REF!)>HU$8),$J107,0) ->  | IT107: =I107/2 -> 70 | IU107: =I107/2 -> 70
A108: 278 | B108: 13.1.2.8 | C108: СК00.01.1.04.3 | D108: ЖК "Салават Купере" Квартал №1 ж/д 4-3 | F108: Керамзит М600 | H108: м3 | I108: =142.129/580*L108 -> 142 | J108: =K108+L108 -> 10,078 | K108: 9,498 | L108: 580 | N108: 140 | Q108: 1 | R108: КПД, 1 Каркас | S108: Новое | T108: 6,174 | U108: =T108*0.786 -> 4,853 | V108: 423 | W108: =SUM(IG108,#REF!,#REF!,#REF!,#REF!,#REF!,#REF!,#REF!) ->  | FS108: 2023-04-01 | FT108: =FS108+14 -> 2023-04-15 | FU108: 2024-11-21 | FV108: 2023-01-01 | FW108: 2023-06-01 | FX108: 2024-12-30 | FY108: 2023-01-01 | FZ108: 2023-06-01 | GA108: 2024-12-30 | GB108: 2023-01-01 | GC108: 2023-06-01 | GD108: 2024-12-30 | GE108: 2023-01-01 | GF108: 2023-06-01 | GG108: 2024-12-30 | GH108: 2023-01-01 | GI108: 2023-06-01 | GJ108: 2024-12-30 | GK108: 2023-01-10 | GL108: 2023-01-10 | GM108: 2024-12-30 | GN108: 2023-01-10 | GO108: 2022-12-01 | GP108: 2024-10-30 | GQ108: 2023-01-10 | GR108: 2022-12-01 | GS108: 2024-10-30 | GT108: 2023-01-10 | GU108: 2022-12-01 | GV108: 2024-10-30 | GW108: 2023-01-10 | GX108: 2024-01-10 | GY108: 2025-09-01 | GZ108: 2023-01-10 | HA108: 2024-01-10 | HB108: 2025-09-01 | HC108: 2023-01-10 | HD108: 2023-02-01 | HE108: 2024-09-01 | HF108: 2023-01-10 | HG108: 2023-02-01 | HH108: 2024-09-01 | HI108: 2023-01-10 | HJ108: 2023-02-01 | HK108: 2024-09-01 | HL108: 2023-01-10 | HM108: 2023-02-01 | HN108: 2024-09-01 | HP108: АБ-1 | HQ108: АБ-1 | HR108: АБСт | HT108: - | IG108: =SUM(HU108:IF108) -> 0 | IH108: =IF(YEAR(#REF!)=HU$8,$J108,0) ->  | II108: =IF(AND(YEAR(#REF!)<=HU$8,YEAR(#REF!)>HU$8),$J108,0) ->  | IT108: =I108/2 -> 71 | IU108: =I108/2 -> 71
A109: 278 | B109: 13.1.2.8 | C109: СК00.01.1.04.3 | D109: ЖК "Салават Купере" Квартал №1 ж/д 4-3 | F109: Плиты теплоизоляционные пенополистирольные экструдированные 100мм | H109: м3 | I109: =14.146/580*L109 -> 14 | J109: =K109+L109 -> 10,078 | K109: 9,498 | L109: 580 | N109: 140 | Q109: 1 | R109: КПД, 1 Каркас | S109: Новое | T109: 6,174 | U109: =T109*0.786 -> 4,853 | V109: 423 | W109: =SUM(IG109,#REF!,#REF!,#REF!,#REF!,#REF!,#REF!,#REF!) ->  | FS109: 2023-04-01 | FT109: =FS109+14 -> 2023-04-15 | FU109: 2024-11-21 | FV109: 2023-01-01 | FW109: 2023-06-01 | FX109: 2024-12-30 | FY109: 2023-01-01 | FZ109: 2023-06-01 | GA109: 2024-12-30 | GB109: 2023-01-01 | GC109: 2023-06-01 | GD109: 2024-12-30 | GE109: 2023-01-01 | GF109: 2023-06-01 | GG109: 2024-12-30 | GH109: 2023-01-01 | GI109: 2023-06-01 | GJ109: 2024-12-30 | GK109: 2023-01-10 | GL109: 2023-01-10 | GM109: 2024-12-30 | GN109: 2023-01-10 | GO109: 2022-12-01 | GP109: 2024-10-30 | GQ109: 2023-01-10 | GR109: 2022-12-01 | GS109: 2024-10-30 | GT109: 2023-01-10 | GU109: 2022-12-01 | GV109: 2024-10-30 | GW109: 2023-01-10 | GX109: 2024-01-10 | GY109: 2025-09-01 | GZ109: 2023-01-10 | HA109: 2024-01-10 | HB109: 2025-09-01 | HC109: 2023-01-10 | HD109: 2023-02-01 | HE109: 2024-09-01 | HF109: 2023-01-10 | HG109: 2023-02-01 | HH109: 2024-09-01 | HI109: 2023-01-10 | HJ109: 2023-02-01 | HK109: 2024-09-01 | HL109: 2023-01-10 | HM109: 2023-02-01 | HN109: 2024-09-01 | HP109: АБ-1 | HQ109: АБ-1 | HR109: АБСт | HT109: - | IG109: =SUM(HU109:IF109) -> 0 | IH109: =IF(YEAR(#REF!)=HU$8,$J109,0) ->  | II109: =IF(AND(YEAR(#REF!)<=HU$8,YEAR(#REF!)>HU$8),$J109,0) ->  | IT109: 7 | IU109: 7
A110: 278 | B110: 13.1.2.8 | C110: СК00.01.1.04.3 | D110: ЖК "Салават Купере" Квартал №1 ж/д 4-3 | F110: Плиты теплоизоляционные пенополистирольные экструдированные 50мм | H110: м3 | I110: =3.939/580*L110 -> 4 | J110: =K110+L110 -> 10,078 | K110: 9,498 | L110: 580 | N110: 140 | Q110: 1 | R110: КПД, 1 Каркас | S110: Новое | T110: 6,174 | U110: =T110*0.786 -> 4,853 | V110: 423 | W110: =SUM(IG110,#REF!,#REF!,#REF!,#REF!,#REF!,#REF!,#REF!) ->  | FS110: 2023-04-01 | FT110: =FS110+14 -> 2023-04-15 | FU110: 2024-11-21 | FV110: 2023-01-01 | FW110: 2023-06-01 | FX110: 2024-12-30 | FY110: 2023-01-01 | FZ110: 2023-06-01 | GA110: 2024-12-30 | GB110: 2023-01-01 | GC110: 2023-06-01 | GD110: 2024-12-30 | GE110: 2023-01-01 | GF110: 2023-06-01 | GG110: 2024-12-30 | GH110: 2023-01-01 | GI110: 2023-06-01 | GJ110: 2024-12-30 | GK110: 2023-01-10 | GL110: 2023-01-10 | GM110: 2024-12-30 | GN110: 2023-01-10 | GO110: 2022-12-01 | GP110: 2024-10-30 | GQ110: 2023-01-10 | GR110: 2022-12-01 | GS110: 2024-10-30 | GT110: 2023-01-10 | GU110: 2022-12-01 | GV110: 2024-10-30 | GW110: 2023-01-10 | GX110: 2024-01-10 | GY110: 2025-09-01 | GZ110: 2023-01-10 | HA110: 2024-01-10 | HB110: 2025-09-01 | HC110: 2023-01-10 | HD110: 2023-02-01 | HE110: 2024-09-01 | HF110: 2023-01-10 | HG110: 2023-02-01 | HH110: 2024-09-01 | HI110: 2023-01-10 | HJ110: 2023-02-01 | HK110: 2024-09-01 | HL110: 2023-01-10 | HM110: 2023-02-01 | HN110: 2024-09-01 | HP110: АБ-1 | HQ110: АБ-1 | HR110: АБСт | HT110: - | IG110: =SUM(HU110:IF110) -> 0 | IH110: =IF(YEAR(#REF!)=HU$8,$J110,0) ->  | II110: =IF(AND(YEAR(#REF!)<=HU$8,YEAR(#REF!)>HU$8),$J110,0) ->  | IT110: 2 | IU110: 2
A111: 278 | B111: 13.1.2.8 | C111: СК00.01.1.04.3 | D111: ЖК "Салават Купере" Квартал №1 ж/д 4-3 | F111: Материал рулонный кровельный гидроизоляционный верхний слой | G111: основа: полиэстeр;температура гибкости на брусе R=25мм не менее -20; толщина 1м² не менее 3,8мм | H111: м2 | I111: =1730.022/580*L111 -> 1,730 | J111: =K111+L111 -> 10,078 | K111: 9,498 | L111: 580 | N111: 140 | Q111: 1 | R111: КПД, 1 Каркас | S111: Новое | T111: 6,174 | U111: =T111*0.786 -> 4,853 | V111: 423 | W111: =SUM(IG111,#REF!,#REF!,#REF!,#REF!,#REF!,#REF!,#REF!) ->  | FS111: 2023-04-01 | FT111: =FS111+14 -> 2023-04-15 | FU111: 2024-11-21 | FV111: 2023-01-01 | FW111: 2023-06-01 | FX111: 2024-12-30 | FY111: 2023-01-01 | FZ111: 2023-06-01 | GA111: 2024-12-30 | GB111: 2023-01-01 | GC111: 2023-06-01 | GD111: 2024-12-30 | GE111: 2023-01-01 | GF111: 2023-06-01 | GG111: 2024-12-30 | GH111: 2023-01-01 | GI111: 2023-06-01 | GJ111: 2024-12-30 | GK111: 2023-01-10 | GL111: 2023-01-10 | GM111: 2024-12-30 | GN111: 2023-01-10 | GO111: 2022-12-01 | GP111: 2024-10-30 | GQ111: 2023-01-10 | GR111: 2022-12-01 | GS111: 2024-10-30 | GT111: 2023-01-10 | GU111: 2022-12-01 | GV111: 2024-10-30 | GW111: 2023-01-10 | GX111: 2024-01-10 | GY111: 2025-09-01 | GZ111: 2023-01-10 | HA111: 2024-01-10 | HB111: 2025-09-01 | HC111: 2023-01-10 | HD111: 2023-02-01 | HE111: 2024-09-01 | HF111: 2023-01-10 | HG111: 2023-02-01 | HH111: 2024-09-01 | HI111: 2023-01-10 | HJ111: 2023-02-01 | HK111: 2024-09-01 | HL111: 2023-01-10 | HM111: 2023-02-01 | HN111: 2024-09-01 | HP111: АБ-1 | HQ111: АБ-1 | HR111: АБСт | HT111: - | IG111: =SUM(HU111:IF111) -> 0 | IH111: =IF(YEAR(#REF!)=HU$8,$J111,0) ->  | II111: =IF(AND(YEAR(#REF!)<=HU$8,YEAR(#REF!)>HU$8),$J111,0) ->  | IT111: 865 | IU111: 865
A112: 278 | B112: 13.1.2.8 | C112: СК00.01.1.04.3 | D112: ЖК "Салават Купере" Квартал №1 ж/д 4-3 | F112: Материал рулонный кровельный гидроизоляционный нижний слой | G112: основа: полиэстeр;температура гибкости на брусе R=25мм не менее -20; толщина 1м² не менее 2,8мм | H112: м2 | I112: =1243.267/580*L112 -> 1,243 | J112: 10,078 | K112: 9,498 | L112: 580 | N112: 140 | Q112: 1 | R112: КПД, 1 Каркас | S112: Новое | T112: 6,174 | U112: 4,853 | V112: 423 | W112: =SUM(IG112,#REF!,#REF!,#REF!,#REF!,#REF!,#REF!,#REF!) ->  | FS112: 2023-04-01 | FT112: 2023-04-15 | FU112: 2024-11-21 | FV112: 2023-01-01 | FW112: 2023-06-01 | FX112: 2024-12-30 | FY112: 2023-01-01 | FZ112: 2023-06-01 | GA112: 2024-12-30 | GB112: 2023-01-01 | GC112: 2023-06-01 | GD112: 2024-12-30 | GE112: 2023-01-01 | GF112: 2023-06-01 | GG112: 2024-12-30 | GH112: 2023-01-01 | GI112: 2023-06-01 | GJ112: 2024-12-30 | GK112: 2023-01-10 | GL112: 2023-01-10 | GM112: 2024-12-30 | GN112: 2023-01-10 | GO112: 2022-12-01 | GP112: 2024-10-30 | GQ112: 2023-01-10 | GR112: 2022-12-01 | GS112: 2024-10-30 | GT112: 2023-01-10 | GU112: 2022-12-01 | GV112: 2024-10-30 | GW112: 2023-01-10 | GX112: 2024-01-10 | GY112: 2025-09-01 | GZ112: 2023-01-10 | HA112: 2024-01-10 | HB112: 2025-09-01 | HC112: 2023-01-10 | HD112: 2023-02-01 | HE112: 2024-09-01 | HF112: 2023-01-10 | HG112: 2023-02-01 | HH112: 2024-09-01 | HI112: 2023-01-10 | HJ112: 2023-02-01 | HK112: 2024-09-01 | HL112: 2023-01-10 | HM112: 2023-02-01 | HN112: 2024-09-01 | HP112: АБ-1 | HQ112: АБ-1 | HR112: АБСт | HT112: - | IG112: 0 | IH112: =IF(YEAR(#REF!)=HU$8,$J112,0) ->  | II112: =IF(AND(YEAR(#REF!)<=HU$8,YEAR(#REF!)>HU$8),$J112,0) ->  | IT112: 622 | IU112: 622
A113: 267 | B113: 13.1.2.9 | C113: СК00.01.1.01.1 | D113: ЖК "Салават Купере" Квартал №1 ж/д 1-1 | F113: Плиты теплоизоляционные пенополистирольные ППС-25 150мм | H113: м3 | I113: =140.294/580*L113 -> 97 | J113: =K113+L113 -> 8,818 | K113: 8,418 | L113: 400 | N113: 160 | Q113: 1 | R113: КПД, 1 Каркас | S113: Новое | T113: 5,472 | U113: =T113*0.786 -> 4,301 | V113: 292 | W113: =SUM(IG113,#REF!,#REF!,#REF!,#REF!,#REF!,#REF!,#REF!) ->  | FS113: 2023-05-01 | FT113: 2023-05-15 | FU113: 2024-12-21 | FV113: 2023-04-01 | FW113: 2022-10-30 | FX113: 2024-08-30 | FY113: 2023-04-01 | FZ113: 2022-10-30 | GA113: 2024-08-30 | GB113: 2023-04-01 | GC113: 2022-10-30 | GD113: 2024-08-30 | GE113: 2023-04-01 | GF113: 2022-10-30 | GG113: 2024-08-30 | GH113: 2023-04-01 | GI113: 2022-10-30 | GJ113: 2024-08-30 | GK113: 2023-04-01 | GL113: 2022-10-30 | GM113: 2024-08-30 | GN113: 2023-04-01 | GO113: 2022-10-01 | GP113: 2024-07-30 | GQ113: 2023-04-01 | GR113: 2022-10-01 | GS113: 2024-07-30 | GT113: 2023-04-01 | GU113: 2022-10-01 | GV113: 2024-07-30 | GW113: 2023-04-01 | GX113: 2024-01-10 | GY113: 2025-09-01 | GZ113: 2023-04-01 | HA113: 2024-01-10 | HB113: 2025-09-01 | HC113: 2023-04-01 | HD113: 2023-04-01 | HE113: 2024-12-01 | HF113: 2023-04-01 | HG113: 2023-04-01 | HH113: 2024-12-01 | HI113: 2023-04-01 | HJ113: 2023-04-01 | HK113: 2024-12-01 | HL113: 2023-04-01 | HM113: 2023-04-01 | HN113: 2024-12-01 | HP113: АБ-1 | HQ113: АБ-1 | HR113: АБСт | HT113: - | IG113: =SUM(HU113:IF113) -> 0 | IH113: =IF(YEAR(#REF!)=HU$8,$J113,0) ->  | II113: =IF(AND(YEAR(#REF!)<=HU$8,YEAR(#REF!)>HU$8),$J113,0) ->  | IU113: =I113 -> 97
A114: 267 | B114: 13.1.2.9 | C114: СК00.01.1.01.1 | D114: ЖК "Салават Купере" Квартал №1 ж/д 1-1 | F114: Керамзит М600 | H114: м3 | I114: =142.129/580*L114 -> 98 | J114: =K114+L114 -> 8,818 | K114: 8,418 | L114: 400 | N114: 160 | Q114: 1 | R114: КПД, 1 Каркас | S114: Новое | T114: 5,472 | U114: =T114*0.786 -> 4,301 | V114: 292 | W114: =SUM(IG114,#REF!,#REF!,#REF!,#REF!,#REF!,#REF!,#REF!) ->  | FS114: 2023-05-01 | FT114: =FS114+14 -> 2023-05-15 | FU114: 2024-12-21 | FV114: 2023-04-01 | FW114: 2022-10-30 | FX114: 2024-08-30 | FY114: 2023-04-01 | FZ114: 2022-10-30 | GA114: 2024-08-30 | GB114: 2023-04-01 | GC114: 2022-10-30 | GD114: 2024-08-30 | GE114: 2023-04-01 | GF114: 2022-10-30 | GG114: 2024-08-30 | GH114: 2023-04-01 | GI114: 2022-10-30 | GJ114: 2024-08-30 | GK114: 2023-04-01 | GL114: 2022-10-30 | GM114: 2024-08-30 | GN114: 2023-04-01 | GO114: 2022-10-01 | GP114: 2024-07-30 | GQ114: 2023-04-01 | GR114: 2022-10-01 | GS114: 2024-07-30 | GT114: 2023-04-01 | GU114: 2022-10-01 | GV114: 2024-07-30 | GW114: 2023-04-01 | GX114: 2024-01-10 | GY114: 2025-09-01 | GZ114: 2023-04-01 | HA114: 2024-01-10 | HB114: 2025-09-01 | HC114: 2023-04-01 | HD114: 2023-04-01 | HE114: 2024-12-01 | HF114: 2023-04-01 | HG114: 2023-04-01 | HH114: 2024-12-01 | HI114: 2023-04-01 | HJ114: 2023-04-01 | HK114: 2024-12-01 | HL114: 2023-04-01 | HM114: 2023-04-01 | HN114: 2024-12-01 | HP114: АБ-1 | HQ114: АБ-1 | HR114: АБСт | HT114: - | IG114: =SUM(HU114:IF114) -> 0 | IH114: =IF(YEAR(#REF!)=HU$8,$J114,0) ->  | II114: =IF(AND(YEAR(#REF!)<=HU$8,YEAR(#REF!)>HU$8),$J114,0) ->  | IU114: =I114 -> 98
A115: 267 | B115: 13.1.2.9 | C115: СК00.01.1.01.1 | D115: ЖК "Салават Купере" Квартал №1 ж/д 1-1 | F115: Плиты теплоизоляционные пенополистирольные экструдированные 100мм | H115: м3 | I115: =14.146/580*L115 -> 10 | J115: =K115+L115 -> 8,818 | K115: 8,418 | L115: 400 | N115: 160 | Q115: 1 | R115: КПД, 1 Каркас | S115: Новое | T115: 5,472 | U115: =T115*0.786 -> 4,301 | V115: 292 | W115: =SUM(IG115,#REF!,#REF!,#REF!,#REF!,#REF!,#REF!,#REF!) ->  | X115: =T115-W115-Y115 ->  | FS115: 2023-05-01 | FT115: =FS115+14 -> 2023-05-15 | FU115: 2024-12-21 | FV115: 2023-04-01 | FW115: 2022-10-30 | FX115: 2024-08-30 | FY115: 2023-04-01 | FZ115: 2022-10-30 | GA115: 2024-08-30 | GB115: 2023-04-01 | GC115: 2022-10-30 | GD115: 2024-08-30 | GE115: 2023-04-01 | GF115: 2022-10-30 | GG115: 2024-08-30 | GH115: 2023-04-01 | GI115: 2022-10-30 | GJ115: 2024-08-30 | GK115: 2023-04-01 | GL115: 2022-10-30 | GM115: 2024-08-30 | GN115: 2023-04-01 | GO115: 2022-10-01 | GP115: 2024-07-30 | GQ115: 2023-04-01 | GR115: 2022-10-01 | GS115: 2024-07-30 | GT115: 2023-04-01 | GU115: 2022-10-01 | GV115: 2024-07-30 | GW115: 2023-04-01 | GX115: 2024-01-10 | GY115: 2025-09-01 | GZ115: 2023-04-01 | HA115: 2024-01-10 | HB115: 2025-09-01 | HC115: 2023-04-01 | HD115: 2023-04-01 | HE115: 2024-12-01 | HF115: 2023-04-01 | HG115: 2023-04-01 | HH115: 2024-12-01 | HI115: 2023-04-01 | HJ115: 2023-04-01 | HK115: 2024-12-01 | HL115: 2023-04-01 | HM115: 2023-04-01 | HN115: 2024-12-01 | HP115: АБ-1 | HQ115: АБ-1 | HR115: АБСт | HT115: - | IG115: =SUM(HU115:IF115) -> 0 | IH115: =IF(YEAR(#REF!)=HU$8,$J115,0) ->  | II115: =IF(AND(YEAR(#REF!)<=HU$8,YEAR(#REF!)>HU$8),$J115,0) ->  | IU115: 10
A116: 267 | B116: 13.1.2.9 | C116: СК00.01.1.01.1 | D116: ЖК "Салават Купере" Квартал №1 ж/д 1-1 | F116: Плиты теплоизоляционные пенополистирольные экструдированные 50мм | H116: м3 | I116: =3.939/580*L116 -> 3 | J116: =K116+L116 -> 8,818 | K116: 8,418 | L116: 400 | N116: 160 | Q116: 1 | R116: КПД, 1 Каркас | S116: Новое | T116: 5,472 | U116: =T116*0.786 -> 4,301 | V116: 292 | W116: =SUM(IG116,#REF!,#REF!,#REF!,#REF!,#REF!,#REF!,#REF!) ->  | FS116: 2023-05-01 | FT116: =FS116+14 -> 2023-05-15 | FU116: 2024-12-21 | FV116: 2023-04-01 | FW116: 2022-10-30 | FX116: 2024-08-30 | FY116: 2023-04-01 | FZ116: 2022-10-30 | GA116: 2024-08-30 | GB116: 2023-04-01 | GC116: 2022-10-30 | GD116: 2024-08-30 | GE116: 2023-04-01 | GF116: 2022-10-30 | GG116: 2024-08-30 | GH116: 2023-04-01 | GI116: 2022-10-30 | GJ116: 2024-08-30 | GK116: 2023-04-01 | GL116: 2022-10-30 | GM116: 2024-08-30 | GN116: 2023-04-01 | GO116: 2022-10-01 | GP116: 2024-07-30 | GQ116: 2023-04-01 | GR116: 2022-10-01 | GS116: 2024-07-30 | GT116: 2023-04-01 | GU116: 2022-10-01 | GV116: 2024-07-30 | GW116: 2023-04-01 | GX116: 2024-01-10 | GY116: 2025-09-01 | GZ116: 2023-04-01 | HA116: 2024-01-10 | HB116: 2025-09-01 | HC116: 2023-04-01 | HD116: 2023-04-01 | HE116: 2024-12-01 | HF116: 2023-04-01 | HG116: 2023-04-01 | HH116: 2024-12-01 | HI116: 2023-04-01 | HJ116: 2023-04-01 | HK116: 2024-12-01 | HL116: 2023-04-01 | HM116: 2023-04-01 | HN116: 2024-12-01 | HP116: АБ-1 | HQ116: АБ-1 | HR116: АБСт | HT116: - | IG116: =SUM(HU116:IF116) -> 0 | IH116: =IF(YEAR(#REF!)=HU$8,$J116,0) ->  | II116: =IF(AND(YEAR(#REF!)<=HU$8,YEAR(#REF!)>HU$8),$J116,0) ->  | IU116: 3
A117: 267 | B117: 13.1.2.9 | C117: СК00.01.1.01.1 | D117: ЖК "Салават Купере" Квартал №1 ж/д 1-1 | F117: Материал рулонный кровельный гидроизоляционный верхний слой | G117: основа: полиэстeр;температура гибкости на брусе R=25мм не менее -20; толщина 1м² не менее 3,8мм | H117: м2 | I117: =1730.022/580*L117 -> 1,193 | J117: =K117+L117 -> 8,818 | K117: 8,418 | L117: 400 | N117: 160 | Q117: 1 | R117: КПД, 1 Каркас | S117: Новое | T117: 5,472 | U117: =T117*0.786 -> 4,301 | V117: 292 | W117: =SUM(IG117,#REF!,#REF!,#REF!,#REF!,#REF!,#REF!,#REF!) ->  | FS117: 2023-05-01 | FT117: =FS117+14 -> 2023-05-15 | FU117: 2024-12-21 | FV117: 2023-04-01 | FW117: 2022-10-30 | FX117: 2024-08-30 | FY117: 2023-04-01 | FZ117: 2022-10-30 | GA117: 2024-08-30 | GB117: 2023-04-01 | GC117: 2022-10-30 | GD117: 2024-08-30 | GE117: 2023-04-01 | GF117: 2022-10-30 | GG117: 2024-08-30 | GH117: 2023-04-01 | GI117: 2022-10-30 | GJ117: 2024-08-30 | GK117: 2023-04-01 | GL117: 2022-10-30 | GM117: 2024-08-30 | GN117: 2023-04-01 | GO117: 2022-10-01 | GP117: 2024-07-30 | GQ117: 2023-04-01 | GR117: 2022-10-01 | GS117: 2024-07-30 | GT117: 2023-04-01 | GU117: 2022-10-01 | GV117: 2024-07-30 | GW117: 2023-04-01 | GX117: 2024-01-10 | GY117: 2025-09-01 | GZ117: 2023-04-01 | HA117: 2024-01-10 | HB117: 2025-09-01 | HC117: 2023-04-01 | HD117: 2023-04-01 | HE117: 2024-12-01 | HF117: 2023-04-01 | HG117: 2023-04-01 | HH117: 2024-12-01 | HI117: 2023-04-01 | HJ117: 2023-04-01 | HK117: 2024-12-01 | HL117: 2023-04-01 | HM117: 2023-04-01 | HN117: 2024-12-01 | HP117: АБ-1 | HQ117: АБ-1 | HR117: АБСт | HT117: - | IG117: =SUM(HU117:IF117) -> 0 | IH117: =IF(YEAR(#REF!)=HU$8,$J117,0) ->  | II117: =IF(AND(YEAR(#REF!)<=HU$8,YEAR(#REF!)>HU$8),$J117,0) ->  | IU117: 1,193
A118: 267 | B118: 13.1.2.9 | C118: СК00.01.1.01.1 | D118: ЖК "Салават Купере" Квартал №1 ж/д 1-1 | F118: Материал рулонный кровельный гидроизоляционный нижний слой | G118: основа: полиэстeр;температура гибкости на брусе R=25мм не менее -20; толщина 1м² не менее 2,8мм | H118: м2 | I118: =1243.267/580*L118 -> 857 | J118: 8,818 | K118: 8,418 | L118: 400 | N118: 160 | Q118: 1 | R118: КПД, 1 Каркас | S118: Новое | T118: 5,472 | U118: 4,301 | V118: 292 | W118: =SUM(IG118,#REF!,#REF!,#REF!,#REF!,#REF!,#REF!,#REF!) ->  | FS118: 2023-05-01 | FT118: =FS118+14 -> 2023-05-15 | FU118: 2024-12-21 | FV118: 2023-04-01 | FW118: 2022-10-30 | FX118: 2024-08-30 | FY118: 2023-04-01 | FZ118: 2022-10-30 | GA118: 2024-08-30 | GB118: 2023-04-01 | GC118: 2022-10-30 | GD118: 2024-08-30 | GE118: 2023-04-01 | GF118: 2022-10-30 | GG118: 2024-08-30 | GH118: 2023-04-01 | GI118: 2022-10-30 | GJ118: 2024-08-30 | GK118: 2023-04-01 | GL118: 2022-10-30 | GM118: 2024-08-30 | GN118: 2023-04-01 | GO118: 2022-10-01 | GP118: 2024-07-30 | GQ118: 2023-04-01 | GR118: 2022-10-01 | GS118: 2024-07-30 | GT118: 2023-04-01 | GU118: 2022-10-01 | GV118: 2024-07-30 | GW118: 2023-04-01 | GX118: 2024-01-10 | GY118: 2025-09-01 | GZ118: 2023-04-01 | HA118: 2024-01-10 | HB118: 2025-09-01 | HC118: 2023-04-01 | HD118: 2023-04-01 | HE118: 2024-12-01 | HF118: 2023-04-01 | HG118: 2023-04-01 | HH118: 2024-12-01 | HI118: 2023-04-01 | HJ118: 2023-04-01 | HK118: 2024-12-01 | HL118: 2023-04-01 | HM118: 2023-04-01 | HN118: 2024-12-01 | HP118: АБ-1 | HQ118: АБ-1 | HR118: АБСт | HT118: - | IG118: =SUM(HU118:IF118) -> 0 | IH118: =IF(YEAR(#REF!)=HU$8,$J118,0) ->  | II118: =IF(AND(YEAR(#REF!)<=HU$8,YEAR(#REF!)>HU$8),$J118,0) ->  | IU118: 857
A119: 268 | B119: 13.1.2.10 | C119: СК00.01.1.01.2 | D119: ЖК "Салават Купере" Квартал №1 ж/д 1-2 | F119: Плиты теплоизоляционные пенополистирольные ППС-25 150мм | H119: м3 | I119: =140.294/580*L119 -> 140 | J119: 8,789 | K119: 8,209 | L119: 580 | N119: 168 | Q119: 1 | R119: КПД, 1 Каркас | S119: Перепривязка | T119: 5,336 | U119: 4,194 | V119: 423 | W119: =SUM(IG119,#REF!,#REF!,#REF!,#REF!,#REF!,#REF!,#REF!) ->  | FS119: 2023-02-01 | FT119: 2023-02-15 | FU119: 2024-09-23 | FV119: 2023-04-01 | FW119: 2022-10-30 | FX119: 2024-08-30 | FY119: 2023-04-01 | FZ119: 2022-10-30 | GA119: 2024-08-30 | GB119: 2023-04-01 | GC119: 2022-10-30 | GD119: 2024-08-30 | GE119: 2023-04-01 | GF119: 2022-10-30 | GG119: 2024-08-30 | GH119: 2023-04-01 | GI119: 2022-10-30 | GJ119: 2024-08-30 | GK119: 2023-04-01 | GL119: 2022-10-30 | GM119: 2024-08-30 | GN119: 2023-04-01 | GO119: 2022-11-01 | GP119: 2024-07-30 | GQ119: 2023-04-01 | GR119: 2022-11-01 | GS119: 2024-07-30 | GT119: 2023-04-01 | GU119: 2022-11-01 | GV119: 2024-07-30 | GW119: 2023-04-01 | GX119: 2024-01-10 | GY119: 2025-09-01 | GZ119: 2023-04-01 | HA119: 2024-01-10 | HB119: 2025-09-01 | HC119: 2023-04-01 | HD119: 2023-04-01 | HE119: 2024-12-01 | HF119: 2023-04-01 | HG119: 2023-04-01 | HH119: 2024-12-01 | HI119: 2023-04-01 | HJ119: 2023-04-01 | HK119: 2024-12-01 | HL119: 2023-04-01 | HM119: 2023-04-01 | HN119: 2024-12-01 | HP119: АБ-1 | HQ119: АБ-1 | HR119: АБСт | HT119: - | IG119: 0 | IH119: =IF(YEAR(#REF!)=HU$8,$J119,0) ->  | II119: =IF(AND(YEAR(#REF!)<=HU$8,YEAR(#REF!)>HU$8),$J119,0) ->  | IR119: =I119/2 -> 70 | IS119: =I119/2 -> 70
A120: 268 | B120: 13.1.2.10 | C120: СК00.01.1.01.2 | D120: ЖК "Салават Купере" Квартал №1 ж/д 1-2 | F120: Керамзит М600 | H120: м3 | I120: =142.129/580*L120 -> 142 | J120: =K120+L120 -> 8,789 | K120: 8,209 | L120: 580 | N120: 168 | Q120: 1 | R120: КПД, 1 Каркас | S120: Перепривязка | T120: 5,336 | U120: =T120*0.786 -> 4,194 | V120: 423 | W120: =SUM(IG120,#REF!,#REF!,#REF!,#REF!,#REF!,#REF!,#REF!) ->  | FS120: 2023-02-01 | FT120: =FS120+14 -> 2023-02-15 | FU120: 2024-09-23 | FV120: 2023-04-01 | FW120: 2022-10-30 | FX120: 2024-08-30 | FY120: 2023-04-01 | FZ120: 2022-10-30 | GA120: 2024-08-30 | GB120: 2023-04-01 | GC120: 2022-10-30 | GD120: 2024-08-30 | GE120: 2023-04-01 | GF120: 2022-10-30 | GG120: 2024-08-30 | GH120: 2023-04-01 | GI120: 2022-10-30 | GJ120: 2024-08-30 | GK120: 2023-04-01 | GL120: 2022-10-30 | GM120: 2024-08-30 | GN120: 2023-04-01 | GO120: 2022-11-01 | GP120: 2024-07-30 | GQ120: 2023-04-01 | GR120: 2022-11-01 | GS120: 2024-07-30 | GT120: 2023-04-01 | GU120: 2022-11-01 | GV120: 2024-07-30 | GW120: 2023-04-01 | GX120: 2024-01-10 | GY120: 2025-09-01 | GZ120: 2023-04-01 | HA120: 2024-01-10 | HB120: 2025-09-01 | HC120: 2023-04-01 | HD120: 2023-04-01 | HE120: 2024-12-01 | HF120: 2023-04-01 | HG120: 2023-04-01 | HH120: 2024-12-01 | HI120: 2023-04-01 | HJ120: 2023-04-01 | HK120: 2024-12-01 | HL120: 2023-04-01 | HM120: 2023-04-01 | HN120: 2024-12-01 | HP120: АБ-1 | HQ120: АБ-1 | HR120: АБСт | HT120: - | IG120: =SUM(HU120:IF120) -> 0 | IH120: =IF(YEAR(#REF!)=HU$8,$J120,0) ->  | II120: =IF(AND(YEAR(#REF!)<=HU$8,YEAR(#REF!)>HU$8),$J120,0) ->  | IR120: =I120/2 -> 71 | IS120: =I120/2 -> 71
A121: 268 | B121: 13.1.2.10 | C121: СК00.01.1.01.2 | D121: ЖК "Салават Купере" Квартал №1 ж/д 1-2 | F121: Плиты теплоизоляционные пенополистирольные экструдированные 100мм | H121: м3 | I121: =14.146/580*L121 -> 14 | J121: 8,789 | K121: 8,209 | L121: 580 | N121: 168 | Q121: 1 | R121: КПД, 1 Каркас | S121: Перепривязка | T121: 5,336 | U121: 4,194 | V121: 423 | W121: =SUM(IG121,#REF!,#REF!,#REF!,#REF!,#REF!,#REF!,#REF!) ->  | FS121: 2023-02-01 | FT121: 2023-02-15 | FU121: 2024-09-23 | FV121: 2023-04-01 | FW121: 2022-10-30 | FX121: 2024-08-30 | FY121: 2023-04-01 | FZ121: 2022-10-30 | GA121: 2024-08-30 | GB121: 2023-04-01 | GC121: 2022-10-30 | GD121: 2024-08-30 | GE121: 2023-04-01 | GF121: 2022-10-30 | GG121: 2024-08-30 | GH121: 2023-04-01 | GI121: 2022-10-30 | GJ121: 2024-08-30 | GK121: 2023-04-01 | GL121: 2022-10-30 | GM121: 2024-08-30 | GN121: 2023-04-01 | GO121: 2022-11-01 | GP121: 2024-07-30 | GQ121: 2023-04-01 | GR121: 2022-11-01 | GS121: 2024-07-30 | GT121: 2023-04-01 | GU121: 2022-11-01 | GV121: 2024-07-30 | GW121: 2023-04-01 | GX121: 2024-01-10 | GY121: 2025-09-01 | GZ121: 2023-04-01 | HA121: 2024-01-10 | HB121: 2025-09-01 | HC121: 2023-04-01 | HD121: 2023-04-01 | HE121: 2024-12-01 | HF121: 2023-04-01 | HG121: 2023-04-01 | HH121: 2024-12-01 | HI121: 2023-04-01 | HJ121: 2023-04-01 | HK121: 2024-12-01 | HL121: 2023-04-01 | HM121: 2023-04-01 | HN121: 2024-12-01 | HP121: АБ-1 | HQ121: АБ-1 | HR121: АБСт | HT121: - | IG121: 0 | IH121: =IF(YEAR(#REF!)=HU$8,$J121,0) ->  | II121: =IF(AND(YEAR(#REF!)<=HU$8,YEAR(#REF!)>HU$8),$J121,0) ->  | IR121: 7 | IS121: 7
A122: 268 | B122: 13.1.2.10 | C122: СК00.01.1.01.2 | D122: ЖК "Салават Купере" Квартал №1 ж/д 1-2 | F122: Плиты теплоизоляционные пенополистирольные экструдированные 50мм | H122: м3 | I122: =3.939/580*L122 -> 4 | J122: 8,789 | K122: 8,209 | L122: 580 | N122: 168 | Q122: 1 | R122: КПД, 1 Каркас | S122: Перепривязка | T122: 5,336 | U122: 4,194 | V122: 423 | W122: =SUM(IG122,#REF!,#REF!,#REF!,#REF!,#REF!,#REF!,#REF!) ->  | FS122: 2023-02-01 | FT122: 2023-02-15 | FU122: 2024-09-23 | FV122: 2023-04-01 | FW122: 2022-10-30 | FX122: 2024-08-30 | FY122: 2023-04-01 | FZ122: 2022-10-30 | GA122: 2024-08-30 | GB122: 2023-04-01 | GC122: 2022-10-30 | GD122: 2024-08-30 | GE122: 2023-04-01 | GF122: 2022-10-30 | GG122: 2024-08-30 | GH122: 2023-04-01 | GI122: 2022-10-30 | GJ122: 2024-08-30 | GK122: 2023-04-01 | GL122: 2022-10-30 | GM122: 2024-08-30 | GN122: 2023-04-01 | GO122: 2022-11-01 | GP122: 2024-07-30 | GQ122: 2023-04-01 | GR122: 2022-11-01 | GS122: 2024-07-30 | GT122: 2023-04-01 | GU122: 2022-11-01 | GV122: 2024-07-30 | GW122: 2023-04-01 | GX122: 2024-01-10 | GY122: 2025-09-01 | GZ122: 2023-04-01 | HA122: 2024-01-10 | HB122: 2025-09-01 | HC122: 2023-04-01 | HD122: 2023-04-01 | HE122: 2024-12-01 | HF122: 2023-04-01 | HG122: 2023-04-01 | HH122: 2024-12-01 | HI122: 2023-04-01 | HJ122: 2023-04-01 | HK122: 2024-12-01 | HL122: 2023-04-01 | HM122: 2023-04-01 | HN122: 2024-12-01 | HP122: АБ-1 | HQ122: АБ-1 | HR122: АБСт | HT122: - | IG122: 0 | IH122: =IF(YEAR(#REF!)=HU$8,$J122,0) ->  | II122: =IF(AND(YEAR(#REF!)<=HU$8,YEAR(#REF!)>HU$8),$J122,0) ->  | IR122: 2 | IS122: 2
A123: 268 | B123: 13.1.2.10 | C123: СК00.01.1.01.2 | D123: ЖК "Салават Купере" Квартал №1 ж/д 1-2 | F123: Материал рулонный кровельный гидроизоляционный верхний слой | G123: основа: полиэстeр;температура гибкости на брусе R=25мм не менее -20; толщина 1м² не менее 3,8мм | H123: м2 | I123: =1730.022/580*L123 -> 1,730 | J123: 8,789 | K123: 8,209 | L123: 580 | N123: 168 | Q123: 1 | R123: КПД, 1 Каркас | S123: Перепривязка | T123: 5,336 | U123: 4,194 | V123: 423 | W123: =SUM(IG123,#REF!,#REF!,#REF!,#REF!,#REF!,#REF!,#REF!) ->  | FS123: 2023-02-01 | FT123: 2023-02-15 | FU123: 2024-09-23 | FV123: 2023-04-01 | FW123: 2022-10-30 | FX123: 2024-08-30 | FY123: 2023-04-01 | FZ123: 2022-10-30 | GA123: 2024-08-30 | GB123: 2023-04-01 | GC123: 2022-10-30 | GD123: 2024-08-30 | GE123: 2023-04-01 | GF123: 2022-10-30 | GG123: 2024-08-30 | GH123: 2023-04-01 | GI123: 2022-10-30 | GJ123: 2024-08-30 | GK123: 2023-04-01 | GL123: 2022-10-30 | GM123: 2024-08-30 | GN123: 2023-04-01 | GO123: 2022-11-01 | GP123: 2024-07-30 | GQ123: 2023-04-01 | GR123: 2022-11-01 | GS123: 2024-07-30 | GT123: 2023-04-01 | GU123: 2022-11-01 | GV123: 2024-07-30 | GW123: 2023-04-01 | GX123: 2024-01-10 | GY123: 2025-09-01 | GZ123: 2023-04-01 | HA123: 2024-01-10 | HB123: 2025-09-01 | HC123: 2023-04-01 | HD123: 2023-04-01 | HE123: 2024-12-01 | HF123: 2023-04-01 | HG123: 2023-04-01 | HH123: 2024-12-01 | HI123: 2023-04-01 | HJ123: 2023-04-01 | HK123: 2024-12-01 | HL123: 2023-04-01 | HM123: 2023-04-01 | HN123: 2024-12-01 | HP123: АБ-1 | HQ123: АБ-1 | HR123: АБСт | HT123: - | IG123: 0 | IH123: =IF(YEAR(#REF!)=HU$8,$J123,0) ->  | II123: =IF(AND(YEAR(#REF!)<=HU$8,YEAR(#REF!)>HU$8),$J123,0) ->  | IR123: 865 | IS123: 865
A124: 268 | B124: 13.1.2.10 | C124: СК00.01.1.01.2 | D124: ЖК "Салават Купере" Квартал №1 ж/д 1-2 | F124: Материал рулонный кровельный гидроизоляционный нижний слой | G124: основа: полиэстeр;температура гибкости на брусе R=25мм не менее -20; толщина 1м² не менее 2,8мм | H124: м2 | I124: =1243.267/580*L124 -> 1,243 | J124: 8,789 | K124: 8,209 | L124: 580 | N124: 168 | Q124: 1 | R124: КПД, 1 Каркас | S124: Перепривязка | T124: 5,336 | U124: 4,194 | V124: 423 | W124: =SUM(IG124,#REF!,#REF!,#REF!,#REF!,#REF!,#REF!,#REF!) ->  | FS124: 2023-02-01 | FT124: 2023-02-15 | FU124: 2024-09-23 | FV124: 2023-04-01 | FW124: 2022-10-30 | FX124: 2024-08-30 | FY124: 2023-04-01 | FZ124: 2022-10-30 | GA124: 2024-08-30 | GB124: 2023-04-01 | GC124: 2022-10-30 | GD124: 2024-08-30 | GE124: 2023-04-01 | GF124: 2022-10-30 | GG124: 2024-08-30 | GH124: 2023-04-01 | GI124: 2022-10-30 | GJ124: 2024-08-30 | GK124: 2023-04-01 | GL124: 2022-10-30 | GM124: 2024-08-30 | GN124: 2023-04-01 | GO124: 2022-11-01 | GP124: 2024-07-30 | GQ124: 2023-04-01 | GR124: 2022-11-01 | GS124: 2024-07-30 | GT124: 2023-04-01 | GU124: 2022-11-01 | GV124: 2024-07-30 | GW124: 2023-04-01 | GX124: 2024-01-10 | GY124: 2025-09-01 | GZ124: 2023-04-01 | HA124: 2024-01-10 | HB124: 2025-09-01 | HC124: 2023-04-01 | HD124: 2023-04-01 | HE124: 2024-12-01 | HF124: 2023-04-01 | HG124: 2023-04-01 | HH124: 2024-12-01 | HI124: 2023-04-01 | HJ124: 2023-04-01 | HK124: 2024-12-01 | HL124: 2023-04-01 | HM124: 2023-04-01 | HN124: 2024-12-01 | HP124: АБ-1 | HQ124: АБ-1 | HR124: АБСт | HT124: - | IG124: 0 | IH124: =IF(YEAR(#REF!)=HU$8,$J124,0) ->  | II124: =IF(AND(YEAR(#REF!)<=HU$8,YEAR(#REF!)>HU$8),$J124,0) ->  | IR124: 622 | IS124: 622
A125: 269 | B125: 13.1.2.11 | C125: СК00.01.1.01.3 | D125: ЖК "Салават Купере" Квартал №1 ж/д 1-3 | F125: Плиты теплоизоляционные пенополистирольные ППС-25 150мм | H125: м3 | I125: =140.294/580*L125 -> 140 | J125: 6,058 | K125: 5,478 | L125: 580 | N125: 112 | Q125: 1 | R125: КПД, 1 Каркас | S125: Перепривязка | T125: 4,054 | U125: 3,186 | V125: 423 | W125: =SUM(IG125,#REF!,#REF!,#REF!,#REF!,#REF!,#REF!,#REF!) ->  | FS125: 2022-12-01 | FT125: 2022-12-15 | FU125: 2024-03-25 | FV125: 2023-04-01 | FW125: 2022-10-30 | FX125: 2024-08-30 | FY125: 2023-04-01 | FZ125: 2022-10-30 | GA125: 2024-08-30 | GB125: 2023-04-01 | GC125: 2022-10-30 | GD125: 2024-08-30 | GE125: 2023-04-01 | GF125: 2022-10-30 | GG125: 2024-08-30 | GH125: 2023-04-01 | GI125: 2022-10-30 | GJ125: 2024-08-30 | GK125: 2023-04-01 | GL125: 2022-10-30 | GM125: 2024-08-30 | GN125: 2023-04-01 | GO125: 2022-09-01 | GP125: 2024-07-30 | GQ125: 2023-04-01 | GR125: 2022-09-01 | GS125: 2024-07-30 | GT125: 2023-04-01 | GU125: 2022-09-01 | GV125: 2024-07-30 | GW125: 2023-04-01 | GX125: 2024-01-10 | GY125: 2025-09-01 | GZ125: 2023-04-01 | HA125: 2024-01-10 | HB125: 2025-09-01 | HC125: 2023-04-01 | HD125: 2023-04-01 | HE125: 2024-12-01 | HF125: 2023-04-01 | HG125: 2023-04-01 | HH125: 2024-12-01 | HI125: 2023-04-01 | HJ125: 2023-04-01 | HK125: 2024-12-01 | HL125: 2023-04-01 | HM125: 2023-04-01 | HN125: 2024-12-01 | HP125: АБ-1 | HQ125: АБ-1 | HR125: АБСт | HT125: - | IG125: 0 | IH125: =IF(YEAR(#REF!)=HU$8,$J125,0) ->  | II125: =IF(AND(YEAR(#REF!)<=HU$8,YEAR(#REF!)>HU$8),$J125,0) ->  | IP125: =I125 -> 140
A126: 269 | B126: 13.1.2.11 | C126: СК00.01.1.01.3 | D126: ЖК "Салават Купере" Квартал №1 ж/д 1-3 | F126: Керамзит М600 | H126: м3 | I126: =142.129/580*L126 -> 142 | J126: =K126+L126 -> 6,058 | K126: 5,478 | L126: 580 | N126: 112 | Q126: 1 | R126: КПД, 1 Каркас | S126: Перепривязка | T126: 4,054 | U126: =T126*0.786 -> 3,186 | V126: 423 | W126: =SUM(IG126,#REF!,#REF!,#REF!,#REF!,#REF!,#REF!,#REF!) ->  | FS126: 2022-12-01 | FT126: =FS126+14 -> 2022-12-15 | FU126: 2024-03-25 | FV126: 2023-04-01 | FW126: 2022-10-30 | FX126: 2024-08-30 | FY126: 2023-04-01 | FZ126: 2022-10-30 | GA126: 2024-08-30 | GB126: 2023-04-01 | GC126: 2022-10-30 | GD126: 2024-08-30 | GE126: 2023-04-01 | GF126: 2022-10-30 | GG126: 2024-08-30 | GH126: 2023-04-01 | GI126: 2022-10-30 | GJ126: 2024-08-30 | GK126: 2023-04-01 | GL126: 2022-10-30 | GM126: 2024-08-30 | GN126: 2023-04-01 | GO126: 2022-09-01 | GP126: 2024-07-30 | GQ126: 2023-04-01 | GR126: 2022-09-01 | GS126: 2024-07-30 | GT126: 2023-04-01 | GU126: 2022-09-01 | GV126: 2024-07-30 | GW126: 2023-04-01 | GX126: 2024-01-10 | GY126: 2025-09-01 | GZ126: 2023-04-01 | HA126: 2024-01-10 | HB126: 2025-09-01 | HC126: 2023-04-01 | HD126: 2023-04-01 | HE126: 2024-12-01 | HF126: 2023-04-01 | HG126: 2023-04-01 | HH126: 2024-12-01 | HI126: 2023-04-01 | HJ126: 2023-04-01 | HK126: 2024-12-01 | HL126: 2023-04-01 | HM126: 2023-04-01 | HN126: 2024-12-01 | HP126: АБ-1 | HQ126: АБ-1 | HR126: АБСт | HT126: - | IG126: =SUM(HU126:IF126) -> 0 | IH126: =IF(YEAR(#REF!)=HU$8,$J126,0) ->  | II126: =IF(AND(YEAR(#REF!)<=HU$8,YEAR(#REF!)>HU$8),$J126,0) ->  | IP126: =I126 -> 142
A127: 269 | B127: 13.1.2.11 | C127: СК00.01.1.01.3 | D127: ЖК "Салават Купере" Квартал №1 ж/д 1-3 | F127: Плиты теплоизоляционные пенополистирольные экструдированные 100мм | H127: м3 | I127: =14.146/580*L127 -> 14 | J127: 6,058 | K127: 5,478 | L127: 580 | N127: 112 | Q127: 1 | R127: КПД, 1 Каркас | S127: Перепривязка | T127: 4,054 | U127: 3,186 | V127: 423 | W127: =SUM(IG127,#REF!,#REF!,#REF!,#REF!,#REF!,#REF!,#REF!) ->  | FS127: 2022-12-01 | FT127: 2022-12-15 | FU127: 2024-03-25 | FV127: 2023-04-01 | FW127: 2022-10-30 | FX127: 2024-08-30 | FY127: 2023-04-01 | FZ127: 2022-10-30 | GA127: 2024-08-30 | GB127: 2023-04-01 | GC127: 2022-10-30 | GD127: 2024-08-30 | GE127: 2023-04-01 | GF127: 2022-10-30 | GG127: 2024-08-30 | GH127: 2023-04-01 | GI127: 2022-10-30 | GJ127: 2024-08-30 | GK127: 2023-04-01 | GL127: 2022-10-30 | GM127: 2024-08-30 | GN127: 2023-04-01 | GO127: 2022-09-01 | GP127: 2024-07-30 | GQ127: 2023-04-01 | GR127: 2022-09-01 | GS127: 2024-07-30 | GT127: 2023-04-01 | GU127: 2022-09-01 | GV127: 2024-07-30 | GW127: 2023-04-01 | GX127: 2024-01-10 | GY127: 2025-09-01 | GZ127: 2023-04-01 | HA127: 2024-01-10 | HB127: 2025-09-01 | HC127: 2023-04-01 | HD127: 2023-04-01 | HE127: 2024-12-01 | HF127: 2023-04-01 | HG127: 2023-04-01 | HH127: 2024-12-01 | HI127: 2023-04-01 | HJ127: 2023-04-01 | HK127: 2024-12-01 | HL127: 2023-04-01 | HM127: 2023-04-01 | HN127: 2024-12-01 | HP127: АБ-1 | HQ127: АБ-1 | HR127: АБСт | HT127: - | IG127: 0 | IH127: =IF(YEAR(#REF!)=HU$8,$J127,0) ->  | II127: =IF(AND(YEAR(#REF!)<=HU$8,YEAR(#REF!)>HU$8),$J127,0) ->  | IP127: 14
A128: 269 | B128: 13.1.2.11 | C128: СК00.01.1.01.3 | D128: ЖК "Салават Купере" Квартал №1 ж/д 1-3 | F128: Плиты теплоизоляционные пенополистирольные экструдированные 50мм | H128: м3 | I128: =3.939/580*L128 -> 4 | J128: 6,058 | K128: 5,478 | L128: 580 | N128: 112 | Q128: 1 | R128: КПД, 1 Каркас | S128: Перепривязка | T128: 4,054 | U128: 3,186 | V128: 423 | W128: =SUM(IG128,#REF!,#REF!,#REF!,#REF!,#REF!,#REF!,#REF!) ->  | FS128: 2022-12-01 | FT128: 2022-12-15 | FU128: 2024-03-25 | FV128: 2023-04-01 | FW128: 2022-10-30 | FX128: 2024-08-30 | FY128: 2023-04-01 | FZ128: 2022-10-30 | GA128: 2024-08-30 | GB128: 2023-04-01 | GC128: 2022-10-30 | GD128: 2024-08-30 | GE128: 2023-04-01 | GF128: 2022-10-30 | GG128: 2024-08-30 | GH128: 2023-04-01 | GI128: 2022-10-30 | GJ128: 2024-08-30 | GK128: 2023-04-01 | GL128: 2022-10-30 | GM128: 2024-08-30 | GN128: 2023-04-01 | GO128: 2022-09-01 | GP128: 2024-07-30 | GQ128: 2023-04-01 | GR128: 2022-09-01 | GS128: 2024-07-30 | GT128: 2023-04-01 | GU128: 2022-09-01 | GV128: 2024-07-30 | GW128: 2023-04-01 | GX128: 2024-01-10 | GY128: 2025-09-01 | GZ128: 2023-04-01 | HA128: 2024-01-10 | HB128: 2025-09-01 | HC128: 2023-04-01 | HD128: 2023-04-01 | HE128: 2024-12-01 | HF128: 2023-04-01 | HG128: 2023-04-01 | HH128: 2024-12-01 | HI128: 2023-04-01 | HJ128: 2023-04-01 | HK128: 2024-12-01 | HL128: 2023-04-01 | HM128: 2023-04-01 | HN128: 2024-12-01 | HP128: АБ-1 | HQ128: АБ-1 | HR128: АБСт | HT128: - | IG128: 0 | IH128: =IF(YEAR(#REF!)=HU$8,$J128,0) ->  | II128: =IF(AND(YEAR(#REF!)<=HU$8,YEAR(#REF!)>HU$8),$J128,0) ->  | IP128: 4
A129: 269 | B129: 13.1.2.11 | C129: СК00.01.1.01.3 | D129: ЖК "Салават Купере" Квартал №1 ж/д 1-3 | F129: Материал рулонный кровельный гидроизоляционный верхний слой | G129: основа: полиэстeр;температура гибкости на брусе R=25мм не менее -20; толщина 1м² не менее 3,8мм | H129: м2 | I129: =1730.022/580*L129 -> 1,730 | J129: 6,058 | K129: 5,478 | L129: 580 | N129: 112 | Q129: 1 | R129: КПД, 1 Каркас | S129: Перепривязка | T129: 4,054 | U129: 3,186 | V129: 423 | W129: =SUM(IG129,#REF!,#REF!,#REF!,#REF!,#REF!,#REF!,#REF!) ->  | FS129: 2022-12-01 | FT129: 2022-12-15 | FU129: 2024-03-25 | FV129: 2023-04-01 | FW129: 2022-10-30 | FX129: 2024-08-30 | FY129: 2023-04-01 | FZ129: 2022-10-30 | GA129: 2024-08-30 | GB129: 2023-04-01 | GC129: 2022-10-30 | GD129: 2024-08-30 | GE129: 2023-04-01 | GF129: 2022-10-30 | GG129: 2024-08-30 | GH129: 2023-04-01 | GI129: 2022-10-30 | GJ129: 2024-08-30 | GK129: 2023-04-01 | GL129: 2022-10-30 | GM129: 2024-08-30 | GN129: 2023-04-01 | GO129: 2022-09-01 | GP129: 2024-07-30 | GQ129: 2023-04-01 | GR129: 2022-09-01 | GS129: 2024-07-30 | GT129: 2023-04-01 | GU129: 2022-09-01 | GV129: 2024-07-30 | GW129: 2023-04-01 | GX129: 2024-01-10 | GY129: 2025-09-01 | GZ129: 2023-04-01 | HA129: 2024-01-10 | HB129: 2025-09-01 | HC129: 2023-04-01 | HD129: 2023-04-01 | HE129: 2024-12-01 | HF129: 2023-04-01 | HG129: 2023-04-01 | HH129: 2024-12-01 | HI129: 2023-04-01 | HJ129: 2023-04-01 | HK129: 2024-12-01 | HL129: 2023-04-01 | HM129: 2023-04-01 | HN129: 2024-12-01 | HP129: АБ-1 | HQ129: АБ-1 | HR129: АБСт | HT129: - | IG129: 0 | IH129: =IF(YEAR(#REF!)=HU$8,$J129,0) ->  | II129: =IF(AND(YEAR(#REF!)<=HU$8,YEAR(#REF!)>HU$8),$J129,0) ->  | IP129: 1,730
A130: 269 | B130: 13.1.2.11 | C130: СК00.01.1.01.3 | D130: ЖК "Салават Купере" Квартал №1 ж/д 1-3 | F130: Материал рулонный кровельный гидроизоляционный нижний слой | G130: основа: полиэстeр;температура гибкости на брусе R=25мм не менее -20; толщина 1м² не менее 2,8мм | H130: м2 | I130: =1243.267/580*L130 -> 1,243 | J130: 6,058 | K130: 5,478 | L130: 580 | N130: 112 | Q130: 1 | R130: КПД, 1 Каркас | S130: Перепривязка | T130: 4,054 | U130: 3,186 | V130: 423 | W130: =SUM(IG130,#REF!,#REF!,#REF!,#REF!,#REF!,#REF!,#REF!) ->  | FS130: 2022-12-01 | FT130: 2022-12-15 | FU130: 2024-03-25 | FV130: 2023-04-01 | FW130: 2022-10-30 | FX130: 2024-08-30 | FY130: 2023-04-01 | FZ130: 2022-10-30 | GA130: 2024-08-30 | GB130: 2023-04-01 | GC130: 2022-10-30 | GD130: 2024-08-30 | GE130: 2023-04-01 | GF130: 2022-10-30 | GG130: 2024-08-30 | GH130: 2023-04-01 | GI130: 2022-10-30 | GJ130: 2024-08-30 | GK130: 2023-04-01 | GL130: 2022-10-30 | GM130: 2024-08-30 | GN130: 2023-04-01 | GO130: 2022-09-01 | GP130: 2024-07-30 | GQ130: 2023-04-01 | GR130: 2022-09-01 | GS130: 2024-07-30 | GT130: 2023-04-01 | GU130: 2022-09-01 | GV130: 2024-07-30 | GW130: 2023-04-01 | GX130: 2024-01-10 | GY130: 2025-09-01 | GZ130: 2023-04-01 | HA130: 2024-01-10 | HB130: 2025-09-01 | HC130: 2023-04-01 | HD130: 2023-04-01 | HE130: 2024-12-01 | HF130: 2023-04-01 | HG130: 2023-04-01 | HH130: 2024-12-01 | HI130: 2023-04-01 | HJ130: 2023-04-01 | HK130: 2024-12-01 | HL130: 2023-04-01 | HM130: 2023-04-01 | HN130: 2024-12-01 | HP130: АБ-1 | HQ130: АБ-1 | HR130: АБСт | HT130: - | IG130: 0 | IH130: =IF(YEAR(#REF!)=HU$8,$J130,0) ->  | II130: =IF(AND(YEAR(#REF!)<=HU$8,YEAR(#REF!)>HU$8),$J130,0) ->  | IP130: 1,243
A131: 267 | B131: 13.1.2.12 | C131: СК00.01.1.02.1 | D131: ЖК "Салават Купере" Квартал №1 ж/д 2-1 | F131: Плиты теплоизоляционные пенополистирольные ППС-25 150мм | H131: м3 | I131: =140.294/580*L131 -> 97 | J131: 8,818 | K131: 8,418 | L131: 400 | N131: 160 | Q131: 1 | R131: КПД, 1 Каркас | S131: Перепривязка | T131: 5,472 | U131: 4,301 | V131: 292 | W131: =SUM(IG131,#REF!,#REF!,#REF!,#REF!,#REF!,#REF!,#REF!) ->  | FS131: 2023-06-01 | FT131: 2023-06-15 | FU131: 2025-01-21 | FV131: 2023-07-01 | FW131: 2023-02-01 | FX131: 2024-10-30 | FY131: 2023-07-01 | FZ131: 2023-02-01 | GA131: 2024-10-30 | GB131: 2023-07-01 | GC131: 2023-02-01 | GD131: 2024-10-30 | GE131: 2023-07-01 | GF131: 2023-02-01 | GG131: 2024-10-30 | GH131: 2023-07-01 | GI131: 2023-02-01 | GJ131: 2024-10-30 | GK131: 2023-07-01 | GL131: 2023-02-01 | GM131: 2024-10-30 | GN131: 2023-07-01 | GO131: 2022-12-01 | GP131: 2024-10-30 | GQ131: 2023-07-01 | GR131: 2022-12-01 | GS131: 2024-10-30 | GT131: 2023-07-01 | GU131: 2022-12-01 | GV131: 2024-10-30 | GW131: 2023-07-01 | GX131: 2024-06-30 | GY131: 2025-11-30 | GZ131: 2023-07-01 | HA131: 2024-06-30 | HB131: 2025-11-30 | HC131: 2023-07-01 | HD131: 2023-07-01 | HE131: 2024-12-30 | HF131: 2023-07-01 | HG131: 2023-07-01 | HH131: 2024-12-30 | HI131: 2023-07-01 | HJ131: 2023-07-01 | HK131: 2024-12-30 | HL131: 2023-07-01 | HM131: 2023-07-01 | HN131: 2024-12-30 | HP131: АБ-1 | HQ131: АБ-1 | HR131: АБСт | HT131: - | IG131: 0 | IH131: =IF(YEAR(#REF!)=HU$8,$J131,0) ->  | II131: =IF(AND(YEAR(#REF!)<=HU$8,YEAR(#REF!)>HU$8),$J131,0) ->  | IS131: =I131 -> 97
A132: 267 | B132: 13.1.2.12 | C132: СК00.01.1.02.1 | D132: ЖК "Салават Купере" Квартал №1 ж/д 2-1 | F132: Керамзит М600 | H132: м3 | I132: =142.129/580*L132 -> 98 | J132: =K132+L132 -> 8,818 | K132: 8,418 | L132: 400 | N132: 160 | Q132: 1 | R132: КПД, 1 Каркас | S132: Перепривязка | T132: 5,472 | U132: =T132*0.786 -> 4,301 | V132: 292 | W132: =SUM(IG132,#REF!,#REF!,#REF!,#REF!,#REF!,#REF!,#REF!) ->  | FS132: 2023-06-01 | FT132: =FS132+14 -> 2023-06-15 | FU132: 2025-01-21 | FV132: 2023-07-01 | FW132: 2023-02-01 | FX132: 2024-10-30 | FY132: 2023-07-01 | FZ132: 2023-02-01 | GA132: 2024-10-30 | GB132: 2023-07-01 | GC132: 2023-02-01 | GD132: 2024-10-30 | GE132: 2023-07-01 | GF132: 2023-02-01 | GG132: 2024-10-30 | GH132: 2023-07-01 | GI132: 2023-02-01 | GJ132: 2024-10-30 | GK132: 2023-07-01 | GL132: 2023-02-01 | GM132: 2024-10-30 | GN132: 2023-07-01 | GO132: 2022-12-01 | GP132: 2024-10-30 | GQ132: 2023-07-01 | GR132: 2022-12-01 | GS132: 2024-10-30 | GT132: 2023-07-01 | GU132: 2022-12-01 | GV132: 2024-10-30 | GW132: 2023-07-01 | GX132: 2024-06-30 | GY132: 2025-11-30 | GZ132: 2023-07-01 | HA132: 2024-06-30 | HB132: 2025-11-30 | HC132: 2023-07-01 | HD132: 2023-07-01 | HE132: 2024-12-30 | HF132: 2023-07-01 | HG132: 2023-07-01 | HH132: 2024-12-30 | HI132: 2023-07-01 | HJ132: 2023-07-01 | HK132: 2024-12-30 | HL132: 2023-07-01 | HM132: 2023-07-01 | HN132: 2024-12-30 | HP132: АБ-1 | HQ132: АБ-1 | HR132: АБСт | HT132: - | IG132: =SUM(HU132:IF132) -> 0 | IH132: =IF(YEAR(#REF!)=HU$8,$J132,0) ->  | II132: =IF(AND(YEAR(#REF!)<=HU$8,YEAR(#REF!)>HU$8),$J132,0) ->  | IS132: =I132 -> 98
A133: 267 | B133: 13.1.2.12 | C133: СК00.01.1.02.1 | D133: ЖК "Салават Купере" Квартал №1 ж/д 2-1 | F133: Плиты теплоизоляционные пенополистирольные экструдированные 100мм | H133: м3 | I133: =14.146/580*L133 -> 10 | J133: 8,818 | K133: 8,418 | L133: 400 | N133: 160 | Q133: 1 | R133: КПД, 1 Каркас | S133: Перепривязка | T133: 5,472 | U133: 4,301 | V133: 292 | W133: =SUM(IG133,#REF!,#REF!,#REF!,#REF!,#REF!,#REF!,#REF!) ->  | FS133: 2023-06-01 | FT133: 2023-06-15 | FU133: 2025-01-21 | FV133: 2023-07-01 | FW133: 2023-02-01 | FX133: 2024-10-30 | FY133: 2023-07-01 | FZ133: 2023-02-01 | GA133: 2024-10-30 | GB133: 2023-07-01 | GC133: 2023-02-01 | GD133: 2024-10-30 | GE133: 2023-07-01 | GF133: 2023-02-01 | GG133: 2024-10-30 | GH133: 2023-07-01 | GI133: 2023-02-01 | GJ133: 2024-10-30 | GK133: 2023-07-01 | GL133: 2023-02-01 | GM133: 2024-10-30 | GN133: 2023-07-01 | GO133: 2022-12-01 | GP133: 2024-10-30 | GQ133: 2023-07-01 | GR133: 2022-12-01 | GS133: 2024-10-30 | GT133: 2023-07-01 | GU133: 2022-12-01 | GV133: 2024-10-30 | GW133: 2023-07-01 | GX133: 2024-06-30 | GY133: 2025-11-30 | GZ133: 2023-07-01 | HA133: 2024-06-30 | HB133: 2025-11-30 | HC133: 2023-07-01 | HD133: 2023-07-01 | HE133: 2024-12-30 | HF133: 2023-07-01 | HG133: 2023-07-01 | HH133: 2024-12-30 | HI133: 2023-07-01 | HJ133: 2023-07-01 | HK133: 2024-12-30 | HL133: 2023-07-01 | HM133: 2023-07-01 | HN133: 2024-12-30 | HP133: АБ-1 | HQ133: АБ-1 | HR133: АБСт | HT133: - | IG133: 0 | IH133: =IF(YEAR(#REF!)=HU$8,$J133,0) ->  | II133: =IF(AND(YEAR(#REF!)<=HU$8,YEAR(#REF!)>HU$8),$J133,0) ->  | IS133: 10
A134: 267 | B134: 13.1.2.12 | C134: СК00.01.1.02.1 | D134: ЖК "Салават Купере" Квартал №1 ж/д 2-1 | F134: Плиты теплоизоляционные пенополистирольные экструдированные 50мм | H134: м3 | I134: =3.939/580*L134 -> 3 | J134: 8,818 | K134: 8,418 | L134: 400 | N134: 160 | Q134: 1 | R134: КПД, 1 Каркас | S134: Перепривязка | T134: 5,472 | U134: 4,301 | V134: 292 | W134: =SUM(IG134,#REF!,#REF!,#REF!,#REF!,#REF!,#REF!,#REF!) ->  | FS134: 2023-06-01 | FT134: 2023-06-15 | FU134: 2025-01-21 | FV134: 2023-07-01 | FW134: 2023-02-01 | FX134: 2024-10-30 | FY134: 2023-07-01 | FZ134: 2023-02-01 | GA134: 2024-10-30 | GB134: 2023-07-01 | GC134: 2023-02-01 | GD134: 2024-10-30 | GE134: 2023-07-01 | GF134: 2023-02-01 | GG134: 2024-10-30 | GH134: 2023-07-01 | GI134: 2023-02-01 | GJ134: 2024-10-30 | GK134: 2023-07-01 | GL134: 2023-02-01 | GM134: 2024-10-30 | GN134: 2023-07-01 | GO134: 2022-12-01 | GP134: 2024-10-30 | GQ134: 2023-07-01 | GR134: 2022-12-01 | GS134: 2024-10-30 | GT134: 2023-07-01 | GU134: 2022-12-01 | GV134: 2024-10-30 | GW134: 2023-07-01 | GX134: 2024-06-30 | GY134: 2025-11-30 | GZ134: 2023-07-01 | HA134: 2024-06-30 | HB134: 2025-11-30 | HC134: 2023-07-01 | HD134: 2023-07-01 | HE134: 2024-12-30 | HF134: 2023-07-01 | HG134: 2023-07-01 | HH134: 2024-12-30 | HI134: 2023-07-01 | HJ134: 2023-07-01 | HK134: 2024-12-30 | HL134: 2023-07-01 | HM134: 2023-07-01 | HN134: 2024-12-30 | HP134: АБ-1 | HQ134: АБ-1 | HR134: АБСт | HT134: - | IG134: 0 | IH134: =IF(YEAR(#REF!)=HU$8,$J134,0) ->  | II134: =IF(AND(YEAR(#REF!)<=HU$8,YEAR(#REF!)>HU$8),$J134,0) ->  | IS134: 3
A135: 267 | B135: 13.1.2.12 | C135: СК00.01.1.02.1 | D135: ЖК "Салават Купере" Квартал №1 ж/д 2-1 | F135: Материал рулонный кровельный гидроизоляционный верхний слой | G135: основа: полиэстeр;температура гибкости на брусе R=25мм не менее -20; толщина 1м² не менее 3,8мм | H135: м2 | I135: =1730.022/580*L135 -> 1,193 | J135: =K135+L135 -> 8,818 | K135: 8,418 | L135: 400 | N135: 160 | Q135: 1 | R135: КПД, 1 Каркас | S135: Перепривязка | T135: 5,472 | U135: =T135*0.786 -> 4,301 | V135: 292 | W135: =SUM(IG135,#REF!,#REF!,#REF!,#REF!,#REF!,#REF!,#REF!) ->  | FS135: 2023-06-01 | FT135: =FS135+14 -> 2023-06-15 | FU135: 2025-01-21 | FV135: 2023-07-01 | FW135: 2023-02-01 | FX135: 2024-10-30 | FY135: 2023-07-01 | FZ135: 2023-02-01 | GA135: 2024-10-30 | GB135: 2023-07-01 | GC135: 2023-02-01 | GD135: 2024-10-30 | GE135: 2023-07-01 | GF135: 2023-02-01 | GG135: 2024-10-30 | GH135: 2023-07-01 | GI135: 2023-02-01 | GJ135: 2024-10-30 | GK135: 2023-07-01 | GL135: 2023-02-01 | GM135: 2024-10-30 | GN135: 2023-07-01 | GO135: 2022-12-01 | GP135: 2024-10-30 | GQ135: 2023-07-01 | GR135: 2022-12-01 | GS135: 2024-10-30 | GT135: 2023-07-01 | GU135: 2022-12-01 | GV135: 2024-10-30 | GW135: 2023-07-01 | GX135: 2024-06-30 | GY135: 2025-11-30 | GZ135: 2023-07-01 | HA135: 2024-06-30 | HB135: 2025-11-30 | HC135: 2023-07-01 | HD135: 2023-07-01 | HE135: 2024-12-30 | HF135: 2023-07-01 | HG135: 2023-07-01 | HH135: 2024-12-30 | HI135: 2023-07-01 | HJ135: 2023-07-01 | HK135: 2024-12-30 | HL135: 2023-07-01 | HM135: 2023-07-01 | HN135: 2024-12-30 | HP135: АБ-1 | HQ135: АБ-1 | HR135: АБСт | HT135: - | IG135: =SUM(HU135:IF135) -> 0 | IH135: =IF(YEAR(#REF!)=HU$8,$J135,0) ->  | II135: =IF(AND(YEAR(#REF!)<=HU$8,YEAR(#REF!)>HU$8),$J135,0) ->  | IS135: 1,193
